Workbook

Sheet _Оглавление_
B1: Перечень приложений к тарифному соглашению системы обязательного медицинского страхования Томской области
A2: Доп.соглашение № 6 | B2: Тарифное соглашение
A3: от 05.06.2024 | B3: от 05.02.2024
A4: Приложение № 1 | B4: ='Приложение № 1'!B10 -> Приложение № 12 | C4: ='Приложение № 1'!B16 -> Тарифы на оплату отдельных лечебных и (или) лечебно-диагностических услуг, оказанных в амбулаторных условиях, за медицинскую услугу, посещение, обращение (законченный случай), в том числе лицам, застрахованным за пределами Томской области
A5: Приложение № 2 | B5: ='Приложение № 2'!B10 -> Приложение № 14 | C5: ='Приложение № 2'!B16 -> Тарифы на оплату отдельных диагностических (лабораторных) исследований (компьютерная томография, магнитно-резонансная томография, ультразвуковое исследование сердечно-сосудистой системы, эндоскопические диагностические исследования, молекулярно-генетические исследования и патолого-анатомические исследования биопсийного (операционного) материала с целью диагностики онкологических заболеваний и подбора противоопухолевой лекарственной терапии, тестирования на выявление новой коронавирусной инфекции (COVID-19)), в том числе лицам, застрахованным за пределами Томской области, c 01.06.2024
A6: Приложение № 3 | B6: ='Приложение № 3'!B10 -> Приложение № 15 | C6: ='Приложение № 3'!B16 -> Тарифы на оплату медицинской помощи за единицу объема медицинской помощи (в том числе для оплаты медицинских услуг при оказании медицинской помощи в рамках профилактических медицинских осмотров, диспансеризации (включая диспансеризацию для оценки репродуктивного здоровья женщин и мужчин), а также в стационарных условиях и в условиях дневного стационара), применяемые при межучрежденческих и межтерриториальных расчетах, с 01.06.2024
A7: Приложение № 4 | B7: ='Приложение № 4'!B10 -> Приложение № 25 | C7: ='Приложение № 4'!C16 -> Размер финансового обеспечения фельдшерских здравпунктов, фельдшерско-акушерских пунктов с 01.06.2024 года
A8: Приложение № 5 | B8: ='Приложение № 5'!B10 -> Приложение № 38 | C8: ='Приложение № 5'!B16 -> Тарифы на оплату скорой медицинской помощи , по подушевому нормативу финансирования, оказываемой медицинскими организациями, участвующими в реализации территориальной программы обязательного медицинского страхования Томской области, с 01.06.2024

Sheet Приложение № 1
A1: _Оглавление_
B2: =MID(CELL("filename",A2),SEARCH("]",CELL("filename",A2))+1,31) -> Приложение № 1
B3: к Дополнительному соглашению № 6
B4: =_Оглавление_!A3 -> от 05.06.2024
B5: к Тарифному соглашению
B6: на оплату медицинской помощи
B7: по ОМС на территории Томской области на 2024 год
B8: от 05.02.2024
B10: Приложение № 12
B11: к Тарифному соглашению
B12: на оплату медицинской помощи
B13: по ОМС на территории Томской области на 2024 год
B14: от 05.02.2024
B16: Тарифы на оплату отдельных лечебных и (или) лечебно-диагностических услуг, оказанных в амбулаторных условиях, за медицинскую услугу, посещение, обращение (законченный случай), в том числе лицам, застрахованным за пределами Томской области
B19: Тарифы на оплату маммографического обследования, в том числе лицам, застрахованным за пределами Томской области, с 01.04.2024
B21: Наименование услуги | C21: Код услуги | D21: Базовый тариф, руб. | E21: Коэффициенты дифференциации по территории оказания медицинской помощи | F21: Тариф, руб.
B22: Маммография | C22: А06.20.004 | D22: 229.34 | E22: 1.242 | F22: =ROUND(D22*E22,2) -> 284.84
D23: 229.34 | E23: 1.26 | F23: =ROUND(D23*E23,2) -> 288.97
D24: 229.34 | E24: 1.27 | F24: 291.26
D25: 229.34 | E25: 1.272 | F25: 291.72
D26: 229.34 | E26: 1.274 | F26: 292.18
D27: 229.34 | E27: 1.381 | F27: 316.72
D28: 229.34 | E28: 1.63 | F28: 373.82
D29: 229.34 | E29: 1.637 | F29: 375.43
D30: 229.34 | E30: 1.665 | F30: 381.85
D31: 229.34 | E31: 1.765 | F31: 404.79
D32: 229.34 | E32: 1.777 | F32: 407.54
D33: 229.34 | E33: 1.793 | F33: 411.21
D34: 229.34 | E34: 1.794 | F34: 411.44
D35: 229.34 | E35: 1.831 | F35: 419.92
B36: Маммография (передвижной маммограф) | C36: А06.20.004.008 | D36: 465.16 | E36: 1.274 | F36: 592.61
D37: 465.16 | E37: 1.27 | F37: 590.75
B38: Маммография спектральная с контрастированием | C38: А06.20.004.010 | D38: 2522.92 | E38: 1.274 | F38: 3214.2
B41: Тарифы на оплату медицинской помощи, оказанной травматологическими пунктами, в том числе лицам, застрахованным за пределами Томской области, с 01.01.2024
B43: Наименование медицинской организации | C43: Базовая стоимость посещения | D43: Коэффициенты дифференциации по территории оказания медицинской помощи | E43: Стоимость 1 посещения, руб.
B44: Травматологический пункт ОГАУЗ "Городская клиническая больница им. Б.И. Альперовича № 3" | C44: 1370.9 | D44: 1.274 | E44: =ROUND(C44*D44,2) -> 1746.53
B45: Травматологический пункт ОГБУЗ "Медико-санитарная часть № 2" | C45: 1370.9 | D45: 1.274 | E45: =ROUND(C45*D45,2) -> 1746.53
B46: Травматологический пункт ОГАУЗ "Больница скорой медицинской помощи № 2" | C46: 1370.9 | D46: 1.274 | E46: 1746.53
B47: Травматологический пункт ОГАУЗ "Поликлиника № 10" | C47: 1370.9 | D47: 1.274 | E47: 1746.53
B48: Травматологический пункт ООО "ЦКБ" | C48: 1370.9 | D48: 1.274 | E48: 1746.53
B49: Травматологический пункт ФГБУ СибФНКЦ ФМБА России | C49: 1370.9 | D49: 1.381 | E49: 1893.21
B52: Тарифы на оплату медицинских услуг, оказанных в центрах здоровья, в том числе лицам, застрахованным за пределами Томской области, с 01.01.2024
B54: Наименование медицинской организации | C54: Базовый тариф на первичное обращение | D54: Базовый тариф на повторное обращение | E54: Коэффициенты дифференциации по территории оказания медицинской помощи | F54: Стоимость законченного случая первичного обращения, руб. | G54: Стоимость законченного случая повторного обращения, руб.
B55: ОГБУЗ "Медико-санитарная часть № 2" (Центр здоровья) | C55: 894.94 | D55: 260.63 | E55: 1.274 | F55: =ROUND(C55*E55,2) -> 1140.15 | G55: =ROUND(D55*E55,2) -> 332.04
B56: ОГАУЗ "Межвузовская поликлиника" (Центр здоровья) | C56: 894.94 | D56: 260.63 | E56: 1.274 | F56: =ROUND(C56*E56,2) -> 1140.15 | G56: =ROUND(D56*E56,2) -> 332.04
B57: ОГАУЗ "Томская областная клиническая больница" (Центр здоровья) | C57: 894.94 | D57: 260.63 | E57: 1.274 | F57: 1140.15 | G57: 332.04
B58: ОГБУЗ "Областная детская больница" (детский Центр здоровья) | C58: 1358.73 | D58: 406.26 | E58: 1.274 | F58: 1731.02 | G58: 517.58
B59: ОГАУЗ "Томская областная клиническая больница", ОГАУЗ "Межвузовская поликлиника" (с использованием мобильного комплекса Центра здоровья) для пациентов, прикрепленных к ОГАУЗ "Томская РБ" | C59: 1398.8 | E59: 1.274 | F59: =ROUND(C59*E59,2) -> 1782.07
B60: ОГАУЗ "Томская областная клиническая больница", ОГАУЗ "Межвузовская поликлиника" (с использованием мобильного комплекса Центра здоровья) для пациентов, прикрепленных к ОГАУЗ "Светленская РБ №1"
B61: ОГАУЗ "Томская областная клиническая больница", ОГАУЗ "Межвузовская поликлиника" (с использованием мобильного комплекса Центра здоровья) для пациентов, прикрепленных к ОГБУЗ "Лоскутовская РП"
B62: ОГАУЗ "Томская областная клиническая больница" (с использованием мобильного комплекса Центра здоровья) для пациентов, прикрепленных к ФГБУ СибФНКЦ ФМБА России
B63: ОГАУЗ "Томская областная клиническая больница", ОГАУЗ "Межвузовская поликлиника" (с использованием мобильного комплекса Центра здоровья) для пациентов, прикрепленных к ОГАУЗ "Асиновская РБ" | C63: 1492.31 | E63: 1.274 | F63: =ROUND(C63*E63,2) -> 1901.2
B64: ОГАУЗ "Томская областная клиническая больница", ОГАУЗ "Межвузовская поликлиника" (с использованием мобильного комплекса Центра здоровья) для пациентов, прикрепленных к ОГАУЗ "Кожевниковская РБ"
B65: ОГАУЗ "Томская областная клиническая больница", ОГАУЗ "Межвузовская поликлиника" (с использованием мобильного комплекса Центра здоровья) для пациентов, прикрепленных к ОГБУЗ "Зырянская РБ"
B66: ОГАУЗ "Томская областная клиническая больница", ОГАУЗ "Межвузовская поликлиника" (с использованием мобильного комплекса Центра здоровья) для пациентов, прикрепленных к ОГБУЗ "Первомайская РБ"
B67: ОГАУЗ "Томская областная клиническая больница", ОГАУЗ "Межвузовская поликлиника" (с использованием мобильного комплекса Центра здоровья) для пациентов, прикрепленных к ОГАУЗ "Шегарская РБ"
B68: ОГАУЗ "Томская областная клиническая больница", ОГАУЗ "Межвузовская поликлиника" (с использованием мобильного комплекса Центра здоровья) для пациентов, прикрепленных к ОГАУЗ "Кривошеинская РБ" | C68: 1574.87 | E68: 1.274 | F68: =ROUND(C68*E68,2) -> 2006.38
B69: ОГАУЗ "Томская областная клиническая больница", ОГАУЗ "Межвузовская поликлиника" (с использованием мобильного комплекса Центра здоровья) для пациентов, прикрепленных к ОГБУЗ "Молчановская РБ"
B70: ОГАУЗ "Томская областная клиническая больница", ОГАУЗ "Межвузовская поликлиника" (с использованием мобильного комплекса Центра здоровья) для пациентов, прикрепленных к ОГБУЗ "Бакчарская РБ" | C70: 1598.8 | E70: 1.274 | F70: =ROUND(C70*E70,2) -> 2036.87
B71: ОГАУЗ "Томская областная клиническая больница", ОГАУЗ "Межвузовская поликлиника" (с использованием мобильного комплекса Центра здоровья) для пациентов, прикрепленных к ОГБУЗ "Тегульдетская РБ"
B72: ОГАУЗ "Томская областная клиническая больница", ОГАУЗ "Межвузовская поликлиника" (с использованием мобильного комплекса Центра здоровья) для пациентов, прикрепленных к ОГАУЗ "Колпашевская РБ"
B73: ОГАУЗ "Томская областная клиническая больница", ОГАУЗ "Межвузовская поликлиника" (с использованием мобильного комплекса Центра здоровья) для пациентов, прикрепленных к ОГБУЗ "Каргасокская РБ" | C73: 1629.38 | E73: 1.274 | F73: =ROUND(C73*E73,2) -> 2075.83
B74: ОГАУЗ "Томская областная клиническая больница", ОГАУЗ "Межвузовская поликлиника" (с использованием мобильного комплекса Центра здоровья) для пациентов, прикрепленных к ОГБУЗ "Чаинская РБ"
B75: ОГАУЗ "Томская областная клиническая больница", ОГАУЗ "Межвузовская поликлиника" (с использованием мобильного комплекса Центра здоровья) для пациентов, прикрепленных к ОГБУЗ "Верхнекетская РБ"
B76: ОГАУЗ "Томская областная клиническая больница" (с использованием мобильного комплекса Центра здоровья) для пациентов, прикрепленных к ОГБУЗ "Парабельская РБ"
B79: Тарифы на оплату медицинской помощи, оказываемой передвижными мобильными фельдшерско-акушерскими пунктами, в том числе лицам, застрахованным за пределами Томской области, с 01.01.2024
B81: Наименование медицинской организации/код услуги | C81: Наименование услуги | D81: Базовый тариф | E81: Коэффициенты дифференциации по территории оказания медицинской помощи | F81: Стоимость, руб.
B82: ОГАУЗ "Томская РБ", ОГАУЗ "Светленская РБ", ОГАУЗ "Лоскутовская РП"
C83: Посещения с профилактической целью | D83: 396.44 | E83: 1.271 | F83: =ROUND(D83*$E$83,2) -> 503.88
B84: A05.10.006 | C84: Регистрация электрокардиограммы | D84: 116.72 | F84: =ROUND(D84*$E$83,2) -> 148.35
B85: A05.10.004 | C85: Расшифровка, описание и интерпретация электрокардиографических данных | D85: 63.02 | F85: 80.1
B86: B03.016.002 | C86: Общий (клинический) анализ крови | D86: 228.83 | F86: 290.84
B87: A09.05.023 | C87: Исследование уровня глюкозы в крови | D87: 49.49 | F87: 62.9
B88: A09.05.024 | C88: Исследование уровня общих липидов в крови | D88: 139.1 | F88: 176.8
B89: A09.05.026 | C89: Исследование уровня холестерина в крови | D89: 57.88 | F89: 73.57
B90: B03.016.006 | C90: Общий (клинический) анализ мочи | D90: 163.68 | F90: 208.04
B91: ОГАУЗ "Кожевниковская РБ"
C92: Посещения с профилактической целью | D92: 396.44 | E92: 1.272 | F92: =ROUND(D92*$E$92,2) -> 504.27
B93: A05.10.006 | C93: Регистрация электрокардиограммы | D93: 116.72 | F93: =ROUND(D93*$E$92,2) -> 148.47
B94: A05.10.004 | C94: Расшифровка, описание и интерпретация электрокардиографических данных | D94: 63.02 | F94: 80.16
B95: B03.016.002 | C95: Общий (клинический) анализ крови | D95: 228.83 | F95: 291.07
B96: A09.05.023 | C96: Исследование уровня глюкозы в крови | D96: 49.49 | F96: 62.95
B97: A09.05.024 | C97: Исследование уровня общих липидов в крови | D97: 139.1 | F97: 176.94
B98: A09.05.026 | C98: Исследование уровня холестерина в крови | D98: 57.88 | F98: 73.62
B99: B03.016.006 | C99: Общий (клинический) анализ мочи | D99: 163.68 | F99: 208.2
B100: ОГАУЗ "Шегарская РБ"
C101: Посещения с профилактической целью | D101: 396.44 | E101: 1.242 | F101: =ROUND(D101*$E$101,2) -> 492.38
B102: A05.10.006 | C102: Регистрация электрокардиограммы | D102: 116.72 | F102: =ROUND(D102*$E$101,2) -> 144.97
B103: A05.10.004 | C103: Расшифровка, описание и интерпретация электрокардиографических данных | D103: 63.02 | F103: 78.27
B104: B03.016.002 | C104: Общий (клинический) анализ крови | D104: 228.83 | F104: 284.21
B105: A09.05.023 | C105: Исследование уровня глюкозы в крови | D105: 49.49 | F105: 61.47
B106: A09.05.024 | C106: Исследование уровня общих липидов в крови | D106: 139.1 | F106: 172.76
B107: A09.05.026 | C107: Исследование уровня холестерина в крови | D107: 57.88 | F107: 71.89
B108: B03.016.006 | C108: Общий (клинический) анализ мочи | D108: 163.68 | F108: 203.29
B111: Тарифы на оплату медицинской помощи, оказанной поликлиниками (поликлиническими отделениями), не имеющими прикрепленного населения, в том числе лицам, застрахованным за пределами Томской области, с 01.03.2024
B113: Наименование медицинской организации/ наименование врачебных специальностей | C113: Код услуги посещение | D113: Код услуги обращение | E113: Базовый тариф посещения, руб. | F113: Базовый тариф обращения, руб. | G113: Коэффициенты дифференциации по территории оказания медицинской помощи | H113: Стоимость 1 посещения по врачебной специальности, руб. | I113: Стоимость 1 обращения по врачебной специальности, руб.
B114: ОГАУЗ "Томский областной онкологический диспансер"
B115: Невролог | C115: B01.023.001 | D115: B01.023.001 ОБР | E115: 672.68 | F115: 1345.38 | G115: 1.274 | H115: =ROUND(E115*G115,2) -> 856.99 | I115: =ROUND(F115*G115,2) -> 1714.01
B116: Терапевт | C116: B01.047.001 | D116: B01.047.001 ОБР | E116: 740.62 | F116: 1481.22 | G116: 1.274 | H116: =ROUND(E116*G116,2) -> 943.55 | I116: =ROUND(F116*G116,2) -> 1887.07
B117: Эндокринолог | C117: B01.058.001 | D117: B01.058.001 ОБР | E117: 727.18 | F117: 1454.36 | G117: 1.274 | H117: 926.43 | I117: 1852.85
B118: ОГБУЗ "Томский областной кожно-венерологический диспансер"
B119: Дерматолог | C119: B01.008.001 | D119: B01.008.001 ОБР | E119: 279.87 | F119: 570.1 | G119: 1.274 | H119: 356.55 | I119: 726.31
B120: ОГАУЗ "ОПЦ им. И.Д.Евтушенко"
B121: Взрослая поликлиника
B122: Акушер - гинеколог | C122: B01.001.001 | D122: B01.001.001 ОБР | E122: 1021.1 | F122: 2654.88 | G122: 1.274 | H122: =ROUND(E122*G122,2) -> 1300.88 | I122: 3382.32
B123: Акушер - гинеколог (беременным) | C123: В01.001.004 | D123: В01.001.004ОБР | E123: 1021.1 | F123: 2654.88 | G123: 1.274 | H123: =ROUND(E123*G123,2) -> 1300.88 | I123: 3382.32
B124: Кардиолог | C124: B01.015.001 | D124: B01.015.001 ОБР | E124: 439.31 | F124: 900.6 | G124: 1.274 | H124: 559.68 | I124: 1147.36
B125: Невролог | C125: B01.023.001 | D125: B01.023.001 ОБР | E125: 672.68 | F125: =F115 -> 1345.38 | G125: 1.274 | H125: 856.99 | I125: 1714.01
B126: Терапевт | C126: B01.047.001 | D126: B01.047.001 ОБР | E126: 740.62 | F126: =F116 -> 1481.22 | G126: 1.274 | H126: 943.55 | I126: 1887.07
B127: Эндокринолог | C127: B01.058.001 | D127: B01.058.001 ОБР | E127: 727.18 | F127: 1454.36 | G127: 1.274 | H127: 926.43 | I127: 1852.85
B128: Уролог | C128: B01.053.001 | D128: B01.053.001 ОБР | E128: 689.13 | F128: 1722.85 | G128: 1.274 | H128: 877.95 | I128: 2194.91
B129: Офтальмолог | C129: B01.029.001 | D129: B01.029.001 ОБР | E129: 700.42 | F129: 1400.88 | G129: 1.274 | H129: 892.34 | I129: 1784.72
B130: Детская поликлиника
B131: Педиатр (первичный прием) | C131: B01.031.001 | D131: B01.031.001 ОБР | E131: 942.19 | F131: 1884.41 | G131: 1.274 | H131: =ROUND(E131*G131,2) -> 1200.35 | I131: =ROUND(F131*G131,2) -> 2400.74
B132: Офтальмолог | C132: B01.029.001 Д | D132: B01.029.001 Д ОБР | E132: 1005.97 | F132: 2414.35 | G132: 1.274 | H132: 1281.61 | I132: 3075.88
B133: Невролог | C133: B01.023.001 Д | D133: B01.023.001 Д ОБР | E133: 883.15 | F133: 1766.29 | G133: 1.274 | H133: 1125.13 | I133: 2250.25
B134: Хирург детский | C134: B01.010.001 | D134: B01.010.001 ОБР | E134: 699.1 | F134: 1468.06 | G134: 1.274 | H134: 890.65 | I134: 1870.31
B136: Наименование медицинской организации/ наименование врачебных специальностей | C136: Код услуги посещение | D136: Базовый тариф посещение | E136: Коэффициенты дифференциации по территории оказания медицинской помощи | F136: Стоимость 1 посещения по врачебной специальности, руб. | G136: Код услуги обращение | H136: Базовый тариф обращение | I136: Коэффициенты дифференциации по территории оказания медицинской помощи | J136: Стоимость 1 обращения по врачебной специальности, руб.
B137: ОГАУЗ "Томский областной онкологический диспансер"
B138: Онколог, онколог-радиолог, торакальный хирург, нейрохирург, радиотерапевт | C138: B01.027.001, B01.027.001.082, B01.027.001.087, B01.027.001 Д, B01.027.001.085, B01.027.001.086, B01.027.001.089, B01.027.001.084, B01.027.001.088, B01.027.001.083, B01.049.001, B01.024.001, B01.038.003 | D138: 611.7 | E138: 1.274 | F138: =ROUND(D138*E138,2) -> 779.31 | G138: B01.027.001 ОБР, B01.027.001.082 ОБР, B01.027.001.087 ОБР, B01.027.001 Д ОБР, B01.027.001.085 ОБР, B01.027.001.086 ОБР, B01.027.001.089 ОБР, B01.027.001.084 ОБР, B01.027.001.088 ОБР, B01.027.001.083 ОБР, B01.049.001 ОБР, B01.024.001 ОБР, B01.038.003 ОБР | H138: 1376.32 | I138: 1.274 | J138: =ROUND(H138*I138,2) -> 1753.43
B139: ФГБОУ ВО СибГМУ Минздрава России
B140: Онколог | C140: B01.027.001 | D140: 611.7 | E140: 1.274 | F140: =ROUND(D140*E140,2) -> 779.31 | G140: B01.027.001 ОБР | H140: 1376.32 | I140: 1.274 | J140: =ROUND(H140*I140,2) -> 1753.43
B141: ООО "ЛДЦ-МИБС"
B142: Онколог | C142: B01.027.001 | D142: 611.7 | E142: 1.274 | F142: 779.31 | G142: B01.027.001 ОБР | H142: 1376.32 | I142: 1.274 | J142: 1753.43
B145: Тарифы на оплату медицинской помощи, оказанной Центрами амбулаторной онкологической помощи (ЦАОП), с 01.03.2024
B147: Наименование медицинской организации/ наименование врачебных специальностей | C147: Код услуги посещение | D147: Базовый тариф посещения, руб. | E147: Коэффициенты дифференциации по территории оказания медицинской помощи | F147: Стоимость 1 посещения по врачебной специальности, руб. | G147: Код услуги обращение | H147: Базовый тариф обращения, руб. | I147: Коэффициенты дифференциации по территории оказания медицинской помощи | J147: Стоимость 1 обращения по врачебной специальности, руб.
B148: ОГАУЗ "Томский областной онкологический диспансер"
B149: Терапевт | C149: B01.047.001 | D149: 740.62 | E149: 1.274 | F149: =ROUND(D149*E149,2) -> 943.55 | G149: B01.047.001 ОБР | H149: 1481.22 | I149: 1.274 | J149: =ROUND(H149*E150,2) -> 1887.07
B150: Невролог | C150: B01.023.001 | D150: 672.68 | E150: 1.274 | F150: =ROUND(D150*E150,2) -> 856.99 | G150: B01.023.001 ОБР | H150: 1345.38 | I150: 1.274 | J150: =ROUND(H150*E149,2) -> 1714.01
B151: Онколог | C151: B01.027.001 | D151: 611.7 | E151: 1.274 | F151: =ROUND(D151*E151,2) -> 779.31 | G151: B01.027.001 ОБР | H151: 1376.32 | I151: 1.274 | J151: =ROUND(H151*E151,2) -> 1753.43
B152: ОГБУЗ "Асиновская РБ"
B153: Терапевт | C153: B01.047.001 | D153: 740.62 | E153: 1.27 | F153: =ROUND(D153*E153,2) -> 940.59 | G153: B01.047.001 ОБР | H153: 1481.22 | I153: 1.27 | J153: =ROUND(H153*E154,2) -> 1881.15
B154: Невролог | C154: B01.023.001 | D154: 672.68 | E154: 1.27 | F154: 854.3 | G154: B01.023.001 ОБР | H154: 1345.38 | I154: 1.27 | J154: =ROUND(H154*E153,2) -> 1708.63
B155: Онколог | C155: B01.027.001 | D155: 611.7 | E155: 1.27 | F155: =ROUND(D155*E155,2) -> 776.86 | G155: B01.027.001 ОБР | H155: 1376.32 | I155: 1.27 | J155: =ROUND(H155*E155,2) -> 1747.93
B157: Тарифы на оплату медицинской помощи, оказанных в амбулаторных условиях, за медицинскую услугу, посещение, обращение (законченный случай), в том числе лицам, застрахованным за пределами Томской области, с 01.01.2024
B159: Наименование услуги | C159: Код услуги | D159: Базовая стоимость, руб. | E159: Коэффициенты дифференциации по территории оказания медицинской помощи | F159: Стоимость 1 услуги, руб.
B160: «Прием (осмотр, консультация) врача детского эндокринолога (непрерывный мониторинг глюкозы)» | C160: В01.058.003.001 | D160: 1006.48 | E160: 1.274 | F160: =ROUND(D160*E160,2) -> 1282.26
B162: Наименование медицинской организации/код услуги | C162: Наименование услуги | D162: Базовый тариф | E162: Коэффициенты дифференциации по территории оказания медицинской помощи | F162: Стоимость, руб.
B163: НИИ Кардиологии Томского НИМЦ
B164: В01.015.001 | C164: Прием (осмотр, консультация) врача-кардиолога | D164: 439.31 | E164: 1.274 | F164: =ROUND(D164*E164,2) -> 559.68
B165: В01.015.001 ОБР | D165: 900.61 | E165: 1.274 | F165: =ROUND(D165*E165,2) -> 1147.38
B166: B01.015.003 | C166: Прием (осмотр, консультация) врача - детского кардиолога | D166: 736.06 | E166: 1.274 | F166: 937.74
B167: B01.015.003 ОБР | D167: 1645.72 | E167: 1.274 | F167: 2096.65
B168: В01.015.001.003 | C168: Кардиолог, оказывающий медицинскую помощь беременным женщинам | D168: 439.31 | E168: 1.274 | F168: 559.68
B169: В01.015.001.003 ОБР | D169: 883.03 | E169: 1.274 | F169: 1124.98
B170: A05.10.004 | C170: Расшифровка, описание и интерпретация электрокардиографических данных | D170: 57.06 | E170: 1.274 | F170: 72.69
B171: A05.10.006 | C171: Регистрация электрокардиограммы | D171: 105.68 | E171: 1.274 | F171: 134.64
B172: A12.10.005 | C172: Велоэргометрия | D172: 836.83 | E172: 1.274 | F172: 1066.12
B173: A16.10.015.002 | C173: Ревизия электрокардиостимулятора | D173: 388.03 | E173: 1.274 | F173: 494.35
B174: A05.10.008 | C174: Холтеровское мониторирование сердечного ритма (ХМ-ЭКГ) | D174: 882.26 | E174: 1.274 | F174: 1124
B175: A05.10.008.001 | C175: Холтеровское мониторирование артериального давления | D175: 589.15 | E175: 1.274 | F175: 750.58
B176: A17.10.002.001 | C176: Электрокардиостимуляция чреспищеводная | D176: 2291.4 | E176: 1.274 | F176: 2919.24
B177: А06.10.006 | C177: Коронаровентрикулография | D177: 12367.24 | E177: 1.274 | F177: 15755.86
B178: A09.05.256 | C178: Исследования уровня N-терминального фрагмента натрийуретического пропептида мозгового (NT-proBNP) в крови | D178: 1740.17 | E178: 1.274 | F178: 2216.98
B180: Наименование медицинской организации/код услуги | C180: Наименование услуги | D180: Базовый тариф | E180: Коэффициенты дифференциации по территории оказания медицинской помощи | F180: Стоимость, руб.
B181: ФГБОУ ВО СибГМУ Минздрава России
B182: B01.040.001 | C182: Прием (осмотр, консультация) врача-ревматолога | D182: 353.35 | E182: 1.274 | F182: =ROUND(D182*E182,2) -> 450.17
B183: B01.040.001 ОБР | D183: 717.29 | E183: 1.274 | F183: =ROUND(D183*E183,2) -> 913.83
B184: B01.040.001 Д | C184: Прием (осмотр, консультация) врача-ревматолога (дети) | D184: 441.67 | E184: 1.274 | F184: 562.69
B185: B01.040.001 Д ОБР | D185: 896.61 | E185: 1.274 | F185: 1142.28
B186: B01.023.001 | C186: Прием (осмотр, консультация) врача-невролога (Региональный центр рассеянного склероза и других аутоиммунных заболеваний нервной системы) | D186: 332.06 | E186: 1.274 | F186: 423.04
B187: B01.023.001 ОБР | D187: 684.04 | E187: 1.274 | F187: 871.47
B189: Наименование медицинской организации/код услуги | C189: Наименование услуги | D189: Базовый тариф | E189: Коэффициенты дифференциации по территории оказания медицинской помощи | F189: Стоимость, руб.
B190: ФГБОУ ВО СибГМУ Минздрава России
B191: A05.26.009.001 | C191: Расшифровка, описание и интерпретация данных цифровых ретинальных фотографий врачом - офтальмологом | D191: 355.72 | E191: 1.274 | F191: =ROUND(D191*E191,2) -> 453.19
B193: МО, оказывающие услуги | C193: Наименование услуги | D193: Код услуги | E193: Базовый тариф, руб. | F193: Коэффициенты дифференциации по территории оказания медицинской помощи | G193: Стоимость 1 услуги, руб. | H193: Примечание
B194: ОГАУЗ "Томская областная клиническая больница" | C194: Мониторинг такролимуса (програф) | D194: A09.06.001.004 | E194: 1637.43 | F194: 1.274 | G194: =ROUND(E194*F194,2) -> 2086.09 | H194: проведение лабораторного исследования в течение 1 дня
C195: Мониторинг циклоспорина | D195: A09.06.001.002 | E195: 1681.9 | F195: 1.274 | G195: =ROUND(E195*F195,2) -> 2142.74
C196: Мониторинг такролимуса (програф) | D196: A09.06.001.005 | E196: 1055.34 | F196: 1.274 | G196: 1344.5 | H196: проведение лабораторного исследования более 1 дня
C197: Мониторинг циклоспорина | D197: A09.06.001.003 | E197: 703.56 | F197: 1.274 | G197: 896.34
B198: ОГАУЗ "Томская областная клиническая больница" | C198: Процедура введения препаратов химиотерапии | D198: A11.12.003.005 | E198: 1376.69 | F198: 1.274 | G198: 1753.9
B199: ФГБОУ ВО СибГМУ Минздрава России | C199: Амбулаторное лечение биологическими агентами при ревматологических заболеваниях (введение) | D199: B01.040.004 | E199: 982.87 | F199: 1.274 | G199: 1252.18
B200: ОГБУЗ "ОДБ" | D200: B01.040.004 | E200: 982.87 | F200: 1.274 | G200: 1252.18
B201: ОГАУЗ "Томская областная клиническая больница" | C201: Амбулаторное лечение биологическими агентами (введение) при гастроэнтерологических заболеваниях | D201: B01.004.004 | E201: 982.87 | F201: 1.274 | G201: 1252.18
B204: Тарифы на оплату отдельных лечебных и (или) лечебно-диагностических услуг, оказанных в амбулаторных условиях, за медицинскую услугу, посещение, обращение (законченный случай), в том числе лицам, застрахованным за пределами Томской области с 01.01.2024
B206: Наименование медицинской организации/Наименование услуги | C206: Код услуги посещение | D206: Базовая стоимость, руб. | E206: Коэффициент дифференциации по территории оказания медицинской помощи | F206: Стоимость 1 посещения, руб.
B207: ОГБУЗ "Медико-санитарная часть № 2"
B208: «Комплексное посещение кабинета муковисцидоза и интерстициальных заболеваний легких» | C208: B01.037.001.08 | D208: 1008.84 | E208: 1.274 | F208: =ROUND(D208*E208,2) -> 1285.26
B211: Тарифы на оплату медицинских услуг, оказанных мобильной бригадой в выездной форме в отдаленных районах Томской области, с 14.05.2024 по 28.06.2024
B213: Код услуги | C213: Наименование услуги | D213: Стоимость услуги для ОГБУЗ "МСЧ № 2", руб.
B215: B01.001.001 П | C215: Прием (осмотр, консультация) врача-акушера-гинеколога | D215: 588.24
B216: B01.023.001 П | C216: Прием (осмотр, консультация) врача-невролога | D216: 893.58
B217: B01.027.001 П | C217: Прием (осмотр, консультация) врача-онколога | D217: 1007.27
B218: B01.028.001 П | C218: Прием (осмотр, консультация) врача-оториноларинголога | D218: 581.05
B219: B01.031.001 П | C219: Прием (осмотр, консультация) врача-педиатра | D219: 1348.31
B220: B01.047.001 П | C220: Прием (осмотр, консультация) врача-терапевта | D220: 849.51
B221: B01.057.001 П | C221: Прием (осмотр, консультация) врача-хирурга | D221: 565.54
B222: B03.016.002 П | C222: Общий (клинический) анализ крови | D222: 544.13
B223: B03.016.006 П | C223: Общий (клинический) анализ мочи | D223: 456.56
B224: A02.26.003 П | C224: Офтальмоскопия | D224: 287.48
B225: A02.26.005 П | C225: Периметрия статическая | D225: 241.24
B226: A02.26.015 П | C226: Офтальмотонометрия | D226: 233.72
B227: A03.26.008 П | C227: Рефрактометрия | D227: 436.89
B228: A04.06.001 П | C228: Ультразвуковое исследование селезенки | D228: 636.14
B229: A04.14.001 П | C229: Ультразвуковое исследование печени | D229: 559.71
B230: A04.14.002 П | C230: Ультразвуковое исследование желчного пузыря | D230: 532.28
B231: A04.20.001 П | C231: Ультразвуковое исследование матки и придатков трансабдоминальное | D231: 909.5
B232: A04.21.001.001 | C232: Ультразвуковое исследование предстательной железы трансректальное | D232: 813.4
B233: A04.22.001 П | C233: Ультразвуковое исследование щитовидной железы и паращитовидных желез | D233: 946.91
B234: A04.28.002.001 П | C234: Ультразвуковое исследование почек | D234: 479.59
... 20 more rows

Sheet Приложение № 2
A1: _Оглавление_
B2: =MID(CELL("filename",A2),SEARCH("]",CELL("filename",A2))+1,31) -> Приложение № 2
B3: ='Приложение № 1'!B3 -> к Дополнительному соглашению № 6
B4: =_Оглавление_!A3 -> от 05.06.2024
B5: к Тарифному соглашению
B6: на оплату медицинской помощи
B7: по ОМС на территории Томской области на 2024 год
B8: от 05.02.2024
B10: Приложение № 14
B11: к Тарифному соглашению
B12: на оплату медицинской помощи
B13: по ОМС на территории Томской области на 2024 год
B14: от 05.02.2024
B16: Тарифы на оплату отдельных диагностических (лабораторных) исследований (компьютерная томография, магнитно-резонансная томография, ультразвуковое исследование сердечно-сосудистой системы, эндоскопические диагностические исследования, молекулярно-генетические исследования и патолого-анатомические исследования биопсийного (операционного) материала с целью диагностики онкологических заболеваний и подбора противоопухолевой лекарственной терапии, тестирования на выявление новой коронавирусной инфекции (COVID-19)), в том числе лицам, застрахованным за пределами Томской области, c 01.06.2024
A18: Код медицинской услуги | B18: Наименование медицинской услуги | C18: Базовый тариф 2024 | D18: ОГАУЗ "Больница № 2" | E18: ОГАУЗ "Больница скорой медицинской помощи №2" | F18: ОГАУЗ "Больница скорой медицинской помощи" | G18: ОГАУЗ "ГКБ №3 им. Б.И. Альперовича" | H18: ОГАУЗ "Детская городская больница №2" | I18: ОГАУЗ "Детская больница №1" | J18: ОГАУЗ "Областная детская больница" | K18: ОГАУЗ "Поликлиника №4" | L18: ОГАУЗ "Поликлиника №10" | M18: ОГАУЗ "Межвузовская поликлиника" | N18: ОГАУЗ "Поликлиника ТНЦ СО РАН" | O18: ОГБУЗ "Медико-санитарная часть №2" | P18: ОГБУЗ "Патологоанатомическое бюро" | Q18: ОГАУЗ "Томская областная клиническая больница" | R18: ОГАУЗ "Томский областной онкологический диспансер" | S18: ОГАУЗ "Томский фтизиопульмонологический медицинский центр" | T18: ОГАУЗ "МЦ им.Г.К.Жерлова" | U18: ОГАУЗ "Томская РБ" | V18: ОГАУЗ «Светленская РБ» | W18: ОГАУЗ "Кожевниковская РБ" | X18: ОГАУЗ "Колпашевская РБ" | Y18: ОГАУЗ "Кривошеинская РБ" | Z18: ОГАУЗ "Стрежевская ГБ" | AA18: ОГАУЗ "Шегарская РБ" | AB18: ОГБУЗ "Асиновская РБ" | AC18: ОГБУЗ "Бакчарская РБ" | AD18: ОГБУЗ "Верхнекетская РБ" | AE18: ОГБУЗ "Зырянская РБ" | AF18: ОГБУЗ "Каргасокская РБ" | AG18: ОГБУЗ "Молчановская РБ" | AH18: ОГБУЗ "Парабельская РБ" | AI18: ОГБУЗ "Первомайская РБ" | AJ18: ОГБУЗ "Тегульдетская РБ" | AK18: ОГБУЗ "Чаинская РБ" | AL18: АО "Гармония здоровья" | AM18: ООО "Генелли" | AN18: ООО "Гранд Сервис" | AO18: ООО "Гранд Сервис" (г. Стрежевой) | AP18: ООО "Здоровье" | AQ18: ООО "КЛИНИКА ЭКСПЕРТ СИБИРЬ" | AR18: ООО "ПМО "Стандарт" | AS18: ООО "ЛДЦ МИБС" | AT18: ООО "ЛДЦ" | AU18: ООО "Инвитро-Сибирь" | AV18: ООО "Люмена" - Северск | AW18: ООО "Макс И К" | AX18: ООО "Мед-Арт" | AY18: ООО "МНПЦ" | AZ18: ООО "СибМедЦентр" | BA18: ООО "СибМедЦентр" (г. Стрежевой) | BB18: ООО "Центр репродуктивных технологий "Аист" | BC18: ООО "ЦЖЗ" | BD18: ООО "ЦСМ Клиника Больничная" | BE18: ООО "Центр Семейной Медицины" | BF18: ООО "ЦСМ" | BG18: ООО "МЕДСЕРВИС" | BH18: Томский НИМЦ | BI18: НИИ Онкологии Томского НИМЦ | BJ18: НИИ Кардиологии Томского НИМЦ | BK18: ФБУЗ "Центр гигиены и эпидемиологии в Томской области" | BL18: ФГБОУ ВО СибГМУ Минздрава России | BM18: ФГБУ СибФНКЦ ФМБА России | BN18: ФКУЗ «МСЧ МВД России поТомской области»
B19: Код медицинской организации | D19: 29 | E19: 139 | F19: 28 | G19: 33 | H19: 135 | I19: 133 | J19: 146 | K19: 4 | L19: 10 | M19: 35 | N19: 13 | O19: 140 | P19: 381 | Q19: 144 | R19: 188 | S19: 367 | T19: 343 | U19: 83 | V19: 231 | W19: 71 | X19: 103 | Y19: 73 | Z19: 115 | AA19: 87 | AB19: 59 | AC19: 63 | AD19: 65 | AE19: 67 | AF19: 69 | AG19: 75 | AH19: 203 | AI19: 79 | AJ19: 81 | AK19: 85 | AL19: 399 | AM19: 447 | AN19: 320 | AO19: 320.1 | AP19: 333 | AQ19: 459 | AR19: 417 | AS19: 425 | AT19: 365 | AU19: 331 | AV19: 387 | AW19: 415 | AX19: 396 | AY19: 377 | AZ19: 294 | BA19: 294 | BB19: 336 | BC19: 395 | BD19: 355 | BE19: 205 | BF19: 342 | BG19: 429 | BH19: 327 | BI19: 465 | BJ19: 466 | BK19: 344 | BL19: 173 | BM19: 354 | BN19: 151
B20: Коэффициент дифференциации по территории оказания медицинской помощи | D20: 1.274 | E20: 1.274 | F20: 1.274 | G20: 1.274 | H20: 1.274 | I20: 1.274 | J20: 1.274 | K20: 1.274 | L20: 1.274 | M20: 1.274 | N20: 1.274 | O20: 1.274 | P20: 1.274 | Q20: 1.274 | R20: 1.274 | S20: 1.274 | T20: 1.381 | U20: 1.271 | V20: 1.271 | W20: 1.272 | X20: 1.793 | Y20: 1.63 | Z20: 1.765 | AA20: 1.242 | AB20: 1.27 | AC20: 1.665 | AD20: 1.795 | AE20: 1.26 | AF20: 1.831 | AG20: 1.637 | AH20: 1.794 | AI20: 1.272 | AJ20: 1.644 | AK20: 1.777 | AL20: 1.274 | AM20: 1.274 | AN20: 1.274 | AO20: 1.765 | AP20: 1.274 | AQ20: 1.274 | AR20: 1.274 | AS20: 1.274 | AT20: 1.274 | AU20: 1.274 | AV20: 1.381 | AW20: 1.274 | AX20: 1.274 | AY20: 1.274 | AZ20: 1.274 | BA20: 1.765 | BB20: 1.274 | BC20: 1.381 | BD20: 1.274 | BE20: 1.274 | BF20: 1.274 | BG20: 1.274 | BH20: 1.274 | BI20: 1.274 | BJ20: 1.274 | BK20: 1.274 | BL20: 1.274 | BM20: 1.381 | BN20: 1.274
A21: A03.08.001.001 | B21: Видеоларингоскопия | C21: 3583.18 | G21: 4564.97 | J21: 4564.97 | R21: 4564.97 | Z21: 6324.31 | AB21: 4550.64 | AL21: 4564.97 | AV21: 4948.37 | BD21: 4564.97 | BM21: 4948.37
A22: A03.08.002.002 | B22: Эпифарингоскопия видеоэндоскопическая | C22: 3583.18 | R22: 4564.97 | AV22: 4948.37
A23: A03.08.003 | B23: Эзофагоскопия | C23: 456.56 | I23: 581.66 | J23: 581.66 | X23: 818.61 | Z23: 805.83 | AB23: 579.83 | AG23: 747.39 | AL23: 581.66 | AM23: 581.66 | AV23: 630.51 | AZ23: 581.66 | BA23: 805.83 | BM23: 630.51
A24: A03.08.003 Д | B24: Эзофагоскопия | C24: 366.73 | I24: 467.21 | J24: 467.21 | X24: 657.55 | Z24: 647.28 | AL24: 467.21 | AM24: 467.21 | AV24: 506.45 | AZ24: 467.21 | BM24: 506.45
A25: A03.08.005 | B25: Фиброларингоскопия | C25: 1800.83 | G25: 2294.26 | I25: 2294.26 | J25: 2294.26 | Q25: 2294.26 | Z25: 3178.46 | AB25: 2287.05 | AL25: 2294.26 | AV25: 2486.95 | BM25: 2486.95
A26: A03.09.001 | B26: Бронхоскопия | C26: 930.65 | G26: 1185.65 | I26: 1185.65 | Q26: 1185.65 | R26: 1185.65 | X26: 1668.66 | Z26: 1642.6 | AB26: 1181.93 | AF26: 1704.02 | AL26: 1185.65 | AV26: 1285.23 | BL26: 1185.65 | BM26: 1285.23
A27: A03.09.001 D | B27: Бронхоскопия (диагностическая) | C27: 1163.32 | I27: 1482.07 | Z27: 2053.26 | AB27: 1477.42 | AL27: 1482.07 | AV27: 1606.54 | BM27: 1606.54
A28: A03.09.002 | B28: Трахеоскопия | C28: 1667.92 | I28: 2124.93 | Z28: 2943.88 | AB28: 2118.26 | AL28: 2124.93 | AV28: 2303.4 | BM28: 2303.4
A29: A03.09.002 Д | B29: Трахеоскопия | C29: 410.6 | I29: 523.1 | Z29: 724.71 | AL29: 523.1 | AV29: 567.04 | BM29: 567.04
A30: A03.14.002 | B30: Холедохоскопия | C30: 535.34 | AL30: 682.02 | BM30: 739.3
A31: A03.14.002 Л | B31: Холедохоскопия (дуоденоскопия + РПХГ+ ЭПСТ) лечебная | C31: 682.03 | Z31: 1203.78 | AL31: 868.91 | BM31: 941.88
A32: A03.16.001 | B32: Эзофагогастродуоденоскопия | C32: 911.26 | G32: 1160.95 | I32: 1160.95 | J32: 1160.95 | O32: 1160.95 | Q32: 1160.95 | R32: 1160.95 | T32: 1258.45 | U32: 1158.21 | V32: 1158.21 | W32: 1159.12 | X32: 1633.89 | Y32: 1485.35 | Z32: 1608.37 | AA32: 1131.78 | AB32: 1157.3 | AD32: 1635.71 | AE32: 1148.19 | AF32: 1668.52 | AG32: 1491.73 | AH32: 1634.8 | AI32: 1159.12 | AK32: 1619.31 | AL32: 1160.95 | AM32: 1160.95 | AP32: 1160.95 | AR32: 1160.95 | AT32: 1160.95 | AV32: 1258.45 | AZ32: 1160.95 | BA32: 1608.37 | BD32: 1160.95 | BJ32: 1160.95 | BM32: 1258.45 | BN32: 1160.95
A33: A03.16.001 D | B33: Эзофагогастродуоденоскопия (диагностическая) | C33: 1139.07 | I33: 1451.18 | J33: 1451.18 | X33: 2042.35 | Y33: 1856.68 | Z33: 2010.46 | AC33: 1896.55 | AD33: 2044.63 | AL33: 1451.18 | AM33: 1451.18 | AV33: 1573.06 | AZ33: 1451.18 | BA33: 2010.46 | BL33: 1451.18 | BM33: 1573.06
A34: A03.16.001 О | B34: Эзофагогастродуоденоскопия | C34: 911.26 | J34: 1160.95 | Z34: 1608.37 | AL34: 1160.95 | AV34: 1258.45 | BM34: 1258.45
A35: A03.17.001 | B35: Эзофагогастроинтестиноскопия | C35: 512.49 | J35: 652.91 | AL35: 652.91 | AM35: 652.91 | AT35: 652.91 | AV35: 707.75 | BM35: 707.75
A36: A03.17.001 Д | B36: Эзофагогастроинтестиноскопия (тонкокишечная эндоскопия) | C36: 643.54 | J36: 819.87 | AL36: 819.87 | AM36: 819.87 | AV36: 888.73 | BM36: 888.73
A37: A03.18.001 | B37: Колоноскопия | C37: 1362.68 | G37: 1736.05 | I37: 1736.05 | J37: 1736.05 | O37: 1736.05 | Q37: 1736.05 | R37: 1736.05 | T37: 1881.86 | W37: 1733.33 | X37: 2443.29 | Z37: 2405.13 | AA37: 1692.45 | AB37: 1730.6 | AE37: 1716.98 | AF37: 2495.07 | AG37: 2230.71 | AH37: 2444.65 | AI37: 1733.33 | AJ37: 2240.25 | AK37: 2421.48 | AL37: 1736.05 | AP37: 1736.05 | AT37: 1736.05 | AV37: 1881.86 | BD37: 1736.05 | BL37: 1736.05 | BM37: 1881.86 | BN37: 1736.05
A38: A03.18.001 D | B38: Толстокишечная эндоскопия (диагностическая) | C38: 1703.34 | I38: 2170.06 | J38: 2170.06 | Z38: 3006.4 | AL38: 2170.06 | AV38: 2352.31 | BM38: 2352.31
A39: A03.18.001 D Н | B39: Колоноскопия (диагностическая) под наркозом | C39: 3256.49 | I39: 4148.77 | J39: 4148.77 | T39: 4497.21 | AV39: 4497.21 | BM39: 4497.21
A40: A03.18.001 D Н О | B40: Колоноскопия (диагностическая) под наркозом | C40: 3256.49 | J40: 4148.77 | AV40: 4497.21 | BM40: 4497.21
A41: A03.18.001 О | B41: Колоноскопия | C41: 1362.68 | J41: 1736.05 | Z41: 2405.13 | AL41: 1736.05 | AV41: 1881.86 | BM41: 1881.86
A42: A03.18.001.004 | B42: Эндосонография толстой кишки | C42: 1304.26 | G42: 1661.63 | R42: 1661.63 | T42: 1801.18 | AV42: 1801.18 | BM42: 1801.18
A43: A03.18.001.007 | B43: Колоноскопия с введением лекарственных препаратов | C43: 3256.49 | G43: 4148.77 | J43: 4148.77 | T43: 4497.21 | AL43: 4148.77 | AV43: 4497.21 | BM43: 4497.21
A44: A03.19.001 | B44: Аноскопия | C44: 191.61 | Z44: 338.19 | AB44: 243.34 | AL44: 244.11 | AV44: 264.61
A45: A03.19.002 | B45: Ректороманоскопия | C45: 608.74 | G45: 775.53 | I45: 775.53 | J45: 775.53 | O45: 775.53 | Q45: 775.53 | R45: 775.53 | X45: 1091.47 | Z45: 1074.43 | AB45: 773.1 | AG45: 996.51 | AH45: 1092.08 | AL45: 775.53 | AT45: 775.53 | AV45: 840.67 | BD45: 775.53 | BM45: 840.67
A46: A03.19.002 D | B46: Ректороманоскопия (диагностическая) | C46: 1114.28 | I46: 1419.59 | J46: 1419.59 | T46: 1538.82 | Z46: 1966.7 | AC46: 1855.28 | AL46: 1419.59 | AV46: 1538.82
A47: A03.19.003 | B47: Сигмоскопия | C47: 1116.04 | G47: 1421.83 | I47: 1421.83 | J47: 1421.83 | O47: 1421.83 | Q47: 1421.83 | R47: 1421.83 | Z47: 1969.81 | AL47: 1421.83 | AT47: 1421.83 | AV47: 1541.25 | BD47: 1421.83 | BM47: 1541.25
A48: A03.19.003 D | B48: Сигмоидоскопия (диагностическая) | C48: 787.72 | I48: 1003.56 | J48: 1003.56 | Z48: 1390.33 | AL48: 1003.56 | AV48: 1087.84 | BM48: 1087.84
A49: A03.20.001 | B49: Кольпоскопия | C49: 620.92 | R49: 791.05 | U49: 789.19 | Z49: 1095.92 | AA49: 771.18 | AB49: 788.57 | AL49: 791.05 | AV49: 857.49 | AZ49: 791.05 | BA49: 1095.92
A50: A03.28.001 | B50: Цистоскопия | C50: 1415.95 | Q50: 1803.92 | R50: 1803.92 | AB50: 1798.26 | AT50: 1803.92 | AV50: 1955.43
A51: A03.30.006.006 | B51: Узкоспектральное NBI-исследование органов желудочно-кишечного тракта | C51: 3693.84 | G51: 4705.95 | T51: 5101.19 | Z51: 6519.63 | AV51: 5101.19 | BM51: 5101.19
A52: A03.30.007 | B52: Хромоскопия, контрастное исследование органов желудочно-кишечного тракта | C52: 3693.84 | G52: 4705.95 | J52: 4705.95 | Z52: 6519.63 | AL52: 4705.95 | AV52: 5101.19 | BD52: 4705.95 | BM52: 5101.19
A53: 04 | B53: Регистрация звуковых сигналов, издаваемых или отражающихся органами или тканями с их последующей расшифровкой и описанием
A54: A04.09.003 | B54: Эндосонографическое исследование трахеи и бронхов | C54: 648.31 | G54: 825.95 | R54: 825.95
A55: A04.10.002 | B55: Эхокардиография | C55: 541.2 | D55: 689.49 | G55: 689.49 | H55: 689.49 | I55: 689.49 | J55: 689.49 | L55: 689.49 | M55: 689.49 | N55: 689.49 | O55: 689.49 | Q55: 689.49 | R55: 689.49 | U55: 687.87 | V55: 687.87 | W55: 688.41 | X55: 970.37 | Y55: 882.16 | Z55: 955.22 | AA55: 672.17 | AB55: 687.32 | AD55: 971.45 | AE55: 681.91 | AF55: 990.94 | AG55: 885.94 | AH55: 970.91 | AI55: 688.41 | AL55: 689.49 | AR55: 689.49 | AS55: 689.49 | AV55: 747.4 | AX55: 689.49 | AZ55: 689.49 | BA55: 955.22 | BC55: 747.4 | BD55: 689.49 | BE55: 689.49 | BF55: 689.49 | BG55: 689.49 | BJ55: 689.49 | BM55: 747.4 | BN55: 689.49
A56: A04.10.002.001 | B56: Эхокардиография чреспищеводная | C56: 3667.54 | BJ56: 4672.45
A57: A04.10.003 | B57: Эхокардиография с контрастным усилением | C57: 2812.07 | AE57: 3543.21 | AS57: 3582.58
A58: A04.12.001 | B58: Ультразвуковая допплерография артерий верхних конечностей | C58: 189.32 | G58: 241.19 | J58: 241.19 | K58: 241.19 | M58: 241.19 | Q58: 241.19 | R58: 241.19 | W58: 240.82 | X58: 339.45 | Y58: 308.59 | Z58: 334.15 | AB58: 240.44 | AL58: 241.19 | AM58: 241.19 | AR58: 241.19 | AS58: 241.19 | AZ58: 241.19 | BA58: 334.15 | BD58: 241.19 | BE58: 241.19 | BF58: 241.19 | BG58: 241.19 | BM58: 261.45 | BN58: 241.19
A59: A04.12.001.001 | B59: Ультразвуковая допплерография артерий нижних конечностей | C59: 630.18 | D59: 802.85 | G59: 802.85 | J59: 802.85 | L59: 802.85 | M59: 802.85 | O59: 802.85 | Q59: 802.85 | R59: 802.85 | W59: 801.59 | X59: 1129.91 | Y59: 1027.19 | Z59: 1112.27 | AA59: 782.68 | AB59: 800.33 | AD59: 1131.17 | AE59: 794.03 | AF59: 1153.86 | AI59: 801.59 | AL59: 802.85 | AM59: 802.85 | AR59: 802.85 | AS59: 802.85 | AU59: 802.85 | AV59: 870.28 | AW59: 802.85 | AZ59: 802.85 | BA59: 1112.27 | BB59: 802.85 | BC59: 870.28 | BD59: 802.85 | BE59: 802.85 | BF59: 802.85 | BG59: 802.85 | BM59: 870.28 | BN59: 802.85
A60: A04.12.001.002 | B60: Дуплексное сканирование артерий почек | C60: 759.89 | G60: 968.1 | J60: 968.1 | K60: 968.1 | M60: 968.1 | Q60: 968.1 | R60: 968.1 | Z60: 1341.21 | AB60: 965.06 | AG60: 1243.94 | AL60: 968.1 | AM60: 968.1 | AS60: 968.1 | AU60: 968.1 | AV60: 1049.41 | AX60: 968.1 | AZ60: 968.1 | BA60: 1341.21 | BB60: 968.1 | BC60: 1049.41 | BD60: 968.1 | BE60: 968.1 | BF60: 968.1 | BG60: 968.1 | BM60: 1049.41 | BN60: 968.1
A61: A04.12.001.009 | B61: Ультразвуковое исследование брюшной аорты с контрастным усилением | C61: 3181.18 | AL61: 4052.82 | AS61: 4052.82 | BB61: 4052.82 | BF61: 4052.82 | BM61: 4393.21
A62: A04.12.001.010 | B62: Ультразвуковое исследование сосудов шеи с контрастным усилением | C62: 3181.18 | AL62: 4052.82 | AS62: 4052.82 | BB62: 4052.82 | BF62: 4052.82 | BM62: 4393.21
A63: A04.12.001.011 | B63: Ультразвуковое исследование сосудов печени с контрастным усилением | C63: 3181.18 | AL63: 4052.82 | AS63: 4052.82 | BB63: 4052.82 | BF63: 4052.82 | BM63: 4393.21
A64: A04.12.001.012 | B64: Ультразвуковое исследование сонных артерий | C64: 394.41 | G64: 502.48 | J64: 502.48 | M64: 502.48 | O64: 502.48 | R64: 502.48 | X64: 707.18 | Y64: 642.89 | Z64: 696.13 | AA64: 489.86 | AB64: 500.9 | AF64: 722.16 | AL64: 502.48 | AM64: 502.48 | AR64: 502.48 | AS64: 502.48 | AV64: 544.68 | AW64: 502.48 | AX64: 502.48 | AZ64: 502.48 | BA64: 696.13 | BB64: 502.48 | BC64: 544.68 | BD64: 502.48 | BE64: 502.48 | BF64: 502.48 | BG64: 502.48 | BJ64: 502.48 | BM64: 544.68 | BN64: 502.48
A65: A04.12.001.013 | B65: Ультразвуковое исследование позвоночных артерий | C65: 394.41 | G65: 502.48 | J65: 502.48 | M65: 502.48 | R65: 502.48 | X65: 707.18 | Y65: 642.89 | Z65: 696.13 | AB65: 500.9 | AL65: 502.48 | AM65: 502.48 | AR65: 502.48 | AS65: 502.48 | AV65: 544.68 | AW65: 502.48 | AX65: 502.48 | BB65: 502.48 | BC65: 544.68 | BD65: 502.48 | BE65: 502.48 | BF65: 502.48 | BG65: 502.48 | BM65: 544.68 | BN65: 502.48
A66: A04.12.002 | B66: Ультразвуковая допплерография сосудов (артерий и вен) верхних конечностей | C66: 415.46 | G66: 529.3 | J66: 529.3 | Q66: 529.3 | R66: 529.3 | X66: 744.92 | Y66: 677.2 | Z66: 733.29 | AA66: 516 | AB66: 527.63 | AL66: 529.3 | AM66: 529.3 | AR66: 529.3 | AS66: 529.3 | AX66: 529.3 | AZ66: 529.3 | BA66: 733.29 | BB66: 529.3 | BD66: 529.3 | BE66: 529.3 | BF66: 529.3 | BG66: 529.3 | BM66: 573.75
A67: A04.12.002.001 | B67: Ультразвуковая допплерография сосудов (артерий и вен) нижних конечностей | C67: 1260.33 | D67: 1605.66 | G67: 1605.66 | J67: 1605.66 | L67: 1605.66 | O67: 1605.66 | Q67: 1605.66 | R67: 1605.66 | X67: 2259.77 | Z67: 2224.48 | AA67: 1565.33 | AB67: 1600.62 | AF67: 2307.66 | AL67: 1605.66 | AM67: 1605.66 | AR67: 1605.66 | AS67: 1605.66 | AU67: 1605.66 | AV67: 1740.52 | AW67: 1605.66 | AX67: 1605.66 | AZ67: 1605.66 | BA67: 2224.48 | BB67: 1605.66 | BC67: 1740.52 | BD67: 1605.66 | BE67: 1605.66 | BF67: 1605.66 | BG67: 1605.66 | BM67: 1740.52
A68: A04.12.002.002 | B68: Ультразвуковая допплерография вен нижних конечностей | C68: 630.18 | D68: 802.85 | G68: 802.85 | J68: 802.85 | K68: 802.85 | L68: 802.85 | O68: 802.85 | Q68: 802.85 | R68: 802.85 | W68: 801.59 | X68: 1129.91 | Y68: 1027.19 | Z68: 1112.27 | AA68: 782.68 | AB68: 800.33 | AD68: 1131.17 | AE68: 794.03 | AF68: 1153.86 | AI68: 801.59 | AL68: 802.85 | AM68: 802.85 | AR68: 802.85 | AS68: 802.85 | AU68: 802.85 | AV68: 870.28 | AZ68: 802.85 | BA68: 1112.27 | BB68: 802.85 | BC68: 870.28 | BD68: 802.85 | BE68: 802.85 | BF68: 802.85 | BG68: 802.85 | BM68: 870.28
A69: A04.12.002.002 Д | B69: Ультразвуковая допплерография вен нижних конечностей | C69: 859.69 | Z69: 1517.35 | AS69: 1095.25 | AU69: 1095.25 | AV69: 1187.23
A70: A04.12.002.003 | B70: Ультразвуковая допплерография вен верхних конечностей | C70: 189.32 | D70: 241.19 | G70: 241.19 | J70: 241.19 | K70: 241.19 | L70: 241.19 | Q70: 241.19 | R70: 241.19 | W70: 240.82 | X70: 339.45 | Y70: 308.59 | Z70: 334.15 | AB70: 240.44 | AE70: 238.54 | AI70: 240.82 | AL70: 241.19 | AM70: 241.19 | AS70: 241.19 | AZ70: 241.19 | BA70: 334.15 | BB70: 241.19 | BD70: 241.19 | BE70: 241.19 | BF70: 241.19 | BG70: 241.19 | BM70: 261.45
A71: A04.12.003 | B71: Дуплексное сканирование аорты | C71: 270.83 | D71: 345.04 | G71: 345.04 | J71: 345.04 | L71: 345.04 | M71: 345.04 | Q71: 345.04 | R71: 345.04 | Z71: 478.01 | AA71: 336.37 | AB71: 343.95 | AK71: 481.26 | AL71: 345.04 | AM71: 345.04 | AS71: 345.04 | AX71: 345.04 | BB71: 345.04 | BD71: 345.04 | BE71: 345.04 | BF71: 345.04 | BG71: 345.04 | BM71: 374.02
A72: A04.12.004 | B72: Внутрисосудистое ультразвуковое исследование сосудистой стенки | C72: 270.37 | J72: 344.45 | AL72: 344.45 | AM72: 344.45 | AS72: 344.45 | BB72: 344.45 | BE72: 344.45 | BF72: 344.45 | BM72: 373.38
A73: A04.12.005 | B73: Дуплексное сканирование сосудов (артерий и вен) верхних конечностей | C73: 270.37 | D73: 344.45 | J73: 344.45 | R73: 344.45 | X73: 484.77 | Z73: 477.2 | AB73: 343.37 | AL73: 344.45 | AM73: 344.45 | AR73: 344.45 | AS73: 344.45 | BB73: 344.45 | BD73: 344.45 | BE73: 344.45 | BF73: 344.45 | BG73: 344.45 | BM73: 373.38
A74: A04.12.005.001 | B74: Дуплексное сканирование артерий нижних конечностей | C74: 287.46 | D74: 366.22 | R74: 366.22 | X74: 515.42 | Z74: 507.37 | AB74: 365.07 | AG74: 470.57 | AM74: 366.22 | AS74: 366.22 | AZ74: 366.22 | BA74: 507.37 | BB74: 366.22 | BD74: 366.22 | BG74: 366.22
A75: A04.12.005.002 | B75: Дуплексное сканирование артерий верхних конечностей | C75: 281.98 | D75: 359.24 | J75: 359.24 | K75: 359.24 | R75: 359.24 | X75: 505.59 | Z75: 497.69 | AB75: 358.11 | AG75: 461.6 | AL75: 359.24 | AM75: 359.24 | AS75: 359.24 | AZ75: 359.24 | BA75: 497.69 | BB75: 359.24 | BD75: 359.24 | BE75: 359.24 | BF75: 359.24 | BG75: 359.24 | BM75: 389.41
A76: A04.12.005.003 | B76: Дуплексное сканирование брахиоцефальных артерий с цветным допплеровским картированием кровотока | C76: 541.2 | D76: 689.49 | G76: 689.49 | H76: 689.49 | J76: 689.49 | K76: 689.49 | L76: 689.49 | M76: 689.49 | O76: 689.49 | Q76: 689.49 | R76: 689.49 | V76: 687.87 | W76: 688.41 | X76: 970.37 | Y76: 882.16 | Z76: 955.22 | AA76: 672.17 | AB76: 687.32 | AC76: 901.1 | AE76: 681.91 | AG76: 885.94 | AI76: 688.41 | AL76: 689.49 | AM76: 689.49 | AS76: 689.49 | AW76: 689.49 | BB76: 689.49 | BD76: 689.49 | BE76: 689.49 | BF76: 689.49 | BG76: 689.49 | BM76: 747.4
A77: A04.12.005.004 | B77: Дуплексное сканирование вен верхних конечностей | C77: 1001.69 | D77: 1276.15 | J77: 1276.15 | R77: 1276.15 | X77: 1796.03 | Z77: 1767.98 | AB77: 1272.15 | AE77: 1262.13 | AI77: 1274.15 | AL77: 1276.15 | AM77: 1276.15 | AS77: 1276.15 | AV77: 1383.33 | BB77: 1276.15 | BC77: 1383.33 | BD77: 1276.15 | BE77: 1276.15 | BF77: 1276.15 | BG77: 1276.15 | BM77: 1383.33
A78: A04.12.005.008 | B78: Ультразвуковая допплерография брахиоцефальных артерий | C78: 1001.69 | R78: 1276.15 | X78: 1796.03 | Z78: 1767.98 | AB78: 1272.15 | AL78: 1276.15 | AM78: 1276.15 | AR78: 1276.15 | AS78: 1276.15 | AU78: 1276.15 | AV78: 1383.33 | AW78: 1276.15 | AX78: 1276.15 | BB78: 1276.15 | BC78: 1383.33 | BE78: 1276.15 | BG78: 1276.15
A79: A04.12.006 | B79: Дуплексное сканирование сосудов (артерий и вен) нижних конечностей | C79: 270.37 | D79: 344.45 | J79: 344.45 | K79: 344.45 | R79: 344.45 | X79: 484.77 | Z79: 477.2 | AB79: 343.37 | AC79: 450.17 | AL79: 344.45 | AM79: 344.45 | AS79: 344.45 | BD79: 344.45 | BE79: 344.45 | BF79: 344.45 | BG79: 344.45 | BM79: 373.38
A80: A04.12.007 | B80: Ультразвуковая допплерография сосудов глаза | C80: 270.37 | AS80: 344.45
A81: A04.12.008 | B81: Дуплексное сканирование сосудов мошонки и полового члена | C81: 270.37 | J81: 344.45 | AL81: 344.45 | AM81: 344.45 | AS81: 344.45 | BD81: 344.45 | BG81: 344.45
A82: A04.12.008.001 | B82: Ультразвуковое исследование полового члена с допплерометрией | C82: 1167.43 | AV82: 1612.22 | AX82: 1487.31
A83: A04.12.008.002 | B83: УЗДГ- оценка пенильного кровотока (кавернозодопплерография) | C83: 2522.5 | AV83: 3483.57 | AX83: 3213.67
A84: A04.12.012 | B84: Дуплексное сканирование сосудов печени | C84: 120.12 | J84: 153.03 | M84: 153.03 | Z84: 212.01 | AS84: 153.03 | BD84: 153.03
A85: A04.12.015 | B85: Триплексное сканирование вен | C85: 284.72 | D85: 362.73 | Z85: 502.53 | AG85: 466.09 | AL85: 362.73 | AS85: 362.73 | BD85: 362.73 | BE85: 362.73 | BF85: 362.73 | BM85: 393.2
A86: A04.12.017 | B86: Дуплексное сканирование сосудов щитовидной железы | C86: 270.37 | Z86: 477.2 | AM86: 344.45 | AS86: 344.45
A87: A04.12.021 | B87: Дуплексное сканирование сосудов селезенки | C87: 120.12 | J87: 153.03 | Z87: 212.01
A88: A04.12.024 | B88: Ультразвуковая допплерография маточно-плацентарного кровотока | C88: 499.45 | Z88: 881.53 | AS88: 636.3 | BH88: 636.3
A89: A04.16.002 | B89: Эндосонография желудка | C89: 1144.37 | G89: 1457.93 | R89: 1457.93 | T89: 1580.37
A90: A04.16.003 | B90: Эндосонография двенадцатиперстной кишки | C90: 1144.37 | G90: 1457.93 | R90: 1457.93 | T90: 1580.37
A91: A04.16.005 | B91: Эндосонография пищевода | C91: 620.92 | G91: 791.05 | R91: 791.05 | T91: 857.49
A92: A04.21.003 | B92: Ультразвуковая допплерография сосудов семенного канатика | C92: 334.11 | M92: 425.66 | R92: 425.66 | Z92: 589.7 | AM92: 425.66 | AS92: 425.66 | AX92: 425.66 | BD92: 425.66 | BG92: 425.66
A93: A04.21.003 О | B93: Ультразвуковая допплерография сосудов семенного канатика | C93: 334.11 | AS93: 425.66
A94: A04.26.005 | B94: Ультразвуковая допплерография сосудов орбиты и глазного яблока | C94: 190.18 | AS94: 242.29
A95: A04.26.006 | B95: Дуплексное сканирование сосудов глаза и орбиты | C95: 190.18 | AS95: 242.29
A96: 05 | B96: Регистрация электромагнитных сигналов, испускаемых или потенцированных в органах и тканях с их последующей расшифровкой и описанием
A97: A05.01.002 | B97: Магнитно-резонансная томография мягких тканей | C97: 1353.19 | I97: 1723.96 | Q97: 1723.96 | R97: 1723.96 | AN97: 1723.96 | AO97: 2388.38 | AQ97: 1723.96 | AS97: 1723.96 | AT97: 1723.96 | AV97: 1868.76
A98: A05.01.002 Д | B98: Магнитно-резонансная томография мягких тканей | C98: 2010.41 | I98: 2561.26 | R98: 2561.26 | AN98: 2561.26 | AO98: 3548.37 | AQ98: 2561.26 | AS98: 2561.26 | AT98: 2561.26 | AV98: 2776.38
A99: A05.01.002 ДН | B99: Магнитно-резонансная томография мягких тканей с наркозом | C99: 7406.68 | I99: 9436.11 | AS99: 9436.11 | AT99: 9436.11 | AV99: 10228.63
A100: A05.01.002.001 | B100: Магнитно-резонансная томография мягких тканей с контрастированием | C100: 3486.74 | Q100: 4442.11 | R100: 4442.11 | AN100: 4442.11 | AO100: 6154.1 | AQ100: 4442.11 | AS100: 4442.11 | AT100: 4442.11 | AV100: 4815.19 | BL100: 4442.11
A101: A05.01.002.001 Д | B101: Магнитно-резонансная томография мягких тканей с контрастированием | C101: 4143.98 | R101: 5279.43 | AN101: 5279.43 | AO101: 7314.12 | AQ101: 5279.43 | AS101: 5279.43 | AT101: 5279.43 | AV101: 5722.84
A102: A05.01.002.001 ДН | B102: Магнитно-резонансная томография мягких тканей с контрастированием с наркозом | C102: 9540.23 | I102: 12154.25 | R102: 12154.25 | AS102: 12154.25 | AT102: 12154.25 | AV102: 13175.06
A103: A05.01.002.002 | B103: Магнитно-резонансная томография мягких тканей с внутривенным динамическим болюсным контрастированием | C103: 6975.75 | I103: 8887.11 | R103: 8887.11 | AN103: 8887.11 | AO103: 12312.2 | AQ103: 8887.11 | AS103: 8887.11 | AT103: 8887.11 | AV103: 9633.51 | BL103: 8887.11
A104: A05.01.002.002 Д | B104: Магнитно-резонансная томография мягких тканей с внутривенным динамическим болюсным контрастированием | C104: 7549.04 | I104: 9617.48 | R104: 9617.48 | AN104: 9617.48 | AO104: 13324.06 | AQ104: 9617.48 | AS104: 9617.48 | AT104: 9617.48 | AV104: 10425.22
A105: A05.01.002.003 | B105: Магнитно-резонансная перфузия мягких тканей с контрастированием | C105: 5246.86 | R105: 6684.5 | AO105: 9260.71 | AQ105: 6684.5 | AS105: 6684.5 | AT105: 6684.5 | AV105: 7245.91
A106: A05.03.002 | B106: Магнитно-резонансная томография позвоночника (один отдел) | C106: 1363.97 | I106: 1737.7 | Q106: 1737.7 | R106: 1737.7 | AN106: 1737.7 | AO106: 2407.41 | AQ106: 1737.7 | AS106: 1737.7 | AT106: 1737.7 | AV106: 1883.64
A107: A05.03.002 Д | B107: Магнитно-резонансная томография позвоночника (один отдел) | C107: 2021.21 | I107: 2575.02 | Q107: 2575.02 | R107: 2575.02 | AN107: 2575.02 | AO107: 3567.44 | AQ107: 2575.02 | AS107: 2575.02 | AT107: 2575.02 | AV107: 2791.29
A108: A05.03.002 ДН | B108: Магнитно-резонансная томография позвоночника (один отдел) с наркозом | C108: 7417.46 | I108: 9449.84 | R108: 9449.84 | AS108: 9449.84 | AT108: 9449.84 | AV108: 10243.51
A109: A05.03.002.001 | B109: Магнитно-резонансная томография позвоночника с контрастированием (один отдел) | C109: 3379.75 | Q109: 4305.8 | R109: 4305.8 | AN109: 4305.8 | AO109: 5965.26 | AQ109: 4305.8 | AS109: 4305.8 | AT109: 4305.8 | AV109: 4667.43
A110: A05.03.002.001 Д | B110: Магнитно-резонансная томография позвоночника с контрастированием (один отдел) | C110: 4036.99 | Q110: 5143.13 | R110: 5143.13 | AN110: 5143.13 | AO110: 7125.29 | AQ110: 5143.13 | AS110: 5143.13 | AT110: 5143.13 | AV110: 5575.08
A111: A05.03.002.001 ДН | B111: Магнитно-резонансная томография позвоночника с контрастированием (один отдел) с наркозом | C111: 9433.25 | I111: 12017.96 | AS111: 12017.96 | AT111: 12017.96 | AV111: 13027.32
A112: A05.03.002.002 | B112: Магнитно-резонансная томография позвоночника с контрастированием (один отдел) с внутривенным динамическим болюсным контрастированием | C112: 6975.75 | I112: 8887.11 | R112: 8887.11 | AN112: 8887.11 | AO112: 12312.2 | AQ112: 8887.11 | AS112: 8887.11 | AT112: 8887.11 | AV112: 9633.51
A113: A05.03.002.002 Д | B113: Магнитно-резонансная томография позвоночника с контрастированием (один отдел) с внутривенным динамическим болюсным контрастированием | C113: 7549.04 | I113: 9617.48 | R113: 9617.48 | AN113: 9617.48 | AO113: 13324.06 | AQ113: 9617.48 | AS113: 9617.48 | AT113: 9617.48 | AV113: 10425.22
A114: A05.03.003 | B114: Магнитно-резонансная томография основания черепа | C114: 1479.21 | R114: 1884.51 | AN114: 1884.51 | AO114: 2610.81 | AQ114: 1884.51 | AS114: 1884.51 | AT114: 1884.51 | AV114: 2042.79
A115: A05.03.003 Д | B115: Магнитно-резонансная томография основания черепа | C115: 2049.86 | R115: 2611.52 | AN115: 2611.52 | AO115: 3618 | AQ115: 2611.52 | AS115: 2611.52 | AT115: 2611.52 | AV115: 2830.86
A116: A05.03.003.001 Д | B116: Магнитно-резонансная томография основания черепа с ангиографией | C116: 4531.95 | I116: 5773.7 | R116: 5773.7 | AN116: 5773.7 | AO116: 7998.89 | AS116: 5773.7 | AT116: 5773.7 | AV116: 6258.62
A117: A05.04.001 | B117: Магнитно-резонансная томография суставов (один сустав) | C117: 1353.19 | I117: 1723.96 | Q117: 1723.96 | R117: 1723.96 | AN117: 1723.96 | AO117: 2388.38 | AS117: 1723.96 | AT117: 1723.96 | AV117: 1868.76
A118: A05.04.001 Д | B118: Магнитно-резонансная томография суставов (один сустав) | C118: 2010.41 | I118: 2561.26 | R118: 2561.26 | AN118: 2561.26 | AO118: 3548.37 | AS118: 2561.26 | AT118: 2561.26 | AV118: 2776.38
A119: A05.04.001 ДН | B119: Магнитно-резонансная томография суставов (один сустав) с наркозом | C119: 7406.68 | I119: 9436.11 | AS119: 9436.11 | AT119: 9436.11 | AV119: 10228.63
A120: A05.04.001.001 | B120: Магнитно-резонансная томография суставов (один сустав) с контрастированием | C120: 3486.74 | R120: 4442.11 | AN120: 4442.11 | AO120: 6154.1 | AS120: 4442.11 | AT120: 4442.11 | AV120: 4815.19 | BL120: 4442.11
A121: A05.04.001.001 Д | B121: Магнитно-резонансная томография суставов (один сустав) с контрастированием | C121: 4143.98 | R121: 5279.43 | AN121: 5279.43 | AO121: 7314.12 | AS121: 5279.43 | AT121: 5279.43 | AV121: 5722.84
A122: A05.04.001.001 ДН | B122: Магнитно-резонансная томография суставов (один сустав) с контрастированием с наркозом | C122: 9540.23 | I122: 12154.25 | AS122: 12154.25 | AT122: 12154.25 | AV122: 13175.06
A123: A05.04.001.002 | B123: Магнитно-резонансная томография суставов (один сустав) с внутривенным динамическим болюсным контрастированием | C123: 6975.75 | I123: 8887.11 | R123: 8887.11 | AN123: 8887.11 | AO123: 12312.2 | AS123: 8887.11 | AT123: 8887.11 | AV123: 9633.51 | BL123: 8887.11
A124: A05.04.001.002 Д | B124: Магнитно-резонансная томография суставов (один сустав) с внутривенным динамическим болюсным контрастированием | C124: 7549.04 | I124: 9617.48 | R124: 9617.48 | AN124: 9617.48 | AO124: 13324.06 | AS124: 9617.48 | AT124: 9617.48 | AV124: 10425.22
A125: A05.04.002 | B125: Магнитно-резонансная томография кресцово-подвздошного сочленения | C125: 2176.29 | I125: 2772.59 | Q125: 2772.59 | R125: 2772.59 | AN125: 2772.59 | AO125: 3841.15 | AQ125: 2772.59 | AS125: 2772.59 | AT125: 2772.59 | AV125: 3005.46
A126: A05.04.002.001 | B126: Магнитно-резонансная томография кресцово-подвздошного сочленения с контрастированием | C126: 4730.19 | I126: 6026.26 | R126: 6026.26 | AN126: 6026.26 | AO126: 8348.79 | AQ126: 6026.26 | AS126: 6026.26 | AT126: 6026.26 | AV126: 6532.39 | BL126: 6026.26
A127: A05.08.001 | B127: Магнитно-резонансная томография околоносовых пазух | C127: 1238.56 | I127: 1577.93 | R127: 1577.93 | AN127: 1577.93 | AO127: 2186.06 | AQ127: 1577.93 | AS127: 1577.93 | AT127: 1577.93 | AV127: 1710.45
A128: A05.08.001 Д | B128: Магнитно-резонансная томография околоносовых пазух | C128: 1895.8 | I128: 2415.25 | R128: 2415.25 | AN128: 2415.25 | AO128: 3346.09 | AQ128: 2415.25 | AS128: 2415.25 | AT128: 2415.25 | AV128: 2618.1
A129: A05.08.001 ДН | B129: Магнитно-резонансная томография околоносовых пазух с наркозом | C129: 7292.05 | I129: 9290.07 | AS129: 9290.07 | AT129: 9290.07 | AV129: 10070.32
A130: A05.08.001.001 | B130: Магнитно-резонансная томография околоносовых пазух с контрастированием | C130: 3107.19 | R130: 3958.56 | AN130: 3958.56 | AO130: 5484.19 | AQ130: 3958.56 | AS130: 3958.56 | AT130: 3958.56 | AV130: 4291.03
A131: A05.08.001.001 Д | B131: Магнитно-резонансная томография околоносовых пазух | C131: 3764.46 | R131: 4795.92 | AN131: 4795.92 | AO131: 6644.27 | AQ131: 4795.92 | AS131: 4795.92 | AT131: 4795.92 | AV131: 5198.72
A132: A05.08.001.001 ДН | B132: Магнитно-резонансная томография околоносовых пазух с контрастированием с наркозом | C132: 9160.71 | I132: 11670.74 | AS132: 11670.74 | AT132: 11670.74 | AV132: 12650.94
A133: A05.08.001.002 | B133: Магнитно-резонансная томография околоносовых пазух с внутривенным динамическим болюсным контрастированием | C133: 6975.75 | I133: 8887.11 | R133: 8887.11 | AN133: 8887.11 | AO133: 12312.2 | AQ133: 8887.11 | AS133: 8887.11 | AT133: 8887.11 | AV133: 9633.51 | BL133: 8887.11
A134: A05.08.001.002 Д | B134: Магнитно-резонансная томография околоносовых пазух с внутривенным динамическим болюсным контрастированием | C134: 7549.04 | I134: 9617.48 | R134: 9617.48 | AN134: 9617.48 | AO134: 13324.06 | AQ134: 9617.48 | AS134: 9617.48 | AT134: 9617.48 | AV134: 10425.22
A135: A05.10.009 | B135: Магнитно-резонансная томография сердца | C135: 1693.27 | R135: 2157.23 | AO135: 2988.62 | AV135: 2338.41
A136: A05.10.009 Д | B136: Магнитно-резонансная томография сердца | C136: 2106.79 | R136: 2684.05 | AO136: 3718.48 | AV136: 2909.48
A137: A05.10.009.001 | B137: Магнитно-резонансная томография сердца с контрастированием | C137: 4446.48 | R137: 5664.82 | AO137: 7848.04 | AV137: 6140.59 | BJ137: 5664.82
A138: A05.10.009.001 Д | B138: Магнитно-резонансная томография сердца с контрастированием | C138: 4860.05 | R138: 6191.7 | AO138: 8577.99 | AV138: 6711.73
A139: A05.10.009.002 Д | B139: Магнитно-резонансная томография сердца с внутривенным динамическим болюсным контрастированием | C139: 7640.69 | R139: 9734.24 | AO139: 13485.82 | AV139: 10551.79
A140: A05.10.009.002 | B140: Магнитно-резонансная томография сердца с внутривенным динамическим болюсным контрастированием | C140: 7227.12 | R140: 9207.35 | AO140: 12755.87 | AV140: 9980.65 | BJ140: 9207.35
A141: A05.10.009.003 | B141: Магнитно-резонансная перфузия сердца в покое | C141: 5290.16 | R141: 6739.66 | AO141: 9337.13 | AV141: 7305.71
A142: A05.10.009.004 | B142: Магнитно-резонансная перфузия сердца с функциональной нагрузочной пробой | C142: 5340.56 | R142: 6803.87 | AO142: 9426.09 | AV142: 7375.31
A143: A05.10.009.005 | B143: Магнитно-резонансная томография сердца с оценкой функции | C143: 1977.02 | R143: 2518.72 | AO143: 3489.44 | AV143: 2730.26
A144: A05.10.009.005 Д | B144: Магнитно-резонансная томография сердца с оценкой функции | C144: 2259.67 | R144: 2878.82 | AO144: 3988.32 | AV144: 3120.6
A145: A05.10.009.005 ДН | B145: Магнитно-резонансная томография сердца с оценкой функции | C145: 7655.93 | AV145: 10572.84
A146: A05.10.009.006 | B146: Магнитно-резонансная томография сердца высокого разрешения | C146: 1977.02 | R146: 2518.72 | AO146: 3489.44 | AV146: 2730.26
A147: A05.10.009.006 Д | B147: Магнитно-резонансная томография сердца высокого разрешения | C147: 2259.67 | R147: 2878.82 | AO147: 3988.32 | AV147: 3120.6
A148: A05.10.009.006 ДН | B148: Магнитно-резонансная томография сердца высокого разрешения | C148: 7655.93 | AT148: 9753.65 | AV148: 10572.84
A149: A05.10.009.007 | B149: Магнитно-резонансная томография сердца с ангиографией коронарных артерий | C149: 1977.02 | R149: 2518.72 | AO149: 3489.44 | AV149: 2730.26
A150: A05.10.009.008 | B150: Магнитно-резонансная томография сердца с ангиографией коронарных артерий и с контрастированием | C150: 5859.41 | R150: 7464.89 | AO150: 10341.86 | AV150: 8091.85
A151: A05.12.004 | B151: Магнитно-резонансная артериография (одна область) | C151: 1363.97 | I151: 1737.7 | R151: 1737.7 | AN151: 1737.7 | AO151: 2407.41 | AQ151: 1737.7 | AS151: 1737.7 | AT151: 1737.7 | AV151: 1883.64
A152: A05.12.004.001 | B152: Магнитно-резонансная артериография (одна область) с контрастированием | C152: 3486.74 | R152: 4442.11 | AN152: 4442.11 | AO152: 6154.1 | AQ152: 4442.11 | AS152: 4442.11 | AT152: 4442.11 | AV152: 4815.19
A153: A05.12.004.002 | B153: Магнитно-резонансная артериография (одна область) с внутривенным динамическим болюсным контрастированием | C153: 6829.14 | I153: 8700.32 | R153: 8700.32 | AN153: 8700.32 | AO153: 12053.43 | AQ153: 8700.32 | AS153: 8700.32 | AT153: 8700.32 | AV153: 9431.04
A154: A05.12.004.002 Д | B154: Магнитно-резонансная артериография (одна область) с внутривенным динамическим болюсным контрастированием | C154: 7193.51 | I154: 9164.53 | R154: 9164.53 | AN154: 9164.53 | AO154: 12696.55 | AQ154: 9164.53 | AS154: 9164.53 | AT154: 9164.53 | AV154: 9934.24
A155: A05.12.005 | B155: Магнитно-резонансная венография (одна область) | C155: 1363.97 | I155: 1737.7 | R155: 1737.7 | AN155: 1737.7 | AO155: 2407.41 | AQ155: 1737.7 | AS155: 1737.7 | AT155: 1737.7 | AV155: 1883.64
A156: A05.12.005.001 | B156: Магнитно-резонансная венография (одна область) с контрастированием | C156: 3486.74 | R156: 4442.11 | AN156: 4442.11 | AO156: 6154.1 | AQ156: 4442.11 | AS156: 4442.11 | AV156: 4815.19
A157: A05.12.005.002 | B157: Магнитно-резонансная венография (одна область) с внутривенным динамическим болюсным контрастированием | C157: 6829.14 | I157: 8700.32 | R157: 8700.32 | AN157: 8700.32 | AO157: 12053.43 | AQ157: 8700.32 | AS157: 8700.32 | AT157: 8700.32 | AV157: 9431.04
A158: A05.12.005.002 Д | B158: Магнитно-резонансная венография (одна область) с внутривенным динамическим болюсным контрастированием | C158: 7193.51 | I158: 9164.53 | R158: 9164.53 | AN158: 9164.53 | AO158: 12696.55 | AQ158: 9164.53 | AS158: 9164.53 | AT158: 9164.53 | AV158: 9934.24
A159: A05.12.006.001 | B159: Магнитно-резонансная томография ангиография головного мозга с контрастированием | C159: 7412.28 | R159: 9443.24 | AN159: 9443.24 | AO159: 13082.67 | AQ159: 9443.24 | AS159: 9443.24 | AT159: 9443.24 | AV159: 10236.36
A160: A05.12.006.001 Д | B160: Магнитно-резонансная томография ангиография головного мозга с контрастированием | C160: 5294.39 | R160: 6745.05 | AN160: 6745.05 | AO160: 9344.6 | AQ160: 6745.05 | AS160: 6745.05 | AT160: 6745.05 | AV160: 7311.55
A161: A05.12.006.002 | B161: Магнитно-резонансная томография ангиография головного мозга с внутривенным динамическим болюсным контрастированием | C161: 6829.14 | R161: 8700.32 | AN161: 8700.32 | AO161: 12053.43 | AQ161: 8700.32 | AS161: 8700.32 | AT161: 8700.32 | AV161: 9431.04
A162: A05.12.006.002 Д | B162: Магнитно-резонансная томография ангиография головного мозга с внутривенным динамическим болюсным контрастированием | C162: 7193.51 | R162: 9164.53 | AN162: 9164.53 | AO162: 12696.55 | AQ162: 9164.53 | AS162: 9164.53 | AT162: 9164.53 | AV162: 9934.24
A163: A05.15.002 | B163: Магнитно-резонансная холангиопанкреатография | C163: 1363.97 | I163: 1737.7 | Q163: 1737.7 | R163: 1737.7 | AN163: 1737.7 | AO163: 2407.41 | AQ163: 1737.7 | AS163: 1737.7 | AT163: 1737.7 | AV163: 1883.64
A164: A05.15.002.001 | B164: Магнитно-резонансная холангиография с контрастированием | C164: 3486.74 | R164: 4442.11 | AN164: 4442.11 | AO164: 6154.1 | AQ164: 4442.11 | AS164: 4442.11 | AT164: 4442.11 | AV164: 4815.19 | BL164: 4442.11
A165: A05.16.002 | B165: Магнитно-резонансная томография пищевода | C165: 1363.97 | R165: 1737.7 | AN165: 1737.7 | AO165: 2407.41 | AQ165: 1737.7 | AT165: 1737.7 | AV165: 1883.64
A166: A05.16.002.001 | B166: Магнитно-резонансная томография пищевода с контрастированием | C166: 3486.74 | R166: 4442.11 | AN166: 4442.11 | AO166: 6154.1 | AQ166: 4442.11 | AT166: 4442.11 | AV166: 4815.19
A167: A05.16.002.002 | B167: Магнитно-резонансная томография пищевода с внутривенным динамическим болюсным контрастированием | C167: 7685.68 | R167: 9791.56 | AN167: 9791.56 | AO167: 13565.23 | AQ167: 9791.56 | AT167: 9791.56 | AV167: 10613.92
A168: A05.16.002.002 Д | B168: Магнитно-резонансная томография пищевода с внутривенным динамическим болюсным контрастированием | C168: 7983.3 | R168: 10170.72 | AN168: 10170.72 | AO168: 14090.52 | AQ168: 10170.72 | AT168: 10170.72 | AV168: 11024.94
A169: A05.20.003.002 | B169: Магнитно-резонансная перфузия молочных желез | C169: 5811.38 | R169: 7403.7 | AN169: 7403.7 | AO169: 10257.09 | AQ169: 7403.7 | AS169: 7403.7 | AV169: 8025.52
A170: A05.20.004 | B170: Магнитно-резонансная томография молочных желез | C170: 1680.22 | R170: 2140.6 | AN170: 2140.6 | AO170: 2965.59 | AQ170: 2140.6 | AS170: 2140.6 | AV170: 2320.38
A171: A05.20.004.001 | B171: Магнитно-резонансная томография молочных желез с динамическим контрастированием | C171: 7305.48 | R171: 9307.18 | AN171: 9307.18 | AO171: 12894.17 | AQ171: 9307.18 | AS171: 9307.18 | AV171: 10088.87 | BL171: 9307.18
A172: A05.20.004.002 | B172: Магнитно-резонансная томография молочных желез с внутривенным контрастированием | C172: 4164.65 | R172: 5305.76 | AN172: 5305.76 | AO172: 7350.61 | AQ172: 5305.76 | AS172: 5305.76 | AV172: 5751.38
A173: A05.21.001 | B173: Магнитно-резонансная томография мошонки | C173: 2176.29 | R173: 2772.59 | AN173: 2772.59 | AO173: 3841.15 | AQ173: 2772.59 | AS173: 2772.59 | AT173: 2772.59 | AV173: 3005.46
A174: A05.21.001.001 | B174: Магнитно-резонансная томография мошонки с контрастированием | C174: 4730.19 | R174: 6026.26 | AN174: 6026.26 | AO174: 8348.79 | AQ174: 6026.26 | AS174: 6026.26 | AT174: 6026.26 | AV174: 6532.39 | BL174: 6026.26
A175: A05.22.002.001 | B175: Магнитно-резонансная томография гипофиза с контрастированием | C175: 4694.42 | R175: 5980.69 | AN175: 5980.69 | AO175: 8285.65 | AQ175: 5980.69 | AS175: 5980.69 | AT175: 5980.69 | AV175: 6482.99 | BL175: 5980.69
A176: A05.22.002.001 Д | B176: Магнитно-резонансная томография гипофиза с контрастированием | C176: 4897.03 | R176: 6238.82 | AN176: 6238.82 | AO176: 8643.26 | AQ176: 6238.82 | AS176: 6238.82 | AT176: 6238.82 | AV176: 6762.8
A177: A05.22.002.002 | B177: Магнитно-резонансная томография гипофиза с внутривенным динамическим болюсным контрастированием | C177: 7113.58 | I177: 9062.7 | Q177: 9062.7 | R177: 9062.7 | AN177: 9062.7 | AO177: 12555.47 | AQ177: 9062.7 | AS177: 9062.7 | AT177: 9062.7 | AV177: 9823.85 | BL177: 9062.7
A178: A05.22.002.002 Д | B178: Магнитно-резонансная томография гипофиза с внутривенным динамическим болюсным контрастированием | C178: 7411.24 | I178: 9441.92 | R178: 9441.92 | AN178: 9441.92 | AO178: 13080.84 | AQ178: 9441.92 | AS178: 9441.92 | AT178: 9441.92 | AV178: 10234.92
A179: A05.23.009 | B179: Магнитно-резонансная томография головного мозга | C179: 1363.97 | I179: 1737.7 | Q179: 1737.7 | R179: 1737.7 | AN179: 1737.7 | AO179: 2407.41 | AQ179: 1737.7 | AS179: 1737.7 | AT179: 1737.7 | AV179: 1883.64
A180: A05.23.009 Д | B180: Магнитно-резонансная томография головного мозга | C180: 2021.21 | I180: 2575.02 | Q180: 2575.02 | R180: 2575.02 | AN180: 2575.02 | AO180: 3567.44 | AQ180: 2575.02 | AS180: 2575.02 | AT180: 2575.02 | AV180: 2791.29
A181: A05.23.009 ДН | B181: Магнитно-резонансная томография головного мозга с наркозом | C181: 7417.46 | I181: 9449.84 | R181: 9449.84 | AS181: 9449.84 | AT181: 9449.84 | AV181: 10243.51
A182: A05.23.009.001 | B182: Магнитно-резонансная томография головного мозга с контрастированием | C182: 3379.75 | I182: 4305.8 | Q182: 4305.8 | R182: 4305.8 | AN182: 4305.8 | AO182: 5965.26 | AQ182: 4305.8 | AS182: 4305.8 | AT182: 4305.8 | AV182: 4667.43 | BL182: 4305.8
A183: A05.23.009.001 Д | B183: Магнитно-резонансная томография головного мозга с контрастированием | C183: 4036.99 | I183: 5143.13 | Q183: 5143.13 | R183: 5143.13 | AN183: 5143.13 | AO183: 7125.29 | AQ183: 5143.13 | AS183: 5143.13 | AT183: 5143.13 | AV183: 5575.08
A184: A05.23.009.001 ДН | B184: Магнитно-резонансная томография головного мозга с контрастированием с наркозом | C184: 9433.25 | I184: 12017.96 | R184: 12017.96 | AS184: 12017.96 | AT184: 12017.96 | AV184: 13027.32
A185: A05.23.009.001.01 | B185: Скрининг-исследование головного мозга на магнитно-резонансном томографе | C185: 858.93 | R185: 1094.28 | AN185: 1094.28 | AO185: 1516.01 | AV185: 1186.18
A186: A05.23.009.003 | B186: Магнитно-резонансная перфузия головного мозга | C186: 7305.48 | I186: 9307.18 | R186: 9307.18 | AN186: 9307.18 | AO186: 12894.17 | AQ186: 9307.18 | AS186: 9307.18 | AT186: 9307.18 | AV186: 10088.87
A187: A05.23.009.009 | B187: Протонная магнитно-резонансная спектроскопия | C187: 2181.56 | I187: 2779.31 | R187: 2779.31 | AO187: 3850.45 | AS187: 2779.31 | AV187: 3012.73
A188: A05.23.009.010 | B188: Магнитно-резонансная томография спинного мозга (один отдел) | C188: 1363.97 | I188: 1737.7 | R188: 1737.7 | AN188: 1737.7 | AO188: 2407.41 | AQ188: 1737.7 | AS188: 1737.7 | AV188: 1883.64
A189: A05.23.009.017 | B189: Магнитно-резонансная томография после стереотаксического радиохирургического вмешательства (гамма нож контроль) с двойным контрастом | C189: 7300.22 | R189: 9300.48 | AN189: 9300.48 | AO189: 12884.89 | AQ189: 9300.48 | AS189: 9300.48 | AV189: 10081.6
A190: A05.23.009.018 | B190: Магнитно-резонансная томография головного мозга высокого разрешения при эпилепсии | C190: 2936.67 | I190: 3741.32 | R190: 3741.32 | AN190: 3741.32 | AO190: 5183.22 | AQ190: 3741.32 | AS190: 3741.32 | AT190: 3741.32 | AV190: 4055.54
A191: A05.23.009.018 ДН | B191: Магнитно-резонансная томография головного мозга высокого разрешения при эпилепсии с наркозом | C191: 8332.92 | AS191: 10616.14
A192: A05.24.003 | B192: Магнитно-резонансная томография черепно-мозговых нервов | C192: 2882.12 | I192: 3671.82 | R192: 3671.82 | AN192: 3671.82 | AO192: 5086.94 | AQ192: 3671.82 | AS192: 3671.82 | AT192: 3671.82 | AV192: 3980.21
A193: A05.24.004 | B193: Магнитно-резонансная томография переферического нервного сплетения | C193: 2882.12 | I193: 3671.82 | R193: 3671.82 | AN193: 3671.82 | AO193: 5086.94 | AQ193: 3671.82 | AS193: 3671.82 | AT193: 3671.82 | AV193: 3980.21
A194: A05.26.008 | B194: Магнитно-резонансная томография глазницы | C194: 1238.56 | I194: 1577.93 | R194: 1577.93 | AN194: 1577.93 | AO194: 2186.06 | AQ194: 1577.93 | AS194: 1577.93 | AT194: 1577.93 | AV194: 1710.45
A195: A05.26.008 Д | B195: Магнитно-резонансная томография глазницы | C195: 1895.8 | I195: 2415.25 | R195: 2415.25 | AN195: 2415.25 | AO195: 3346.09 | AQ195: 2415.25 | AS195: 2415.25 | AT195: 2415.25 | AV195: 2618.1
A196: A05.26.008 ДН | B196: Магнитно-резонансная томография глазницы с наркозом | C196: 7292.05 | I196: 9290.07 | AS196: 9290.07 | AT196: 9290.07 | AV196: 10070.32
A197: A05.26.008.001 | B197: Магнитно-резонансная томография глазницы с контрастированием | C197: 3107.19 | R197: 3958.56 | AN197: 3958.56 | AO197: 5484.19 | AQ197: 3958.56 | AS197: 3958.56 | AT197: 3958.56 | AV197: 4291.03 | BL197: 3958.56
A198: A05.26.008.001 Д | B198: Магнитно-резонансная томография глазницы | C198: 3764.46 | R198: 4795.92 | AN198: 4795.92 | AO198: 6644.27 | AQ198: 4795.92 | AS198: 4795.92 | AT198: 4795.92 | AV198: 5198.72
A199: A05.26.008.001 ДН | B199: Магнитно-резонансная томография глазницы с контрастированием с наркозом | C199: 9160.71 | I199: 11670.74 | AS199: 11670.74 | AT199: 11670.74 | AV199: 12650.94
A200: A05.26.008.002 | B200: Магнитно-резонансная томография глазницы с внутривенным динамическим болюсным контрастированием | C200: 6975.75 | I200: 8887.11 | R200: 8887.11 | AN200: 8887.11 | AO200: 12312.2 | AQ200: 8887.11 | AS200: 8887.11 | AT200: 8887.11 | AV200: 9633.51 | BL200: 8887.11
A201: A05.26.008.002 Д | B201: Магнитно-резонансная томография глазницы с внутривенным динамическим болюсным контрастированием | C201: 7549.04 | I201: 9617.48 | R201: 9617.48 | AN201: 9617.48 | AO201: 13324.06 | AQ201: 9617.48 | AS201: 9617.48 | AT201: 9617.48 | AV201: 10425.22
A202: A05.28.002 | B202: Магнитно-резонансная томография почек | C202: 1128.05 | R202: 1437.14 | AN202: 1437.14 | AO202: 1991.01 | AT202: 1437.14 | AV202: 1557.84
A203: A05.28.003 | B203: Магнитно-резонансная урография | C203: 2130.26 | I203: 2713.95 | R203: 2713.95 | AN203: 2713.95 | AO203: 3759.91 | AQ203: 2713.95 | AT203: 2713.95 | AV203: 2941.89
... 512 more rows

Sheet Приложение № 3
A1: _Оглавление_
B2: =MID(CELL("filename",A2),SEARCH("]",CELL("filename",A2))+1,31) -> Приложение № 3
B3: ='Приложение № 2'!B3 -> к Дополнительному соглашению № 6
B4: =_Оглавление_!A3 -> от 05.06.2024
B5: к Тарифному соглашению
B6: на оплату медицинской помощи
B7: по ОМС на территории Томской области на 2024 год
B8: от 05.02.2024
B10: Приложение № 15
B11: к Тарифному соглашению
B12: на оплату медицинской помощи
B13: по ОМС на территории Томской области на 2024 год
B14: от 05.02.2024
B16: Тарифы на оплату медицинской помощи за единицу объема медицинской помощи (в том числе для оплаты медицинских услуг при оказании медицинской помощи в рамках профилактических медицинских осмотров, диспансеризации (включая диспансеризацию для оценки репродуктивного здоровья женщин и мужчин), а также в стационарных условиях и в условиях дневного стационара), применяемые при межучрежденческих и межтерриториальных расчетах, с 01.06.2024
A18: Код медицинской услуги | B18: Наименование медицинской услуги | C18: Базовый тариф на 2024 | D18: ОГАУЗ "Больница № 2" | E18: ОГАУЗ "ГКБ №3 им. Б.И. Альперовича" | F18: ОГАУЗ "Больница скорой медицинской помощи №2" | G18: ОГАУЗ "Больница скорой медицинской помощи" | H18: ОГАУЗ "Детская стоматологическая поликлиника №2" | I18: ОГАУЗ "Стоматологическая поликлиника №1" | J18: ОГАУЗ "Детская больница №1" | K18: ОГАУЗ "Детская городская больница № 2" | L18: ОГАУЗ "Областная детская больница" | M18: ОГАУЗ "Томская областная клиническая больница" | N18: ОГАУЗ "Томский областной онкологический диспансер" | O18: ОГБУЗ "Томский областной-кожно-венерологический диспансер" | P18: ОГАУЗ "ОПЦ им. И.Д.Евтушенко" | Q18: ОГАУЗ "Родильный дом № 1" | R18: ОГАУЗ "Роддом № 4" | S18: ОГАУЗ "Родильный дом им. Н.А. Семашко" | T18: ОГАУЗ "Томский фтизиопульмонологический центр" | U18: ОГАУЗ "МЦ имени Г.К. Жерлова" | V18: ОГБУЗ "ДИБ им. Г.Е. Сибирцева" | W18: ОГБУЗ "Патологоанатомическое бюро" | X18: ОГАУЗ "Поликлиника № 4" | Y18: ОГАУЗ "Поликлиника № 10" | Z18: ОГАУЗ "Межвузовская поликлиника" | AA18: ОГАУЗ "Поликлиника ТНЦ СО РАН" | AB18: ОГБУЗ "Медико-санитарная часть №2" | AC18: ОГАУЗ "Медико-санитарная часть "Строитель" | AD18: ОГБУЗ "Томский региональный центр крови" | AE18: ООО "Нефролайн-Томск" | AF18: ООО "ФРЕЗЕНИУС МЕДИКАЛ КЕА СИБИРЬ" | AG18: МЧУ "Нефросовет" | AH18: ОГAУЗ "Лоскутовская РП" | AI18: ОГАУЗ "Томская РБ" | AJ18: ОГАУЗ "Светленская РБ" | AK18: ОГАУЗ "Александровская РБ" | AL18: ОГБУЗ "Асиновская РБ" | AM18: ОГБУЗ "Бакчарская РБ" | AN18: ОГБУЗ "Верхнекетская РБ" | AO18: ОГБУЗ "Каргасокская РБ" | AP18: ОГАУЗ "Кожевниковская РБ" | AQ18: ОГАУЗ "Колпашевская РБ" | AR18: ОГАУЗ "Кривошеинская РБ" | AS18: ОГБУЗ "Чаинская РБ" | AT18: ОГАУЗ "Шегарская РБ" | AU18: ОГБУЗ "Зырянская РБ" | AV18: ОГАУЗ "Стрежевская ГБ" | AW18: ОГБУЗ "Молчановская РБ" | AX18: ОГБУЗ "Парабельская РБ" | AY18: ОГБУЗ "Первомайская РБ" | AZ18: ОГБУЗ "Тегульдетская РБ" | BA18: ООО "Айси-Мед" | BB18: ООО "Генелли" | BC18: ООО "Медицинский центр Генелли" | BD18: ООО "Геном-Томск" | BE18: ООО "Гранд Сервис" | BF18: ООО "Гранд Сервис" (г. Стрежевой) | BG18: ООО "Де визио-Томск" | BH18: ООО "Здоровье" | BI18: ООО "МНПЦ" | BJ18: ООО "ИНВИТРО-Сибирь" | BK18: ООО "Институт мужского здоровья" | BL18: ООО "Клиника "Сибирская" | BM18: ООО "Клиника "Эксперт - Сибирь" | BN18: ООО "ЛДЦ МИБС" | BO18: ООО "ЛДЦ" | BP18: ООО "ЛОР КЛИНИКА" | BQ18: ООО "ЛСД" | BR18: ООО "Люмена" | BS18: ООО "Люмена" (г. Северск) | BT18: АНО "НИИ микрохирургии" | BU18: АО "Гармония здоровья" | BV18: ИП Рудченко С.А. | BW18: ООО "Доктор Рудченко" | BX18: ООО "МАГИСТРАЛЬ" | BY18: ООО "МЕДИЦИНА" | BZ18: ООО "МАДЕЗ" | CA18: ООО "Макс и К" | CB18: ООО "Мед-Арт" | CC18: ООО "МЕДСЕРВИС" | CD18: ООО "Медхэлп" | CE18: ООО "МК "Аллергоцентр" | CF18: ООО "Многопрофильный Медицинский Центр" | CG18: ООО "МЦ "Сибирский Доктор" | CH18: ООО "Научно-методический центр клинической лабораторной диагностики Ситилаб" | CI18: ООО "НПФ "ХЕЛИКС" | CJ18: ООО "Открытая лаборатория" | CK18: ООО "Санэпидемстанция" | CL18: ООО "СибМедЦентр" | CM18: ООО "СибМедЦентр" (г. Стрежевой) | CN18: ООО "Ситилаб-Сибирь" | CO18: ООО "ТомОко" | CP18: ООО "Томский сурдологический центр" | CQ18: ООО "Центр репродуктивных технологий "Аист" | CR18: ООО "Центр семейной медицины" | CS18: ООО "ЦСМ" | CT18: ООО "ЦКБ" | CU18: ООО "ЦЖЗ" | CV18: ООО "ЦММО" | CW18: ООО "ЮНИМ-Сибирь" | CX18: ООО ДРЦ "Шаг вперед. Томск" | CY18: ООО "ПМО"Стандарт" | CZ18: Томский НИМЦ | DA18: НИИ Онкологии Томского НИМЦ | DB18: НИИ Кардиологии Томского НИМЦ | DC18: ФБУЗ "Центр гигиены и эпидемиологии в Томской области" | DD18: ФБУЗ "Центр гигиены и эпидемиологии в Томской области" (Асиновский район) | DE18: ФБУЗ "Центр гигиены и эпидемиологии в Томской области" (Шегарский район) | DF18: ФБУЗ "Центр гигиены и эпидемиологии в Томской области" (Колпашевский район) | DG18: ФБУЗ "Центр гигиены и эпидемиологии в Томской области" (г. Стрежевой) | DH18: ФБУЗ "Центр гигиены и эпидемиологии в Томской области" (Чаинский район) | DI18: ФБУЗ "Центр гигиены и эпидемиологии в Томской области" (Каргасокский район) | DJ18: ФГБОУ ВО СибГМУ Минздрава России | DK18: ФГБУ СибФНКЦ ФМБА России
B19: Код медицинской организации | D19: 29 | E19: 33 | F19: 139 | G19: 28 | H19: 20 | I19: 27 | J19: 133 | K19: 135 | L19: 146 | M19: 144 | N19: 188 | O19: 26 | P19: 292 | Q19: 52 | R19: 142 | S19: 129 | T19: 367 | U19: 343 | V19: 175 | W19: 381 | X19: 4 | Y19: 10 | Z19: 35 | AA19: 13 | AB19: 140 | AC19: 49 | AD19: 422 | AE19: 385 | AF19: 452 | AG19: 432 | AH19: 232 | AI19: 83 | AJ19: 231 | AK19: 61 | AL19: 59 | AM19: 63 | AN19: 65 | AO19: 69 | AP19: 71 | AQ19: 103 | AR19: 73 | AS19: 85 | AT19: 87 | AU19: 67 | AV19: 115 | AW19: 75 | AX19: 203 | AY19: 79 | AZ19: 81 | BA19: 430 | BB19: 447 | BC19: 353 | BD19: 419 | BE19: 320 | BF19: 320 | BG19: 420 | BH19: 333 | BI19: 377 | BJ19: 331 | BK19: 405 | BL19: 431 | BM19: 459 | BN19: 425 | BO19: 365 | BP19: 406 | BQ19: 341 | BR19: 387 | BS19: 387 | BT19: 204 | BU19: 399 | BV19: 338 | BW19: 21 | BX19: 460 | BY19: 32 | BZ19: 251 | CA19: 415 | CB19: 396 | CC19: 429 | CD19: 373 | CE19: 414 | CF19: 444 | CG19: 450 | CH19: 449 | CI19: 442 | CJ19: 329 | CK19: 412 | CL19: 294 | CM19: 294.1 | CN19: 382 | CO19: 330 | CP19: 390 | CQ19: 336 | CR19: 205 | CS19: 342 | CT19: 355 | CU19: 395 | CV19: 394 | CW19: 458 | CX19: 437 | CY19: 417 | CZ19: 327 | DA19: 465 | DB19: 466 | DC19: 344 | DD19: 344 | DE19: 344 | DF19: 344 | DG19: 344 | DH19: 344 | DI19: 344 | DJ19: 173 | DK19: 354
B20: Коэффициенты дифференциации по территории оказания медицинской помощи | D20: 1.274 | E20: 1.274 | F20: 1.274 | G20: 1.274 | H20: 1.274 | I20: 1.274 | J20: 1.274 | K20: 1.274 | L20: 1.274 | M20: 1.274 | N20: 1.274 | O20: 1.274 | P20: 1.274 | Q20: 1.274 | R20: 1.274 | S20: 1.274 | T20: 1.274 | U20: 1.381 | V20: 1.274 | W20: 1.274 | X20: 1.274 | Y20: 1.274 | Z20: 1.274 | AA20: 1.274 | AB20: 1.274 | AC20: 1.274 | AD20: 1.274 | AE20: 1.274 | AF20: 1.274 | AG20: 1.274 | AH20: 1.271 | AI20: 1.271 | AJ20: 1.271 | AK20: 1.822 | AL20: 1.27 | AM20: 1.665 | AN20: 1.795 | AO20: 1.831 | AP20: 1.272 | AQ20: 1.793 | AR20: 1.63 | AS20: 1.777 | AT20: 1.242 | AU20: 1.26 | AV20: 1.765 | AW20: 1.637 | AX20: 1.794 | AY20: 1.272 | AZ20: 1.644 | BA20: 1.274 | BB20: 1.274 | BC20: 1.274 | BD20: 1.274 | BE20: 1.274 | BF20: 1.765 | BG20: 1.274 | BH20: 1.274 | BI20: 1.274 | BJ20: 1.274 | BK20: 1.274 | BL20: 1.274 | BM20: 1.274 | BN20: 1.274 | BO20: 1.274 | BP20: 1.274 | BQ20: 1.274 | BR20: 1.274 | BS20: 1.381 | BT20: 1.274 | BU20: 1.274 | BV20: 1.274 | BW20: 1.274 | BX20: 1.274 | BY20: 1.274 | BZ20: 1.274 | CA20: 1.274 | CB20: 1.274 | CC20: 1.274 | CD20: 1.274 | CE20: 1.274 | CF20: 1.274 | CG20: 1.274 | CH20: 1.274 | CI20: 1.274 | CJ20: 1.274 | CK20: 1.274 | CL20: 1.274 | CM20: 1.772 | CN20: 1.274 | CO20: 1.274 | CP20: 1.274 | CQ20: 1.274 | CR20: 1.274 | CS20: 1.274 | CT20: 1.274 | CU20: 1.381 | CV20: 1.274 | CW20: 1.274 | CX20: 1.274 | CY20: 1.274 | CZ20: 1.274 | DA20: 1.274 | DB20: 1.274 | DC20: 1.274 | DD20: 1.27 | DE20: 1.242 | DF20: 1.793 | DG20: 1.765 | DH20: 1.777 | DI20: 1.831 | DJ20: 1.274 | DK20: 1.381
A21: 09.19.010 | B21: Исследование на стафилококк (зев, нос, кал) | C21: 122.5 | J21: 156.07 | AO21: 224.3 | CN21: 156.07 | DF21: 219.64 | DH21: 217.68 | DK21: 169.17
A22: 11.08.009 | B22: Вливание лекарственных веществ в гортань | C22: 104.25 | E22: 132.81 | M22: 132.81 | Y22: 132.81 | Z22: 132.81 | AA22: 132.81 | AI22: 132.5 | AL22: 132.4 | AM22: 173.58 | AN22: 187.13 | AO22: 190.88 | AP22: 132.61 | AQ22: 186.92 | AR22: 169.93 | AS22: 185.25 | AU22: 131.36 | AV22: 184 | AW22: 170.66 | AX22: 187.02 | AY22: 132.61 | BB22: 132.81 | BC22: 132.81 | BS22: 143.97 | CC22: 132.81 | DK22: 143.97
A23: 12.09.005 | B23: Расшифровка, описание и интерпретация данных исследования дыхательных объемов и потоков | C23: 155.85 | E23: 198.55 | M23: 198.55 | N23: 198.55 | Z23: 198.55 | AB23: 198.55 | AL23: 197.93 | AN23: 279.75 | AQ23: 279.44 | AR23: 254.04 | AS23: 276.95 | AT23: 193.57 | AU23: 196.37 | AV23: 275.08 | AY23: 198.24 | CR23: 198.55 | CS23: 198.55
A24: 17.07.002 | B24: Физиотерапевтическое воздействие на челюстно-лицевую область | C24: 90.04 | E24: 114.71 | X24: 114.71 | Y24: 114.71 | Z24: 114.71 | AA24: 114.71 | AH24: 114.44 | AI24: 114.44 | AK24: 164.05 | AL24: 114.35 | AM24: 149.92 | AN24: 161.62 | AO24: 164.86 | AQ24: 161.44 | AR24: 146.77 | AS24: 160 | AT24: 111.83 | AU24: 113.45 | AV24: 158.92 | AW24: 147.4 | AX24: 161.53 | AY24: 114.53 | BU24: 114.71 | CD24: 114.71 | CR24: 114.71
A25: 17.08.001 | B25: Физиотерапевтическое воздействие на область носа | C25: 90.04 | D25: 114.71 | E25: 114.71 | J25: 114.71 | K25: 114.71 | X25: 114.71 | Y25: 114.71 | Z25: 114.71 | AA25: 114.71 | AH25: 114.44 | AI25: 114.44 | AK25: 164.05 | AL25: 114.35 | AM25: 149.92 | AN25: 161.62 | AO25: 164.86 | AQ25: 161.44 | AR25: 146.77 | AS25: 160 | AT25: 111.83 | AU25: 113.45 | AV25: 158.92 | AW25: 147.4 | AX25: 161.53 | AY25: 114.53 | BU25: 114.71 | CD25: 114.71 | CR25: 114.71 | DK25: 124.35
A26: 17.08.002 | B26: Физиотерапевтическое воздействие на область глотки | C26: 90.04 | D26: 114.71 | E26: 114.71 | J26: 114.71 | K26: 114.71 | X26: 114.71 | Y26: 114.71 | Z26: 114.71 | AA26: 114.71 | AH26: 114.44 | AI26: 114.44 | AK26: 164.05 | AL26: 114.35 | AM26: 149.92 | AN26: 161.62 | AO26: 164.86 | AQ26: 161.44 | AR26: 146.77 | AS26: 160 | AT26: 111.83 | AU26: 113.45 | AV26: 158.92 | AW26: 147.4 | AX26: 161.53 | AY26: 114.53 | CD26: 114.71 | CR26: 114.71 | DK26: 124.35
A27: 17.08.003 | B27: Физиотерапевтическое воздействие на гортань | C27: 90.04 | D27: 114.71 | E27: 114.71 | J27: 114.71 | K27: 114.71 | X27: 114.71 | Y27: 114.71 | Z27: 114.71 | AA27: 114.71 | AH27: 114.44 | AI27: 114.44 | AK27: 164.05 | AL27: 114.35 | AM27: 149.92 | AN27: 161.62 | AO27: 164.86 | AQ27: 161.44 | AR27: 146.77 | AS27: 160 | AT27: 111.83 | AU27: 113.45 | AV27: 158.92 | AW27: 147.4 | AX27: 161.53 | AY27: 114.53 | BU27: 114.71 | CD27: 114.71 | CR27: 114.71 | DK27: 124.35
A28: 17.08.003.001 | B28: Физиотерапевтическое воздействие на гортань (электростимуляция) | C28: 413.92 | E28: 527.33 | AI28: 526.09 | AS28: 735.54 | AW28: 677.59 | BU28: 527.33
A29: 17.08.003.002 | B29: Физиотерапевтическое воздействие на гортань (электрофонопедия) | C29: 275 | AI29: 349.53 | AS29: 488.68 | AW29: 450.18 | BU29: 350.35
A30: 17.08.004 | B30: Физиотерапевтическое воздействие на ухо | C30: 90.04 | E30: 114.71 | J30: 114.71 | K30: 114.71 | X30: 114.71 | Y30: 114.71 | Z30: 114.71 | AA30: 114.71 | AH30: 114.44 | AI30: 114.44 | AK30: 164.05 | AL30: 114.35 | AM30: 149.92 | AN30: 161.62 | AO30: 164.86 | AQ30: 161.44 | AR30: 146.77 | AS30: 160 | AV30: 158.92 | AW30: 147.4 | AX30: 161.53 | AY30: 114.53 | BU30: 114.71 | CD30: 114.71 | CR30: 114.71 | DK30: 124.35
A31: 19.09.003 | B31: Дыхательная гимнастика | C31: 91.22 | Y31: 116.21 | Z31: 116.21 | AH31: 115.94 | AI31: 115.94 | AL31: 115.85 | AN31: 163.74 | AQ31: 163.56 | AV31: 161 | AW31: 149.33 | AY31: 116.03
A32: 19.09.004 | B32: Упражнения лечения голоса | C32: 91.22 | AI32: 115.94 | AN32: 163.74 | AQ32: 163.56 | AV32: 161
A33: 20.25.001 | B33: Гидровакуумтерапия гортани | C33: 128.44 | AI33: 163.25 | AN33: 230.55 | AU33: 161.83 | AV33: 226.7 | CR33: 163.63
A34: A01.30.024.001 | B34: Составление заключения о результатах медицинского освидетельствования граждан | C34: 91.3 | E34: 116.32 | M34: 116.32 | X34: 116.32 | AW34: 149.46 | AY34: 116.13
A35: 02 | B35: Методы функционального обследования с использованием простых приспособлений ,приборов,не требующих специальных навыков и помощи ассистента
A36: A02.12.002.001 | B36: Суточное мониторирование артериального давления | C36: 550.75 | J36: 701.66 | K36: 701.66 | M36: 701.66 | AA36: 701.66 | AB36: 701.66 | AL36: 699.45 | AN36: 988.6 | AP36: 700.55 | AQ36: 987.49 | AR36: 897.72 | AS36: 978.68 | AT36: 684.03 | AU36: 693.95 | AV36: 972.07 | AW36: 901.58 | AY36: 700.55 | BK36: 701.66 | BS36: 760.59 | BU36: 701.66 | BV36: 701.66 | BW36: 701.66 | CC36: 701.66 | CL36: 701.66 | CM36: 975.93 | CR36: 701.66 | CS36: 701.66 | CY36: 701.66 | DK36: 760.59
A37: A02.25.001.001 | B37: Видеоотоскопия | C37: 114.39 | AW37: 187.26 | BP37: 145.73 | BS37: 157.97 | BU37: 145.73 | CC37: 145.73 | CP37: 145.73 | CR37: 145.73 | CS37: 145.73
A38: A02.26.003 | B38: Офтальмоскопия | C38: 102.47 | L38: 130.55 | Z38: 130.55 | AK38: 186.7 | AL38: 130.14 | AM38: 170.61 | AO38: 187.62 | AQ38: 183.73 | AS38: 182.09 | AT38: 127.27 | AU38: 129.11 | AV38: 180.86 | AW38: 167.74 | AY38: 130.34 | BG38: 130.55 | BR38: 130.55 | BS38: 141.51 | BU38: 130.55 | BY38: 130.55 | CO38: 130.55 | CR38: 130.55 | CS38: 130.55 | CY38: 130.55 | DJ38: 130.55 | DK38: 141.51
A39: A02.26.004 | B39: Визометрия | C39: 21.49 | L39: 27.38 | M39: 27.38 | Z39: 27.38 | AK39: 39.15 | AL39: 27.29 | AM39: 35.78 | AO39: 39.35 | AQ39: 38.53 | AS39: 38.19 | AT39: 26.69 | AU39: 27.08 | AV39: 37.93 | AW39: 35.18 | AY39: 27.34 | BG39: 27.38 | BR39: 27.38 | BS39: 29.68 | BU39: 27.38 | BY39: 27.38 | DJ39: 27.38
A40: A02.26.005 | B40: Периметрия статическая | C40: 84.53 | L40: 107.69 | M40: 107.69 | X40: 107.69 | Z40: 107.69 | AK40: 154.01 | AL40: 107.35 | AM40: 140.74 | AO40: 154.77 | AQ40: 151.56 | AS40: 150.21 | AT40: 104.99 | AU40: 106.51 | AV40: 149.2 | AW40: 138.38 | AY40: 107.52 | BR40: 107.69 | BS40: 116.74 | BU40: 107.69 | BY40: 107.69 | CO40: 107.69 | CR40: 107.69 | CS40: 107.69 | CY40: 107.69 | DJ40: 107.69 | DK40: 116.74
A41: A02.26.009 | B41: Исследование цветоощущения | C41: 33.21 | L41: 42.31 | M41: 42.31 | Z41: 42.31 | AK41: 60.51 | AL41: 42.18 | AM41: 55.29 | AO41: 60.81 | AQ41: 59.55 | AS41: 59.01 | AT41: 41.25 | AU41: 41.84 | AV41: 58.62 | AW41: 54.36 | AY41: 42.24 | BR41: 42.31 | BS41: 45.86 | BU41: 42.31 | BY41: 42.31 | CR41: 42.31 | CY41: 42.31
A42: A02.26.010 | B42: Измерение угла косоглазия | C42: 71.38 | L42: 90.94 | Z42: 90.94 | AK42: 130.05 | AM42: 118.85 | AO42: 130.7 | AQ42: 127.98 | AS42: 126.84 | AU42: 89.94 | AV42: 125.99 | AW42: 116.85 | AY42: 90.8 | BR42: 90.94 | BS42: 98.58 | BY42: 90.94
A43: A02.26.014 | B43: Скиаскопия | C43: 42.95 | L43: 54.72 | M43: 54.72 | Z43: 54.72 | AJ43: 54.59 | AK43: 78.25 | AL43: 54.55 | AM43: 71.51 | AO43: 78.64 | AQ43: 77.01 | AS43: 76.32 | AT43: 53.34 | AU43: 54.12 | AV43: 75.81 | AW43: 70.31 | BR43: 54.72 | BS43: 59.31 | BU43: 54.72 | BY43: 54.72 | CR43: 54.72 | CS43: 54.72 | CY43: 54.72
A44: A02.26.015 | B44: Офтальмотонометрия | C44: 83.31 | D44: 106.14 | E44: 106.14 | L44: 106.14 | M44: 106.14 | X44: 106.14 | Y44: 106.14 | Z44: 106.14 | AB44: 106.14 | AH44: 105.89 | AI44: 105.89 | AK44: 151.79 | AL44: 105.8 | AM44: 138.71 | AN44: 149.54 | AO44: 152.54 | AP44: 105.97 | AQ44: 149.37 | AR44: 135.8 | AS44: 148.04 | AT44: 103.47 | AU44: 104.97 | AV44: 147.04 | AW44: 136.38 | AX44: 149.46 | AY44: 105.97 | BG44: 106.14 | BR44: 106.14 | BS44: 115.05 | BU44: 106.14 | BY44: 106.14 | CO44: 106.14 | CR44: 106.14 | CS44: 106.14 | CY44: 106.14 | DJ44: 106.14 | DK44: 115.05
A45: A02.26.017 | B45: Определение дефектов поверхности роговицы | C45: 141.94 | L45: 180.83 | M45: 180.83 | AK45: 258.61 | AL45: 180.26 | AM45: 236.33 | AO45: 259.89 | AQ45: 254.5 | AS45: 252.23 | AU45: 178.84 | AV45: 250.52 | AW45: 232.36 | AY45: 180.55 | BR45: 180.83 | BS45: 196.02 | BU45: 180.83 | BY45: 180.83 | CR45: 180.83 | CS45: 180.83
A46: A02.26.020 | B46: Тест Ширмера | C46: 12.9 | L46: 16.43 | M46: 16.43 | AB46: 16.43 | AK46: 23.5 | AO46: 23.62 | AQ46: 23.13 | AW46: 21.12 | BR46: 16.43 | BS46: 17.81 | BU46: 16.43 | BY46: 16.43
A47: A02.26.022 | B47: Экзофтальмометрия | C47: 140.13 | L47: 178.53 | M47: 178.53 | AK47: 255.32 | AL47: 177.97 | AQ47: 251.25 | AU47: 176.56 | AW47: 229.39 | BR47: 178.53 | BS47: 193.52 | BU47: 178.53 | BY47: 178.53 | CR47: 178.53 | CS47: 178.53
A48: A02.26.023 | B48: Исследование аккомодации | C48: 12.9 | L48: 16.43 | Z48: 16.43 | AK48: 23.5 | AL48: 16.38 | AM48: 21.48 | AO48: 23.62 | AQ48: 23.13 | AS48: 22.92 | AU48: 16.25 | AV48: 22.77 | AW48: 21.12 | AY48: 16.41 | BR48: 16.43 | BS48: 17.81 | BU48: 16.43 | BY48: 16.43 | CY48: 16.43
A49: A02.26.024 | B49: Определение характера зрения, гетерофории | C49: 78.4 | L49: 99.88 | M49: 99.88 | AB49: 99.88 | AK49: 142.84 | AM49: 130.54 | AO49: 143.55 | AQ49: 140.57 | AS49: 139.32 | AU49: 98.78 | AV49: 138.38 | AW49: 128.34 | AY49: 99.72 | BR49: 99.88 | BS49: 108.27 | BU49: 99.88 | BY49: 99.88 | CR49: 99.88 | CS49: 99.88
A50: A02.26.025 | B50: Измерение диаметра роговицы | C50: 67.36 | L50: 85.82 | AM50: 112.15 | AO50: 123.34 | AQ50: 120.78 | AS50: 119.7 | AU50: 84.87 | AV50: 118.89 | AW50: 110.27 | AY50: 85.68 | BS50: 93.02 | BU50: 85.82 | CR50: 85.82 | CS50: 85.82
A51: A02.26.026 | B51: Исследование конвергенции | C51: 78.59 | L51: 100.12 | M51: 100.12 | AK51: 143.19 | AM51: 130.85 | AO51: 143.9 | AQ51: 140.91 | AS51: 139.65 | AV51: 138.71 | AW51: 128.65 | AY51: 99.97 | BR51: 100.12 | BS51: 108.53 | BU51: 100.12 | BY51: 100.12 | CR51: 100.12 | CS51: 100.12
A52: A02.26.027 | B52: Исследование критической частоты слияния световых мельканий (КЧСМ) | C52: 85 | L52: 108.29 | AO52: 155.64 | AQ52: 152.41 | AW52: 139.15 | BR52: 108.29 | BS52: 117.39 | CS52: 108.29
A53: 03 | B53: Методы визуального обследования,требующие специальных приборов,навыков ,помощи ассистента
A54: A03.08.001.001 Ст | B54: Видеоларингоскопия | C54: 3583.18 | E54: 4564.97 | N54: 4564.97 | AL54: 4550.64 | AP54: 4557.8 | AW54: 5865.67 | AY54: 4557.8 | BS54: 4948.37 | BU54: 4564.97 | CC54: 4564.97 | CT54: 4564.97
A55: A03.08.003 Д Ст | B55: Эзофагоскопия | C55: 366.73 | L55: 467.21 | AI55: 466.11 | AK55: 668.18 | AL55: 465.75 | AN55: 658.28 | AO55: 671.48 | AP55: 466.48 | AQ55: 657.55 | AS55: 651.68 | AU55: 462.08 | AV55: 647.28 | AW55: 600.34 | AX55: 657.91 | AY55: 466.48 | BB55: 467.21 | BC55: 467.21 | BS55: 506.45
A56: A03.08.003 Ст | B56: Эзофагоскопия | C56: 456.56 | L56: 581.66 | M56: 581.66 | N56: 581.66 | U56: 630.51 | AI56: 580.29 | AK56: 831.85 | AL56: 579.83 | AM56: 760.17 | AN56: 819.53 | AO56: 835.96 | AP56: 580.74 | AQ56: 818.61 | AR56: 744.19 | AS56: 811.31 | AT56: 567.05 | AU56: 575.27 | AV56: 805.83 | AW56: 747.39 | AX56: 819.07 | AY56: 580.74 | AZ56: 750.58 | BB56: 581.66 | BC56: 581.66 | BS56: 630.51
A57: A03.08.004.003 | B57: Видеориноскопия | C57: 298.82 | N57: 380.7 | AW57: 489.17 | BP57: 380.7 | BS57: 412.67 | BU57: 380.7 | CC57: 380.7 | CT57: 380.7
A58: A03.08.005 Ст | B58: Фиброларингоскопия | C58: 1800.83 | E58: 2294.26 | M58: 2294.26 | N58: 2294.26 | AL58: 2287.05 | AP58: 2290.66 | AU58: 2269.05 | AW58: 2947.96 | AY58: 2290.66 | BS58: 2486.95 | BU58: 2294.26 | DK58: 2486.95
A59: A03.09.001 D Ст | B59: Бронхоскопия (диагностическая) | C59: 1163.32 | AL59: 1477.42 | AP59: 1479.74 | AU59: 1465.78 | AV59: 2053.26 | AW59: 1904.35 | AY59: 1479.74 | BS59: 1606.54 | BU59: 1482.07
A60: A03.09.001 Ст | B60: Бронхоскопия | C60: 930.65 | E60: 1185.65 | M60: 1185.65 | N60: 1185.65 | AI60: 1182.86 | AL60: 1181.93 | AN60: 1670.52 | AO60: 1704.02 | AP60: 1183.79 | AQ60: 1668.66 | AU60: 1172.62 | AV60: 1642.6 | AW60: 1523.47 | AY60: 1183.79 | BS60: 1285.23 | BU60: 1185.65 | DJ60: 1185.65 | DK60: 1285.23
A61: A03.09.002 Д Ст | B61: Трахеоскопия | C61: 410.6 | AL61: 521.46 | AP61: 522.28 | AU61: 517.36 | AW61: 672.15 | AY61: 522.28 | BS61: 567.04
A62: A03.09.002 Ст | B62: Трахеоскопия | C62: 1667.92 | M62: 2124.93 | N62: 2124.93 | AI62: 2119.93 | AL62: 2118.26 | AN62: 2993.92 | AP62: 2121.59 | AQ62: 2990.58 | AU62: 2101.58 | AV62: 2943.88 | AW62: 2730.39 | AY62: 2121.59 | BS62: 2303.4
A63: A03.14.001 | B63: Диагностическая лапароскопия | C63: 524.68 | AI63: 666.87 | AK63: 955.97 | AN63: 941.8 | AP63: 667.39 | AR63: 855.23 | AS63: 932.36 | AU63: 661.1 | AV63: 926.06 | AW63: 858.9 | AX63: 941.28 | BB63: 668.44 | BC63: 668.44
A64: A03.14.002 Л Ст | B64: Холедохоскопия ( дуоденоскопия + РПХГ+ ЭПСТ ) лечебная | C64: 682.03 | AI64: 866.86 | AN64: 1224.24 | AP64: 867.54 | AU64: 859.36 | AV64: 1203.78 | AW64: 1116.48
A65: A03.14.002 Ст | B65: Холедохоскопия | C65: 535.34 | AI65: 680.42 | AN65: 960.94 | AP65: 680.95 | AV65: 944.88 | AW65: 876.35 | DK65: 739.3
A66: A03.16.001 D Ст | B66: Эзофагогастродуоденоскопия (диагностическая ) | C66: 1139.07 | J66: 1451.18 | L66: 1451.18 | N66: 1451.18 | U66: 1573.06 | AI66: 1447.76 | AK66: 2075.39 | AL66: 1446.62 | AN66: 2044.63 | AO66: 2085.64 | AP66: 1448.9 | AQ66: 2042.35 | AR66: 1856.68 | AS66: 2024.13 | AU66: 1435.23 | AV66: 2010.46 | AW66: 1864.66 | AX66: 2043.49 | AY66: 1448.9 | AZ66: 1872.63 | BB66: 1451.18 | BC66: 1451.18 | BS66: 1573.06 | BU66: 1451.18 | DJ66: 1451.18
A67: A03.16.001 О Ст | B67: Эзофагогастродуоденоскопия | C67: 911.26 | AP67: 1159.12 | BS67: 1258.45 | DJ67: 1160.95
A68: A03.16.001 Ст | B68: Эзофагогастродуоденоскопия | C68: 911.26 | E68: 1160.95 | M68: 1160.95 | N68: 1160.95 | U68: 1258.45 | AB68: 1160.95 | AI68: 1158.21 | AJ68: 1158.21 | AK68: 1660.32 | AL68: 1157.3 | AM68: 1517.25 | AN68: 1635.71 | AO68: 1668.52 | AP68: 1159.12 | AQ68: 1633.89 | AR68: 1485.35 | AS68: 1619.31 | AT68: 1131.78 | AU68: 1148.19 | AV68: 1608.37 | AW68: 1491.73 | AX68: 1634.8 | AY68: 1159.12 | AZ68: 1498.11 | BB68: 1160.95 | BC68: 1160.95 | BH68: 1160.95 | BO68: 1160.95 | BS68: 1258.45 | BU68: 1160.95 | CT68: 1160.95 | DB68: 1160.95 | DK68: 1258.45
A69: A03.16.001 ДД | B69: Эзофагогастродуоденоскопия | C69: 911.26 | E69: 1160.95 | M69: 1160.95 | N69: 1160.95 | AB69: 1160.95 | AI69: 1158.21 | AJ69: 1158.21 | AK69: 1660.32 | AL69: 1157.3 | AM69: 1517.25 | AN69: 1635.71 | AO69: 1668.52 | AP69: 1159.12 | AQ69: 1633.89 | AR69: 1485.35 | AS69: 1619.31 | AT69: 1131.78 | AU69: 1148.19 | AV69: 1608.37 | AW69: 1491.73 | AX69: 1634.8 | AY69: 1159.12 | AZ69: 1498.11 | DK69: 1258.45
A70: A03.17.001 Д Ст | B70: Эзофагогастроинтестиноскопия (тонкокишечная эндоскопия) | C70: 643.54 | L70: 819.87 | AK70: 1172.53 | AN70: 1155.15 | AP70: 818.58 | AW70: 1053.47 | BB70: 819.87 | BC70: 819.87 | BS70: 888.73
A71: A03.17.001 Ст | B71: Эзофагогастроинтестиноскопия | C71: 512.49 | AK71: 933.76 | AN71: 919.92 | AO71: 938.37 | AP71: 651.89 | AV71: 904.54 | AW71: 838.95 | BB71: 652.91 | BC71: 652.91 | BO71: 652.91 | BS71: 707.75
A72: A03.18.001 D Ст | B72: Колоноскопия (диагностическая) | C72: 1703.34 | L72: 2170.06 | M72: 2170.06 | N72: 2170.06 | U72: 2352.31 | AI72: 2164.95 | AK72: 3103.49 | AL72: 2163.24 | AN72: 3057.5 | AO72: 3118.82 | AP72: 2166.65 | AQ72: 3054.09 | AU72: 2146.21 | AW72: 2788.37 | AX72: 3055.79 | AY72: 2166.65 | BS72: 2352.31 | BU72: 2170.06
A73: A03.18.001 D Н О Ст | B73: Колоноскопия (диагностическая) под наркозом | C73: 3256.49 | AP73: 4142.26 | BS73: 4497.21 | DJ73: 4148.77
A74: A03.18.001 D Н Ст | B74: Колоноскопия (диагностическая) под наркозом | C74: 3256.49 | N74: 4148.77 | U74: 4497.21 | AL74: 4135.74 | AP74: 4142.26 | AU74: 4103.18 | AW74: 5330.87 | AY74: 4142.26 | BS74: 4497.21
A75: A03.18.001 Н ДД | B75: Колоноскопия (диагностическая) под наркозом | C75: 3256.49 | N75: 4148.77 | AL75: 4135.74 | AP75: 4142.26 | AU75: 4103.18 | AW75: 5330.87 | AY75: 4142.26 | BS75: 4497.21
A76: A03.18.001 О Ст | B76: Колоноскопия | C76: 1362.68 | AP76: 1733.33 | BS76: 1881.86 | DJ76: 1736.05
A77: A03.18.001 Ст | B77: Колоноскопия | C77: 1362.68 | E77: 1736.05 | M77: 1736.05 | N77: 1736.05 | U77: 1881.86 | AB77: 1736.05 | AI77: 1731.97 | AK77: 2482.8 | AL77: 1730.6 | AN77: 2446.01 | AO77: 2495.07 | AP77: 1733.33 | AQ77: 2443.29 | AT77: 1692.45 | AU77: 1716.98 | AV77: 2405.13 | AW77: 2230.71 | AX77: 2444.65 | AY77: 1733.33 | AZ77: 2240.25 | BH77: 1736.05 | BO77: 1736.05 | BS77: 1881.86 | BU77: 1736.05 | CT77: 1736.05 | DJ77: 1736.05 | DK77: 1881.86
A78: A03.18.001 ДД | B78: Колоноскопия | C78: 1362.68 | E78: 1736.05 | M78: 1736.05 | N78: 1736.05 | AB78: 1736.05 | AI78: 1731.97 | AK78: 2482.8 | AL78: 1730.6 | AN78: 2446.01 | AO78: 2495.07 | AP78: 1733.33 | AQ78: 2443.29 | AU78: 1716.98 | AV78: 2405.13 | AW78: 2230.71 | AX78: 2444.65 | AY78: 1733.33 | AZ78: 2240.25 | DJ78: 1736.05 | DK78: 1881.86
A79: A03.18.001.004 Ст | B79: Эндосонография толстой кишки | C79: 1304.26 | E79: 1661.63 | N79: 1661.63 | U79: 1801.18 | AU79: 1643.37 | AW79: 2135.07 | AY79: 1659.02 | BS79: 1801.18 | DK79: 1801.18
A80: A03.18.001.007 Ст | B80: Колоноскопия с введением лекарственных препаратов | C80: 3256.49 | E80: 4148.77 | U80: 4497.21 | AP80: 4142.26 | BS80: 4497.21
A81: A03.19.001 Ст | B81: Аноскопия | C81: 191.61 | M81: 244.11 | N81: 244.11 | AI81: 243.54 | AK81: 349.11 | AL81: 243.34 | AM81: 319.03 | AN81: 343.94 | AQ81: 343.56 | AR81: 312.32 | AT81: 237.98 | AU81: 241.43 | AV81: 338.19 | AW81: 313.67 | AX81: 343.75 | AY81: 243.73 | BS81: 264.61 | BU81: 244.11
A82: A03.19.002 D Ст | B82: Ректороманоскопия (диагностическая) | C82: 1114.28 | L82: 1419.59 | N82: 1419.59 | U82: 1538.82 | AI82: 1416.25 | AL82: 1415.14 | AN82: 2000.13 | AO82: 2040.25 | AP82: 1417.36 | AQ82: 1997.9 | AU82: 1403.99 | AV82: 1966.7 | AW82: 1824.08 | AY82: 1417.36 | BS82: 1538.82
A83: A03.19.002 Ст | B83: Ректороманоскопия | C83: 1116.04 | E83: 1421.83 | M83: 1421.83 | N83: 1421.83 | AI83: 1418.49 | AK83: 2033.42 | AL83: 1417.37 | AM83: 1858.21 | AN83: 2003.29 | AO83: 2043.47 | AP83: 1419.6 | AQ83: 2001.06 | AR83: 1819.15 | AU83: 1406.21 | AV83: 1969.81 | AW83: 1826.96 | AX83: 2002.18 | AY83: 1419.6 | BO83: 1421.83 | BS83: 1541.25 | BU83: 1421.83 | CT83: 1421.83 | DK83: 1541.25
A84: A03.19.002 ДД | B84: Ректороманоскопия | C84: 1116.04 | E84: 1421.83 | M84: 1421.83 | N84: 1421.83 | AI84: 1418.49 | AK84: 2033.42 | AL84: 1417.37 | AM84: 1858.21 | AN84: 2003.29 | AO84: 2043.47 | AP84: 1419.6 | AQ84: 2001.06 | AR84: 1819.15 | AU84: 1406.21 | AV84: 1969.81 | AW84: 1826.96 | AX84: 2002.18 | AY84: 1419.6 | DK84: 1541.25
A85: A03.19.003 D Ст | B85: Сигмоидоскопия ( диагностическая ) | C85: 787.72 | L85: 1003.56 | AI85: 1001.19 | AL85: 1000.4 | AN85: 1413.96 | AO85: 1442.32 | AP85: 1001.98 | AQ85: 1412.38 | AU85: 992.53 | AV85: 1390.33 | AW85: 1289.5 | AX85: 1413.17 | AY85: 1001.98 | BS85: 1087.84
A86: A03.19.003 Ст | B86: Сигмоидоскопия | C86: 1116.04 | E86: 1421.83 | M86: 1421.83 | N86: 1421.83 | AI86: 1418.49 | AL86: 1417.37 | AN86: 2003.29 | AO86: 2043.47 | AP86: 1419.6 | AQ86: 2001.06 | AU86: 1406.21 | AV86: 1969.81 | AW86: 1826.96 | AX86: 2002.18 | AY86: 1419.6 | BO86: 1421.83 | BS86: 1541.25 | CT86: 1421.83
A87: A03.20.001 Cт | B87: Кольпоскопия | C87: 620.92 | N87: 791.05 | S87: 791.05 | AK87: 1131.32 | AL87: 788.57 | AO87: 1136.9 | AR87: 1012.1 | AS87: 1103.37 | AT87: 771.18 | AX87: 1113.93 | BD87: 791.05 | BS87: 857.49 | BU87: 791.05 | CM87: 1100.27 | CU87: 857.49
A88: A03.21.001 | B88: Диафаноскопия | C88: 132.35 | L88: 168.61 | AN88: 237.57 | AV88: 233.6 | AW88: 216.66 | CR88: 168.61 | CS88: 168.61
A89: A03.25.001 | B89: Вестибулометрия | C89: 413.32 | AT89: 513.34 | BP89: 526.57 | CC89: 526.57 | CP89: 526.57
A90: A03.25.002 | B90: Проведение калорической пробы | C90: 134.7 | AW90: 220.5 | BS90: 186.02 | CC90: 171.61
A91: A03.25.003 | B91: Исследование органов слуха с помощью камертона | C91: 300.38 | L91: 382.68 | AO91: 550 | AW91: 491.72 | BP91: 382.68 | BS91: 414.82 | BU91: 382.68 | CC91: 382.68 | CP91: 382.68 | CT91: 382.68
A92: A03.26.001 | B92: Биомикроскопия глаза | C92: 63.4 | L92: 80.77 | M92: 80.77 | Z92: 80.77 | AB92: 80.77 | AL92: 80.52 | AV92: 111.9 | AW92: 103.79 | BG92: 80.77 | BR92: 80.77 | BS92: 87.56 | BU92: 80.77 | BY92: 80.77 | CL92: 80.77 | CM92: 112.34 | CR92: 80.77 | CS92: 80.77 | CY92: 80.77 | DJ92: 80.77
A93: A03.26.002 | B93: Гониоскопия | C93: 169.07 | L93: 215.4 | M93: 215.4 | AW93: 276.77 | BR93: 215.4 | BS93: 233.49 | BU93: 215.4 | BY93: 215.4 | CR93: 215.4 | CS93: 215.4
A94: A03.26.003 | B94: Осмотр периферии глазного дна трехзеркальной линзой Гольдмана | C94: 110.72 | L94: 141.06 | M94: 141.06 | Z94: 141.06 | AQ94: 198.52 | AW94: 181.25 | BR94: 141.06 | BS94: 152.9 | BU94: 141.06 | BY94: 141.06 | CR94: 141.06 | CS94: 141.06
A95: A03.26.005.001 | B95: Биомикрофотография глазного дна с использованием фундус-камеры | C95: 314.22
A96: A03.26.008 | B96: Рефрактометрия | C96: 155.74 | L96: 198.41 | M96: 198.41 | Z96: 198.41 | AQ96: 279.24 | AV96: 274.88 | AW96: 254.95 | BG96: 198.41 | BR96: 198.41 | BS96: 215.08 | BU96: 198.41 | BY96: 198.41 | CL96: 198.41 | CM96: 275.97 | CR96: 198.41 | CS96: 198.41 | DJ96: 198.41 | DK96: 215.08
A97: A03.26.011 | B97: Кератопахометрия | C97: 167.6 | L97: 213.52 | M97: 213.52 | AQ97: 300.51 | AW97: 274.36 | BR97: 213.52 | BS97: 231.46 | BY97: 213.52
A98: A03.26.015 | B98: Тонография | C98: 111.69 | M98: 142.29 | AQ98: 200.26 | AV98: 197.13 | AW98: 182.84 | DK98: 154.24
A99: A03.26.018 | B99: Биомикроскопия глазного дна | C99: 103.1 | M99: 131.35 | Z99: 131.35 | AQ99: 184.86 | AW99: 168.77 | BG99: 131.35 | BR99: 131.35 | BS99: 142.38 | BU99: 131.35 | BY99: 131.35
A100: A03.26.019 | B100: Оптическое исследование сетчатки с помощью компьютерного анализатора | C100: 429.02 | M100: 546.57 | AW100: 702.31 | BR100: 546.57 | BS100: 592.48 | BY100: 546.57 | CO100: 546.57
A101: A03.26.019.003 | B101: Оптическое исследование головки зрительного нерва и слоя нервных волокон с помощью компьютерного анализатора | C101: 413.05 | M101: 526.23 | AW101: 676.16 | BR101: 526.23 | BS101: 570.42 | BY101: 526.23
A102: A03.26.020 | B102: Компьютерная периметрия | C102: 141.22 | M102: 179.91 | Z102: 179.91 | AI102: 179.49 | BS102: 195.02 | BU102: 179.91 | CO102: 179.91
A103: A03.28.001 Ст | B103: Цистоскопия | C103: 1415.95 | L103: 1803.92 | M103: 1803.92 | N103: 1803.92 | AI103: 1799.67 | AL103: 1798.26 | AN103: 2541.63 | AO103: 2592.6 | AP103: 1801.09 | AU103: 1784.1 | AW103: 2317.91 | BO103: 1803.92 | BS103: 1955.43 | BU103: 1803.92 | CG103: 1803.92 | CR103: 1803.92 | CS103: 1803.92
A104: A03.28.014 | B104: Рефлексометрия | C104: 133.22 | L104: 169.72 | AW104: 218.08
A105: A03.30.006.006 Ст | B105: Узкоспектральное NBI-исследование органов желудочно-кишечного тракта | C105: 3693.84 | N105: 4705.95 | U105: 5101.19 | BS105: 5101.19 | DK105: 5101.19
A106: A03.30.007 Ст | B106: Хромоскопия, контрастное исследование органов желудочно-кишечного тракта | C106: 3693.84 | N106: 4705.95 | U106: 5101.19 | AP106: 4698.56 | BS106: 5101.19 | BU106: 4705.95 | CT106: 4705.95 | DK106: 5101.19
A107: 04 | B107: Регистрация звуковых сигналов, издаваемых или отражающихся органами или тканями с их последующей расшифровкой и описанием
A108: A04.01.001 | B108: Ультразвуковое исследование мягких тканей (одна анатомическая зона) | C108: 144.56 | D108: 184.17 | E108: 184.17 | J108: 184.17 | L108: 184.17 | M108: 184.17 | N108: 184.17 | T108: 184.17 | U108: 199.64 | X108: 184.17 | Y108: 184.17 | Z108: 184.17 | AA108: 184.17 | AB108: 184.17 | AH108: 183.74 | AI108: 183.74 | AK108: 263.39 | AL108: 183.59 | AM108: 240.69 | AN108: 259.49 | AO108: 264.69 | AP108: 183.88 | AQ108: 259.2 | AR108: 235.63 | AS108: 256.88 | AT108: 179.54 | AU108: 182.15 | AV108: 255.15 | AW108: 236.64 | AY108: 183.88 | AZ108: 237.66 | BB108: 184.17 | BC108: 184.17 | BJ108: 184.17 | BN108: 184.17 | CC108: 184.17 | CL108: 184.17 | CM108: 256.16 | CQ108: 184.17 | CR108: 184.17 | CS108: 184.17 | CT108: 184.17 | CV108: 184.17 | CY108: 184.17
A109: A04.01.001.001 | B109: Эластография мягких тканей | C109: 3540.89 | U109: 4889.97 | BL109: 4511.09 | BN109: 4511.09 | BS109: 4889.97 | BZ109: 4511.09 | CC109: 4511.09 | CU109: 4889.97
A110: A04.01.001.002 | B110: Ультразвуковое исследование мягких тканей (одна анатомическая зона) с контрастным усилением | C110: 2859.69 | BN110: 3643.25
A111: A04.01.002 | B111: Ультразвуковое исследование кожи (одна анатомическая зона) | C111: 120.62 | T111: 153.67 | U111: 166.58 | Y111: 153.67 | AO111: 220.86 | AQ111: 216.27 | AT111: 149.81 | BB111: 153.67 | BC111: 153.67 | BK111: 153.67 | BN111: 153.67 | CC111: 153.67 | CL111: 153.67 | CM111: 213.74 | CQ111: 153.67 | CR111: 153.67 | CS111: 153.67 | CT111: 153.67
A112: A04.01.002.001 | B112: Эластография кожи | C112: 2700.93 | U112: 3729.98 | BL112: 3440.98 | BN112: 3440.98 | BS112: 3729.98 | BZ112: 3440.98 | CC112: 3440.98
A113: A04.01.003 | B113: Ультразвуковое исследование послеоперационного рубца | C113: 332.73 | E113: 423.9 | N113: 423.9 | Z113: 423.9 | AA113: 423.9 | AL113: 422.57 | AO113: 609.23 | AQ113: 596.58 | AT113: 413.25 | AU113: 419.24 | BJ113: 423.9 | BN113: 423.9 | BZ113: 423.9 | CB113: 423.9 | CC113: 423.9 | CK113: 423.9 | CL113: 423.9 | CM113: 589.6 | CT113: 423.9 | CU113: 459.5 | CV113: 423.9
A114: A04.03.001 | B114: Ультразвуковое исследование костей | C114: 258.82 | Z114: 329.74 | AQ114: 464.06 | BK114: 329.74 | BN114: 329.74 | CK114: 329.74 | CQ114: 329.74 | CR114: 329.74 | CS114: 329.74 | CT114: 329.74
A115: A04.03.002 | B115: Ультразвуковое исследование позвоночника | C115: 258.82 | AQ115: 464.06 | BK115: 329.74 | BN115: 329.74 | CK115: 329.74 | CQ115: 329.74 | CR115: 329.74 | CS115: 329.74 | CT115: 329.74
A116: A04.03.003 | B116: Ультразвуковая денситометрия | C116: 182.61 | BK116: 232.65 | BN116: 232.65 | CQ116: 232.65 | CR116: 232.65
A117: A04.04.001 | B117: Ультразвуковое исследование сустава | C117: 258.82 | D117: 329.74 | E117: 329.74 | L117: 329.74 | M117: 329.74 | N117: 329.74 | T117: 329.74 | Z117: 329.74 | AA117: 329.74 | AL117: 328.7 | AN117: 464.58 | AO117: 473.9 | AP117: 329.22 | AQ117: 464.06 | AR117: 421.88 | AT117: 321.45 | AU117: 326.11 | AW117: 423.69 | BB117: 329.74 | BC117: 329.74 | BJ117: 329.74 | BK117: 329.74 | BN117: 329.74 | BZ117: 329.74 | CA117: 329.74 | CC117: 329.74 | CK117: 329.74 | CL117: 329.74 | CM117: 458.63 | CQ117: 329.74 | CR117: 329.74 | CS117: 329.74 | CT117: 329.74 | CU117: 357.43
A118: A04.04.001.001 | B118: Ультразвуковое исследование тазобедренного сустава | C118: 89.7 | N118: 114.28 | AB118: 114.28 | AL118: 113.92
A119: A04.06.001 | B119: Ультразвуковое исследование селезенки | C119: 118.35 | D119: 150.78 | E119: 150.78 | J119: 150.78 | K119: 150.78 | L119: 150.78 | M119: 150.78 | N119: 150.78 | T119: 150.78 | U119: 163.44 | X119: 150.78 | Y119: 150.78 | Z119: 150.78 | AA119: 150.78 | AB119: 150.78 | AH119: 150.42 | AI119: 150.42 | AK119: 215.63 | AL119: 150.3 | AM119: 197.05 | AN119: 212.44 | AO119: 216.7 | AP119: 150.54 | AQ119: 212.2 | AR119: 192.91 | AS119: 210.31 | AT119: 146.99 | AU119: 149.12 | AV119: 208.89 | AW119: 193.74 | AX119: 212.32 | AY119: 150.54 | BB119: 150.78 | BC119: 150.78 | BJ119: 150.78 | BK119: 150.78 | BN119: 150.78 | BU119: 150.78 | BZ119: 150.78 | CB119: 150.78 | CC119: 150.78 | CF119: 150.78 | CK119: 150.78 | CL119: 150.78 | CM119: 209.72 | CQ119: 150.78 | CR119: 150.78 | CS119: 150.78 | CT119: 150.78 | CU119: 163.44 | CV119: 150.78 | CY119: 150.78 | DK119: 163.44
A120: A04.06.001.001 | B120: Эластография селезенки | C120: 2700.93 | U120: 3729.98 | BL120: 3440.98 | BN120: 3440.98 | BZ120: 3440.98
A121: A04.06.001.002 | B121: Ультразвуковое исследование селезенки с контрастным усилением | C121: 2859.69 | U121: 3949.23 | AQ121: 5127.42 | AU121: 3603.21 | BN121: 3643.25
A122: A04.06.002 | B122: Ультразвуковое исследование лимфатических узлов (одна анатомическая зона) | C122: 144.56 | D122: 184.17 | E122: 184.17 | K122: 184.17 | L122: 184.17 | M122: 184.17 | N122: 184.17 | T122: 184.17 | U122: 199.64 | Y122: 184.17 | Z122: 184.17 | AA122: 184.17 | AB122: 184.17 | AH122: 183.74 | AI122: 183.74 | AK122: 263.39 | AL122: 183.59 | AM122: 240.69 | AN122: 259.49 | AO122: 264.69 | AP122: 183.88 | AQ122: 259.2 | AR122: 235.63 | AS122: 256.88 | AT122: 179.54 | AU122: 182.15 | AV122: 255.15 | AW122: 236.64 | AX122: 259.34 | AY122: 183.88 | AZ122: 237.66 | BB122: 184.17 | BC122: 184.17 | BJ122: 184.17 | BN122: 184.17 | BZ122: 184.17 | CB122: 184.17 | CC122: 184.17 | CF122: 184.17 | CK122: 184.17 | CL122: 184.17 | CM122: 256.16 | CQ122: 184.17 | CR122: 184.17 | CS122: 184.17 | CT122: 184.17 | CV122: 184.17
A123: A04.06.002 О | B123: Ультразвуковое исследование лимфатических узлов (одна анатомическая зона) | C123: 144.56 | AQ123: 259.2 | BN123: 184.17 | BZ123: 184.17 | DJ123: 184.17
A124: A04.07.002 | B124: Ультразвуковое исследование слюнных желез | C124: 167.76 | L124: 213.73 | N124: 213.73 | T124: 213.73 | Z124: 213.73 | AA124: 213.73 | AK124: 305.66 | AL124: 213.06 | AO124: 307.17 | AQ124: 300.79 | AS124: 298.11 | AT124: 208.36 | AU124: 211.38 | AZ124: 275.8 | BK124: 213.73 | BN124: 213.73 | CC124: 213.73 | CL124: 213.73 | CM124: 297.27 | CR124: 213.73 | CS124: 213.73 | CV124: 213.73
A125: А04.08.002 | B125: Ульразвуковое ииследование гортани | C125: 308.95 | N125: 393.6
A126: A04.09.001 | B126: Ультразвуковое исследование плевральной полости | C126: 144.56 | E126: 184.17 | L126: 184.17 | M126: 184.17 | N126: 184.17 | T126: 184.17 | U126: 199.64 | Y126: 184.17 | Z126: 184.17 | AA126: 184.17 | AL126: 183.59 | AO126: 264.69 | AQ126: 259.2 | AS126: 256.88 | AT126: 179.54 | AU126: 182.15 | AW126: 236.64 | AZ126: 237.66 | BK126: 184.17 | BN126: 184.17 | CC126: 184.17 | CK126: 184.17 | CL126: 184.17 | CM126: 256.16 | CQ126: 184.17 | CR126: 184.17 | CS126: 184.17 | CT126: 184.17 | CV126: 184.17
A127: A04.09.002 | B127: Ультразвуковое исследование легких | C127: 182.61 | T127: 232.65 | U127: 252.18 | Y127: 232.65 | AH127: 232.1 | AI127: 232.1 | AN127: 327.78 | AO127: 334.36 | AP127: 232.28 | AQ127: 327.42 | AT127: 226.8 | AV127: 322.31 | AW127: 298.93 | AX127: 327.6 | AY127: 232.28 | BK127: 232.65 | BN127: 232.65 | CC127: 232.65 | CK127: 232.65 | CL127: 232.65 | CM127: 323.58 | DK127: 252.18
A128: A04.09.003Ст | B128: Эндосонографическое исследование трахеи и бронхов | C128: 648.31 | E128: 825.95 | N128: 825.95 | AQ128: 1162.42 | AT128: 805.2 | BN128: 825.95
A129: A04.10.002 Ст | B129: Эхокардиография | C129: 541.2 | D129: 689.49 | E129: 689.49 | J129: 689.49 | K129: 689.49 | L129: 689.49 | M129: 689.49 | N129: 689.49 | P129: 689.49 | Y129: 689.49 | Z129: 689.49 | AB129: 689.49 | AI129: 687.87 | AJ129: 687.87 | AL129: 687.32 | AN129: 971.45 | AO129: 990.94 | AP129: 688.41 | AQ129: 970.37 | AR129: 882.16 | AS129: 961.71 | AT129: 672.17 | AU129: 681.91 | AV129: 955.22 | AW129: 885.94 | AZ129: 889.73 | BN129: 689.49 | BS129: 747.4 | BU129: 689.49 | CB129: 689.49 | CK129: 689.49 | CL129: 689.49 | CM129: 959.01 | CR129: 689.49 | CS129: 689.49 | CT129: 689.49 | CU129: 747.4 | DB129: 689.49 | DK129: 747.4
A130: A04.10.002 ДД | B130: Эхокардиография | C130: 541.2 | J130: 689.49 | K130: 689.49 | L130: 689.49 | N130: 689.49 | AB130: 689.49 | AL130: 687.32 | AN130: 971.45 | AO130: 990.94 | AP130: 688.41 | AQ130: 970.37 | AR130: 882.16 | AS130: 961.71 | AT130: 672.17 | AV130: 955.22
A131: A04.10.003 Ст | B131: Эхокардиография с контрастным усилением | C131: 2812.07 | N131: 3582.58 | AU131: 3543.21 | BN131: 3582.58
A132: A04.12.001 Ст | B132: Ультразвуковая допплерография артерий верхних конечностей | C132: 189.32 | D132: 241.19 | E132: 241.19 | M132: 241.19 | N132: 241.19 | T132: 241.19 | X132: 241.19 | Z132: 241.19 | AL132: 240.44 | AO132: 346.64 | AP132: 240.82 | AQ132: 339.45 | AR132: 308.59 | AT132: 235.14 | AU132: 238.54 | AW132: 309.92 | BB132: 241.19 | BC132: 241.19 | BN132: 241.19 | BU132: 241.19 | CK132: 241.19 | CL132: 241.19 | CM132: 335.48 | CR132: 241.19 | CS132: 241.19 | CT132: 241.19 | DK132: 261.45
A133: A04.12.001.001 Ст | B133: Ультразвуковая допплерография артерий нижних конечностей | C133: 630.18 | D133: 802.85 | E133: 802.85 | M133: 802.85 | N133: 802.85 | T133: 802.85 | Y133: 802.85 | Z133: 802.85 | AL133: 800.33 | AN133: 1131.17 | AO133: 1153.86 | AP133: 801.59 | AQ133: 1129.91 | AR133: 1027.19 | AT133: 782.68 | AU133: 794.03 | AW133: 1031.6 | BB133: 802.85 | BC133: 802.85 | BJ133: 802.85 | BN133: 802.85 | BS133: 870.28 | BU133: 802.85 | CA133: 802.85 | CK133: 802.85 | CL133: 802.85 | CM133: 1116.68 | CQ133: 802.85 | CR133: 802.85 | CS133: 802.85 | CT133: 802.85 | CU133: 870.28 | DK133: 870.28
A134: A04.12.001.002 Ст | B134: Дуплексное сканирование артерий почек | C134: 759.89 | E134: 968.1 | L134: 968.1 | M134: 968.1 | N134: 968.1 | X134: 968.1 | Z134: 968.1 | AL134: 965.06 | AP134: 966.58 | AT134: 943.78 | AW134: 1243.94 | BB134: 968.1 | BC134: 968.1 | BJ134: 968.1 | BN134: 968.1 | BS134: 1049.41 | BU134: 968.1 | CB134: 968.1 | CK134: 968.1 | CL134: 968.1 | CM134: 1346.53 | CQ134: 968.1 | CR134: 968.1 | CS134: 968.1 | CT134: 968.1 | CU134: 1049.41 | DK134: 1049.41
A135: A04.12.001.009 Ст | B135: Ультразвуковое исследование брюшной аорты с контрастным усилением | C135: 3181.18 | N135: 4052.82 | AP135: 4046.46 | BN135: 4052.82 | CQ135: 4052.82 | CS135: 4052.82
A136: A04.12.001.010 Ст | B136: Ультразвуковое исследование сосудов шеи с контрастным усилением | C136: 3181.18 | N136: 4052.82 | AP136: 4046.46 | BN136: 4052.82 | CQ136: 4052.82 | CS136: 4052.82
A137: A04.12.001.011 Ст | B137: Ультразвуковое исследование сосудов печени с контрастным усилением | C137: 3181.18 | N137: 4052.82 | AP137: 4046.46 | BN137: 4052.82 | CQ137: 4052.82 | CS137: 4052.82
A138: A04.12.001.012 Ст | B138: Ультразвуковое исследование сонных артерий | C138: 394.41 | E138: 502.48 | J138: 502.48 | N138: 502.48 | T138: 502.48 | Z138: 502.48 | AL138: 500.9 | AO138: 722.16 | AP138: 501.69 | AQ138: 707.18 | AR138: 642.89 | AT138: 489.86 | BB138: 502.48 | BC138: 502.48 | BN138: 502.48 | BS138: 544.68 | CA138: 502.48 | CB138: 502.48 | CK138: 502.48 | CQ138: 502.48 | CR138: 502.48 | CS138: 502.48 | CT138: 502.48 | CU138: 544.68 | DB138: 502.48
A139: A04.12.001.013 Ст | B139: Ультразвуковое исследование позвоночных артерий | C139: 394.41 | J139: 502.48 | N139: 502.48 | Z139: 502.48 | AL139: 500.9 | AP139: 501.69 | AQ139: 707.18 | AR139: 642.89 | BB139: 502.48 | BC139: 502.48 | BN139: 502.48 | BS139: 544.68 | CA139: 502.48 | CB139: 502.48 | CK139: 502.48 | CQ139: 502.48 | CR139: 502.48 | CS139: 502.48 | CT139: 502.48 | CU139: 544.68
A140: A04.12.002 Ст | B140: Ультразвуковая допплерография сосудов (артерий и вен) верхних конечностей | C140: 415.46 | E140: 529.3 | L140: 529.3 | M140: 529.3 | T140: 529.3 | AL140: 527.63 | AN140: 745.75 | AO140: 760.71 | AP140: 528.47 | AQ140: 744.92 | AR140: 677.2 | AT140: 516 | AU140: 523.48 | AV140: 733.29 | AW140: 680.11 | BB140: 529.3 | BC140: 529.3 | BN140: 529.3 | BS140: 573.75 | BU140: 529.3 | CB140: 529.3 | CK140: 529.3 | CL140: 529.3 | CM140: 736.2 | CQ140: 529.3 | CR140: 529.3 | CS140: 529.3 | CT140: 529.3 | DK140: 573.75
A141: A04.12.002.001 Ст | B141: Ультразвуковая допплерография сосудов (артерий и вен) нижних конечностей | C141: 1260.33 | D141: 1605.66 | E141: 1605.66 | M141: 1605.66 | N141: 1605.66 | T141: 1605.66 | Y141: 1605.66 | AB141: 1605.66 | AL141: 1600.62 | AP141: 1603.14 | AQ141: 2259.77 | AR141: 2054.34 | AT141: 1565.33 | AU141: 1588.02 | AW141: 2063.16 | BB141: 1605.66 | BC141: 1605.66 | BJ141: 1605.66 | BN141: 1605.66 | BS141: 1740.52 | BU141: 1605.66 | CA141: 1605.66 | CB141: 1605.66 | CF141: 1605.66 | CK141: 1605.66 | CL141: 1605.66 | CM141: 2233.3 | CQ141: 1605.66 | CR141: 1605.66 | CS141: 1605.66 | CT141: 1605.66 | CU141: 1740.52 | DK141: 1740.52
A142: A04.12.002.002 Д Ст | B142: Ультразвуковая допплерография вен нижних конечностей для детей | C142: 859.69 | AU142: 1083.21 | BJ142: 1095.25 | BN142: 1095.25 | BS142: 1187.23 | CF142: 1095.25 | CK142: 1095.25 | CL142: 1095.25 | CM142: 1523.37 | DJ142: 1095.25
A143: A04.12.002.002 Ст | B143: Ультразвуковая допплерография вен нижних конечностей | C143: 630.18 | D143: 802.85 | E143: 802.85 | M143: 802.85 | N143: 802.85 | T143: 802.85 | X143: 802.85 | Y143: 802.85 | AL143: 800.33 | AN143: 1131.17 | AP143: 801.59 | AQ143: 1129.91 | AR143: 1027.19 | AT143: 782.68 | AU143: 794.03 | AW143: 1031.6 | AY143: 801.59 | BB143: 802.85 | BC143: 802.85 | BJ143: 802.85 | BN143: 802.85 | BS143: 870.28 | BU143: 802.85 | CF143: 802.85 | CK143: 802.85 | CL143: 802.85 | CM143: 1116.68 | CQ143: 802.85 | CR143: 802.85 | CS143: 802.85 | CT143: 802.85 | CU143: 870.28 | DK143: 870.28
A144: A04.12.002.003 Ст | B144: Ультразвуковая допплерография вен верхних конечностей | C144: 189.32 | D144: 241.19 | E144: 241.19 | M144: 241.19 | N144: 241.19 | T144: 241.19 | X144: 241.19 | Y144: 241.19 | AL144: 240.44 | AP144: 240.82 | AQ144: 339.45 | AR144: 308.59 | AT144: 235.14 | AU144: 238.54 | AW144: 309.92 | AY144: 240.82 | BB144: 241.19 | BC144: 241.19 | BN144: 241.19 | BS144: 261.45 | BU144: 241.19 | CK144: 241.19 | CQ144: 241.19 | CR144: 241.19 | CS144: 241.19 | CT144: 241.19 | DK144: 261.45
A145: A04.12.003 Ст | B145: Дуплексное сканирование аорты | C145: 270.83 | D145: 345.04 | E145: 345.04 | M145: 345.04 | N145: 345.04 | Y145: 345.04 | Z145: 345.04 | AL145: 343.95 | AP145: 344.5 | AR145: 441.45 | AT145: 336.37 | AU145: 341.25 | AW145: 443.35 | AY145: 344.5 | BB145: 345.04 | BC145: 345.04 | BN145: 345.04 | BS145: 374.02 | BU145: 345.04 | CB145: 345.04 | CK145: 345.04 | CL145: 345.04 | CM145: 479.91 | CQ145: 345.04 | CR145: 345.04 | CS145: 345.04 | CT145: 345.04 | DK145: 374.02
A146: A04.12.004 Ст | B146: Внутрисосудистое ультразвуковое исследование сосудистой стенки | C146: 270.37 | L146: 344.45 | AP146: 343.91 | AW146: 442.6 | BB146: 344.45 | BC146: 344.45 | BN146: 344.45 | CQ146: 344.45 | CR146: 344.45 | CS146: 344.45 | DK146: 373.38
A147: A04.12.005 Ст | B147: Дуплексное сканирование сосудов (артерий и вен) верхних конечностей | C147: 270.37 | D147: 344.45 | L147: 344.45 | N147: 344.45 | AL147: 343.37 | AP147: 343.91 | AQ147: 484.77 | AT147: 335.8 | AW147: 442.6 | BB147: 344.45 | BC147: 344.45 | BN147: 344.45 | BS147: 373.38 | CK147: 344.45 | CQ147: 344.45 | CR147: 344.45 | CS147: 344.45 | CT147: 344.45 | DK147: 373.38
A148: A04.12.005.001 Ст | B148: Дуплексное сканирование артерий нижних конечностей | C148: 287.46 | D148: 366.22 | L148: 366.22 | N148: 366.22 | AL148: 365.07 | AQ148: 515.42 | AT148: 357.03 | AW148: 470.57 | BB148: 366.22 | BC148: 366.22 | BN148: 366.22 | BS148: 396.98 | CK148: 366.22 | CQ148: 366.22 | CR148: 366.22 | CS148: 366.22 | CT148: 366.22
A149: A04.12.005.002 Ст | B149: Дуплексное сканирование артерий верхних конечностей | C149: 281.98 | D149: 359.24 | L149: 359.24 | N149: 359.24 | X149: 359.24 | AL149: 358.11 | AP149: 358.68 | AQ149: 505.59 | AT149: 350.22 | AW149: 461.6 | BB149: 359.24 | BC149: 359.24 | BN149: 359.24 | BS149: 389.41 | BU149: 359.24 | CK149: 359.24 | CQ149: 359.24 | CR149: 359.24 | CS149: 359.24 | CT149: 359.24 | DK149: 389.41
A150: A04.12.005.003 Ст | B150: Дуплексное сканирование брахиоцефальных артерий с цветным допплеровским картированием кровотока | C150: 541.2 | D150: 689.49 | E150: 689.49 | K150: 689.49 | L150: 689.49 | M150: 689.49 | N150: 689.49 | X150: 689.49 | Y150: 689.49 | Z150: 689.49 | AB150: 689.49 | AJ150: 687.87 | AL150: 687.32 | AM150: 901.1 | AP150: 688.41 | AQ150: 970.37 | AR150: 882.16 | AT150: 672.17 | AU150: 681.91 | AW150: 885.94 | BB150: 689.49 | BC150: 689.49 | BN150: 689.49 | BS150: 747.4 | BU150: 689.49 | CA150: 689.49 | CK150: 689.49 | CQ150: 689.49 | CR150: 689.49 | CS150: 689.49 | CT150: 689.49 | DK150: 747.4
A151: A04.12.005.003 ДД | B151: Дуплексное сканирование брахиоцефальных артерий с цветным допплеровским картированием кровотока | C151: 541.2 | D151: 689.49 | E151: 689.49 | K151: 689.49 | L151: 689.49 | M151: 689.49 | N151: 689.49 | X151: 689.49 | Y151: 689.49 | Z151: 689.49 | AB151: 689.49 | AJ151: 687.87 | AL151: 687.32 | AM151: 901.1 | AP151: 688.41 | AQ151: 970.37 | AR151: 882.16 | AT151: 672.17 | AU151: 681.91 | AW151: 885.94 | BB151: 689.49 | BC151: 689.49 | CL151: 689.49 | CM151: 959.01 | CR151: 689.49
A152: A04.12.005.004 Ст | B152: Дуплексное сканирование вен верхних конечностей | C152: 1001.69 | D152: 1276.15 | L152: 1276.15 | N152: 1276.15 | AL152: 1272.15 | AP152: 1274.15 | AU152: 1262.13 | BB152: 1276.15 | BC152: 1276.15 | BN152: 1276.15 | BS152: 1383.33 | CF152: 1276.15 | CK152: 1276.15 | CL152: 1276.15 | CM152: 1774.99 | CQ152: 1276.15 | CR152: 1276.15 | CS152: 1276.15 | CT152: 1276.15 | CU152: 1383.33 | DK152: 1383.33
A153: A04.12.005.008 Ст | B153: Ультрозвуковая доплерография брахиоцефальных артерий | C153: 1001.69 | L153: 1276.15 | N153: 1276.15 | AL153: 1272.15 | AQ153: 1796.03 | AU153: 1262.13 | AW153: 1639.77 | BB153: 1276.15 | BC153: 1276.15 | BJ153: 1276.15 | BN153: 1276.15 | BS153: 1383.33 | BU153: 1276.15 | CA153: 1276.15 | CB153: 1276.15 | CF153: 1276.15 | CK153: 1276.15 | CL153: 1276.15 | CM153: 1774.99 | CQ153: 1276.15 | CR153: 1276.15 | CU153: 1383.33
A154: A04.12.006 Ст | B154: Дуплексное сканирование сосудов (артерий и вен) нижних конечностей | C154: 270.37 | D154: 344.45 | L154: 344.45 | N154: 344.45 | X154: 344.45 | AL154: 343.37 | AM154: 450.17 | AP154: 343.91 | AQ154: 484.77 | AT154: 335.8 | AW154: 442.6 | BB154: 344.45 | BC154: 344.45 | BN154: 344.45 | BS154: 373.38 | CR154: 344.45 | CS154: 344.45 | CT154: 344.45 | DK154: 373.38
A155: A04.12.007 Ст | B155: Ультразвуковая допплерография сосудов глаза | C155: 270.37 | L155: 344.45 | BN155: 344.45 | BS155: 373.38 | CK155: 344.45
A156: A04.12.008 Ст | B156: Дуплексное сканирование сосудов мошонки и полового члена | C156: 270.37 | L156: 344.45 | BB156: 344.45 | BC156: 344.45 | BN156: 344.45 | BS156: 373.38 | CK156: 344.45 | CT156: 344.45
A157: A04.12.008.001 Ст | B157: Ультразвуковое исследование полового члена с допплерометрией | C157: 1167.43 | BS157: 1612.22 | CB157: 1487.31
A158: A04.12.008.002 Ст | B158: УЗДГ- оценка пенильного кровотока (кавернозодопплерография) | C158: 2522.5 | CB158: 3213.67
A159: A04.12.012 Ст | B159: Дуплексное сканирование сосудов печени | C159: 120.12 | L159: 153.03 | Z159: 153.03 | AR159: 195.8 | AT159: 149.19 | AW159: 196.64 | BN159: 153.03 | CK159: 153.03 | CT159: 153.03
A160: A04.12.015 Ст | B160: Триплексное сканирование вен | C160: 284.72 | D160: 362.73 | AP160: 362.16 | AW160: 466.09 | BN160: 362.73 | CR160: 362.73 | CS160: 362.73 | CT160: 362.73 | DK160: 393.2
A161: A04.12.017 Ст | B161: Дуплексное сканирование сосудов щитовидной железы | C161: 270.37 | L161: 344.45 | AW161: 442.6 | BB161: 344.45 | BC161: 344.45 | BN161: 344.45
A162: A04.12.024 Ст | B162: Ультразвуковая допплерография маточно-плацентарного кровотока | C162: 499.45 | BN162: 636.3 | CZ162: 636.3
A163: A04.14.001 | B163: Ультразвуковое исследование печени | C163: 144.56 | E163: 184.17 | J163: 184.17 | K163: 184.17 | L163: 184.17 | M163: 184.17 | N163: 184.17 | T163: 184.17 | U163: 199.64 | X163: 184.17 | Y163: 184.17 | Z163: 184.17 | AA163: 184.17 | AB163: 184.17 | AH163: 183.74 | AI163: 183.74 | AJ163: 183.74 | AK163: 263.39 | AL163: 183.59 | AM163: 240.69 | AN163: 259.49 | AO163: 264.69 | AP163: 183.88 | AQ163: 259.2 | AR163: 235.63 | AS163: 256.88 | AT163: 179.54 | AU163: 182.15 | AV163: 255.15 | AW163: 236.64 | AX163: 259.34 | AY163: 183.88 | AZ163: 237.66 | BB163: 184.17 | BC163: 184.17 | BJ163: 184.17 | BK163: 184.17 | BN163: 184.17 | BU163: 184.17 | CB163: 184.17 | CC163: 184.17 | CF163: 184.17 | CK163: 184.17 | CL163: 184.17 | CM163: 256.16 | CQ163: 184.17 | CR163: 184.17 | CS163: 184.17 | CT163: 184.17 | CU163: 199.64 | CV163: 184.17 | CY163: 184.17 | DK163: 199.64
A164: A04.14.001 О | B164: Ультразвуковое исследование печени | C164: 144.56 | AA164: 184.17 | AO164: 264.69 | AQ164: 259.2 | BN164: 184.17 | DJ164: 184.17
A165: A04.14.001.005 | B165: Эластометрия печени | C165: 2700.93 | N165: 3440.98 | U165: 3729.98 | BH165: 3440.98 | BL165: 3440.98 | BN165: 3440.98 | BZ165: 3440.98 | CU165: 3729.98
A166: A04.14.001.006 | B166: Ультразвуковое исследование печени с контрастным усилением | C166: 2859.69 | AS166: 5081.67 | BN166: 3643.25 | DJ166: 3643.25
A167: A04.14.002 | B167: Ультразвуковое исследование желчного пузыря и протоков | C167: 144.56 | D167: 184.17 | E167: 184.17 | J167: 184.17 | K167: 184.17 | L167: 184.17 | M167: 184.17 | N167: 184.17 | T167: 184.17 | U167: 199.64 | X167: 184.17 | Y167: 184.17 | Z167: 184.17 | AA167: 184.17 | AB167: 184.17 | AH167: 183.74 | AI167: 183.74 | AJ167: 183.74 | AK167: 263.39 | AL167: 183.59 | AM167: 240.69 | AN167: 259.49 | AO167: 264.69 | AP167: 183.88 | AQ167: 259.2 | AR167: 235.63 | AS167: 256.88 | AT167: 179.54 | AU167: 182.15 | AV167: 255.15 | AW167: 236.64 | AX167: 259.34 | AY167: 183.88 | BB167: 184.17 | BC167: 184.17 | BJ167: 184.17 | BK167: 184.17 | BN167: 184.17 | BU167: 184.17 | BZ167: 184.17 | CB167: 184.17 | CC167: 184.17 | CF167: 184.17 | CK167: 184.17 | CL167: 184.17 | CM167: 256.16 | CS167: 184.17 | CT167: 184.17 | CU167: 199.64 | CV167: 184.17 | CY167: 184.17 | DK167: 199.64
A168: A04.14.002 О | B168: Ультразвуковое исследование желчного пузыря и протоков | C168: 144.56 | AA168: 184.17 | AO168: 264.69 | AQ168: 259.2 | BN168: 184.17 | BZ168: 184.17 | DJ168: 184.17
A169: A04.14.002.001 | B169: Ультразвуковое исследование желчного пузыря с определением его сократимости | C169: 182.61 | L169: 232.65 | N169: 232.65 | U169: 252.18 | Y169: 232.65 | Z169: 232.65 | AA169: 232.65 | AS169: 324.5 | BB169: 232.65 | BC169: 232.65 | BK169: 232.65 | BN169: 232.65 | CF169: 232.65 | CY169: 232.65
A170: A04.14.002.001 О | B170: Ультразвуковое исследование желчного пузыря с определением его сократимости | C170: 182.61 | AA170: 232.65 | BN170: 232.65 | DJ170: 232.65
A171: A04.15.001 | B171: Ультразвуковое исследование поджелудочной железы | C171: 169.07 | D171: 215.4 | E171: 215.4 | J171: 215.4 | K171: 215.4 | L171: 215.4 | M171: 215.4 | N171: 215.4 | T171: 215.4 | U171: 233.49 | X171: 215.4 | Y171: 215.4 | Z171: 215.4 | AA171: 215.4 | AB171: 215.4 | AH171: 214.89 | AI171: 214.89 | AJ171: 214.89 | AK171: 308.05 | AL171: 214.72 | AM171: 281.5 | AN171: 303.48 | AO171: 309.57 | AP171: 215.06 | AQ171: 303.14 | AR171: 275.58 | AS171: 300.44 | AT171: 209.98 | AU171: 213.03 | AV171: 298.41 | AW171: 276.77 | AX171: 303.31 | AY171: 215.06 | BB171: 215.4 | BC171: 215.4 | BJ171: 215.4 | BK171: 215.4 | BN171: 215.4 | BU171: 215.4 | BZ171: 215.4 | CB171: 215.4 | CC171: 215.4 | CF171: 215.4 | CK171: 215.4 | CL171: 215.4 | CM171: 299.59 | CQ171: 215.4 | CR171: 215.4 | CS171: 215.4 | CT171: 215.4 | CU171: 233.49 | CV171: 215.4 | CY171: 215.4 | DK171: 233.49
A172: A04.15.001 О | B172: Ультразвуковое исследование поджелудочной железы | C172: 169.07 | AA172: 215.4 | AO172: 309.57 | AQ172: 303.14 | BN172: 215.4 | BZ172: 215.4 | DJ172: 215.4
A173: A04.15.001.001 | B173: Эластография поджелудочной железы | C173: 3615.59 | U173: 4993.13 | BN173: 4606.26 | BZ173: 4606.26
A174: A04.15.001.002 Ст | B174: Ультразвуковое исследование поджелудочной железы (эндоскопическое) | C174: 1144.37 | U174: 1580.37 | AL174: 1453.35 | BN174: 1457.93
A175: A04.15.001.003 | B175: Ультразвуковое исследование поджелудочной железы с контрастным усилением | C175: 2859.69 | N175: 3643.25 | BN175: 3643.25 | BZ175: 3643.25
A176: A04.16.001 | B176: Ультразвуковое исследование органов брюшной полости (комплексное) | C176: 257.83 | E176: 328.48 | J176: 328.48 | K176: 328.48 | L176: 328.48 | N176: 328.48 | T176: 328.48 | U176: 356.06 | X176: 328.48 | Y176: 328.48 | Z176: 328.48 | AA176: 328.48 | AB176: 328.48 | AH176: 327.7 | AI176: 327.7 | AJ176: 327.7 | AK176: 469.77 | AL176: 327.44 | AM176: 429.29 | AN176: 462.8 | AO176: 472.09 | AP176: 327.96 | AQ176: 462.29 | AR176: 420.26 | AS176: 458.16 | AT176: 320.22 | AU176: 324.87 | AV176: 455.07 | AW176: 422.07 | AX176: 462.55 | AY176: 327.96 | AZ176: 423.87 | BB176: 328.48 | BC176: 328.48 | BD176: 328.48 | BK176: 328.48 | BN176: 328.48 | BZ176: 328.48 | CA176: 328.48 | CB176: 328.48 | CF176: 328.48 | CL176: 328.48 | CM176: 456.87 | CT176: 328.48 | CY176: 328.48 | DK176: 356.06
A177: A04.16.002 Ст | B177: Эндосонография желудка | C177: 1144.37 | E177: 1457.93 | N177: 1457.93 | U177: 1580.37 | AI177: 1454.49 | AK177: 2085.04 | AN177: 2054.14 | AQ177: 2051.86 | AV177: 2019.81 | AW177: 1873.33 | BN177: 1457.93 | DK177: 1580.37
A178: A04.16.003 Ст | B178: Эндосонография двенадцатиперстной кишки | C178: 1144.37 | E178: 1457.93 | N178: 1457.93 | U178: 1580.37 | AI178: 1454.49 | AK178: 2085.04 | AN178: 2054.14 | AQ178: 2051.86 | AV178: 2019.81 | AW178: 1873.33 | BN178: 1457.93 | DK178: 1580.37
A179: A04.16.004 | B179: Ультразвуковое исследование пищевода | C179: 144.56 | L179: 184.17 | U179: 199.64 | AQ179: 259.2 | AV179: 255.15 | AW179: 236.64 | BK179: 184.17 | BN179: 184.17 | CT179: 184.17 | DK179: 199.64
A180: A04.16.004 О | B180: Ультразвуковое исследование пищевода | C180: 144.56 | BN180: 184.17 | DJ180: 184.17
A181: A04.16.004.001 | B181: Ультразвуковое исследование пищевода с контрастным усилением | C181: 953.5 | U181: 1316.78 | AW181: 1560.88 | BN181: 1214.76
A182: A04.16.004.001 О | B182: Ультразвуковое исследование пищевода с контрастным усилением | C182: 953.5 | BN182: 1214.76 | DJ182: 1214.76
A183: A04.16.005 Ст | B183: Эндосонография пищевода | C183: 620.92 | E183: 791.05 | N183: 791.05 | U183: 857.49 | BN183: 791.05
A184: A04.18.001 | B184: Ультразвуковое исследование толстой кишки | C184: 120.8 | L184: 153.9 | U184: 166.82 | AQ184: 216.59 | AV184: 213.21 | AW184: 197.75 | BK184: 153.9 | BN184: 153.9 | CC184: 153.9 | CK184: 153.9 | CT184: 153.9 | DK184: 166.82
A185: A04.18.001 О | B185: Ультразвуковое исследование толстой кишки | C185: 120.8 | BN185: 153.9 | DJ185: 153.9
A186: A04.19.001 | B186: Ультразвуковое исследование сигмовидной и прямой кишки | C186: 120.8 | L186: 153.9 | U186: 166.82 | AQ186: 216.59 | AW186: 197.75 | BK186: 153.9 | BN186: 153.9 | CC186: 153.9 | CK186: 153.9 | CT186: 153.9 | DK186: 166.82
A187: A04.19.001 О | B187: Ультразвуковое исследование сигмовидной и прямой кишки | C187: 120.8 | BN187: 153.9 | DJ187: 153.9
A188: A04.20.001 | B188: Ультразвуковое исследование матки и придатков трансабдоминальное | C188: 352.23 | D188: 448.74 | E188: 448.74 | L188: 448.74 | M188: 448.74 | N188: 448.74 | P188: 448.74 | S188: 448.74 | T188: 448.74 | Y188: 448.74 | Z188: 448.74 | AA188: 448.74 | AH188: 447.68 | AI188: 447.68 | AJ188: 447.68 | AK188: 641.76 | AL188: 447.33 | AM188: 586.46 | AN188: 632.25 | AO188: 644.93 | AP188: 448.04 | AQ188: 631.55 | AR188: 574.13 | AS188: 625.91 | AT188: 437.47 | AU188: 443.81 | AV188: 621.69 | AW188: 576.6 | AX188: 631.9 | AY188: 448.04 | BB188: 448.74 | BC188: 448.74 | BD188: 448.74 | BJ188: 448.74 | BK188: 448.74 | BN188: 448.74 | BS188: 486.43 | BU188: 448.74 | BZ188: 448.74 | CB188: 448.74 | CC188: 448.74 | CK188: 448.74 | CL188: 448.74 | CM188: 624.15 | CQ188: 448.74 | CR188: 448.74 | CS188: 448.74 | CT188: 448.74 | CU188: 486.43 | CV188: 448.74
A189: A04.20.001 О | B189: Ультразвуковое исследование матки и придатков трансабдоминальное | C189: 352.23 | AA189: 448.74 | AQ189: 631.55 | BN189: 448.74 | BZ189: 448.74 | DJ189: 448.74
A190: A04.20.001.001 | B190: Ультразвуковое исследование матки и придатков трансвагинальное | C190: 352.23 | M190: 448.74 | N190: 448.74 | P190: 448.74 | Q190: 448.74 | R190: 448.74 | S190: 448.74 | T190: 448.74 | Z190: 448.74 | AA190: 448.74 | AK190: 641.76 | AL190: 447.33 | AO190: 644.93 | AQ190: 631.55 | AR190: 574.13 | AS190: 625.91 | AT190: 437.47 | AU190: 443.81 | AW190: 576.6 | AY190: 448.04 | BB190: 448.74 | BC190: 448.74 | BD190: 448.74 | BJ190: 448.74 | BK190: 448.74 | BN190: 448.74 | BS190: 486.43 | BU190: 448.74 | BX190: 448.74 | BZ190: 448.74 | CB190: 448.74 | CC190: 448.74 | CF190: 448.74 | CK190: 448.74 | CL190: 448.74 | CM190: 624.15 | CQ190: 448.74 | CR190: 448.74 | CS190: 448.74 | CT190: 448.74 | CU190: 486.43 | CV190: 448.74 | CY190: 448.74 | DK190: 486.43
A191: A04.20.001.001 О | B191: Ультразвуковое исследование матки и придатков трансвагинальное | C191: 352.23 | AA191: 448.74 | AQ191: 631.55 | BN191: 448.74 | BZ191: 448.74 | DJ191: 448.74
A192: A04.20.001.002 | B192: Ультразвуковое исследование матки и придатков с контрастным усилением | C192: 2859.69 | N192: 3643.25 | BN192: 3643.25
A193: A04.20.001.002 О | B193: Ультразвуковое исследование матки и придатков с контрастным усилением | C193: 2859.69 | BN193: 3643.25 | DJ193: 3643.25
A194: A04.20.001.003 | B194: Эластография матки и придатков | C194: 641.43 | BZ194: 817.18 | CU194: 885.81
A195: A04.20.001.004 | B195: Ультразвуковое исследование шейки матки (УЗ - цервикометрия) | C195: 370.7 | P195: 472.27 | S195: 472.27 | AO195: 678.75 | CZ195: 472.27
A196: A04.20.002 | B196: Ультразвуковое исследование молочных желез | C196: 182.61 | D196: 232.65 | E196: 232.65 | L196: 232.65 | M196: 232.65 | N196: 232.65 | P196: 232.65 | R196: 232.65 | S196: 232.65 | T196: 232.65 | U196: 252.18 | X196: 232.65 | Y196: 232.65 | Z196: 232.65 | AA196: 232.65 | AB196: 232.65 | AH196: 232.1 | AI196: 232.1 | AK196: 332.72 | AL196: 231.91 | AM196: 304.05 | AN196: 327.78 | AO196: 334.36 | AP196: 232.28 | AQ196: 327.42 | AR196: 297.65 | AS196: 324.5 | AT196: 226.8 | AU196: 230.09 | AV196: 322.31 | AW196: 298.93 | AX196: 327.6 | AY196: 232.28 | AZ196: 300.21 | BB196: 232.65 | BC196: 232.65 | BD196: 232.65 | BJ196: 232.65 | BN196: 232.65 | BZ196: 232.65 | CB196: 232.65 | CC196: 232.65 | CF196: 232.65 | CK196: 232.65 | CL196: 232.65 | CM196: 323.58 | CQ196: 232.65 | CR196: 232.65 | CS196: 232.65 | CT196: 232.65 | CV196: 232.65 | CY196: 232.65
A197: A04.20.002.001 | B197: Эластография молочных желез | C197: 611.19 | N197: 778.66 | U197: 844.05 | BL197: 778.66 | BN197: 778.66 | BS197: 844.05 | BZ197: 778.66 | CC197: 778.66 | CK197: 778.66 | CU197: 844.05
A198: A04.20.002.003 | B198: Ультразвуковое исследование молочных желез с контрастным усилением | C198: 2859.69 | AQ198: 5127.42 | AV198: 5047.35 | BN198: 3643.25
A199: A04.21.001 | B199: Ультразвуковое исследование простаты | C199: 293.51 | D199: 373.93 | E199: 373.93 | L199: 373.93 | M199: 373.93 | N199: 373.93 | P199: 373.93 | T199: 373.93 | X199: 373.93 | Y199: 373.93 | Z199: 373.93 | AA199: 373.93 | AB199: 373.93 | AH199: 373.05 | AI199: 373.05 | AK199: 534.78 | AL199: 372.76 | AN199: 526.85 | AO199: 537.42 | AP199: 373.34 | AQ199: 526.26 | AR199: 478.42 | AS199: 521.57 | AT199: 364.54 | AU199: 369.82 | AV199: 518.05 | AW199: 480.48 | AX199: 526.56 | AY199: 373.34 | BB199: 373.93 | BC199: 373.93 | BD199: 373.93 | BJ199: 373.93 | BN199: 373.93 | BU199: 373.93 | BX199: 373.93 | BZ199: 373.93 | CB199: 373.93 | CC199: 373.93 | CF199: 373.93 | CK199: 373.93 | CL199: 373.93 | CM199: 520.1 | CQ199: 373.93 | CR199: 373.93 | CS199: 373.93 | CT199: 373.93 | CU199: 405.34 | CV199: 373.93
A200: A04.21.001 О | B200: Ультразвуковое исследование простаты | C200: 293.51 | AA200: 373.93 | AQ200: 526.26 | BN200: 373.93 | BZ200: 373.93 | DJ200: 373.93
A201: A04.21.001.001 | B201: Ультразвуковое исследование предстательной железы трансректальное | C201: 273.93 | E201: 348.99 | M201: 348.99 | N201: 348.99 | T201: 348.99 | U201: 378.3 | X201: 348.99 | Y201: 348.99 | Z201: 348.99 | AA201: 348.99 | AL201: 347.89 | AO201: 501.57 | AQ201: 491.16 | AR201: 446.51 | AS201: 486.77 | AT201: 340.22 | AU201: 345.15 | AV201: 483.49 | AW201: 448.42 | AZ201: 450.34 | BB201: 348.99 | BC201: 348.99 | BJ201: 348.99 | BK201: 348.99 | BN201: 348.99 | BZ201: 348.99 | CB201: 348.99 | CC201: 348.99 | CF201: 348.99 | CK201: 348.99 | CL201: 348.99 | CM201: 485.4 | CQ201: 348.99 | CR201: 348.99 | CS201: 348.99 | CT201: 348.99 | CV201: 348.99 | CY201: 348.99
A202: A04.21.001.001 О | B202: Ультразвуковое исследование предстательной железы трансректальное | C202: 273.93 | AA202: 348.99 | AQ202: 491.16 | BN202: 348.99 | BZ202: 348.99 | DJ202: 348.99
A203: A04.21.001.002 | B203: Ультразвуковое исследование предстательной железы с контрастным усилением | C203: 332.73 | N203: 423.9 | AW203: 544.68 | BN203: 423.9
... 357 more rows

Sheet Приложение № 4
A1: _Оглавление
B2: =MID(CELL("filename",A2),SEARCH("]",CELL("filename",A2))+1,31) -> Приложение № 4
B3: ='Приложение № 3'!B3 -> к Дополнительному соглашению № 6
B4: =_Оглавление_!A3 -> от 05.06.2024
B5: к Тарифному соглашению
B6: на оплату медицинской помощи
B7: по ОМС на территории Томской области на 2024 год
B8: от 05.02.2024
B10: Приложение № 25
B11: к Тарифному соглашению
B12: на оплату медицинской помощи
B13: по ОМС на территории Томской области на 2024 год
B14: от 05.02.2024
C16: Размер финансового обеспечения фельдшерских здравпунктов, фельдшерско-акушерских пунктов с 01.06.2024 года
A18: код МО | B18: № | C18: Наименование ФАП/ФП | D18: Количество обслуживаемых жителей | E18: Количество ФАП/ФП | F18: Соответствие/ несоответствие ФП, ФАП требованиям, установленным положением об организации оказания первичной медико-санитарной помощи взрослому населению в части обеспеченности медицинским персоналом | G18: ФАП, ФП, обслуживающий менее 100 жителей | L18: ФАП, ФП, обслуживающий от 101 до 900 жителей | Q18: ФАП, ФП, обслуживающий от 901 до 1500 жителей | V18: ФАП, ФП, обслуживающий от 1501 до 2000 жителей | AA18: ФАП, ФП, обслуживающий свыше 2000 жителей | AF18: ВСЕГО финансирование на 2024 год, тыс.руб.
G19: Базовый норматив финансовых затрат на финансовое обеспечение 1 ФАП/ФП в Томской области, с учетом коэффициента дифференциации, установленного для муниципального образования в котором расположена медицинская организация (Федеральный базовый норматив затрат - 1 230,5 тыс.руб; поправочный коэффициент к размеру финансового обеспечения ФАП/ФП, обслуживающего менее 100 жителей - 0,5), тыс.руб. | H19: Коэффициент специфики оказания медицинской помощи, применяемый к базовому нормативу финансовых затрат на финансовое обеспечение ФАП/ФП по Томской области | I19: в том числе | J19: Сумма финансирования, тыс.руб. | K19: в том числе | L19: Базовый норматив финансовых затрат на финансовое обеспечение 1 ФАП/ФП в Томской области, с учетом коэффициента дифференциации, установленного для муниципального образования в котором расположена медицинская организация (Федеральный базовый норматив затрат - 1 230,5 тыс.руб), тыс.руб. | M19: Коэффициент специфики оказания медицинской помощи, применяемый к базовому нормативу финансовых затрат на финансовое обеспечение ФАП/ФП по Томской области | N19: в том числе | O19: Сумма финансирования, тыс.руб. | P19: в том числе | Q19: Базовый норматив финансовых затрат на финансовое обеспечение 1 ФАП/ФП в Томской области, с учетом коэффициента дифференциации, установленного для муниципального образования в котором расположена медицинская организация (Федеральный базовый норматив затрат - 2 460,9 тыс.руб), тыс.руб. | R19: Коэффициент специфики оказания медицинской помощи, применяемый к базовому нормативу финансовых затрат на финансовое обеспечение ФАП/ФП по Томской области | S19: в том числе | T19: Сумма финансирования, тыс.руб. | U19: в том числе | V19: Базовый норматив финансовых затрат на финансовое обеспечение 1 ФАП/ФП в Томской области, с учетом коэффициента дифференциации, установленного для муниципального образования в котором расположена медицинская организация (Федеральный базовый норматив затрат -2 907,1 тыс. руб.), тыс.руб. | W19: Коэффициент специфики оказания медицинской помощи, применяемый к базовому нормативу финансовых затрат на финансовое обеспечение ФАП/ФП по Томской области | X19: в том числе | Y19: Сумма финансирования, тыс.руб. | Z19: в том числе | AA19: Базовый норматив финансовых затрат на финансовое обеспечение 1 ФАП/ФП в Томской области, с учетом коэффициента дифференциации, установленного для муниципального образования в котором расположена медицинская организация (Федеральный базовый норматив затрат - 2 907,1 тыс. рублей, поправочный коэффициент к размеру финансового обеспечения ФАП/ФП, обслуживающего более 2000 жителей - 1,3), тыс.руб. | AB19: Коэффициент специфики оказания медицинской помощи, применяемый к базовому нормативу финансовых затрат на финансовое обеспечение ФАП/ФП по Томской области | AC19: в том числе | AD19: =Y19 -> Сумма финансирования, тыс.руб. | AE19: в том числе
I20: коэффициент, рассчитанный с учетом расчетного объема средств на оплату консультаций, связанных с проведение санитарно-гигиенического обучения женщин по вопросам грудного вскармливания, предупреждения заболеваний репродуктивной системы, абортов и инфекций, передаваемых половым путем | K20: Сумма финансирования за январь - май 2024, тыс. руб. | N20: коэффициент, рассчитанный с учетом расчетного объема средств на оплату консультаций, связанных с проведение санитарно-гигиенического обучения женщин по вопросам грудного вскармливания, предупреждения заболеваний репродуктивной системы, абортов и инфекций, передаваемых половым путем | P20: Сумма финансирования за январь - май 2024, тыс. руб. | S20: коэффициент, рассчитанный с учетом расчетного объема средств на оплату консультаций, связанных с проведение санитарно-гигиенического обучения женщин по вопросам грудного вскармливания, предупреждения заболеваний репродуктивной системы, абортов и инфекций, передаваемых половым путем | U20: Сумма финансирования за январь - май 2024, тыс. руб. | X20: коэффициент, рассчитанный с учетом расчетного объема средств на оплату консультаций, связанных с проведение санитарно-гигиенического обучения женщин по вопросам грудного вскармливания, предупреждения заболеваний репродуктивной системы, абортов и инфекций, передаваемых половым путем | Z20: Сумма финансирования за январь - май 2024, тыс. руб. | AC20: коэффициент, рассчитанный с учетом расчетного объема средств на оплату консультаций, связанных с проведение санитарно-гигиенического обучения женщин по вопросам грудного вскармливания, предупреждения заболеваний репродуктивной системы, абортов и инфекций, передаваемых половым путем | AE20: Сумма финансирования за январь - май 2024, тыс. руб.
A23: 61 | B23: 1 | C23: ОГАУЗ "Александровская РБ" | D23: =SUM(D24:D26) -> 888 | E23: =SUM(E24:E26) -> 3 | J23: =SUM(J24:J26) -> 0 | K23: =SUM(K24:K26) -> 0 | O23: =SUM(O24:O26) -> 4954.8 | P23: =SUM(P24:P26) -> 2033.7 | AF23: =J23+O23+T23+Y23+AD23 -> 4954.8 | AH23: =AF23-[8]Расчетный!GO12 -> 0
C24: ФАП с.Новоникольское ОГАУЗ "Александровская РБ" | D24: =[8]Расчетный!E16 -> 170 | E24: =[8]Расчетный!F16 -> 1 | F24: =[8]Расчетный!G16 -> Не соответствует | G24: =[8]Расчетный!AF16 -> 0 | H24: =[8]Расчетный!AA16 -> 0 | I24: =[8]Расчетный!Z16 -> 0 | J24: =[8]Расчетный!AM16 -> 0 | K24: =[8]Расчетный!AD16-[8]Расчетный!AK16 -> 0 | L24: =[8]Расчетный!BN16 -> 2291.4 | M24: =[8]Расчетный!BR16 -> 0.7273854979 | N24: =[8]Расчетный!BH16 -> 1.00045 | O24: =[8]Расчетный!BX16 -> 1649.1 | P24: =[8]Расчетный!BL16-[8]Расчетный!BV16 -> 676.9 | Q24: =[8]Расчетный!CY16 -> 0 | R24: =[8]Расчетный!DC16 -> 0 | S24: 0 | T24: =[8]Расчетный!DI16 -> 0 | U24: 0 | V24: 0 | W24: 0 | X24: 0 | Y24: 0 | Z24: 0 | AA24: 0 | AB24: 0 | AC24: 0 | AD24: 0 | AE24: 0
C25: ФАП с.Лукашкин Яр ОГАУЗ "Александровская РБ" | D25: =[8]Расчетный!E17 -> 355 | E25: =[8]Расчетный!F17 -> 1 | F25: =[8]Расчетный!G17 -> Не соответствует | G25: =[8]Расчетный!AF17 -> 0 | H25: =[8]Расчетный!AA17 -> 0 | I25: =[8]Расчетный!Z17 -> 0 | J25: =[8]Расчетный!AM17 -> 0 | K25: =[8]Расчетный!AD17-[8]Расчетный!AK17 -> 0 | L25: =[8]Расчетный!BN17 -> 2291.4 | M25: =[8]Расчетный!BR17 -> 0.7289854979 | N25: =[8]Расчетный!BH17 -> 1.00205 | O25: =[8]Расчетный!BX17 -> 1652.8 | P25: =[8]Расчетный!BL17-[8]Расчетный!BV17 -> 678.4 | Q25: =[8]Расчетный!CY17 -> 0 | R25: =[8]Расчетный!DC17 -> 0 | S25: 0 | T25: =[8]Расчетный!DI17 -> 0 | U25: 0 | V25: 0 | W25: 0 | X25: 0 | Y25: 0 | Z25: 0 | AA25: 0 | AB25: 0 | AC25: 0 | AD25: 0 | AE25: 0
C26: ФАП с. Назино ОГАУЗ "Александровская РБ" | D26: =[8]Расчетный!E18 -> 363 | E26: =[8]Расчетный!F18 -> 1 | F26: =[8]Расчетный!G18 -> Не соответствует | G26: =[8]Расчетный!AF18 -> 0 | H26: =[8]Расчетный!AA18 -> 0 | I26: =[8]Расчетный!Z18 -> 0 | J26: =[8]Расчетный!AM18 -> 0 | K26: =[8]Расчетный!AD18-[8]Расчетный!AK18 -> 0 | L26: =[8]Расчетный!BN18 -> 2291.4 | M26: =[8]Расчетный!BR18 -> 0.7290554979 | N26: =[8]Расчетный!BH18 -> 1.00212 | O26: =[8]Расчетный!BX18 -> 1652.9 | P26: =[8]Расчетный!BL18-[8]Расчетный!BV18 -> 678.4 | Q26: =[8]Расчетный!CY18 -> 0 | R26: =[8]Расчетный!DC18 -> 0 | S26: 0 | T26: =[8]Расчетный!DI18 -> 0 | U26: 0 | V26: 0 | W26: 0 | X26: 0 | Y26: 0 | Z26: 0 | AA26: 0 | AB26: 0 | AC26: 0 | AD26: 0 | AE26: 0
A27: 59 | B27: 2 | C27: ОГБУЗ "Асиновская РБ" | D27: =SUM(D28:D47) -> 4912 | E27: =SUM(E28:E47) -> 20 | J27: =SUM(J28:J47) -> 3176 | K27: =SUM(K28:K47) -> 1303.7 | O27: =SUM(O28:O47) -> 16798.9 | P27: =SUM(P28:P47) -> 6894.7 | AF27: =J27+O27+T27+Y27+AD27 -> 19974.9
C28: ФАП д. Караколь ОГБУЗ "Асиновская РБ" | D28: =[8]Расчетный!E20 -> 40 | E28: =[8]Расчетный!F20 -> 1 | F28: =[8]Расчетный!G20 -> Не соответствует | G28: =[8]Расчетный!AF20 -> 801.624 | H28: =[8]Расчетный!AA20 -> 1.00051 | I28: =[8]Расчетный!I20 -> 1.00051 | J28: =[8]Расчетный!AM20 -> 793.5 | K28: =[8]Расчетный!AD20-[8]Расчетный!AK20 -> 325.7 | L28: =[8]Расчетный!BN20 -> 0 | M28: =[8]Расчетный!BR20 -> 0 | N28: 0 | O28: =[8]Расчетный!BX20 -> 0 | P28: =[8]Расчетный!BL20-[8]Расчетный!BV20 -> 0 | Q28: 0 | R28: 0 | S28: 0 | T28: 0 | U28: 0 | V28: 0 | W28: 0 | X28: 0 | Y28: 0 | Z28: 0 | AA28: 0 | AB28: 0 | AC28: 0 | AD28: 0 | AE28: 0
C29: ФАП с. Латат ОГБУЗ "Асиновская РБ" | D29: =[8]Расчетный!E21 -> 59 | E29: =[8]Расчетный!F21 -> 1 | F29: =[8]Расчетный!G21 -> Не соответствует | G29: =[8]Расчетный!AF21 -> 801.624 | H29: =[8]Расчетный!AA21 -> 1.0009 | I29: =[8]Расчетный!I21 -> 1.0009 | J29: =[8]Расчетный!AM21 -> 793.9 | K29: =[8]Расчетный!AD21-[8]Расчетный!AK21 -> 325.9 | L29: =[8]Расчетный!BN21 -> 0 | M29: =[8]Расчетный!BR21 -> 0 | N29: 0 | O29: =[8]Расчетный!BX21 -> 0 | P29: =[8]Расчетный!BL21-[8]Расчетный!BV21 -> 0 | Q29: 0 | R29: 0 | S29: 0 | T29: 0 | U29: 0 | V29: 0 | W29: 0 | X29: 0 | Y29: 0 | Z29: 0 | AA29: 0 | AB29: 0 | AC29: 0 | AD29: 0 | AE29: 0
C30: ФАП д. Тихомировка ОГБУЗ "Асиновская РБ" | D30: =[8]Расчетный!E22 -> 65 | E30: =[8]Расчетный!F22 -> 1 | F30: =[8]Расчетный!G22 -> Не соответствует | G30: =[8]Расчетный!AF22 -> 801.624 | H30: =[8]Расчетный!AA22 -> 1.0018 | I30: =[8]Расчетный!I22 -> 1.0018 | J30: =[8]Расчетный!AM22 -> 794.7 | K30: =[8]Расчетный!AD22-[8]Расчетный!AK22 -> 326.2 | L30: =[8]Расчетный!BN22 -> 0 | M30: =[8]Расчетный!BR22 -> 0 | N30: 0 | O30: =[8]Расчетный!BX22 -> 0 | P30: =[8]Расчетный!BL22-[8]Расчетный!BV22 -> 0 | Q30: 0 | R30: 0 | S30: 0 | T30: 0 | U30: 0 | V30: 0 | W30: 0 | X30: 0 | Y30: 0 | Z30: 0 | AA30: 0 | AB30: 0 | AC30: 0 | AD30: 0 | AE30: 0
C31: ФАП пос. Ноль-Пикет ОГБУЗ "Асиновская РБ" | D31: =[8]Расчетный!E23 -> 74 | E31: =[8]Расчетный!F23 -> 1 | F31: =[8]Расчетный!G23 -> Не соответствует | G31: =[8]Расчетный!AF23 -> 801.624 | H31: =[8]Расчетный!AA23 -> 1.0009 | I31: =[8]Расчетный!I23 -> 1.0009 | J31: =[8]Расчетный!AM23 -> 793.9 | K31: =[8]Расчетный!AD23-[8]Расчетный!AK23 -> 325.9 | L31: =[8]Расчетный!BN23 -> 0 | M31: =[8]Расчетный!BR23 -> 0 | N31: 0 | O31: =[8]Расчетный!BX23 -> 0 | P31: =[8]Расчетный!BL23-[8]Расчетный!BV23 -> 0 | Q31: 0 | R31: 0 | S31: 0 | T31: 0 | U31: 0 | V31: 0 | W31: 0 | X31: 0 | Y31: 0 | Z31: 0 | AA31: 0 | AB31: 0 | AC31: 0 | AD31: 0 | AE31: 0
C32: ФАП д. Вороно-Пашня ОГБУЗ "Асиновская РБ" | D32: =[8]Расчетный!E25 -> 102 | E32: =[8]Расчетный!F25 -> 1 | F32: =[8]Расчетный!G25 -> Не соответствует | G32: =[8]Расчетный!AF25 -> 0 | H32: =[8]Расчетный!AA25 -> 0 | I32: 0 | J32: =[8]Расчетный!AM25 -> 0 | K32: =[8]Расчетный!AD25-[8]Расчетный!AK25 -> 0 | L32: =[8]Расчетный!BN25 -> 1603.4 | M32: =[8]Расчетный!BR25 -> 0.7279852202 | N32: =[8]Расчетный!I25 -> 1.00103 | O32: =[8]Расчетный!BX25 -> 1154.9 | P32: =[8]Расчетный!BL25-[8]Расчетный!BV25 -> 474 | Q32: 0 | R32: 0 | S32: 0 | T32: 0 | U32: 0 | V32: 0 | W32: 0 | X32: 0 | Y32: 0 | Z32: 0 | AA32: 0 | AB32: 0 | AC32: 0 | AD32: 0 | AE32: 0
C33: ФАП с. Цветковка ОГБУЗ "Асиновская РБ" | D33: =[8]Расчетный!E26 -> 110 | E33: =[8]Расчетный!F26 -> 1 | F33: =[8]Расчетный!G26 -> Не соответствует | G33: =[8]Расчетный!AF26 -> 0 | H33: =[8]Расчетный!AA26 -> 0 | I33: 0 | J33: =[8]Расчетный!AM26 -> 0 | K33: =[8]Расчетный!AD26-[8]Расчетный!AK26 -> 0 | L33: =[8]Расчетный!BN26 -> 1603.4 | M33: =[8]Расчетный!BR26 -> 0.4536772957 | N33: =[8]Расчетный!I26 -> 1.00064 | O33: =[8]Расчетный!BX26 -> 719.7 | P33: =[8]Расчетный!BL26-[8]Расчетный!BV26 -> 295.4 | Q33: 0 | R33: 0 | S33: 0 | T33: 0 | U33: 0 | V33: 0 | W33: 0 | X33: 0 | Y33: 0 | Z33: 0 | AA33: 0 | AB33: 0 | AC33: 0 | AD33: 0 | AE33: 0
C34: ФАП пос. Первопашенск ОГБУЗ "Асиновская РБ" | D34: =[8]Расчетный!E27 -> 119 | E34: =[8]Расчетный!F27 -> 1 | F34: =[8]Расчетный!G27 -> Не соответствует | G34: =[8]Расчетный!AF27 -> 0 | H34: =[8]Расчетный!AA27 -> 0 | I34: 0 | J34: =[8]Расчетный!AM27 -> 0 | K34: =[8]Расчетный!AD27-[8]Расчетный!AK27 -> 0 | L34: =[8]Расчетный!BN27 -> 1603.4 | M34: =[8]Расчетный!BR27 -> 0.7275352202 | N34: =[8]Расчетный!I27 -> 1.00058 | O34: =[8]Расчетный!BX27 -> 1154.2 | P34: =[8]Расчетный!BL27-[8]Расчетный!BV27 -> 473.7 | Q34: 0 | R34: 0 | S34: 0 | T34: 0 | U34: 0 | V34: 0 | W34: 0 | X34: 0 | Y34: 0 | Z34: 0 | AA34: 0 | AB34: 0 | AC34: 0 | AD34: 0 | AE34: 0
C35: ФАП д. Нижние Соколы ОГБУЗ "Асиновская РБ" | D35: =[8]Расчетный!E28 -> 144 | E35: =[8]Расчетный!F28 -> 1 | F35: =[8]Расчетный!G28 -> Не соответствует | G35: =[8]Расчетный!AF28 -> 0 | H35: =[8]Расчетный!AA28 -> 0 | I35: 0 | J35: =[8]Расчетный!AM28 -> 0 | K35: =[8]Расчетный!AD28-[8]Расчетный!AK28 -> 0 | L35: =[8]Расчетный!BN28 -> 1603.4 | M35: =[8]Расчетный!BR28 -> 0.7281152202 | N35: =[8]Расчетный!I28 -> 1.00116 | O35: =[8]Расчетный!BX28 -> 1155.1 | P35: =[8]Расчетный!BL28-[8]Расчетный!BV28 -> 474.1 | Q35: 0 | R35: 0 | S35: 0 | T35: 0 | U35: 0 | V35: 0 | W35: 0 | X35: 0 | Y35: 0 | Z35: 0 | AA35: 0 | AB35: 0 | AC35: 0 | AD35: 0 | AE35: 0
C36: ФАП д. Победа ОГБУЗ "Асиновская РБ" | D36: =[8]Расчетный!E29 -> 155 | E36: =[8]Расчетный!F29 -> 1 | F36: =[8]Расчетный!G29 -> Не соответствует | G36: =[8]Расчетный!AF29 -> 0 | H36: =[8]Расчетный!AA29 -> 0 | I36: 0 | J36: =[8]Расчетный!AM29 -> 0 | K36: =[8]Расчетный!AD29-[8]Расчетный!AK29 -> 0 | L36: =[8]Расчетный!BN29 -> 1603.4 | M36: =[8]Расчетный!BR29 -> 0.7277252202 | N36: =[8]Расчетный!I29 -> 1.00077 | O36: =[8]Расчетный!BX29 -> 1154.4 | P36: =[8]Расчетный!BL29-[8]Расчетный!BV29 -> 473.8 | Q36: 0 | R36: 0 | S36: 0 | T36: 0 | U36: 0 | V36: 0 | W36: 0 | X36: 0 | Y36: 0 | Z36: 0 | AA36: 0 | AB36: 0 | AC36: 0 | AD36: 0 | AE36: 0
C37: ФАП д. Моисеевка ОГБУЗ "Асиновская РБ" | D37: =[8]Расчетный!E30 -> 155 | E37: =[8]Расчетный!F30 -> 1 | F37: =[8]Расчетный!G30 -> Не соответствует | G37: =[8]Расчетный!AF30 -> 0 | H37: =[8]Расчетный!AA30 -> 0 | I37: 0 | J37: =[8]Расчетный!AM30 -> 0 | K37: =[8]Расчетный!AD30-[8]Расчетный!AK30 -> 0 | L37: =[8]Расчетный!BN30 -> 1603.4 | M37: =[8]Расчетный!BR30 -> 0.7281152202 | N37: =[8]Расчетный!I30 -> 1.00116 | O37: =[8]Расчетный!BX30 -> 1155.1 | P37: =[8]Расчетный!BL30-[8]Расчетный!BV30 -> 474.1 | Q37: 0 | R37: 0 | S37: 0 | T37: 0 | U37: 0 | V37: 0 | W37: 0 | X37: 0 | Y37: 0 | Z37: 0 | AA37: 0 | AB37: 0 | AC37: 0 | AD37: 0 | AE37: 0
C38: ФАП пос. Большой Кордон ОГБУЗ "Асиновская РБ" | D38: =[8]Расчетный!E31 -> 233 | E38: =[8]Расчетный!F31 -> 1 | F38: =[8]Расчетный!G31 -> Не соответствует | G38: =[8]Расчетный!AF31 -> 0 | H38: =[8]Расчетный!AA31 -> 0 | I38: 0 | J38: =[8]Расчетный!AM31 -> 0 | K38: =[8]Расчетный!AD31-[8]Расчетный!AK31 -> 0 | L38: =[8]Расчетный!BN31 -> 1603.4 | M38: =[8]Расчетный!BR31 -> 0.7302952202 | N38: =[8]Расчетный!I31 -> 1.00334 | O38: =[8]Расчетный!BX31 -> 1158.6 | P38: =[8]Расчетный!BL31-[8]Расчетный!BV31 -> 475.5 | Q38: 0 | R38: 0 | S38: 0 | T38: 0 | U38: 0 | V38: 0 | W38: 0 | X38: 0 | Y38: 0 | Z38: 0 | AA38: 0 | AB38: 0 | AC38: 0 | AD38: 0 | AE38: 0
C39: ФАП д. Гарь ОГБУЗ "Асиновская РБ" | D39: =[8]Расчетный!E32 -> 238 | E39: =[8]Расчетный!F32 -> 1 | F39: =[8]Расчетный!G32 -> Не соответствует | G39: =[8]Расчетный!AF32 -> 0 | H39: =[8]Расчетный!AA32 -> 0 | I39: 0 | J39: =[8]Расчетный!AM32 -> 0 | K39: =[8]Расчетный!AD32-[8]Расчетный!AK32 -> 0 | L39: =[8]Расчетный!BN32 -> 1603.4 | M39: =[8]Расчетный!BR32 -> 0.7269552202 | N39: =[8]Расчетный!I32 -> 1 | O39: =[8]Расчетный!BX32 -> 1153.2 | P39: =[8]Расчетный!BL32-[8]Расчетный!BV32 -> 473.3 | Q39: 0 | R39: 0 | S39: 0 | T39: 0 | U39: 0 | V39: 0 | W39: 0 | X39: 0 | Y39: 0 | Z39: 0 | AA39: 0 | AB39: 0 | AC39: 0 | AD39: 0 | AE39: 0
C40: ФАП д. Феоктистовка ОГБУЗ "Асиновская РБ" | D40: =[8]Расчетный!E33 -> 244 | E40: =[8]Расчетный!F33 -> 1 | F40: =[8]Расчетный!G33 -> Не соответствует | G40: =[8]Расчетный!AF33 -> 0 | H40: =[8]Расчетный!AA33 -> 0 | I40: 0 | J40: =[8]Расчетный!AM33 -> 0 | K40: =[8]Расчетный!AD33-[8]Расчетный!AK33 -> 0 | L40: =[8]Расчетный!BN33 -> 1603.4 | M40: =[8]Расчетный!BR33 -> 0.4561172957 | N40: =[8]Расчетный!I33 -> 1.00308 | O40: =[8]Расчетный!BX33 -> 723.6 | P40: =[8]Расчетный!BL33-[8]Расчетный!BV33 -> 297 | Q40: 0 | R40: 0 | S40: 0 | T40: 0 | U40: 0 | V40: 0 | W40: 0 | X40: 0 | Y40: 0 | Z40: 0 | AA40: 0 | AB40: 0 | AC40: 0 | AD40: 0 | AE40: 0
C41: ФАП с. Филимоновка ОГБУЗ "Асиновская РБ" | D41: =[8]Расчетный!E34 -> 251 | E41: =[8]Расчетный!F34 -> 1 | F41: =[8]Расчетный!G34 -> Не соответствует | G41: =[8]Расчетный!AF34 -> 0 | H41: =[8]Расчетный!AA34 -> 0 | I41: 0 | J41: =[8]Расчетный!AM34 -> 0 | K41: =[8]Расчетный!AD34-[8]Расчетный!AK34 -> 0 | L41: =[8]Расчетный!BN34 -> 1603.4 | M41: =[8]Расчетный!BR34 -> 0.4557372957 | N41: =[8]Расчетный!I34 -> 1.0027 | O41: =[8]Расчетный!BX34 -> 722.9 | P41: =[8]Расчетный!BL34-[8]Расчетный!BV34 -> 296.7 | Q41: 0 | R41: 0 | S41: 0 | T41: 0 | U41: 0 | V41: 0 | W41: 0 | X41: 0 | Y41: 0 | Z41: 0 | AA41: 0 | AB41: 0 | AC41: 0 | AD41: 0 | AE41: 0
C42: ФАП с. Казанка ОГБУЗ "Асиновская РБ" | D42: =[8]Расчетный!E35 -> 271 | E42: =[8]Расчетный!F35 -> 1 | F42: =[8]Расчетный!G35 -> Не соответствует | G42: =[8]Расчетный!AF35 -> 0 | H42: =[8]Расчетный!AA35 -> 0 | I42: 0 | J42: =[8]Расчетный!AM35 -> 0 | K42: =[8]Расчетный!AD35-[8]Расчетный!AK35 -> 0 | L42: =[8]Расчетный!BN35 -> 1603.4 | M42: =[8]Расчетный!BR35 -> 0.7300952202 | N42: =[8]Расчетный!I35 -> 1.00314 | O42: =[8]Расчетный!BX35 -> 1158.3 | P42: =[8]Расчетный!BL35-[8]Расчетный!BV35 -> 475.4 | Q42: 0 | R42: 0 | S42: 0 | T42: 0 | U42: 0 | V42: 0 | W42: 0 | X42: 0 | Y42: 0 | Z42: 0 | AA42: 0 | AB42: 0 | AC42: 0 | AD42: 0 | AE42: 0
C43: ФАП пос. Светлый ОГБУЗ "Асиновская РБ" | D43: =[8]Расчетный!E36 -> 315 | E43: =[8]Расчетный!F36 -> 1 | F43: =[8]Расчетный!G36 -> Не соответствует | G43: =[8]Расчетный!AF36 -> 0 | H43: =[8]Расчетный!AA36 -> 0 | I43: 0 | J43: =[8]Расчетный!AM36 -> 0 | K43: =[8]Расчетный!AD36-[8]Расчетный!AK36 -> 0 | L43: =[8]Расчетный!BN36 -> 1603.4 | M43: =[8]Расчетный!BR36 -> 0.4550872957 | N43: =[8]Расчетный!I36 -> 1.00205 | O43: =[8]Расчетный!BX36 -> 722 | P43: =[8]Расчетный!BL36-[8]Расчетный!BV36 -> 296.3 | Q43: 0 | R43: 0 | S43: 0 | T43: 0 | U43: 0 | V43: 0 | W43: 0 | X43: 0 | Y43: 0 | Z43: 0 | AA43: 0 | AB43: 0 | AC43: 0 | AD43: 0 | AE43: 0
C44: ФАП д. Мало-Жирово ОГБУЗ "Асиновская РБ" | D44: =[8]Расчетный!E37 -> 388 | E44: =[8]Расчетный!F37 -> 1 | F44: =[8]Расчетный!G37 -> Не соответствует | G44: =[8]Расчетный!AF37 -> 0 | H44: =[8]Расчетный!AA37 -> 0 | I44: 0 | J44: =[8]Расчетный!AM37 -> 0 | K44: =[8]Расчетный!AD37-[8]Расчетный!AK37 -> 0 | L44: =[8]Расчетный!BN37 -> 1603.4 | M44: =[8]Расчетный!BR37 -> 0.7335052202 | N44: =[8]Расчетный!I37 -> 1.00655 | O44: =[8]Расчетный!BX37 -> 1163.7 | P44: =[8]Расчетный!BL37-[8]Расчетный!BV37 -> 477.6 | Q44: 0 | R44: 0 | S44: 0 | T44: 0 | U44: 0 | V44: 0 | W44: 0 | X44: 0 | Y44: 0 | Z44: 0 | AA44: 0 | AB44: 0 | AC44: 0 | AD44: 0 | AE44: 0
C45: ФАП с. Больше-Дорохово ОГБУЗ "Асиновская РБ" | D45: =[8]Расчетный!E38 -> 435 | E45: =[8]Расчетный!F38 -> 1 | F45: =[8]Расчетный!G38 -> Не соответствует | G45: =[8]Расчетный!AF38 -> 0 | H45: =[8]Расчетный!AA38 -> 0 | I45: 0 | J45: =[8]Расчетный!AM38 -> 0 | K45: =[8]Расчетный!AD38-[8]Расчетный!AK38 -> 0 | L45: =[8]Расчетный!BN38 -> 1603.4 | M45: =[8]Расчетный!BR38 -> 0.7346552202 | N45: =[8]Расчетный!I38 -> 1.0077 | O45: =[8]Расчетный!BX38 -> 1165.4 | P45: =[8]Расчетный!BL38-[8]Расчетный!BV38 -> 478.3 | Q45: 0 | R45: 0 | S45: 0 | T45: 0 | U45: 0 | V45: 0 | W45: 0 | X45: 0 | Y45: 0 | Z45: 0 | AA45: 0 | AB45: 0 | AC45: 0 | AD45: 0 | AE45: 0
C46: ФАП пос. Причулымский ОГБУЗ "Асиновская РБ" | D46: =[8]Расчетный!E39 -> 755 | E46: =[8]Расчетный!F39 -> 1 | F46: =[8]Расчетный!G39 -> Не соответствует | G46: =[8]Расчетный!AF39 -> 0 | H46: =[8]Расчетный!AA39 -> 0 | I46: 0 | J46: =[8]Расчетный!AM39 -> 0 | K46: =[8]Расчетный!AD39-[8]Расчетный!AK39 -> 0 | L46: =[8]Расчетный!BN39 -> 1603.4 | M46: =[8]Расчетный!BR39 -> 0.4631772957 | N46: =[8]Расчетный!I39 -> 1.01014 | O46: =[8]Расчетный!BX39 -> 734.8 | P46: =[8]Расчетный!BL39-[8]Расчетный!BV39 -> 301.6 | Q46: 0 | R46: 0 | S46: 0 | T46: 0 | U46: 0 | V46: 0 | W46: 0 | X46: 0 | Y46: 0 | Z46: 0 | AA46: 0 | AB46: 0 | AC46: 0 | AD46: 0 | AE46: 0
C47: ФАП с. Новониколаевка ОГБУЗ "Асиновская РБ" | D47: =[8]Расчетный!E40 -> 759 | E47: =[8]Расчетный!F40 -> 1 | F47: =[8]Расчетный!G40 -> Соответствует | G47: =[8]Расчетный!AF40 -> 0 | H47: =[8]Расчетный!AA40 -> 0 | I47: 0 | J47: =[8]Расчетный!AM40 -> 0 | K47: =[8]Расчетный!AD40-[8]Расчетный!AK40 -> 0 | L47: =[8]Расчетный!BN40 -> 1603.4 | M47: =[8]Расчетный!BR40 -> 1.0104 | N47: =[8]Расчетный!I40 -> 1.0104 | O47: =[8]Расчетный!BX40 -> 1603 | P47: =[8]Расчетный!BL40-[8]Расчетный!BV40 -> 657.9 | Q47: 0 | R47: 0 | S47: 0 | T47: 0 | U47: 0 | V47: 0 | W47: 0 | X47: 0 | Y47: 0 | Z47: 0 | AA47: 0 | AB47: 0 | AC47: 0 | AD47: 0 | AE47: 0
A48: 63 | B48: 3 | C48: ОГБУЗ "Бакчарская РБ" | D48: =SUM(D49:D55) -> 3481 | E48: =SUM(E49:E55) -> 7 | J48: =SUM(J49:J55) -> 1041.1 | K48: =SUM(K49:K55) -> 427.3 | O48: =SUM(O49:O55) -> 9622 | P48: =SUM(P49:P55) -> 3949.3 | AF48: =J48+O48+T48+Y48+AD48 -> 10663.1
C49: ФАП с. Рогалево ОГБУЗ "Бакчарская РБ" | D49: =[8]Расчетный!E42 -> 60 | E49: =[8]Расчетный!F42 -> 1 | F49: =[8]Расчетный!G42 -> Не соответствует | G49: =[8]Расчетный!AF42 -> 1050.948 | H49: =[8]Расчетный!AA42 -> 1.00115 | I49: =[8]Расчетный!I42 -> 1.00115 | J49: =[8]Расчетный!AM42 -> 1041.1 | K49: =[8]Расчетный!AD42-[8]Расчетный!AK42 -> 427.3 | L49: =[8]Расчетный!BN42 -> 0 | M49: =[8]Расчетный!BR42 -> 0 | N49: 0 | O49: =[8]Расчетный!BX42 -> 0 | P49: =[8]Расчетный!BL42-[8]Расчетный!BV42 -> 0 | Q49: 0 | R49: 0 | S49: 0 | T49: 0 | U49: 0 | V49: 0 | W49: 0 | X49: 0 | Y49: 0 | Z49: 0 | AA49: 0 | AB49: 0 | AC49: 0 | AD49: 0 | AE49: 0
C50: ФП с. Чернышевка ОГБУЗ "Бакчарская РБ" | D50: =[8]Расчетный!E50 -> 318 | E50: =[8]Расчетный!F50 -> 1 | F50: =[8]Расчетный!G50 -> Не соответствует | G50: =[8]Расчетный!AF50 -> 0 | H50: =[8]Расчетный!AA50 -> 0 | I50: 0 | J50: =[8]Расчетный!AM50 -> 0 | K50: =[8]Расчетный!AD50-[8]Расчетный!AK50 -> 0 | L50: =[8]Расчетный!BN50 -> 2102.1 | M50: =[8]Расчетный!BR50 -> 0.7282197269 | N50: =[8]Расчетный!I50 -> 1.00128 | O50: =[8]Расчетный!BX50 -> 1514.7 | P50: =[8]Расчетный!BL50-[8]Расчетный!BV50 -> 621.7 | Q50: 0 | R50: 0 | S50: 0 | T50: 0 | U50: 0 | V50: 0 | W50: 0 | X50: 0 | Y50: 0 | Z50: 0 | AA50: 0 | AB50: 0 | AC50: 0 | AD50: 0 | AE50: 0
C51: ФАП д. Вавиловка ОГБУЗ "Бакчарская РБ" | D51: =[8]Расчетный!E51 -> 572 | E51: =[8]Расчетный!F51 -> 1 | F51: =[8]Расчетный!G51 -> Не соответствует | G51: =[8]Расчетный!AF51 -> 0 | H51: =[8]Расчетный!AA51 -> 0 | I51: 0 | J51: =[8]Расчетный!AM51 -> 0 | K51: =[8]Расчетный!AD51-[8]Расчетный!AK51 -> 0 | L51: =[8]Расчетный!BN51 -> 2102.1 | M51: =[8]Расчетный!BR51 -> 0.7314997269 | N51: =[8]Расчетный!I51 -> 1.00456 | O51: =[8]Расчетный!BX51 -> 1521.5 | P51: =[8]Расчетный!BL51-[8]Расчетный!BV51 -> 624.5 | Q51: 0 | R51: 0 | S51: 0 | T51: 0 | U51: 0 | V51: 0 | W51: 0 | X51: 0 | Y51: 0 | Z51: 0 | AA51: 0 | AB51: 0 | AC51: 0 | AD51: 0 | AE51: 0
C52: ФАП с. Поротниково ОГБУЗ "Бакчарская РБ" | D52: =[8]Расчетный!E52 -> 621 | E52: =[8]Расчетный!F52 -> 1 | F52: =[8]Расчетный!G52 -> Не соответствует | G52: =[8]Расчетный!AF52 -> 0 | H52: =[8]Расчетный!AA52 -> 0 | I52: 0 | J52: =[8]Расчетный!AM52 -> 0 | K52: =[8]Расчетный!AD52-[8]Расчетный!AK52 -> 0 | L52: =[8]Расчетный!BN52 -> 2102.1 | M52: =[8]Расчетный!BR52 -> 0.4289525689 | N52: =[8]Расчетный!I52 -> 1.00295 | O52: =[8]Расчетный!BX52 -> 892.2 | P52: =[8]Расчетный!BL52-[8]Расчетный!BV52 -> 366.2 | Q52: 0 | R52: 0 | S52: 0 | T52: 0 | U52: 0 | V52: 0 | W52: 0 | X52: 0 | Y52: 0 | Z52: 0 | AA52: 0 | AB52: 0 | AC52: 0 | AD52: 0 | AE52: 0
C53: ФАП с. Высокий Яр ОГБУЗ "Бакчарская РБ" | D53: =[8]Расчетный!E53 -> 627 | E53: =[8]Расчетный!F53 -> 1 | F53: =[8]Расчетный!G53 -> Соответствует | G53: =[8]Расчетный!AF53 -> 0 | H53: =[8]Расчетный!AA53 -> 0 | I53: 0 | J53: =[8]Расчетный!AM53 -> 0 | K53: =[8]Расчетный!AD53-[8]Расчетный!AK53 -> 0 | L53: =[8]Расчетный!BN53 -> 2102.1 | M53: =[8]Расчетный!BR53 -> 1.00475 | N53: =[8]Расчетный!I53 -> 1.00475 | O53: =[8]Расчетный!BX53 -> 2089.8 | P53: =[8]Расчетный!BL53-[8]Расчетный!BV53 -> 857.7 | Q53: 0 | R53: 0 | S53: 0 | T53: 0 | U53: 0 | V53: 0 | W53: 0 | X53: 0 | Y53: 0 | Z53: 0 | AA53: 0 | AB53: 0 | AC53: 0 | AD53: 0 | AE53: 0
C54: ФАП с. Большая Галка ОГБУЗ "Бакчарская РБ" | D54: =[8]Расчетный!E54 -> 635 | E54: =[8]Расчетный!F54 -> 1 | F54: =[8]Расчетный!G54 -> Соответствует | G54: =[8]Расчетный!AF54 -> 0 | H54: =[8]Расчетный!AA54 -> 0 | I54: 0 | J54: =[8]Расчетный!AM54 -> 0 | K54: =[8]Расчетный!AD54-[8]Расчетный!AK54 -> 0 | L54: =[8]Расчетный!BN54 -> 2102.1 | M54: =[8]Расчетный!BR54 -> 1 | N54: =[8]Расчетный!I54 -> 1 | O54: =[8]Расчетный!BX54 -> 2079.9 | P54: =[8]Расчетный!BL54-[8]Расчетный!BV54 -> 853.7 | Q54: 0 | R54: 0 | S54: 0 | T54: 0 | U54: 0 | V54: 0 | W54: 0 | X54: 0 | Y54: 0 | Z54: 0 | AA54: 0 | AB54: 0 | AC54: 0 | AD54: 0 | AE54: 0
C55: ФАП п. Плотниково ОГБУЗ "Бакчарская РБ" | D55: =[8]Расчетный!E55 -> 648 | E55: =[8]Расчетный!F55 -> 1 | F55: =[8]Расчетный!G55 -> Не соответствует | G55: =[8]Расчетный!AF55 -> 0 | H55: =[8]Расчетный!AA55 -> 0 | I55: 0 | J55: =[8]Расчетный!AM55 -> 0 | K55: =[8]Расчетный!AD55-[8]Расчетный!AK55 -> 0 | L55: =[8]Расчетный!BN55 -> 2102.1 | M55: =[8]Расчетный!BR55 -> 0.7326497269 | N55: =[8]Расчетный!I55 -> 1.00571 | O55: =[8]Расчетный!BX55 -> 1523.9 | P55: =[8]Расчетный!BL55-[8]Расчетный!BV55 -> 625.5 | Q55: 0 | R55: 0 | S55: 0 | T55: 0 | U55: 0 | V55: 0 | W55: 0 | X55: 0 | Y55: 0 | Z55: 0 | AA55: 0 | AB55: 0 | AC55: 0 | AD55: 0 | AE55: 0
A56: 65 | B56: 4 | C56: ОГБУЗ "Верхнекетская РБ" | D56: =SUM(D57:D64) -> 1933 | E56: =SUM(E57:E64) -> 8 | J56: =SUM(J57:J64) -> 1121.2 | K56: =SUM(K57:K64) -> 460.2 | O56: =SUM(O57:O64) -> 13257.4 | P56: =SUM(P57:P64) -> 5441.3 | AF56: =J56+O56+T56+Y56+AD56 -> 14378.6
C57: ФАП п. Макзыр ОГБУЗ "Верхнекетская РБ" | D57: =[8]Расчетный!E58 -> 89 | E57: =[8]Расчетный!F58 -> 1 | F57: =[8]Расчетный!G58 -> Не соответствует | G57: =[8]Расчетный!AF58 -> 1133.004 | H57: =[8]Расчетный!AA58 -> 1.00013 | I57: =[8]Расчетный!I58 -> 1.00013 | J57: =[8]Расчетный!AM58 -> 1121.2 | K57: =[8]Расчетный!AD58-[8]Расчетный!AK58 -> 460.2 | L57: =[8]Расчетный!BN58 -> 0 | M57: =[8]Расчетный!BR58 -> 0 | N57: 0 | O57: =[8]Расчетный!BX58 -> 0 | P57: =[8]Расчетный!BL58-[8]Расчетный!BV58 -> 0 | Q57: 0 | R57: 0 | S57: 0 | T57: 0 | U57: 0 | V57: 0 | W57: 0 | X57: 0 | Y57: 0 | Z57: 0 | AA57: 0 | AB57: 0 | AC57: 0 | AD57: 0 | AE57: 0
C58: ФАП п.Полуденовка ОГБУЗ "Верхнекетская РБ" | D58: =[8]Расчетный!E59 -> 120 | E58: =[8]Расчетный!F59 -> 1 | F58: =[8]Расчетный!G59 -> Не соответствует | G58: =[8]Расчетный!AF59 -> 0 | H58: =[8]Расчетный!AA59 -> 0 | I58: 0 | J58: =[8]Расчетный!AM59 -> 0 | K58: =[8]Расчетный!AD59-[8]Расчетный!AK59 -> 0 | L58: =[8]Расчетный!BN59 -> 2266.2 | M58: =[8]Расчетный!BR59 -> 0.7275237825 | N58: =[8]Расчетный!I59 -> 1.00058 | O58: =[8]Расчетный!BX59 -> 1631.2 | P58: =[8]Расчетный!BL59-[8]Расчетный!BV59 -> 669.5 | Q58: 0 | R58: 0 | S58: 0 | T58: 0 | U58: 0 | V58: 0 | W58: 0 | X58: 0 | Y58: 0 | Z58: 0 | AA58: 0 | AB58: 0 | AC58: 0 | AD58: 0 | AE58: 0
C59: ФАП п. Нибега ОГБУЗ "Верхнекетская РБ" | D59: =[8]Расчетный!E60 -> 128 | E59: =[8]Расчетный!F60 -> 1 | F59: =[8]Расчетный!G60 -> Не соответствует | G59: =[8]Расчетный!AF60 -> 0 | H59: =[8]Расчетный!AA60 -> 0 | I59: 0 | J59: =[8]Расчетный!AM60 -> 0 | K59: =[8]Расчетный!AD60-[8]Расчетный!AK60 -> 0 | L59: =[8]Расчетный!BN60 -> 2266.2 | M59: =[8]Расчетный!BR60 -> 0.7270037825 | N59: =[8]Расчетный!I60 -> 1.00006 | O59: =[8]Расчетный!BX60 -> 1630 | P59: =[8]Расчетный!BL60-[8]Расчетный!BV60 -> 669 | Q59: 0 | R59: 0 | S59: 0 | T59: 0 | U59: 0 | V59: 0 | W59: 0 | X59: 0 | Y59: 0 | Z59: 0 | AA59: 0 | AB59: 0 | AC59: 0 | AD59: 0 | AE59: 0
C60: ФАП п. Дружный ОГБУЗ "Верхнекетская РБ" | D60: =[8]Расчетный!E61 -> 184 | E60: =[8]Расчетный!F61 -> 1 | F60: =[8]Расчетный!G61 -> Не соответствует | G60: =[8]Расчетный!AF61 -> 0 | H60: =[8]Расчетный!AA61 -> 0 | I60: 0 | J60: =[8]Расчетный!AM61 -> 0 | K60: =[8]Расчетный!AD61-[8]Расчетный!AK61 -> 0 | L60: =[8]Расчетный!BN61 -> 2266.2 | M60: =[8]Расчетный!BR61 -> 0.8630747507 | N60: =[8]Расчетный!I61 -> 1 | O60: =[8]Расчетный!BX61 -> 1935.1 | P60: =[8]Расчетный!BL61-[8]Расчетный!BV61 -> 794.2 | Q60: 0 | R60: 0 | S60: 0 | T60: 0 | U60: 0 | V60: 0 | W60: 0 | X60: 0 | Y60: 0 | Z60: 0 | AA60: 0 | AB60: 0 | AC60: 0 | AD60: 0 | AE60: 0
C61: ФАП п. Центральный ОГБУЗ "Верхнекетская РБ" | D61: =[8]Расчетный!E62 -> 211 | E61: =[8]Расчетный!F62 -> 1 | F61: =[8]Расчетный!G62 -> Не соответствует | G61: =[8]Расчетный!AF62 -> 0 | H61: =[8]Расчетный!AA62 -> 0 | I61: 0 | J61: =[8]Расчетный!AM62 -> 0 | K61: =[8]Расчетный!AD62-[8]Расчетный!AK62 -> 0 | L61: =[8]Расчетный!BN62 -> 2266.2 | M61: =[8]Расчетный!BR62 -> 0.8638447507 | N61: =[8]Расчетный!I62 -> 1.00077 | O61: =[8]Расчетный!BX62 -> 1936.9 | P61: =[8]Расчетный!BL62-[8]Расчетный!BV62 -> 795 | Q61: 0 | R61: 0 | S61: 0 | T61: 0 | U61: 0 | V61: 0 | W61: 0 | X61: 0 | Y61: 0 | Z61: 0 | AA61: 0 | AB61: 0 | AC61: 0 | AD61: 0 | AE61: 0
C62: ФАП п. Палочка ОГБУЗ "Верхнекетская РБ" | D62: =[8]Расчетный!E63 -> 246 | E62: =[8]Расчетный!F63 -> 1 | F62: =[8]Расчетный!G63 -> Не соответствует | G62: =[8]Расчетный!AF63 -> 0 | H62: =[8]Расчетный!AA63 -> 0 | I62: 0 | J62: =[8]Расчетный!AM63 -> 0 | K62: =[8]Расчетный!AD63-[8]Расчетный!AK63 -> 0 | L62: =[8]Расчетный!BN63 -> 2266.2 | M62: =[8]Расчетный!BR63 -> 0.8639747507 | N62: =[8]Расчетный!I63 -> 1.0009 | O62: =[8]Расчетный!BX63 -> 1937.2 | P62: =[8]Расчетный!BL63-[8]Расчетный!BV63 -> 795.1 | Q62: 0 | R62: 0 | S62: 0 | T62: 0 | U62: 0 | V62: 0 | W62: 0 | X62: 0 | Y62: 0 | Z62: 0 | AA62: 0 | AB62: 0 | AC62: 0 | AD62: 0 | AE62: 0
C63: ФАП п. Лисица ОГБУЗ "Верхнекетская РБ" | D63: =[8]Расчетный!E64 -> 287 | E63: =[8]Расчетный!F64 -> 1 | F63: =[8]Расчетный!G64 -> Не соответствует | G63: =[8]Расчетный!AF64 -> 0 | H63: =[8]Расчетный!AA64 -> 0 | I63: 0 | J63: =[8]Расчетный!AM64 -> 0 | K63: =[8]Расчетный!AD64-[8]Расчетный!AK64 -> 0 | L63: =[8]Расчетный!BN64 -> 2266.2 | M63: =[8]Расчетный!BR64 -> 0.8638447507 | N63: =[8]Расчетный!I64 -> 1.00077 | O63: =[8]Расчетный!BX64 -> 1936.9 | P63: =[8]Расчетный!BL64-[8]Расчетный!BV64 -> 795 | Q63: 0 | R63: 0 | S63: 0 | T63: 0 | U63: 0 | V63: 0 | W63: 0 | X63: 0 | Y63: 0 | Z63: 0 | AA63: 0 | AB63: 0 | AC63: 0 | AD63: 0 | AE63: 0
C64: ФАП п. Ягодное ОГБУЗ "Верхнекетская РБ" | D64: =[8]Расчетный!E65 -> 668 | E64: =[8]Расчетный!F65 -> 1 | F64: =[8]Расчетный!G65 -> Соответствует | G64: =[8]Расчетный!AF65 -> 0 | H64: =[8]Расчетный!AA65 -> 0 | I64: 0 | J64: =[8]Расчетный!AM65 -> 0 | K64: =[8]Расчетный!AD65-[8]Расчетный!AK65 -> 0 | L64: =[8]Расчетный!BN65 -> 2266.2 | M64: =[8]Расчетный!BR65 -> 1.00347 | N64: =[8]Расчетный!I65 -> 1.00347 | O64: =[8]Расчетный!BX65 -> 2250.1 | P64: =[8]Расчетный!BL65-[8]Расчетный!BV65 -> 923.5 | Q64: 0 | R64: 0 | S64: 0 | T64: 0 | U64: 0 | V64: 0 | W64: 0 | X64: 0 | Y64: 0 | Z64: 0 | AA64: 0 | AB64: 0 | AC64: 0 | AD64: 0 | AE64: 0
A65: 67 | B65: 5 | C65: ОГБУЗ "Зырянская РБ" | D65: =SUM(D66:D75) -> 3141 | E65: =SUM(E66:E75) -> 10 | O65: =SUM(O66:O75) -> 11500.8 | P65: =SUM(P66:P75) -> 4720.4 | AF65: =J65+O65+T65+Y65+AD65 -> 11500.8
C66: ФАП с. Громышевка ОГБУЗ "Зырянская РБ" | D66: =[8]Расчетный!E69 -> 144 | E66: =[8]Расчетный!F69 -> 1 | F66: =[8]Расчетный!G69 -> Не соответствует | G66: 0 | H66: 0 | I66: 0 | J66: 0 | K66: 0 | L66: =[8]Расчетный!BN69 -> 1590.8 | M66: =[8]Расчетный!BR69 -> 0.7289798466 | N66: =[8]Расчетный!I69 -> 1.00205 | O66: =[8]Расчетный!BX69 -> 1147.5 | P66: =[8]Расчетный!BL69-[8]Расчетный!BV69 -> 471 | Q66: 0 | R66: 0 | S66: 0 | T66: 0 | U66: 0 | V66: 0 | W66: 0 | X66: 0 | Y66: 0 | Z66: 0 | AA66: 0 | AB66: 0 | AC66: 0 | AD66: 0 | AE66: 0
C67: ФАП с. Вамболы ОГБУЗ "Зырянская РБ" | D67: =[8]Расчетный!E70 -> 175 | E67: =[8]Расчетный!F70 -> 1 | F67: =[8]Расчетный!G70 -> Не соответствует | G67: 0 | H67: 0 | I67: 0 | J67: 0 | K67: 0 | L67: =[8]Расчетный!BN70 -> 1590.8 | M67: =[8]Расчетный!BR70 -> 0.7292398466 | N67: =[8]Расчетный!I70 -> 1.00231 | O67: =[8]Расчетный!BX70 -> 1147.8 | P67: =[8]Расчетный!BL70-[8]Расчетный!BV70 -> 471.1 | Q67: 0 | R67: 0 | S67: 0 | T67: 0 | U67: 0 | V67: 0 | W67: 0 | X67: 0 | Y67: 0 | Z67: 0 | AA67: 0 | AB67: 0 | AC67: 0 | AD67: 0 | AE67: 0
C68: ФАП с. Окунеево ОГБУЗ "Зырянская РБ" | D68: =[8]Расчетный!E71 -> 185 | E68: =[8]Расчетный!F71 -> 1 | F68: =[8]Расчетный!G71 -> Не соответствует | G68: 0 | H68: 0 | I68: 0 | J68: 0 | K68: 0 | L68: =[8]Расчетный!BN71 -> 1590.8 | M68: =[8]Расчетный!BR71 -> 0.7287298466 | N68: =[8]Расчетный!I71 -> 1.0018 | O68: =[8]Расчетный!BX71 -> 1147.1 | P68: =[8]Расчетный!BL71-[8]Расчетный!BV71 -> 470.8 | Q68: 0 | R68: 0 | S68: 0 | T68: 0 | U68: 0 | V68: 0 | W68: 0 | X68: 0 | Y68: 0 | Z68: 0 | AA68: 0 | AB68: 0 | AC68: 0 | AD68: 0 | AE68: 0
C69: ФАП с. Туендат ОГБУЗ "Зырянская РБ" | D69: =[8]Расчетный!E72 -> 194 | E69: =[8]Расчетный!F72 -> 1 | F69: =[8]Расчетный!G72 -> Не соответствует | G69: 0 | H69: 0 | I69: 0 | J69: 0 | K69: 0 | L69: =[8]Расчетный!BN72 -> 1590.8 | M69: =[8]Расчетный!BR72 -> 0.7280898466 | N69: =[8]Расчетный!I72 -> 1.00116 | O69: =[8]Расчетный!BX72 -> 1146 | P69: =[8]Расчетный!BL72-[8]Расчетный!BV72 -> 470.4 | Q69: 0 | R69: 0 | S69: 0 | T69: 0 | U69: 0 | V69: 0 | W69: 0 | X69: 0 | Y69: 0 | Z69: 0 | AA69: 0 | AB69: 0 | AC69: 0 | AD69: 0 | AE69: 0
C70: ФАП с. Беловодовка ОГБУЗ "Зырянская РБ" | D70: =[8]Расчетный!E73 -> 197 | E70: =[8]Расчетный!F73 -> 1 | F70: =[8]Расчетный!G73 -> Не соответствует | G70: 0 | H70: 0 | I70: 0 | J70: 0 | K70: 0 | L70: =[8]Расчетный!BN73 -> 1590.8 | M70: =[8]Расчетный!BR73 -> 0.7269298466 | N70: =[8]Расчетный!I73 -> 1 | O70: =[8]Расчетный!BX73 -> 1144.2 | P70: =[8]Расчетный!BL73-[8]Расчетный!BV73 -> 469.6 | Q70: 0 | R70: 0 | S70: 0 | T70: 0 | U70: 0 | V70: 0 | W70: 0 | X70: 0 | Y70: 0 | Z70: 0 | AA70: 0 | AB70: 0 | AC70: 0 | AD70: 0 | AE70: 0
C71: ФАП с. Красноярка ОГБУЗ "Зырянская РБ" | D71: =[8]Расчетный!E74 -> 199 | E71: =[8]Расчетный!F74 -> 1 | F71: =[8]Расчетный!G74 -> Не соответствует | G71: 0 | H71: 0 | I71: 0 | J71: 0 | K71: 0 | L71: =[8]Расчетный!BN74 -> 1590.8 | M71: =[8]Расчетный!BR74 -> 0.7297498466 | N71: =[8]Расчетный!I74 -> 1.00282 | O71: =[8]Расчетный!BX74 -> 1148.7 | P71: =[8]Расчетный!BL74-[8]Расчетный!BV74 -> 471.5 | Q71: 0 | R71: 0 | S71: 0 | T71: 0 | U71: 0 | V71: 0 | W71: 0 | X71: 0 | Y71: 0 | Z71: 0 | AA71: 0 | AB71: 0 | AC71: 0 | AD71: 0 | AE71: 0
C72: ФАП с. Шиняево ОГБУЗ "Зырянская РБ" | D72: =[8]Расчетный!E75 -> 204 | E72: =[8]Расчетный!F75 -> 1 | F72: =[8]Расчетный!G75 -> Не соответствует | G72: 0 | H72: 0 | I72: 0 | J72: 0 | K72: 0 | L72: =[8]Расчетный!BN75 -> 1590.8 | M72: =[8]Расчетный!BR75 -> 0.7299498466 | N72: =[8]Расчетный!I75 -> 1.00302 | O72: =[8]Расчетный!BX75 -> 1149 | P72: =[8]Расчетный!BL75-[8]Расчетный!BV75 -> 471.6 | Q72: 0 | R72: 0 | S72: 0 | T72: 0 | U72: 0 | V72: 0 | W72: 0 | X72: 0 | Y72: 0 | Z72: 0 | AA72: 0 | AB72: 0 | AC72: 0 | AD72: 0 | AE72: 0
C73: ФАП с. Михайловка ОГБУЗ "Зырянская РБ" | D73: =[8]Расчетный!E78 -> 523 | E73: =[8]Расчетный!F78 -> 1 | F73: =[8]Расчетный!G78 -> Не соответствует | G73: 0 | H73: 0 | I73: 0 | J73: 0 | K73: 0 | L73: =[8]Расчетный!BN78 -> 1590.8 | M73: =[8]Расчетный!BR78 -> 0.7331498466 | N73: =[8]Расчетный!I78 -> 1.00622 | O73: =[8]Расчетный!BX78 -> 1153.9 | P73: =[8]Расчетный!BL78-[8]Расчетный!BV78 -> 473.6 | Q73: 0 | R73: 0 | S73: 0 | T73: 0 | U73: 0 | V73: 0 | W73: 0 | X73: 0 | Y73: 0 | Z73: 0 | AA73: 0 | AB73: 0 | AC73: 0 | AD73: 0 | AE73: 0
C74: ФАП с. Берлинка ОГБУЗ "Зырянская РБ" | D74: =[8]Расчетный!E80 -> 601 | E74: =[8]Расчетный!F80 -> 1 | F74: =[8]Расчетный!G80 -> Не соответствует | G74: 0 | H74: 0 | I74: 0 | J74: 0 | K74: 0 | L74: =[8]Расчетный!BN80 -> 1590.8 | M74: =[8]Расчетный!BR80 -> 0.7359098466 | N74: =[8]Расчетный!I80 -> 1.00898 | O74: =[8]Расчетный!BX80 -> 1158.3 | P74: =[8]Расчетный!BL80-[8]Расчетный!BV80 -> 475.4 | Q74: 0 | R74: 0 | S74: 0 | T74: 0 | U74: 0 | V74: 0 | W74: 0 | X74: 0 | Y74: 0 | Z74: 0 | AA74: 0 | AB74: 0 | AC74: 0 | AD74: 0 | AE74: 0
C75: ФАП п. Причулымский ОГБУЗ "Зырянская РБ" | D75: =[8]Расчетный!E81 -> 719 | E75: =[8]Расчетный!F81 -> 1 | F75: =[8]Расчетный!G81 -> Не соответствует | G75: 0 | H75: 0 | I75: 0 | J75: 0 | K75: 0 | L75: =[8]Расчетный!BN81 -> 1590.8 | M75: =[8]Расчетный!BR81 -> 0.7359098466 | N75: =[8]Расчетный!I81 -> 1.00898 | O75: =[8]Расчетный!BX81 -> 1158.3 | P75: =[8]Расчетный!BL81-[8]Расчетный!BV81 -> 475.4 | Q75: 0 | R75: 0 | S75: 0 | T75: 0 | U75: 0 | V75: 0 | W75: 0 | X75: 0 | Y75: 0 | Z75: 0 | AA75: 0 | AB75: 0 | AC75: 0 | AD75: 0 | AE75: 0
A76: 69 | B76: 6 | C76: ОГБУЗ "Каргасокская РБ" | D76: =SUM(D77:D96) -> 7173 | E76: =SUM(E77:E96) -> 20 | O76: =SUM(O77:O96) -> 35786.9 | P76: =SUM(P77:P96) -> 14688.3 | T76: =SUM(T77:T96) -> 2103.9 | U76: =SUM(U77:U96) -> 863.5 | AF76: =J76+O76+T76+Y76+AD76 -> 37890.8
C77: ФАП п. Восток ОГБУЗ "Каргасокская РБ" | D77: =[8]Расчетный!E83 -> 107 | E77: =[8]Расчетный!F83 -> 1 | F77: =[8]Расчетный!G83 -> Не соответствует | G77: 0 | H77: 0 | I77: 0 | J77: 0 | K77: 0 | L77: =[8]Расчетный!BN83 -> 2311.6 | M77: =[8]Расчетный!BR83 -> 0.3173733431 | N77: =[8]Расчетный!I83 -> 1.00045 | O77: =[8]Расчетный!BX83 -> 725.8 | P77: =[8]Расчетный!BL83-[8]Расчетный!BV83 -> 297.9 | Q77: =[8]Расчетный!CY83 -> 0 | R77: =[8]Расчетный!DC83 -> 0 | S77: 0 | T77: =[8]Расчетный!DI83 -> 0 | U77: =[8]Расчетный!CW83-[8]Расчетный!DG83 -> 0 | V77: 0 | W77: 0 | X77: 0 | Y77: 0 | Z77: 0 | AA77: 0 | AB77: 0 | AC77: 0 | AD77: 0 | AE77: 0
C78: ФАП с. Бондарка ОГБУЗ "Каргасокская РБ" | D78: =[8]Расчетный!E84 -> 174 | E78: =[8]Расчетный!F84 -> 1 | F78: =[8]Расчетный!G84 -> Не соответствует | G78: 0 | H78: 0 | I78: 0 | J78: 0 | K78: 0 | L78: =[8]Расчетный!BN84 -> 2311.6 | M78: =[8]Расчетный!BR84 -> 0.7289323776 | N78: =[8]Расчетный!I84 -> 1.00199 | O78: =[8]Расчетный!BX84 -> 1667.2 | P78: =[8]Расчетный!BL84-[8]Расчетный!BV84 -> 684.3 | Q78: =[8]Расчетный!CY84 -> 0 | R78: =[8]Расчетный!DC84 -> 0 | S78: 0 | T78: =[8]Расчетный!DI84 -> 0 | U78: =[8]Расчетный!CW84-[8]Расчетный!DG84 -> 0 | V78: 0 | W78: 0 | X78: 0 | Y78: 0 | Z78: 0 | AA78: 0 | AB78: 0 | AC78: 0 | AD78: 0 | AE78: 0
C79: ФАП с. Новый Тевриз ОГБУЗ "Каргасокская РБ" | D79: =[8]Расчетный!E85 -> 186 | E79: =[8]Расчетный!F85 -> 1 | F79: =[8]Расчетный!G85 -> Не соответствует | G79: 0 | H79: 0 | I79: 0 | J79: 0 | K79: 0 | L79: =[8]Расчетный!BN85 -> 2311.6 | M79: =[8]Расчетный!BR85 -> 0.7277723776 | N79: =[8]Расчетный!I85 -> 1.00083 | O79: =[8]Расчетный!BX85 -> 1664.5 | P79: =[8]Расчетный!BL85-[8]Расчетный!BV85 -> 683.2 | Q79: =[8]Расчетный!CY85 -> 0 | R79: =[8]Расчетный!DC85 -> 0 | S79: 0 | T79: =[8]Расчетный!DI85 -> 0 | U79: =[8]Расчетный!CW85-[8]Расчетный!DG85 -> 0 | V79: 0 | W79: 0 | X79: 0 | Y79: 0 | Z79: 0 | AA79: 0 | AB79: 0 | AC79: 0 | AD79: 0 | AE79: 0
C80: ФАП д.Лозунга ОГБУЗ "Каргасокская РБ" | D80: =[8]Расчетный!E86 -> 192 | E80: =[8]Расчетный!F86 -> 1 | F80: =[8]Расчетный!G86 -> Не соответствует | G80: 0 | H80: 0 | I80: 0 | J80: 0 | K80: 0 | L80: =[8]Расчетный!BN86 -> 2311.6 | M80: =[8]Расчетный!BR86 -> 0.7298323776 | N80: =[8]Расчетный!I86 -> 1.00289 | O80: =[8]Расчетный!BX86 -> 1669.2 | P80: =[8]Расчетный!BL86-[8]Расчетный!BV86 -> 685.1 | Q80: =[8]Расчетный!CY86 -> 0 | R80: =[8]Расчетный!DC86 -> 0 | S80: 0 | T80: =[8]Расчетный!DI86 -> 0 | U80: =[8]Расчетный!CW86-[8]Расчетный!DG86 -> 0 | V80: 0 | W80: 0 | X80: 0 | Y80: 0 | Z80: 0 | AA80: 0 | AB80: 0 | AC80: 0 | AD80: 0 | AE80: 0
C81: ФАП с. Киндал ОГБУЗ "Каргасокская РБ" | D81: =[8]Расчетный!E87 -> 184 | E81: =[8]Расчетный!F87 -> 1 | F81: =[8]Расчетный!G87 -> Не соответствует | G81: 0 | H81: 0 | I81: 0 | J81: 0 | K81: 0 | L81: =[8]Расчетный!BN87 -> 2311.6 | M81: =[8]Расчетный!BR87 -> 0.7275223776 | N81: =[8]Расчетный!I87 -> 1.00058 | O81: =[8]Расчетный!BX87 -> 1664 | P81: =[8]Расчетный!BL87-[8]Расчетный!BV87 -> 683 | Q81: =[8]Расчетный!CY87 -> 0 | R81: =[8]Расчетный!DC87 -> 0 | S81: 0 | T81: =[8]Расчетный!DI87 -> 0 | U81: =[8]Расчетный!CW87-[8]Расчетный!DG87 -> 0 | V81: 0 | W81: 0 | X81: 0 | Y81: 0 | Z81: 0 | AA81: 0 | AB81: 0 | AC81: 0 | AD81: 0 | AE81: 0
C82: ФАП п. Неготка ОГБУЗ "Каргасокская РБ" | D82: =[8]Расчетный!E88 -> 224 | E82: =[8]Расчетный!F88 -> 1 | F82: =[8]Расчетный!G88 -> Не соответствует | G82: 0 | H82: 0 | I82: 0 | J82: 0 | K82: 0 | L82: =[8]Расчетный!BN88 -> 2311.6 | M82: =[8]Расчетный!BR88 -> 0.7281023776 | N82: =[8]Расчетный!I88 -> 1.00116 | O82: =[8]Расчетный!BX88 -> 1665.3 | P82: =[8]Расчетный!BL88-[8]Расчетный!BV88 -> 683.5 | Q82: =[8]Расчетный!CY88 -> 0 | R82: =[8]Расчетный!DC88 -> 0 | S82: 0 | T82: =[8]Расчетный!DI88 -> 0 | U82: =[8]Расчетный!CW88-[8]Расчетный!DG88 -> 0 | V82: 0 | W82: 0 | X82: 0 | Y82: 0 | Z82: 0 | AA82: 0 | AB82: 0 | AC82: 0 | AD82: 0 | AE82: 0
C83: ФАП п. Большая Грива ОГБУЗ "Каргасокская РБ" | D83: =[8]Расчетный!E89 -> 207 | E83: =[8]Расчетный!F89 -> 1 | F83: =[8]Расчетный!G89 -> Не соответствует | G83: 0 | H83: 0 | I83: 0 | J83: 0 | K83: 0 | L83: =[8]Расчетный!BN89 -> 2311.6 | M83: =[8]Расчетный!BR89 -> 0.7297023776 | N83: =[8]Расчетный!I89 -> 1.00276 | O83: =[8]Расчетный!BX89 -> 1669 | P83: =[8]Расчетный!BL89-[8]Расчетный!BV89 -> 685 | Q83: =[8]Расчетный!CY89 -> 0 | R83: =[8]Расчетный!DC89 -> 0 | S83: 0 | T83: =[8]Расчетный!DI89 -> 0 | U83: =[8]Расчетный!CW89-[8]Расчетный!DG89 -> 0 | V83: 0 | W83: 0 | X83: 0 | Y83: 0 | Z83: 0 | AA83: 0 | AB83: 0 | AC83: 0 | AD83: 0 | AE83: 0
C84: ФАП п. 5-й км. ОГБУЗ "Каргасокская РБ" | D84: =[8]Расчетный!E90 -> 252 | E84: =[8]Расчетный!F90 -> 1 | F84: =[8]Расчетный!G90 -> Не соответствует | G84: 0 | H84: 0 | I84: 0 | J84: 0 | K84: 0 | L84: =[8]Расчетный!BN90 -> 2311.6 | M84: =[8]Расчетный!BR90 -> 0.7309823776 | N84: =[8]Расчетный!I90 -> 1.00404 | O84: =[8]Расчетный!BX90 -> 1671.9 | P84: =[8]Расчетный!BL90-[8]Расчетный!BV90 -> 686.2 | Q84: =[8]Расчетный!CY90 -> 0 | R84: =[8]Расчетный!DC90 -> 0 | S84: 0 | T84: =[8]Расчетный!DI90 -> 0 | U84: =[8]Расчетный!CW90-[8]Расчетный!DG90 -> 0 | V84: 0 | W84: 0 | X84: 0 | Y84: 0 | Z84: 0 | AA84: 0 | AB84: 0 | AC84: 0 | AD84: 0 | AE84: 0
C85: ФАП с. Старая Березовка ОГБУЗ "Каргасокская РБ" | D85: =[8]Расчетный!E91 -> 207 | E85: =[8]Расчетный!F91 -> 1 | F85: =[8]Расчетный!G91 -> Не соответствует | G85: 0 | H85: 0 | I85: 0 | J85: 0 | K85: 0 | L85: =[8]Расчетный!BN91 -> 2311.6 | M85: =[8]Расчетный!BR91 -> 0.7282923776 | N85: =[8]Расчетный!I91 -> 1.00135 | O85: =[8]Расчетный!BX91 -> 1665.7 | P85: =[8]Расчетный!BL91-[8]Расчетный!BV91 -> 683.7 | Q85: =[8]Расчетный!CY91 -> 0 | R85: =[8]Расчетный!DC91 -> 0 | S85: 0 | T85: =[8]Расчетный!DI91 -> 0 | U85: =[8]Расчетный!CW91-[8]Расчетный!DG91 -> 0 | V85: 0 | W85: 0 | X85: 0 | Y85: 0 | Z85: 0 | AA85: 0 | AB85: 0 | AC85: 0 | AD85: 0 | AE85: 0
C86: ФАП с. Сосновка ОГБУЗ "Каргасокская РБ" | D86: =[8]Расчетный!E92 -> 271 | E86: =[8]Расчетный!F92 -> 1 | F86: =[8]Расчетный!G92 -> Не соответствует | G86: 0 | H86: 0 | I86: 0 | J86: 0 | K86: 0 | L86: =[8]Расчетный!BN92 -> 2311.6 | M86: =[8]Расчетный!BR92 -> 0.7310523776 | N86: =[8]Расчетный!I92 -> 1.00411 | O86: =[8]Расчетный!BX92 -> 1672.1 | P86: =[8]Расчетный!BL92-[8]Расчетный!BV92 -> 686.3 | Q86: =[8]Расчетный!CY92 -> 0 | R86: =[8]Расчетный!DC92 -> 0 | S86: 0 | T86: =[8]Расчетный!DI92 -> 0 | U86: =[8]Расчетный!CW92-[8]Расчетный!DG92 -> 0 | V86: 0 | W86: 0 | X86: 0 | Y86: 0 | Z86: 0 | AA86: 0 | AB86: 0 | AC86: 0 | AD86: 0 | AE86: 0
C87: ФАП с. Напас ОГБУЗ "Каргасокская РБ" | D87: =[8]Расчетный!E93 -> 272 | E87: =[8]Расчетный!F93 -> 1 | F87: =[8]Расчетный!G93 -> Не соответствует | G87: 0 | H87: 0 | I87: 0 | J87: 0 | K87: 0 | L87: =[8]Расчетный!BN93 -> 2311.6 | M87: =[8]Расчетный!BR93 -> 0.7286123776 | N87: =[8]Расчетный!I93 -> 1.00167 | O87: =[8]Расчетный!BX93 -> 1666.5 | P87: =[8]Расчетный!BL93-[8]Расчетный!BV93 -> 684 | Q87: =[8]Расчетный!CY93 -> 0 | R87: =[8]Расчетный!DC93 -> 0 | S87: 0 | T87: =[8]Расчетный!DI93 -> 0 | U87: =[8]Расчетный!CW93-[8]Расчетный!DG93 -> 0 | V87: 0 | W87: 0 | X87: 0 | Y87: 0 | Z87: 0 | AA87: 0 | AB87: 0 | AC87: 0 | AD87: 0 | AE87: 0
C88: ФАП с. Тымск ОГБУЗ "Каргасокская РБ" | D88: =[8]Расчетный!E94 -> 266 | E88: =[8]Расчетный!F94 -> 1 | F88: =[8]Расчетный!G94 -> Соответствует | G88: 0 | H88: 0 | I88: 0 | J88: 0 | K88: 0 | L88: =[8]Расчетный!BN94 -> 2311.6 | M88: =[8]Расчетный!BR94 -> 1.00225 | N88: =[8]Расчетный!I94 -> 1.00225 | O88: =[8]Расчетный!BX94 -> 2292.4 | P88: =[8]Расчетный!BL94-[8]Расчетный!BV94 -> 940.9 | Q88: =[8]Расчетный!CY94 -> 0 | R88: =[8]Расчетный!DC94 -> 0 | S88: 0 | T88: =[8]Расчетный!DI94 -> 0 | U88: =[8]Расчетный!CW94-[8]Расчетный!DG94 -> 0 | V88: 0 | W88: 0 | X88: 0 | Y88: 0 | Z88: 0 | AA88: 0 | AB88: 0 | AC88: 0 | AD88: 0 | AE88: 0
C89: ФАП п. Киевский ОГБУЗ "Каргасокская РБ" | D89: =[8]Расчетный!E95 -> 322 | E89: =[8]Расчетный!F95 -> 1 | F89: =[8]Расчетный!G95 -> Соответствует | G89: 0 | H89: 0 | I89: 0 | J89: 0 | K89: 0 | L89: =[8]Расчетный!BN95 -> 2311.6 | M89: =[8]Расчетный!BR95 -> 1.00276 | N89: =[8]Расчетный!I95 -> 1.00276 | O89: =[8]Расчетный!BX95 -> 2293.5 | P89: =[8]Расчетный!BL95-[8]Расчетный!BV95 -> 941.3 | Q89: =[8]Расчетный!CY95 -> 0 | R89: =[8]Расчетный!DC95 -> 0 | S89: 0 | T89: =[8]Расчетный!DI95 -> 0 | U89: =[8]Расчетный!CW95-[8]Расчетный!DG95 -> 0 | V89: 0 | W89: 0 | X89: 0 | Y89: 0 | Z89: 0 | AA89: 0 | AB89: 0 | AC89: 0 | AD89: 0 | AE89: 0
C90: ФАП с. Мыльджино ОГБУЗ "Каргасокская РБ" | D90: =[8]Расчетный!E96 -> 344 | E90: =[8]Расчетный!F96 -> 1 | F90: =[8]Расчетный!G96 -> Соответствует | G90: 0 | H90: 0 | I90: 0 | J90: 0 | K90: 0 | L90: =[8]Расчетный!BN96 -> 2311.6 | M90: =[8]Расчетный!BR96 -> 1.00635 | N90: =[8]Расчетный!I96 -> 1.00635 | O90: =[8]Расчетный!BX96 -> 2301.7 | P90: =[8]Расчетный!BL96-[8]Расчетный!BV96 -> 944.7 | Q90: =[8]Расчетный!CY96 -> 0 | R90: =[8]Расчетный!DC96 -> 0 | S90: 0 | T90: =[8]Расчетный!DI96 -> 0 | U90: =[8]Расчетный!CW96-[8]Расчетный!DG96 -> 0 | V90: 0 | W90: 0 | X90: 0 | Y90: 0 | Z90: 0 | AA90: 0 | AB90: 0 | AC90: 0 | AD90: 0 | AE90: 0
C91: ФАП с. Усть-Тым ОГБУЗ "Каргасокская РБ" | D91: =[8]Расчетный!E97 -> 397 | E91: =[8]Расчетный!F97 -> 1 | F91: =[8]Расчетный!G97 -> Соответствует | G91: 0 | H91: 0 | I91: 0 | J91: 0 | K91: 0 | L91: =[8]Расчетный!BN97 -> 2311.6 | M91: =[8]Расчетный!BR97 -> 1.00456 | N91: =[8]Расчетный!I97 -> 1.00456 | O91: =[8]Расчетный!BX97 -> 2297.6 | P91: =[8]Расчетный!BL97-[8]Расчетный!BV97 -> 943 | Q91: =[8]Расчетный!CY97 -> 0 | R91: =[8]Расчетный!DC97 -> 0 | S91: 0 | T91: =[8]Расчетный!DI97 -> 0 | U91: =[8]Расчетный!CW97-[8]Расчетный!DG97 -> 0 | V91: 0 | W91: 0 | X91: 0 | Y91: 0 | Z91: 0 | AA91: 0 | AB91: 0 | AC91: 0 | AD91: 0 | AE91: 0
C92: ФАП с. Староюгино ОГБУЗ "Каргасокская РБ" | D92: =[8]Расчетный!E98 -> 462 | E92: =[8]Расчетный!F98 -> 1 | F92: =[8]Расчетный!G98 -> Соответствует | G92: 0 | H92: 0 | I92: 0 | J92: 0 | K92: 0 | L92: =[8]Расчетный!BN98 -> 2311.6 | M92: =[8]Расчетный!BR98 -> 1.0025 | N92: =[8]Расчетный!I98 -> 1.0025 | O92: =[8]Расчетный!BX98 -> 2292.9 | P92: =[8]Расчетный!BL98-[8]Расчетный!BV98 -> 941.1 | Q92: =[8]Расчетный!CY98 -> 0 | R92: =[8]Расчетный!DC98 -> 0 | S92: 0 | T92: =[8]Расчетный!DI98 -> 0 | U92: =[8]Расчетный!CW98-[8]Расчетный!DG98 -> 0 | V92: 0 | W92: 0 | X92: 0 | Y92: 0 | Z92: 0 | AA92: 0 | AB92: 0 | AC92: 0 | AD92: 0 | AE92: 0
C93: ФАП с. Новоюгино ОГБУЗ "Каргасокская РБ" | D93: =[8]Расчетный!E99 -> 489 | E93: =[8]Расчетный!F99 -> 1 | F93: =[8]Расчетный!G99 -> Соответствует | G93: 0 | H93: 0 | I93: 0 | J93: 0 | K93: 0 | L93: =[8]Расчетный!BN99 -> 2311.6 | M93: =[8]Расчетный!BR99 -> 1 | N93: =[8]Расчетный!I99 -> 1 | O93: =[8]Расчетный!BX99 -> 2287.1 | P93: =[8]Расчетный!BL99-[8]Расчетный!BV99 -> 938.7 | Q93: =[8]Расчетный!CY99 -> 0 | R93: =[8]Расчетный!DC99 -> 0 | S93: 0 | T93: =[8]Расчетный!DI99 -> 0 | U93: =[8]Расчетный!CW99-[8]Расчетный!DG99 -> 0 | V93: 0 | W93: 0 | X93: 0 | Y93: 0 | Z93: 0 | AA93: 0 | AB93: 0 | AC93: 0 | AD93: 0 | AE93: 0
C94: ФАП с. Вертикос ОГБУЗ "Каргасокская РБ" | D94: =[8]Расчетный!E100 -> 517 | E94: =[8]Расчетный!F100 -> 1 | F94: =[8]Расчетный!G100 -> Соответствует | G94: 0 | H94: 0 | I94: 0 | J94: 0 | K94: 0 | L94: =[8]Расчетный!BN100 -> 2311.6 | M94: =[8]Расчетный!BR100 -> 1.00764 | N94: =[8]Расчетный!I100 -> 1.00764 | O94: =[8]Расчетный!BX100 -> 2304.7 | P94: =[8]Расчетный!BL100-[8]Расчетный!BV100 -> 945.9 | Q94: =[8]Расчетный!CY100 -> 0 | R94: =[8]Расчетный!DC100 -> 0 | S94: 0 | T94: =[8]Расчетный!DI100 -> 0 | U94: =[8]Расчетный!CW100-[8]Расчетный!DG100 -> 0 | V94: 0 | W94: 0 | X94: 0 | Y94: 0 | Z94: 0 | AA94: 0 | AB94: 0 | AC94: 0 | AD94: 0 | AE94: 0
C95: ФАП с. Павлово ОГБУЗ "Каргасокская РБ" | D95: =[8]Расчетный!E101 -> 741 | E95: =[8]Расчетный!F101 -> 1 | F95: =[8]Расчетный!G101 -> Соответствует | G95: 0 | H95: 0 | I95: 0 | J95: 0 | K95: 0 | L95: =[8]Расчетный!BN101 -> 2311.6 | M95: =[8]Расчетный!BR101 -> 1.01251 | N95: =[8]Расчетный!I101 -> 1.01251 | O95: =[8]Расчетный!BX101 -> 2315.8 | P95: =[8]Расчетный!BL101-[8]Расчетный!BV101 -> 950.5 | Q95: =[8]Расчетный!CY101 -> 0 | R95: =[8]Расчетный!DC101 -> 0 | S95: 0 | T95: =[8]Расчетный!DI101 -> 0 | U95: =[8]Расчетный!CW101-[8]Расчетный!DG101 -> 0 | V95: 0 | W95: 0 | X95: 0 | Y95: 0 | Z95: 0 | AA95: 0 | AB95: 0 | AC95: 0 | AD95: 0 | AE95: 0
C96: ФАП Геологический ОГБУЗ "Каргасокская РБ" | D96: =[8]Расчетный!E102 -> 1359 | E96: =[8]Расчетный!F102 -> 1 | F96: =[8]Расчетный!G102 -> Не соответствует | G96: 0 | H96: 0 | I96: 0 | J96: 0 | K96: 0 | L96: =[8]Расчетный!BN102 -> 0 | M96: =[8]Расчетный!BR102 -> 0 | N96: 0 | O96: =[8]Расчетный!BX102 -> 0 | P96: =[8]Расчетный!BL102-[8]Расчетный!BV102 -> 0 | Q96: =[8]Расчетный!CY102 -> 4623.1 | R96: =[8]Расчетный!DC102 -> 0.4599426136 | S96: =[8]Расчетный!I102 -> 1.00687 | T96: =[8]Расчетный!DI102 -> 2103.9 | U96: =[8]Расчетный!CW102-[8]Расчетный!DG102 -> 863.5 | V96: 0 | W96: 0 | X96: 0 | Y96: 0 | Z96: 0 | AA96: 0 | AB96: 0 | AC96: 0 | AD96: 0 | AE96: 0
A97: 71 | B97: 7 | C97: ОГАУЗ "Кожевниковская РБ" | D97: =SUM(D98:D111) -> 4561 | E97: =SUM(E98:E111) -> 14 | O97: =SUM(O98:O111) -> 15850.2 | P97: =SUM(P98:P111) -> 6280.7 | AF97: =J97+O97+T97+Y97+AD97 -> 15850.2
C98: ФАП д. Аркадьево ОГАУЗ "Кожевниковская РБ" | D98: =[8]Расчетный!E105 -> 124 | E98: =[8]Расчетный!F105 -> 1 | F98: =[8]Расчетный!G105 -> Не соответствует | G98: 0 | H98: 0 | I98: 0 | J98: 0 | K98: 0 | L98: =[8]Расчетный!BN105 -> 1605.9 | M98: =[8]Расчетный!BR105 -> 0.7277143926 | N98: =[8]Расчетный!I105 -> 1.00077 | O98: =[8]Расчетный!BX105 -> 1156.3 | P98: =[8]Расчетный!BL105-[8]Расчетный!BV105 -> 474.6 | Q98: 0 | R98: 0 | S98: 0 | T98: 0 | U98: 0 | V98: 0 | W98: 0 | X98: 0 | Y98: 0 | Z98: 0 | AA98: 0 | AB98: 0 | AC98: 0 | AD98: 0 | AE98: 0
C99: ФАП д. Сафроновка ОГАУЗ "Кожевниковская РБ" | D99: =[8]Расчетный!E106 -> 152 | E99: =[8]Расчетный!F106 -> 1 | F99: =[8]Расчетный!G106 -> Не соответствует | G99: 0 | H99: 0 | I99: 0 | J99: 0 | K99: 0 | L99: =[8]Расчетный!BN106 -> 1605.9 | M99: =[8]Расчетный!BR106 -> 0.7283543926 | N99: =[8]Расчетный!I106 -> 1.00141 | O99: =[8]Расчетный!BX106 -> 1157.3 | P99: =[8]Расчетный!BL106-[8]Расчетный!BV106 -> 475 | Q99: 0 | R99: 0 | S99: 0 | T99: 0 | U99: 0 | V99: 0 | W99: 0 | X99: 0 | Y99: 0 | Z99: 0 | AA99: 0 | AB99: 0 | AC99: 0 | AD99: 0 | AE99: 0
C100: ФАП д. Аптала ОГАУЗ "Кожевниковская РБ" | D100: =[8]Расчетный!E107 -> 200 | E100: =[8]Расчетный!F107 -> 1 | F100: =[8]Расчетный!G107 -> Не соответствует | G100: 0 | H100: 0 | I100: 0 | J100: 0 | K100: 0 | L100: =[8]Расчетный!BN107 -> 1605.9 | M100: =[8]Расчетный!BR107 -> 0.7291243926 | N100: =[8]Расчетный!I107 -> 1.00218 | O100: =[8]Расчетный!BX107 -> 1158.5 | P100: =[8]Расчетный!BL107-[8]Расчетный!BV107 -> 475.5 | Q100: 0 | R100: 0 | S100: 0 | T100: 0 | U100: 0 | V100: 0 | W100: 0 | X100: 0 | Y100: 0 | Z100: 0 | AA100: 0 | AB100: 0 | AC100: 0 | AD100: 0 | AE100: 0
C101: ФАП с. Тека ОГАУЗ "Кожевниковская РБ" | D101: =[8]Расчетный!E112 -> 298 | E101: =[8]Расчетный!F112 -> 1 | F101: =[8]Расчетный!G112 -> Не соответствует | G101: 0 | H101: 0 | I101: 0 | J101: 0 | K101: 0 | L101: =[8]Расчетный!BN112 -> 1605.9 | M101: =[8]Расчетный!BR112 -> 0.7298343926 | N101: =[8]Расчетный!I112 -> 1.00289 | O101: =[8]Расчетный!BX112 -> 1159.7 | P101: =[8]Расчетный!BL112-[8]Расчетный!BV112 -> 476 | Q101: 0 | R101: 0 | S101: 0 | T101: 0 | U101: 0 | V101: 0 | W101: 0 | X101: 0 | Y101: 0 | Z101: 0 | AA101: 0 | AB101: 0 | AC101: 0 | AD101: 0 | AE101: 0
C102: ФАП с. Батурино ОГАУЗ "Кожевниковская РБ" | D102: =[8]Расчетный!E113 -> 302 | E102: =[8]Расчетный!F113 -> 1 | F102: =[8]Расчетный!G113 -> Не соответствует | G102: 0 | H102: 0 | I102: 0 | J102: 0 | K102: 0 | L102: =[8]Расчетный!BN113 -> 1605.9 | M102: =[8]Расчетный!BR113 -> 0.7298343926 | N102: =[8]Расчетный!I113 -> 1.00289 | O102: =[8]Расчетный!BX113 -> 1159.7 | P102: =[8]Расчетный!BL113-[8]Расчетный!BV113 -> 476 | Q102: 0 | R102: 0 | S102: 0 | T102: 0 | U102: 0 | V102: 0 | W102: 0 | X102: 0 | Y102: 0 | Z102: 0 | AA102: 0 | AB102: 0 | AC102: 0 | AD102: 0 | AE102: 0
C103: ФАП д. Еловка ОГАУЗ "Кожевниковская РБ" | D103: =[8]Расчетный!E114 -> 335 | E103: =[8]Расчетный!F114 -> 1 | F103: =[8]Расчетный!G114 -> Не соответствует | G103: 0 | H103: 0 | I103: 0 | J103: 0 | K103: 0 | L103: =[8]Расчетный!BN114 -> 1605.9 | M103: =[8]Расчетный!BR114 -> 0.7291243926 | N103: =[8]Расчетный!I114 -> 1.00218 | O103: =[8]Расчетный!BX114 -> 1158.5 | P103: =[8]Расчетный!BL114-[8]Расчетный!BV114 -> 475.5 | Q103: 0 | R103: 0 | S103: 0 | T103: 0 | U103: 0 | V103: 0 | W103: 0 | X103: 0 | Y103: 0 | Z103: 0 | AA103: 0 | AB103: 0 | AC103: 0 | AD103: 0 | AE103: 0
C104: ФАП с. Хмелевка ОГАУЗ "Кожевниковская РБ" | D104: =[8]Расчетный!E115 -> 337 | E104: =[8]Расчетный!F115 -> 1 | F104: =[8]Расчетный!G115 -> Не соответствует | G104: 0 | H104: 0 | I104: 0 | J104: 0 | K104: 0 | L104: =[8]Расчетный!BN115 -> 1605.9 | M104: =[8]Расчетный!BR115 -> 0.7296443926 | N104: =[8]Расчетный!I115 -> 1.0027 | O104: =[8]Расчетный!BX115 -> 1159.3 | P104: =[8]Расчетный!BL115-[8]Расчетный!BV115 -> 475.8 | Q104: 0 | R104: 0 | S104: 0 | T104: 0 | U104: 0 | V104: 0 | W104: 0 | X104: 0 | Y104: 0 | Z104: 0 | AA104: 0 | AB104: 0 | AC104: 0 | AD104: 0 | AE104: 0
C105: ФАП с. Елгай ОГАУЗ "Кожевниковская РБ" | D105: =[8]Расчетный!E116 -> 352 | E105: =[8]Расчетный!F116 -> 1 | F105: =[8]Расчетный!G116 -> Не соответствует | G105: 0 | H105: 0 | I105: 0 | J105: 0 | K105: 0 | L105: =[8]Расчетный!BN116 -> 1605.9 | M105: =[8]Расчетный!BR116 -> 0.7298343926 | N105: =[8]Расчетный!I116 -> 1.00289 | O105: =[8]Расчетный!BX116 -> 1159.7 | P105: =[8]Расчетный!BL116-[8]Расчетный!BV116 -> 476 | Q105: 0 | R105: 0 | S105: 0 | T105: 0 | U105: 0 | V105: 0 | W105: 0 | X105: 0 | Y105: 0 | Z105: 0 | AA105: 0 | AB105: 0 | AC105: 0 | AD105: 0 | AE105: 0
C106: ФАП с. Осиновка ОГАУЗ "Кожевниковская РБ" | D106: =[8]Расчетный!E117 -> 355 | E106: =[8]Расчетный!F117 -> 1 | F106: =[8]Расчетный!G117 -> Не соответствует | G106: 0 | H106: 0 | I106: 0 | J106: 0 | K106: 0 | L106: =[8]Расчетный!BN117 -> 1605.9 | M106: =[8]Расчетный!BR117 -> 0.7300843926 | N106: =[8]Расчетный!I117 -> 1.00314 | O106: =[8]Расчетный!BX117 -> 1160 | P106: =[8]Расчетный!BL117-[8]Расчетный!BV117 -> 476.1 | Q106: 0 | R106: 0 | S106: 0 | T106: 0 | U106: 0 | V106: 0 | W106: 0 | X106: 0 | Y106: 0 | Z106: 0 | AA106: 0 | AB106: 0 | AC106: 0 | AD106: 0 | AE106: 0
C107: ФАП д. Терсалгай ОГАУЗ "Кожевниковская РБ" | D107: =[8]Расчетный!E118 -> 360 | E107: =[8]Расчетный!F118 -> 1 | F107: =[8]Расчетный!G118 -> Не соответствует | G107: 0 | H107: 0 | I107: 0 | J107: 0 | K107: 0 | L107: =[8]Расчетный!BN118 -> 1605.9 | M107: =[8]Расчетный!BR118 -> 0.7282943926 | N107: =[8]Расчетный!I118 -> 1.00135 | O107: =[8]Расчетный!BX118 -> 1157.3 | P107: =[8]Расчетный!BL118-[8]Расчетный!BV118 -> 475 | Q107: 0 | R107: 0 | S107: 0 | T107: 0 | U107: 0 | V107: 0 | W107: 0 | X107: 0 | Y107: 0 | Z107: 0 | AA107: 0 | AB107: 0 | AC107: 0 | AD107: 0 | AE107: 0
C108: ФАП д. Муллова ОГАУЗ "Кожевниковская РБ" | D108: =[8]Расчетный!E119 -> 421 | E108: =[8]Расчетный!F119 -> 1 | F108: =[8]Расчетный!G119 -> Не соответствует | G108: 0 | H108: 0 | I108: 0 | J108: 0 | K108: 0 | L108: =[8]Расчетный!BN119 -> 1605.9 | M108: =[8]Расчетный!BR119 -> 0.7288043926 | N108: =[8]Расчетный!I119 -> 1.00186 | O108: =[8]Расчетный!BX119 -> 1158 | P108: =[8]Расчетный!BL119-[8]Расчетный!BV119 -> 475.3 | Q108: 0 | R108: 0 | S108: 0 | T108: 0 | U108: 0 | V108: 0 | W108: 0 | X108: 0 | Y108: 0 | Z108: 0 | AA108: 0 | AB108: 0 | AC108: 0 | AD108: 0 | AE108: 0
C109: ФАП с. Базой ОГАУЗ "Кожевниковская РБ" | D109: =[8]Расчетный!E120 -> 422 | E109: =[8]Расчетный!F120 -> 1 | F109: =[8]Расчетный!G120 -> Не соответствует | G109: 0 | H109: 0 | I109: 0 | J109: 0 | K109: 0 | L109: =[8]Расчетный!BN120 -> 1605.9 | M109: =[8]Расчетный!BR120 -> 0.7316243926 | N109: =[8]Расчетный!I120 -> 1.00468 | O109: =[8]Расчетный!BX120 -> 1162.5 | P109: =[8]Расчетный!BL120-[8]Расчетный!BV120 -> 477.1 | Q109: 0 | R109: 0 | S109: 0 | T109: 0 | U109: 0 | V109: 0 | W109: 0 | X109: 0 | Y109: 0 | Z109: 0 | AA109: 0 | AB109: 0 | AC109: 0 | AD109: 0 | AE109: 0
C110: ФАП с. Новопокровка ОГАУЗ "Кожевниковская РБ" | D110: =[8]Расчетный!E121 -> 442 | E110: =[8]Расчетный!F121 -> 1 | F110: =[8]Расчетный!G121 -> Не соответствует | G110: 0 | H110: 0 | I110: 0 | J110: 0 | K110: 0 | L110: =[8]Расчетный!BN121 -> 1605.9 | M110: =[8]Расчетный!BR121 -> 0.7308543926 | N110: =[8]Расчетный!I121 -> 1.00391 | O110: =[8]Расчетный!BX121 -> 780 | P110: =[8]Расчетный!BL121-[8]Расчетный!BV121 -> 95.3 | Q110: 0 | R110: 0 | S110: 0 | T110: 0 | U110: 0 | V110: 0 | W110: 0 | X110: 0 | Y110: 0 | Z110: 0 | AA110: 0 | AB110: 0 | AC110: 0 | AD110: 0 | AE110: 0
C111: ФАП д. Зайцево ОГАУЗ "Кожевниковская РБ" | D111: =[8]Расчетный!E122 -> 461 | E111: =[8]Расчетный!F122 -> 1 | F111: =[8]Расчетный!G122 -> Не соответствует | G111: 0 | H111: 0 | I111: 0 | J111: 0 | K111: 0 | L111: =[8]Расчетный!BN122 -> 1605.9 | M111: =[8]Расчетный!BR122 -> 0.7321443926 | N111: =[8]Расчетный!I122 -> 1.0052 | O111: =[8]Расчетный!BX122 -> 1163.4 | P111: =[8]Расчетный!BL122-[8]Расчетный!BV122 -> 477.5 | Q111: 0 | R111: 0 | S111: 0 | T111: 0 | U111: 0 | V111: 0 | W111: 0 | X111: 0 | Y111: 0 | Z111: 0 | AA111: 0 | AB111: 0 | AC111: 0 | AD111: 0 | AE111: 0
A112: 103 | B112: 8 | C112: ОГAУЗ "Колпашевская РБ" | D112: =SUM(D113:D132) -> 4082 | E112: =SUM(E113:E132) -> 20 | J112: =SUM(J113:J132) -> 7749.8 | K112: =SUM(K113:K132) -> 3126.6 | O112: =SUM(O113:O132) -> 21261.3 | P112: =SUM(P113:P132) -> 8726.1 | AF112: =J112+O112+T112+Y112+AD112 -> 29011.1
C113: ФАП с. Иванкино ОГАУЗ "Колпашевская РБ" | D113: =[8]Расчетный!E124 -> 12 | E113: =[8]Расчетный!F124 -> 1 | F113: =[8]Расчетный!G124 -> Не соответствует | G113: =[8]Расчетный!AF124 -> 1131.7416 | H113: =[8]Расчетный!AA124 -> 1 | I113: =[8]Расчетный!I124 -> 1 | J113: =[8]Расчетный!AM124 -> 1119.8 | K113: =[8]Расчетный!AD124-[8]Расчетный!AK124 -> 459.6 | L113: =[8]Расчетный!BN124 -> 0 | M113: =[8]Расчетный!BR124 -> 0 | N113: 0 | O113: =[8]Расчетный!BX124 -> 0 | P113: =[8]Расчетный!BL124-[8]Расчетный!BV124 -> 0 | Q113: 0 | R113: 0 | S113: 0 | T113: 0 | U113: 0 | V113: 0 | W113: 0 | X113: 0 | Y113: 0 | Z113: 0 | AA113: 0 | AB113: 0 | AC113: 0 | AD113: 0 | AE113: 0
C114: ФАП п. Куржино ОГАУЗ "Колпашевская РБ" | D114: =[8]Расчетный!E125 -> 27 | E114: =[8]Расчетный!F125 -> 1 | F114: =[8]Расчетный!G125 -> Не соответствует | G114: =[8]Расчетный!AF125 -> 1131.7416 | H114: =[8]Расчетный!AA125 -> 1.00026 | I114: =[8]Расчетный!I125 -> 1.00026 | J114: =[8]Расчетный!AM125 -> 1120 | K114: =[8]Расчетный!AD125-[8]Расчетный!AK125 -> 459.7 | L114: =[8]Расчетный!BN125 -> 0 | M114: =[8]Расчетный!BR125 -> 0 | N114: 0 | O114: =[8]Расчетный!BX125 -> 0 | P114: =[8]Расчетный!BL125-[8]Расчетный!BV125 -> 0 | Q114: 0 | R114: 0 | S114: 0 | T114: 0 | U114: 0 | V114: 0 | W114: 0 | X114: 0 | Y114: 0 | Z114: 0 | AA114: 0 | AB114: 0 | AC114: 0 | AD114: 0 | AE114: 0
C115: ФАП д. Тискино ОГАУЗ "Колпашевская РБ" | D115: =[8]Расчетный!E126 -> 30 | E115: =[8]Расчетный!F126 -> 1 | F115: =[8]Расчетный!G126 -> Не соответствует | G115: =[8]Расчетный!AF126 -> 1131.7416 | H115: =[8]Расчетный!AA126 -> 1.00026 | I115: =[8]Расчетный!I126 -> 1.00026 | J115: =[8]Расчетный!AM126 -> 1120 | K115: =[8]Расчетный!AD126-[8]Расчетный!AK126 -> 459.7 | L115: =[8]Расчетный!BN126 -> 0 | M115: =[8]Расчетный!BR126 -> 0 | N115: 0 | O115: =[8]Расчетный!BX126 -> 0 | P115: =[8]Расчетный!BL126-[8]Расчетный!BV126 -> 0 | Q115: 0 | R115: 0 | S115: 0 | T115: 0 | U115: 0 | V115: 0 | W115: 0 | X115: 0 | Y115: 0 | Z115: 0 | AA115: 0 | AB115: 0 | AC115: 0 | AD115: 0 | AE115: 0
C116: ФАП д. Мохово ОГАУЗ "Колпашевская РБ" | D116: =[8]Расчетный!E127 -> 36 | E116: =[8]Расчетный!F127 -> 1 | F116: =[8]Расчетный!G127 -> Не соответствует | G116: =[8]Расчетный!AF127 -> 1131.7416 | H116: =[8]Расчетный!AA127 -> 1.00038 | I116: =[8]Расчетный!I127 -> 1.00038 | J116: =[8]Расчетный!AM127 -> 1120.3 | K116: =[8]Расчетный!AD127-[8]Расчетный!AK127 -> 459.8 | L116: =[8]Расчетный!BN127 -> 0 | M116: =[8]Расчетный!BR127 -> 0 | N116: 0 | O116: =[8]Расчетный!BX127 -> 0 | P116: =[8]Расчетный!BL127-[8]Расчетный!BV127 -> 0 | Q116: 0 | R116: 0 | S116: 0 | T116: 0 | U116: 0 | V116: 0 | W116: 0 | X116: 0 | Y116: 0 | Z116: 0 | AA116: 0 | AB116: 0 | AC116: 0 | AD116: 0 | AE116: 0
C117: ФАП д. Север ОГАУЗ "Колпашевская РБ" | D117: =[8]Расчетный!E128 -> 40 | E117: =[8]Расчетный!F128 -> 1 | F117: =[8]Расчетный!G128 -> Не соответствует | G117: =[8]Расчетный!AF128 -> 1131.7416 | H117: =[8]Расчетный!AA128 -> 1.00077 | I117: =[8]Расчетный!I128 -> 1.00077 | J117: =[8]Расчетный!AM128 -> 1028.7 | K117: =[8]Расчетный!AD128-[8]Расчетный!AK128 -> 368 | L117: =[8]Расчетный!BN128 -> 0 | M117: =[8]Расчетный!BR128 -> 0 | N117: 0 | O117: =[8]Расчетный!BX128 -> 0 | P117: =[8]Расчетный!BL128-[8]Расчетный!BV128 -> 0 | Q117: 0 | R117: 0 | S117: 0 | T117: 0 | U117: 0 | V117: 0 | W117: 0 | X117: 0 | Y117: 0 | Z117: 0 | AA117: 0 | AB117: 0 | AC117: 0 | AD117: 0 | AE117: 0
C118: ФАП п. Дальнее ОГАУЗ "Колпашевская РБ" | D118: =[8]Расчетный!E129 -> 58 | E118: =[8]Расчетный!F129 -> 1 | F118: =[8]Расчетный!G129 -> Не соответствует | G118: =[8]Расчетный!AF129 -> 1131.7416 | H118: =[8]Расчетный!AA129 -> 1.00038 | I118: =[8]Расчетный!I129 -> 1.00038 | J118: =[8]Расчетный!AM129 -> 1120.3 | K118: =[8]Расчетный!AD129-[8]Расчетный!AK129 -> 459.8 | L118: =[8]Расчетный!BN129 -> 0 | M118: =[8]Расчетный!BR129 -> 0 | N118: 0 | O118: =[8]Расчетный!BX129 -> 0 | P118: =[8]Расчетный!BL129-[8]Расчетный!BV129 -> 0 | Q118: 0 | R118: 0 | S118: 0 | T118: 0 | U118: 0 | V118: 0 | W118: 0 | X118: 0 | Y118: 0 | Z118: 0 | AA118: 0 | AB118: 0 | AC118: 0 | AD118: 0 | AE118: 0
C119: ФАП д. Сугот ОГАУЗ "Колпашевская РБ" | D119: =[8]Расчетный!E130 -> 83 | E119: =[8]Расчетный!F130 -> 1 | F119: =[8]Расчетный!G130 -> Не соответствует | G119: =[8]Расчетный!AF130 -> 1131.7416 | H119: =[8]Расчетный!AA130 -> 1.00077 | I119: =[8]Расчетный!I130 -> 1.00077 | J119: =[8]Расчетный!AM130 -> 1120.7 | K119: =[8]Расчетный!AD130-[8]Расчетный!AK130 -> 460 | L119: =[8]Расчетный!BN130 -> 0 | M119: =[8]Расчетный!BR130 -> 0 | N119: 0 | O119: =[8]Расчетный!BX130 -> 0 | P119: =[8]Расчетный!BL130-[8]Расчетный!BV130 -> 0 | Q119: 0 | R119: 0 | S119: 0 | T119: 0 | U119: 0 | V119: 0 | W119: 0 | X119: 0 | Y119: 0 | Z119: 0 | AA119: 0 | AB119: 0 | AC119: 0 | AD119: 0 | AE119: 0
C120: ФАП с. Старокороткино ОГАУЗ "Колпашевская РБ" | D120: =[8]Расчетный!E131 -> 115 | E120: =[8]Расчетный!F131 -> 1 | F120: =[8]Расчетный!G131 -> Не соответствует | G120: =[8]Расчетный!AF131 -> 0 | H120: =[8]Расчетный!AA131 -> 0 | I120: 0 | J120: =[8]Расчетный!AM131 -> 0 | K120: =[8]Расчетный!AD131-[8]Расчетный!AK131 -> 0 | L120: =[8]Расчетный!BN131 -> 2263.7 | M120: =[8]Расчетный!BR131 -> 0.7280414512 | N120: =[8]Расчетный!I131 -> 1.00109 | O120: =[8]Расчетный!BX131 -> 1630.6 | P120: =[8]Расчетный!BL131-[8]Расчетный!BV131 -> 669.2 | Q120: 0 | R120: 0 | S120: 0 | T120: 0 | U120: 0 | V120: 0 | W120: 0 | X120: 0 | Y120: 0 | Z120: 0 | AA120: 0 | AB120: 0 | AC120: 0 | AD120: 0 | AE120: 0
C121: ФАП д. Белояровка ОГАУЗ "Колпашевская РБ" | D121: =[8]Расчетный!E132 -> 118 | E121: =[8]Расчетный!F132 -> 1 | F121: =[8]Расчетный!G132 -> Не соответствует | G121: =[8]Расчетный!AF132 -> 0 | H121: =[8]Расчетный!AA132 -> 0 | I121: 0 | J121: =[8]Расчетный!AM132 -> 0 | K121: =[8]Расчетный!AD132-[8]Расчетный!AK132 -> 0 | L121: =[8]Расчетный!BN132 -> 2263.7 | M121: =[8]Расчетный!BR132 -> 0.7274614512 | N121: =[8]Расчетный!I132 -> 1.00051 | O121: =[8]Расчетный!BX132 -> 1629.3 | P121: =[8]Расчетный!BL132-[8]Расчетный!BV132 -> 668.7 | Q121: 0 | R121: 0 | S121: 0 | T121: 0 | U121: 0 | V121: 0 | W121: 0 | X121: 0 | Y121: 0 | Z121: 0 | AA121: 0 | AB121: 0 | AC121: 0 | AD121: 0 | AE121: 0
C122: ФАП с.Тогур ОГАУЗ "Колпашевская РБ" | D122: =[8]Расчетный!E133 -> 125 | E122: =[8]Расчетный!F133 -> 1 | F122: =[8]Расчетный!G133 -> Не соответствует | G122: =[8]Расчетный!AF133 -> 0 | H122: =[8]Расчетный!AA133 -> 0 | I122: 0 | J122: =[8]Расчетный!AM133 -> 0 | K122: =[8]Расчетный!AD133-[8]Расчетный!AK133 -> 0 | L122: =[8]Расчетный!BN133 -> 2263.7 | M122: =[8]Расчетный!BR133 -> 0.7274014512 | N122: =[8]Расчетный!I133 -> 1.00045 | O122: =[8]Расчетный!BX133 -> 1629.2 | P122: =[8]Расчетный!BL133-[8]Расчетный!BV133 -> 668.7 | Q122: 0 | R122: 0 | S122: 0 | T122: 0 | U122: 0 | V122: 0 | W122: 0 | X122: 0 | Y122: 0 | Z122: 0 | AA122: 0 | AB122: 0 | AC122: 0 | AD122: 0 | AE122: 0
C123: ФАП с. Копыловка ОГАУЗ "Колпашевская РБ" | D123: =[8]Расчетный!E134 -> 155 | E123: =[8]Расчетный!F134 -> 1 | F123: =[8]Расчетный!G134 -> Не соответствует | G123: =[8]Расчетный!AF134 -> 0 | H123: =[8]Расчетный!AA134 -> 0 | I123: 0 | J123: =[8]Расчетный!AM134 -> 0 | K123: =[8]Расчетный!AD134-[8]Расчетный!AK134 -> 0 | L123: =[8]Расчетный!BN134 -> 2263.7 | M123: =[8]Расчетный!BR134 -> 0.7269514512 | N123: =[8]Расчетный!I134 -> 1 | O123: =[8]Расчетный!BX134 -> 1628.1 | P123: =[8]Расчетный!BL134-[8]Расчетный!BV134 -> 668.2 | Q123: 0 | R123: 0 | S123: 0 | T123: 0 | U123: 0 | V123: 0 | W123: 0 | X123: 0 | Y123: 0 | Z123: 0 | AA123: 0 | AB123: 0 | AC123: 0 | AD123: 0 | AE123: 0
C124: ФАП д. Могильный Мыс ОГАУЗ "Колпашевская РБ" | D124: =[8]Расчетный!E135 -> 164 | E124: =[8]Расчетный!F135 -> 1 | F124: =[8]Расчетный!G135 -> Не соответствует | G124: =[8]Расчетный!AF135 -> 0 | H124: =[8]Расчетный!AA135 -> 0 | I124: 0 | J124: =[8]Расчетный!AM135 -> 0 | K124: =[8]Расчетный!AD135-[8]Расчетный!AK135 -> 0 | L124: =[8]Расчетный!BN135 -> 2263.7 | M124: =[8]Расчетный!BR135 -> 0.7269514512 | N124: =[8]Расчетный!I135 -> 1 | O124: =[8]Расчетный!BX135 -> 1628.1 | P124: =[8]Расчетный!BL135-[8]Расчетный!BV135 -> 668.2 | Q124: 0 | R124: 0 | S124: 0 | T124: 0 | U124: 0 | V124: 0 | W124: 0 | X124: 0 | Y124: 0 | Z124: 0 | AA124: 0 | AB124: 0 | AC124: 0 | AD124: 0 | AE124: 0
C125: ФАП с. Новоильинка ОГАУЗ "Колпашевская РБ" | D125: =[8]Расчетный!E136 -> 207 | E125: =[8]Расчетный!F136 -> 1 | F125: =[8]Расчетный!G136 -> Не соответствует | G125: =[8]Расчетный!AF136 -> 0 | H125: =[8]Расчетный!AA136 -> 0 | I125: 0 | J125: =[8]Расчетный!AM136 -> 0 | K125: =[8]Расчетный!AD136-[8]Расчетный!AK136 -> 0 | L125: =[8]Расчетный!BN136 -> 2263.7 | M125: =[8]Расчетный!BR136 -> 0.7294514512 | N125: =[8]Расчетный!I136 -> 1.0025 | O125: =[8]Расчетный!BX136 -> 1633.8 | P125: =[8]Расчетный!BL136-[8]Расчетный!BV136 -> 670.5 | Q125: 0 | R125: 0 | S125: 0 | T125: 0 | U125: 0 | V125: 0 | W125: 0 | X125: 0 | Y125: 0 | Z125: 0 | AA125: 0 | AB125: 0 | AC125: 0 | AD125: 0 | AE125: 0
C126: ФАП с. Озерное ОГАУЗ "Колпашевская РБ" | D126: =[8]Расчетный!E137 -> 293 | E126: =[8]Расчетный!F137 -> 1 | F126: =[8]Расчетный!G137 -> Не соответствует | G126: =[8]Расчетный!AF137 -> 0 | H126: =[8]Расчетный!AA137 -> 0 | I126: 0 | J126: =[8]Расчетный!AM137 -> 0 | K126: =[8]Расчетный!AD137-[8]Расчетный!AK137 -> 0 | L126: =[8]Расчетный!BN137 -> 2263.7 | M126: =[8]Расчетный!BR137 -> 0.7302914512 | N126: =[8]Расчетный!I137 -> 1.00334 | O126: =[8]Расчетный!BX137 -> 1635.7 | P126: =[8]Расчетный!BL137-[8]Расчетный!BV137 -> 671.3 | Q126: 0 | R126: 0 | S126: 0 | T126: 0 | U126: 0 | V126: 0 | W126: 0 | X126: 0 | Y126: 0 | Z126: 0 | AA126: 0 | AB126: 0 | AC126: 0 | AD126: 0 | AE126: 0
C127: ФАП д. Маракса ОГАУЗ "Колпашевская РБ" | D127: =[8]Расчетный!E138 -> 329 | E127: =[8]Расчетный!F138 -> 1 | F127: =[8]Расчетный!G138 -> Не соответствует | G127: =[8]Расчетный!AF138 -> 0 | H127: =[8]Расчетный!AA138 -> 0 | I127: 0 | J127: =[8]Расчетный!AM138 -> 0 | K127: =[8]Расчетный!AD138-[8]Расчетный!AK138 -> 0 | L127: =[8]Расчетный!BN138 -> 2263.7 | M127: =[8]Расчетный!BR138 -> 0.7309914512 | N127: =[8]Расчетный!I138 -> 1.00404 | O127: =[8]Расчетный!BX138 -> 1637.2 | P127: =[8]Расчетный!BL138-[8]Расчетный!BV138 -> 672 | Q127: 0 | R127: 0 | S127: 0 | T127: 0 | U127: 0 | V127: 0 | W127: 0 | X127: 0 | Y127: 0 | Z127: 0 | AA127: 0 | AB127: 0 | AC127: 0 | AD127: 0 | AE127: 0
C128: ФАП г.Колпашево ОГБУЗ "Колпашевская РБ" | D128: =[8]Расчетный!E139 -> 369 | E128: =[8]Расчетный!F139 -> 1 | F128: =[8]Расчетный!G139 -> Не соответствует | G128: =[8]Расчетный!AF139 -> 0 | H128: =[8]Расчетный!AA139 -> 0 | I128: 0 | J128: =[8]Расчетный!AM139 -> 0 | K128: =[8]Расчетный!AD139-[8]Расчетный!AK139 -> 0 | L128: =[8]Расчетный!BN139 -> 2263.7 | M128: =[8]Расчетный!BR139 -> 0.7324014512 | N128: =[8]Расчетный!I139 -> 1.00545 | O128: =[8]Расчетный!BX139 -> 1640.3 | P128: =[8]Расчетный!BL139-[8]Расчетный!BV139 -> 673.2 | Q128: 0 | R128: 0 | S128: 0 | T128: 0 | U128: 0 | V128: 0 | W128: 0 | X128: 0 | Y128: 0 | Z128: 0 | AA128: 0 | AB128: 0 | AC128: 0 | AD128: 0 | AE128: 0
C129: ФАП д. Новогорное ОГАУЗ "Колпашевская РБ" | D129: =[8]Расчетный!E140 -> 396 | E129: =[8]Расчетный!F140 -> 1 | F129: =[8]Расчетный!G140 -> Не соответствует | G129: =[8]Расчетный!AF140 -> 0 | H129: =[8]Расчетный!AA140 -> 0 | I129: 0 | J129: =[8]Расчетный!AM140 -> 0 | K129: =[8]Расчетный!AD140-[8]Расчетный!AK140 -> 0 | L129: =[8]Расчетный!BN140 -> 2263.7 | M129: =[8]Расчетный!BR140 -> 0.7322114512 | N129: =[8]Расчетный!I140 -> 1.00526 | O129: =[8]Расчетный!BX140 -> 1640 | P129: =[8]Расчетный!BL140-[8]Расчетный!BV140 -> 673.1 | Q129: 0 | R129: 0 | S129: 0 | T129: 0 | U129: 0 | V129: 0 | W129: 0 | X129: 0 | Y129: 0 | Z129: 0 | AA129: 0 | AB129: 0 | AC129: 0 | AD129: 0 | AE129: 0
C130: ФАП пос. Большая Саровка ОГАУЗ "Колпашевская РБ" | D130: =[8]Расчетный!E141 -> 410 | E130: =[8]Расчетный!F141 -> 1 | F130: =[8]Расчетный!G141 -> Не соответствует | G130: =[8]Расчетный!AF141 -> 0 | H130: =[8]Расчетный!AA141 -> 0 | I130: 0 | J130: =[8]Расчетный!AM141 -> 0 | K130: =[8]Расчетный!AD141-[8]Расчетный!AK141 -> 0 | L130: =[8]Расчетный!BN141 -> 2263.7 | M130: =[8]Расчетный!BR141 -> 0.7318914512 | N130: =[8]Расчетный!I141 -> 1.00494 | O130: =[8]Расчетный!BX141 -> 1639.3 | P130: =[8]Расчетный!BL141-[8]Расчетный!BV141 -> 672.8 | Q130: 0 | R130: 0 | S130: 0 | T130: 0 | U130: 0 | V130: 0 | W130: 0 | X130: 0 | Y130: 0 | Z130: 0 | AA130: 0 | AB130: 0 | AC130: 0 | AD130: 0 | AE130: 0
C131: ФАП с. Инкино ОГАУЗ "Колпашевская РБ" | D131: =[8]Расчетный!E142 -> 501 | E131: =[8]Расчетный!F142 -> 1 | F131: =[8]Расчетный!G142 -> Не соответствует | G131: =[8]Расчетный!AF142 -> 0 | H131: =[8]Расчетный!AA142 -> 0 | I131: 0 | J131: =[8]Расчетный!AM142 -> 0 | K131: =[8]Расчетный!AD142-[8]Расчетный!AK142 -> 0 | L131: =[8]Расчетный!BN142 -> 2263.7 | M131: =[8]Расчетный!BR142 -> 0.7344614512 | N131: =[8]Расчетный!I142 -> 1.00751 | O131: =[8]Расчетный!BX142 -> 1645.1 | P131: =[8]Расчетный!BL142-[8]Расчетный!BV142 -> 675.2 | Q131: 0 | R131: 0 | S131: 0 | T131: 0 | U131: 0 | V131: 0 | W131: 0 | X131: 0 | Y131: 0 | Z131: 0 | AA131: 0 | AB131: 0 | AC131: 0 | AD131: 0 | AE131: 0
C132: ФАП с. Новоселово ОГАУЗ "Колпашевская РБ" | D132: =[8]Расчетный!E143 -> 614 | E132: =[8]Расчетный!F143 -> 1 | F132: =[8]Расчетный!G143 -> Не соответствует | G132: =[8]Расчетный!AF143 -> 0 | H132: =[8]Расчетный!AA143 -> 0 | I132: 0 | J132: =[8]Расчетный!AM143 -> 0 | K132: =[8]Расчетный!AD143-[8]Расчетный!AK143 -> 0 | L132: =[8]Расчетный!BN143 -> 2263.7 | M132: =[8]Расчетный!BR143 -> 0.7342714512 | N132: =[8]Расчетный!I143 -> 1.00732 | O132: =[8]Расчетный!BX143 -> 1644.6 | P132: =[8]Расчетный!BL143-[8]Расчетный!BV143 -> 675 | Q132: 0 | R132: 0 | S132: 0 | T132: 0 | U132: 0 | V132: 0 | W132: 0 | X132: 0 | Y132: 0 | Z132: 0 | AA132: 0 | AB132: 0 | AC132: 0 | AD132: 0 | AE132: 0
A133: 73 | B133: 9 | C133: ОГАУЗ "Кривошеинская РБ" | D133: =SUM(D134:D144) -> 3353 | E133: =SUM(E134:E144) -> 11 | O133: =SUM(O134:O144) -> 16323.4 | P133: =SUM(P134:P144) -> 6699.5 | AF133: =J133+O133+T133+Y133+AD133 -> 16323.4
C134: ФАП д. Новоисламбуль ОГАУЗ "Кривошеинская РБ" | D134: =[8]Расчетный!E146 -> 128 | E134: =[8]Расчетный!F146 -> 1 | F134: =[8]Расчетный!G146 -> Не соответствует | G134: =[8]Расчетный!AF146 -> 0 | H134: =[8]Расчетный!AA146 -> 0 | I134: 0 | J134: =[8]Расчетный!AM146 -> 0 | K134: 0 | L134: =[8]Расчетный!BN146 -> 2057.9 | M134: =[8]Расчетный!BR146 -> 0.7275946625 | N134: =[8]Расчетный!I146 -> 1.00064 | O134: =[8]Расчетный!BX146 -> 1481.4 | P134: =[8]Расчетный!BL146-[8]Расчетный!BV146 -> 608 | Q134: 0 | R134: 0 | S134: 0 | T134: 0 | U134: 0 | V134: 0 | W134: 0 | X134: 0 | Y134: 0 | Z134: 0 | AA134: 0 | AB134: 0 | AC134: 0 | AD134: 0 | AE134: 0
C135: ФАП д. Вознесенка ОГАУЗ "Кривошеинская РБ" | D135: =[8]Расчетный!E147 -> 151 | E135: =[8]Расчетный!F147 -> 1 | F135: =[8]Расчетный!G147 -> Не соответствует | G135: =[8]Расчетный!AF147 -> 0 | H135: =[8]Расчетный!AA147 -> 0 | I135: 0 | J135: =[8]Расчетный!AM147 -> 0 | K135: 0 | L135: =[8]Расчетный!BN147 -> 2057.9 | M135: =[8]Расчетный!BR147 -> 0.7269546625 | N135: =[8]Расчетный!I147 -> 1 | O135: =[8]Расчетный!BX147 -> 1480.2 | P135: =[8]Расчетный!BL147-[8]Расчетный!BV147 -> 607.5 | Q135: 0 | R135: 0 | S135: 0 | T135: 0 | U135: 0 | V135: 0 | W135: 0 | X135: 0 | Y135: 0 | Z135: 0 | AA135: 0 | AB135: 0 | AC135: 0 | AD135: 0 | AE135: 0
C136: ФАП д. Елизарьево ОГАУЗ "Кривошеинская РБ" | D136: =[8]Расчетный!E148 -> 190 | E136: =[8]Расчетный!F148 -> 1 | F136: =[8]Расчетный!G148 -> Не соответствует | G136: =[8]Расчетный!AF148 -> 0 | H136: =[8]Расчетный!AA148 -> 0 | I136: 0 | J136: =[8]Расчетный!AM148 -> 0 | K136: 0 | L136: =[8]Расчетный!BN148 -> 2057.9 | M136: =[8]Расчетный!BR148 -> 0.7286246625 | N136: =[8]Расчетный!I148 -> 1.00167 | O136: =[8]Расчетный!BX148 -> 1483.6 | P136: =[8]Расчетный!BL148-[8]Расчетный!BV148 -> 608.9 | Q136: 0 | R136: 0 | S136: 0 | T136: 0 | U136: 0 | V136: 0 | W136: 0 | X136: 0 | Y136: 0 | Z136: 0 | AA136: 0 | AB136: 0 | AC136: 0 | AD136: 0 | AE136: 0
C137: ФАП с. Белосток ОГАУЗ "Кривошеинская РБ" | D137: =[8]Расчетный!E149 -> 235 | E137: =[8]Расчетный!F149 -> 1 | F137: =[8]Расчетный!G149 -> Не соответствует | G137: =[8]Расчетный!AF149 -> 0 | H137: =[8]Расчетный!AA149 -> 0 | I137: 0 | J137: =[8]Расчетный!AM149 -> 0 | K137: 0 | L137: =[8]Расчетный!BN149 -> 2057.9 | M137: =[8]Расчетный!BR149 -> 0.7277846625 | N137: =[8]Расчетный!I149 -> 1.00083 | O137: =[8]Расчетный!BX149 -> 1481.9 | P137: =[8]Расчетный!BL149-[8]Расчетный!BV149 -> 608.2 | Q137: 0 | R137: 0 | S137: 0 | T137: 0 | U137: 0 | V137: 0 | W137: 0 | X137: 0 | Y137: 0 | Z137: 0 | AA137: 0 | AB137: 0 | AC137: 0 | AD137: 0 | AE137: 0
C138: ФАП с. Никольское ОГАУЗ "Кривошеинская РБ" | D138: =[8]Расчетный!E150 -> 278 | E138: =[8]Расчетный!F150 -> 1 | F138: =[8]Расчетный!G150 -> Не соответствует | G138: =[8]Расчетный!AF150 -> 0 | H138: =[8]Расчетный!AA150 -> 0 | I138: 0 | J138: =[8]Расчетный!AM150 -> 0 | K138: 0 | L138: =[8]Расчетный!BN150 -> 2057.9 | M138: =[8]Расчетный!BR150 -> 0.7281746625 | N138: =[8]Расчетный!I150 -> 1.00122 | O138: =[8]Расчетный!BX150 -> 1482.6 | P138: =[8]Расчетный!BL150-[8]Расчетный!BV150 -> 608.5 | Q138: 0 | R138: 0 | S138: 0 | T138: 0 | U138: 0 | V138: 0 | W138: 0 | X138: 0 | Y138: 0 | Z138: 0 | AA138: 0 | AB138: 0 | AC138: 0 | AD138: 0 | AE138: 0
C139: ФАП с. Малиновка ОГАУЗ "Кривошеинская РБ" | D139: =[8]Расчетный!E151 -> 280 | E139: =[8]Расчетный!F151 -> 1 | F139: =[8]Расчетный!G151 -> Не соответствует | G139: =[8]Расчетный!AF151 -> 0 | H139: =[8]Расчетный!AA151 -> 0 | I139: 0 | J139: =[8]Расчетный!AM151 -> 0 | K139: 0 | L139: =[8]Расчетный!BN151 -> 2057.9 | M139: =[8]Расчетный!BR151 -> 0.7276646625 | N139: =[8]Расчетный!I151 -> 1.00071 | O139: =[8]Расчетный!BX151 -> 1481.6 | P139: =[8]Расчетный!BL151-[8]Расчетный!BV151 -> 608.1 | Q139: 0 | R139: 0 | S139: 0 | T139: 0 | U139: 0 | V139: 0 | W139: 0 | X139: 0 | Y139: 0 | Z139: 0 | AA139: 0 | AB139: 0 | AC139: 0 | AD139: 0 | AE139: 0
C140: ФАП с. Петровка ОГАУЗ "Кривошеинская РБ" | D140: =[8]Расчетный!E152 -> 295 | E140: =[8]Расчетный!F152 -> 1 | F140: =[8]Расчетный!G152 -> Не соответствует | G140: =[8]Расчетный!AF152 -> 0 | H140: =[8]Расчетный!AA152 -> 0 | I140: 0 | J140: =[8]Расчетный!AM152 -> 0 | K140: 0 | L140: =[8]Расчетный!BN152 -> 2057.9 | M140: =[8]Расчетный!BR152 -> 0.7290746625 | N140: =[8]Расчетный!I152 -> 1.00212 | O140: =[8]Расчетный!BX152 -> 1484.5 | P140: =[8]Расчетный!BL152-[8]Расчетный!BV152 -> 609.3 | Q140: 0 | R140: 0 | S140: 0 | T140: 0 | U140: 0 | V140: 0 | W140: 0 | X140: 0 | Y140: 0 | Z140: 0 | AA140: 0 | AB140: 0 | AC140: 0 | AD140: 0 | AE140: 0
C141: ФАП с. Иштан ОГАУЗ "Кривошеинская РБ" | D141: =[8]Расчетный!E153 -> 385 | E141: =[8]Расчетный!F153 -> 1 | F141: =[8]Расчетный!G153 -> Не соответствует | G141: =[8]Расчетный!AF153 -> 0 | H141: =[8]Расчетный!AA153 -> 0 | I141: 0 | J141: =[8]Расчетный!AM153 -> 0 | K141: 0 | L141: =[8]Расчетный!BN153 -> 2057.9 | M141: =[8]Расчетный!BR153 -> 0.7297146625 | N141: =[8]Расчетный!I153 -> 1.00276 | O141: =[8]Расчетный!BX153 -> 1485.8 | P141: =[8]Расчетный!BL153-[8]Расчетный!BV153 -> 609.8 | Q141: 0 | R141: 0 | S141: 0 | T141: 0 | U141: 0 | V141: 0 | W141: 0 | X141: 0 | Y141: 0 | Z141: 0 | AA141: 0 | AB141: 0 | AC141: 0 | AD141: 0 | AE141: 0
C142: ФАП с. Жуково ОГАУЗ "Кривошеинская РБ" | D142: =[8]Расчетный!E154 -> 390 | E142: =[8]Расчетный!F154 -> 1 | F142: =[8]Расчетный!G154 -> Не соответствует | G142: =[8]Расчетный!AF154 -> 0 | H142: =[8]Расчетный!AA154 -> 0 | I142: 0 | J142: =[8]Расчетный!AM154 -> 0 | K142: 0 | L142: =[8]Расчетный!BN154 -> 2057.9 | M142: =[8]Расчетный!BR154 -> 0.7295846625 | N142: =[8]Расчетный!I154 -> 1.00263 | O142: =[8]Расчетный!BX154 -> 1485.5 | P142: =[8]Расчетный!BL154-[8]Расчетный!BV154 -> 609.7 | Q142: 0 | R142: 0 | S142: 0 | T142: 0 | U142: 0 | V142: 0 | W142: 0 | X142: 0 | Y142: 0 | Z142: 0 | AA142: 0 | AB142: 0 | AC142: 0 | AD142: 0 | AE142: 0
C143: ФАП с. Пудовка ОГАУЗ "Кривошеинская РБ" | D143: =[8]Расчетный!E155 -> 459 | E143: =[8]Расчетный!F155 -> 1 | F143: =[8]Расчетный!G155 -> Не соответствует | G143: =[8]Расчетный!AF155 -> 0 | H143: =[8]Расчетный!AA155 -> 0 | I143: 0 | J143: =[8]Расчетный!AM155 -> 0 | K143: 0 | L143: =[8]Расчетный!BN155 -> 2057.9 | M143: =[8]Расчетный!BR155 -> 0.7303546625 | N143: =[8]Расчетный!I155 -> 1.0034 | O143: =[8]Расчетный!BX155 -> 1487.1 | P143: =[8]Расчетный!BL155-[8]Расчетный!BV155 -> 610.3 | Q143: 0 | R143: 0 | S143: 0 | T143: 0 | U143: 0 | V143: 0 | W143: 0 | X143: 0 | Y143: 0 | Z143: 0 | AA143: 0 | AB143: 0 | AC143: 0 | AD143: 0 | AE143: 0
C144: ФАП с. Новокривошеино ОГАУЗ "Кривошеинская РБ" | D144: =[8]Расчетный!E156 -> 562 | E144: =[8]Расчетный!F156 -> 1 | F144: =[8]Расчетный!G156 -> Не соответствует | G144: =[8]Расчетный!AF156 -> 0 | H144: =[8]Расчетный!AA156 -> 0 | I144: 0 | J144: =[8]Расчетный!AM156 -> 0 | K144: 0 | L144: =[8]Расчетный!BN156 -> 2057.9 | M144: =[8]Расчетный!BR156 -> 0.7314446625 | N144: =[8]Расчетный!I156 -> 1.00449 | O144: =[8]Расчетный!BX156 -> 1489.2 | P144: =[8]Расчетный!BL156-[8]Расчетный!BV156 -> 611.2 | Q144: 0 | R144: 0 | S144: 0 | T144: 0 | U144: 0 | V144: 0 | W144: 0 | X144: 0 | Y144: 0 | Z144: 0 | AA144: 0 | AB144: 0 | AC144: 0 | AD144: 0 | AE144: 0
A145: 75 | B145: 10 | C145: ОГБУЗ "Молчановская РБ" | D145: =SUM(D146:D154) -> 1787 | E145: =SUM(E146:E154) -> 9 | J145: =SUM(J146:J154) -> 3068.7 | K145: =SUM(K146:K154) -> 1259.6 | O145: =SUM(O146:O154) -> 9506.9 | P145: =SUM(P146:P154) -> 3902 | AF145: =J145+O145+T145+Y145+AD145 -> 12575.6
C146: ФП д. Нижняя Федоровка ОГБУЗ "Молчановская РБ" | D146: =[8]Расчетный!E158 -> 42 | E146: =[8]Расчетный!F158 -> 1 | F146: =[8]Расчетный!G158 -> Не соответствует | G146: =[8]Расчетный!AF158 -> 1033.2744 | H146: =[8]Расчетный!AA158 -> 1 | I146: =[8]Расчетный!I158 -> 1 | J146: =[8]Расчетный!AM158 -> 1022.5 | K146: =[8]Расчетный!AD158-[8]Расчетный!AK158 -> 419.7 | L146: =[8]Расчетный!BN158 -> 0 | M146: =[8]Расчетный!BR158 -> 0 | N146: 0 | O146: =[8]Расчетный!BX158 -> 0 | P146: =[8]Расчетный!BL158-[8]Расчетный!BV158 -> 0 | Q146: 0 | R146: 0 | S146: 0 | T146: 0 | U146: 0 | V146: 0 | W146: 0 | X146: 0 | Y146: 0 | Z146: 0 | AA146: 0 | AB146: 0 | AC146: 0 | AD146: 0 | AE146: 0
C147: ФП д. Верхняя Федоровка ОГБУЗ "Молчановская РБ" | D147: =[8]Расчетный!E159 -> 65 | E147: =[8]Расчетный!F159 -> 1 | F147: =[8]Расчетный!G159 -> Не соответствует | G147: =[8]Расчетный!AF159 -> 1033.2744 | H147: =[8]Расчетный!AA159 -> 1.00103 | I147: =[8]Расчетный!I159 -> 1.00103 | J147: =[8]Расчетный!AM159 -> 1023.4 | K147: =[8]Расчетный!AD159-[8]Расчетный!AK159 -> 420.1 | L147: =[8]Расчетный!BN159 -> 0 | M147: =[8]Расчетный!BR159 -> 0 | N147: 0 | O147: =[8]Расчетный!BX159 -> 0 | P147: =[8]Расчетный!BL159-[8]Расчетный!BV159 -> 0 | Q147: 0 | R147: 0 | S147: 0 | T147: 0 | U147: 0 | V147: 0 | W147: 0 | X147: 0 | Y147: 0 | Z147: 0 | AA147: 0 | AB147: 0 | AC147: 0 | AD147: 0 | AE147: 0
C148: ФП с. Игреково ОГБУЗ "Молчановская РБ" | D148: =[8]Расчетный!E160 -> 86 | E148: =[8]Расчетный!F160 -> 1 | F148: =[8]Расчетный!G160 -> Не соответствует | G148: =[8]Расчетный!AF160 -> 1033.2744 | H148: =[8]Расчетный!AA160 -> 1.00038 | I148: =[8]Расчетный!I160 -> 1.00038 | J148: =[8]Расчетный!AM160 -> 1022.8 | K148: =[8]Расчетный!AD160-[8]Расчетный!AK160 -> 419.8 | L148: =[8]Расчетный!BN160 -> 0 | M148: =[8]Расчетный!BR160 -> 0 | N148: 0 | O148: =[8]Расчетный!BX160 -> 0 | P148: =[8]Расчетный!BL160-[8]Расчетный!BV160 -> 0 | Q148: 0 | R148: 0 | S148: 0 | T148: 0 | U148: 0 | V148: 0 | W148: 0 | X148: 0 | Y148: 0 | Z148: 0 | AA148: 0 | AB148: 0 | AC148: 0 | AD148: 0 | AE148: 0
C149: ФП д. Майково ОГБУЗ "Молчановская РБ" | D149: =[8]Расчетный!E161 -> 114 | E149: =[8]Расчетный!F161 -> 1 | F149: =[8]Расчетный!G161 -> Не соответствует | G149: =[8]Расчетный!AF161 -> 0 | H149: =[8]Расчетный!AA161 -> 0 | I149: 0 | J149: =[8]Расчетный!AM161 -> 0 | K149: =[8]Расчетный!AD161-[8]Расчетный!AK161 -> 0 | L149: =[8]Расчетный!BN161 -> 2066.7 | M149: =[8]Расчетный!BR161 -> 0.7274660168 | N149: =[8]Расчетный!I161 -> 1.00051 | O149: =[8]Расчетный!BX161 -> 1487.5 | P149: =[8]Расчетный!BL161-[8]Расчетный!BV161 -> 610.5 | Q149: 0 | R149: 0 | S149: 0 | T149: 0 | U149: 0 | V149: 0 | W149: 0 | X149: 0 | Y149: 0 | Z149: 0 | AA149: 0 | AB149: 0 | AC149: 0 | AD149: 0 | AE149: 0
C150: ФП с. Колбинка ОГБУЗ "Молчановская РБ" | D150: =[8]Расчетный!E162 -> 124 | E150: =[8]Расчетный!F162 -> 1 | F150: =[8]Расчетный!G162 -> Не соответствует | G150: =[8]Расчетный!AF162 -> 0 | H150: =[8]Расчетный!AA162 -> 0 | I150: 0 | J150: =[8]Расчетный!AM162 -> 0 | K150: =[8]Расчетный!AD162-[8]Расчетный!AK162 -> 0 | L150: =[8]Расчетный!BN162 -> 2066.7 | M150: =[8]Расчетный!BR162 -> 0.7273460168 | N150: =[8]Расчетный!I162 -> 1.00039 | O150: =[8]Расчетный!BX162 -> 1487.4 | P150: =[8]Расчетный!BL162-[8]Расчетный!BV162 -> 610.5 | Q150: 0 | R150: 0 | S150: 0 | T150: 0 | U150: 0 | V150: 0 | W150: 0 | X150: 0 | Y150: 0 | Z150: 0 | AA150: 0 | AB150: 0 | AC150: 0 | AD150: 0 | AE150: 0
C151: ФП с. Гришино ОГБУЗ "Молчановская РБ" | D151: =[8]Расчетный!E163 -> 127 | E151: =[8]Расчетный!F163 -> 1 | F151: =[8]Расчетный!G163 -> Не соответствует | G151: =[8]Расчетный!AF163 -> 0 | H151: =[8]Расчетный!AA163 -> 0 | I151: 0 | J151: =[8]Расчетный!AM163 -> 0 | K151: =[8]Расчетный!AD163-[8]Расчетный!AK163 -> 0 | L151: =[8]Расчетный!BN163 -> 2066.7 | M151: =[8]Расчетный!BR163 -> 0.7273460168 | N151: =[8]Расчетный!I163 -> 1.00039 | O151: =[8]Расчетный!BX163 -> 1487.4 | P151: =[8]Расчетный!BL163-[8]Расчетный!BV163 -> 610.5 | Q151: 0 | R151: 0 | S151: 0 | T151: 0 | U151: 0 | V151: 0 | W151: 0 | X151: 0 | Y151: 0 | Z151: 0 | AA151: 0 | AB151: 0 | AC151: 0 | AD151: 0 | AE151: 0
C152: ФП с. Соколовка ОГБУЗ "Молчановская РБ" | D152: =[8]Расчетный!E164 -> 208 | E152: =[8]Расчетный!F164 -> 1 | F152: =[8]Расчетный!G164 -> Не соответствует | G152: =[8]Расчетный!AF164 -> 0 | H152: =[8]Расчетный!AA164 -> 0 | I152: 0 | J152: =[8]Расчетный!AM164 -> 0 | K152: =[8]Расчетный!AD164-[8]Расчетный!AK164 -> 0 | L152: =[8]Расчетный!BN164 -> 2066.7 | M152: =[8]Расчетный!BR164 -> 0.7279860168 | N152: =[8]Расчетный!I164 -> 1.00103 | O152: =[8]Расчетный!BX164 -> 1488.6 | P152: =[8]Расчетный!BL164-[8]Расчетный!BV164 -> 611 | Q152: 0 | R152: 0 | S152: 0 | T152: 0 | U152: 0 | V152: 0 | W152: 0 | X152: 0 | Y152: 0 | Z152: 0 | AA152: 0 | AB152: 0 | AC152: 0 | AD152: 0 | AE152: 0
C153: ФП с. Сарафановка ОГБУЗ "Молчановская РБ" | D153: =[8]Расчетный!E165 -> 343 | E153: =[8]Расчетный!F165 -> 1 | F153: =[8]Расчетный!G165 -> Не соответствует | G153: =[8]Расчетный!AF165 -> 0 | H153: =[8]Расчетный!AA165 -> 0 | I153: 0 | J153: =[8]Расчетный!AM165 -> 0 | K153: =[8]Расчетный!AD165-[8]Расчетный!AK165 -> 0 | L153: =[8]Расчетный!BN165 -> 2066.7 | M153: =[8]Расчетный!BR165 -> 0.7309360168 | N153: =[8]Расчетный!I165 -> 1.00398 | O153: =[8]Расчетный!BX165 -> 1494.7 | P153: =[8]Расчетный!BL165-[8]Расчетный!BV165 -> 613.5 | Q153: 0 | R153: 0 | S153: 0 | T153: 0 | U153: 0 | V153: 0 | W153: 0 | X153: 0 | Y153: 0 | Z153: 0 | AA153: 0 | AB153: 0 | AC153: 0 | AD153: 0 | AE153: 0
C154: ФП с. Тунгусово ОГБУЗ "Молчановская РБ" | D154: =[8]Расчетный!E166 -> 678 | E154: =[8]Расчетный!F166 -> 1 | F154: =[8]Расчетный!G166 -> Соответствует | G154: =[8]Расчетный!AF166 -> 0 | H154: =[8]Расчетный!AA166 -> 0 | I154: 0 | J154: =[8]Расчетный!AM166 -> 0 | K154: =[8]Расчетный!AD166-[8]Расчетный!AK166 -> 0 | L154: =[8]Расчетный!BN166 -> 2066.7 | M154: =[8]Расчетный!BR166 -> 1.00802 | N154: =[8]Расчетный!I166 -> 1.00802 | O154: =[8]Расчетный!BX166 -> 2061.3 | P154: =[8]Расчетный!BL166-[8]Расчетный!BV166 -> 846 | Q154: 0 | R154: 0 | S154: 0 | T154: 0 | U154: 0 | V154: 0 | W154: 0 | X154: 0 | Y154: 0 | Z154: 0 | AA154: 0 | AB154: 0 | AC154: 0 | AD154: 0 | AE154: 0
A155: 203 | B155: 11 | C155: ОГБУЗ "Парабельская РБ" | D155: =SUM(D156:D165) -> 3340 | E155: =SUM(E156:E165) -> 10 | J155: =SUM(J156:J165) -> 1122.4 | K155: =SUM(K156:K165) -> 460.7 | O155: =SUM(O156:O165) -> 13096.8 | P155: =SUM(P156:P165) -> 5375.4 | T155: =SUM(T156:T165) -> 2063.2 | U155: =SUM(U156:U165) -> 846.8 | AF155: =J155+O155+T155+Y155+AD155 -> 16282.4
C156: ФАП д. Новиково ОГБУЗ «Парабельская РБ» | D156: =[8]Расчетный!E168 -> 79 | E156: =[8]Расчетный!F168 -> 1 | F156: =[8]Расчетный!G168 -> Не соответствует | G156: =[8]Расчетный!AF168 -> 1132.3728 | H156: =[8]Расчетный!AA168 -> 1.00167 | I156: =[8]Расчетный!I168 -> 1.00167 | J156: =[8]Расчетный!AM168 -> 1122.4 | K156: =[8]Расчетный!AD168-[8]Расчетный!AK168 -> 460.7 | L156: =[8]Расчетный!BN168 -> 0 | M156: =[8]Расчетный!BR168 -> 0 | N156: 0 | O156: =[8]Расчетный!BX168 -> 0 | P156: =[8]Расчетный!BL168-[8]Расчетный!BV168 -> 0 | Q156: =[8]Расчетный!CY168 -> 0 | R156: =[8]Расчетный!DC168 -> 0 | S156: 0 | T156: =[8]Расчетный!DI168 -> 0 | U156: =[8]Расчетный!CW168-[8]Расчетный!DG168 -> 0 | V156: 0 | W156: 0 | X156: 0 | Y156: 0 | Z156: 0 | AA156: 0 | AB156: 0 | AC156: 0 | AD156: 0 | AE156: 0
C157: ФАП д. Талиновка ОГБУЗ «Парабельская РБ» | D157: =[8]Расчетный!E170 -> 122 | E157: =[8]Расчетный!F170 -> 1 | F157: =[8]Расчетный!G170 -> Не соответствует | G157: =[8]Расчетный!AF170 -> 0 | H157: =[8]Расчетный!AA170 -> 0 | I157: 0 | J157: =[8]Расчетный!AM170 -> 0 | K157: =[8]Расчетный!AD170-[8]Расчетный!AK170 -> 0 | L157: =[8]Расчетный!BN170 -> 2264.9 | M157: =[8]Расчетный!BR170 -> 0.7278636629 | N157: =[8]Расчетный!I170 -> 1.0009 | O157: =[8]Расчетный!BX170 -> 1631.1 | P157: =[8]Расчетный!BL170-[8]Расчетный!BV170 -> 669.5 | Q157: =[8]Расчетный!CY170 -> 0 | R157: =[8]Расчетный!DC170 -> 0 | S157: 0 | T157: =[8]Расчетный!DI170 -> 0 | U157: =[8]Расчетный!CW170-[8]Расчетный!DG170 -> 0 | V157: 0 | W157: 0 | X157: 0 | Y157: 0 | Z157: 0 | AA157: 0 | AB157: 0 | AC157: 0 | AD157: 0 | AE157: 0
C158: ФАП д. Малое Нестерово ОГБУЗ «Парабельская РБ» | D158: =[8]Расчетный!E172 -> 152 | E158: =[8]Расчетный!F172 -> 1 | F158: =[8]Расчетный!G172 -> Не соответствует | G158: =[8]Расчетный!AF172 -> 0 | H158: =[8]Расчетный!AA172 -> 0 | I158: 0 | J158: =[8]Расчетный!AM172 -> 0 | K158: =[8]Расчетный!AD172-[8]Расчетный!AK172 -> 0 | L158: =[8]Расчетный!BN172 -> 2264.9 | M158: =[8]Расчетный!BR172 -> 0.7295336629 | N158: =[8]Расчетный!I172 -> 1.00257 | O158: =[8]Расчетный!BX172 -> 1634.8 | P158: =[8]Расчетный!BL172-[8]Расчетный!BV172 -> 671 | Q158: =[8]Расчетный!CY172 -> 0 | R158: =[8]Расчетный!DC172 -> 0 | S158: 0 | T158: =[8]Расчетный!DI172 -> 0 | U158: =[8]Расчетный!CW172-[8]Расчетный!DG172 -> 0 | V158: 0 | W158: 0 | X158: 0 | Y158: 0 | Z158: 0 | AA158: 0 | AB158: 0 | AC158: 0 | AD158: 0 | AE158: 0
C159: ФАП д. Нижняя Чигара ОГБУЗ «Парабельская РБ» | D159: =[8]Расчетный!E173 -> 173 | E159: =[8]Расчетный!F173 -> 1 | F159: =[8]Расчетный!G173 -> Не соответствует | G159: =[8]Расчетный!AF173 -> 0 | H159: =[8]Расчетный!AA173 -> 0 | I159: 0 | J159: =[8]Расчетный!AM173 -> 0 | K159: =[8]Расчетный!AD173-[8]Расчетный!AK173 -> 0 | L159: =[8]Расчетный!BN173 -> 2264.9 | M159: =[8]Расчетный!BR173 -> 0.7298536629 | N159: =[8]Расчетный!I173 -> 1.00289 | O159: =[8]Расчетный!BX173 -> 1635.6 | P159: =[8]Расчетный!BL173-[8]Расчетный!BV173 -> 671.3 | Q159: =[8]Расчетный!CY173 -> 0 | R159: =[8]Расчетный!DC173 -> 0 | S159: 0 | T159: =[8]Расчетный!DI173 -> 0 | U159: =[8]Расчетный!CW173-[8]Расчетный!DG173 -> 0 | V159: 0 | W159: 0 | X159: 0 | Y159: 0 | Z159: 0 | AA159: 0 | AB159: 0 | AC159: 0 | AD159: 0 | AE159: 0
C160: ФАП д. Нельмач ОГБУЗ «Парабельская РБ» | D160: =[8]Расчетный!E174 -> 274 | E160: =[8]Расчетный!F174 -> 1 | F160: =[8]Расчетный!G174 -> Не соответствует | G160: =[8]Расчетный!AF174 -> 0 | H160: =[8]Расчетный!AA174 -> 0 | I160: 0 | J160: =[8]Расчетный!AM174 -> 0 | K160: =[8]Расчетный!AD174-[8]Расчетный!AK174 -> 0 | L160: =[8]Расчетный!BN174 -> 2264.9 | M160: =[8]Расчетный!BR174 -> 0.7269636629 | N160: =[8]Расчетный!I174 -> 1 | O160: =[8]Расчетный!BX174 -> 1629.1 | P160: =[8]Расчетный!BL174-[8]Расчетный!BV174 -> 668.6 | Q160: =[8]Расчетный!CY174 -> 0 | R160: =[8]Расчетный!DC174 -> 0 | S160: 0 | T160: =[8]Расчетный!DI174 -> 0 | U160: =[8]Расчетный!CW174-[8]Расчетный!DG174 -> 0 | V160: 0 | W160: 0 | X160: 0 | Y160: 0 | Z160: 0 | AA160: 0 | AB160: 0 | AC160: 0 | AD160: 0 | AE160: 0
C161: ФАП с. Старица ОГБУЗ «Парабельская РБ» | D161: =[8]Расчетный!E175 -> 309 | E161: =[8]Расчетный!F175 -> 1 | F161: =[8]Расчетный!G175 -> Не соответствует | G161: =[8]Расчетный!AF175 -> 0 | H161: =[8]Расчетный!AA175 -> 0 | I161: 0 | J161: =[8]Расчетный!AM175 -> 0 | K161: =[8]Расчетный!AD175-[8]Расчетный!AK175 -> 0 | L161: =[8]Расчетный!BN175 -> 2264.9 | M161: =[8]Расчетный!BR175 -> 0.7313936629 | N161: =[8]Расчетный!I175 -> 1.00443 | O161: =[8]Расчетный!BX175 -> 1639 | P161: =[8]Расчетный!BL175-[8]Расчетный!BV175 -> 672.7 | Q161: =[8]Расчетный!CY175 -> 0 | R161: =[8]Расчетный!DC175 -> 0 | S161: 0 | T161: =[8]Расчетный!DI175 -> 0 | U161: =[8]Расчетный!CW175-[8]Расчетный!DG175 -> 0 | V161: 0 | W161: 0 | X161: 0 | Y161: 0 | Z161: 0 | AA161: 0 | AB161: 0 | AC161: 0 | AD161: 0 | AE161: 0
C162: ФАП д. Прокоп ОГБУЗ «Парабельская РБ» | D162: =[8]Расчетный!E176 -> 309 | E162: =[8]Расчетный!F176 -> 1 | F162: =[8]Расчетный!G176 -> Не соответствует | G162: =[8]Расчетный!AF176 -> 0 | H162: =[8]Расчетный!AA176 -> 0 | I162: 0 | J162: =[8]Расчетный!AM176 -> 0 | K162: =[8]Расчетный!AD176-[8]Расчетный!AK176 -> 0 | L162: =[8]Расчетный!BN176 -> 2264.9 | M162: =[8]Расчетный!BR176 -> 0.7319036629 | N162: =[8]Расчетный!I176 -> 1.00494 | O162: =[8]Расчетный!BX176 -> 1640.2 | P162: =[8]Расчетный!BL176-[8]Расчетный!BV176 -> 673.2 | Q162: =[8]Расчетный!CY176 -> 0 | R162: =[8]Расчетный!DC176 -> 0 | S162: 0 | T162: =[8]Расчетный!DI176 -> 0 | U162: =[8]Расчетный!CW176-[8]Расчетный!DG176 -> 0 | V162: 0 | W162: 0 | X162: 0 | Y162: 0 | Z162: 0 | AA162: 0 | AB162: 0 | AC162: 0 | AD162: 0 | AE162: 0
C163: ФАП п. Заводской ОГБУЗ «Парабельская РБ» | D163: =[8]Расчетный!E177 -> 343 | E163: =[8]Расчетный!F177 -> 1 | F163: =[8]Расчетный!G177 -> Не соответствует | G163: =[8]Расчетный!AF177 -> 0 | H163: =[8]Расчетный!AA177 -> 0 | I163: 0 | J163: =[8]Расчетный!AM177 -> 0 | K163: =[8]Расчетный!AD177-[8]Расчетный!AK177 -> 0 | L163: =[8]Расчетный!BN177 -> 2264.9 | M163: =[8]Расчетный!BR177 -> 0.7318436629 | N163: =[8]Расчетный!I177 -> 1.00488 | O163: =[8]Расчетный!BX177 -> 1640 | P163: =[8]Расчетный!BL177-[8]Расчетный!BV177 -> 673.1 | Q163: =[8]Расчетный!CY177 -> 0 | R163: =[8]Расчетный!DC177 -> 0 | S163: 0 | T163: =[8]Расчетный!DI177 -> 0 | U163: =[8]Расчетный!CW177-[8]Расчетный!DG177 -> 0 | V163: 0 | W163: 0 | X163: 0 | Y163: 0 | Z163: 0 | AA163: 0 | AB163: 0 | AC163: 0 | AD163: 0 | AE163: 0
C164: ФАП пос. Шпалозавод ОГБУЗ «Парабельская РБ» | D164: =[8]Расчетный!E178 -> 677 | E164: =[8]Расчетный!F178 -> 1 | F164: =[8]Расчетный!G178 -> Не соответствует | G164: =[8]Расчетный!AF178 -> 0 | H164: =[8]Расчетный!AA178 -> 0 | I164: 0 | J164: =[8]Расчетный!AM178 -> 0 | K164: =[8]Расчетный!AD178-[8]Расчетный!AK178 -> 0 | L164: =[8]Расчетный!BN178 -> 2264.9 | M164: =[8]Расчетный!BR178 -> 0.7349236629 | N164: =[8]Расчетный!I178 -> 1.00796 | O164: =[8]Расчетный!BX178 -> 1647 | P164: =[8]Расчетный!BL178-[8]Расчетный!BV178 -> 676 | Q164: =[8]Расчетный!CY178 -> 0 | R164: =[8]Расчетный!DC178 -> 0 | S164: 0 | T164: =[8]Расчетный!DI178 -> 0 | U164: =[8]Расчетный!CW178-[8]Расчетный!DG178 -> 0 | V164: 0 | W164: 0 | X164: 0 | Y164: 0 | Z164: 0 | AA164: 0 | AB164: 0 | AC164: 0 | AD164: 0 | AE164: 0
C165: ФАП п. Кирзавод ОГБУЗ «Парабельская РБ» | D165: =[8]Расчетный!E179 -> 902 | E165: =[8]Расчетный!F179 -> 1 | F165: =[8]Расчетный!G179 -> Не соответствует | G165: =[8]Расчетный!AF179 -> 0 | H165: =[8]Расчетный!AA179 -> 0 | I165: 0 | J165: =[8]Расчетный!AM179 -> 0 | K165: =[8]Расчетный!AD179-[8]Расчетный!AK179 -> 0 | L165: =[8]Расчетный!BN179 -> 0 | M165: =[8]Расчетный!BR179 -> 0 | N165: 0 | O165: =[8]Расчетный!BX179 -> 0 | P165: =[8]Расчетный!BL179-[8]Расчетный!BV179 -> 0 | Q165: =[8]Расчетный!CY179 -> 4529.7 | R165: =[8]Расчетный!DC179 -> 0.4603342862 | S165: =[8]Расчетный!I179 -> 1.00728 | T165: =[8]Расчетный!DI179 -> 2063.2 | U165: =[8]Расчетный!CW179-[8]Расчетный!DG179 -> 846.8 | V165: 0 | W165: 0 | X165: 0 | Y165: 0 | Z165: 0 | AA165: 0 | AB165: 0 | AC165: 0 | AD165: 0 | AE165: 0
A166: 79 | B166: 12 | C166: ОГБУЗ "Первомайская РБ" | D166: =SUM(D167:D186) -> 5423 | E166: =SUM(E167:E186) -> 20 | O166: =SUM(O167:O186) -> 21643.3 | P166: =SUM(P167:P186) -> 8883 | AF166: =J166+O166+T166+Y166+AD166 -> 21643.3
C167: ФАП д. Сахалинка ОГБУЗ "Первомайская РБ" | D167: =[8]Расчетный!E182 -> 110 | E167: =[8]Расчетный!F182 -> 1 | F167: =[8]Расчетный!G182 -> Не соответствует | G167: =[8]Расчетный!AF182 -> 0 | H167: =[8]Расчетный!AA182 -> 0 | I167: 0 | J167: =[8]Расчетный!AM182 -> 0 | K167: =[8]Расчетный!AD182-[8]Расчетный!AK182 -> 0 | L167: =[8]Расчетный!BN182 -> 1605.9 | M167: =[8]Расчетный!BR182 -> 0.7276543926 | N167: =[8]Расчетный!I182 -> 1.00071 | O167: =[8]Расчетный!BX182 -> 1156.1 | P167: =[8]Расчетный!BL182-[8]Расчетный!BV182 -> 474.5 | Q167: 0 | R167: 0 | S167: 0 | T167: 0 | U167: 0 | V167: 0 | W167: 0 | X167: 0 | Y167: 0 | Z167: 0 | AA167: 0 | AB167: 0 | AC167: 0 | AD167: 0 | AE167: 0
C168: ФАП д. Малиновка ОГБУЗ "Первомайская РБ" | D168: =[8]Расчетный!E183 -> 119 | E168: =[8]Расчетный!F183 -> 1 | F168: =[8]Расчетный!G183 -> Не соответствует | G168: =[8]Расчетный!AF183 -> 0 | H168: =[8]Расчетный!AA183 -> 0 | I168: 0 | J168: =[8]Расчетный!AM183 -> 0 | K168: =[8]Расчетный!AD183-[8]Расчетный!AK183 -> 0 | L168: =[8]Расчетный!BN183 -> 1605.9 | M168: =[8]Расчетный!BR183 -> 0.7272643926 | N168: =[8]Расчетный!I183 -> 1.00032 | O168: =[8]Расчетный!BX183 -> 1155.6 | P168: =[8]Расчетный!BL183-[8]Расчетный!BV183 -> 474.3 | Q168: 0 | R168: 0 | S168: 0 | T168: 0 | U168: 0 | V168: 0 | W168: 0 | X168: 0 | Y168: 0 | Z168: 0 | AA168: 0 | AB168: 0 | AC168: 0 | AD168: 0 | AE168: 0
C169: ФАП д. Балагачево ОГБУЗ "Первомайская РБ" | D169: =[8]Расчетный!E184 -> 125 | E169: =[8]Расчетный!F184 -> 1 | F169: =[8]Расчетный!G184 -> Не соответствует | G169: =[8]Расчетный!AF184 -> 0 | H169: =[8]Расчетный!AA184 -> 0 | I169: 0 | J169: =[8]Расчетный!AM184 -> 0 | K169: =[8]Расчетный!AD184-[8]Расчетный!AK184 -> 0 | L169: =[8]Расчетный!BN184 -> 1605.9 | M169: =[8]Расчетный!BR184 -> 0.7277143926 | N169: =[8]Расчетный!I184 -> 1.00077 | O169: =[8]Расчетный!BX184 -> 1156.3 | P169: =[8]Расчетный!BL184-[8]Расчетный!BV184 -> 474.6 | Q169: 0 | R169: 0 | S169: 0 | T169: 0 | U169: 0 | V169: 0 | W169: 0 | X169: 0 | Y169: 0 | Z169: 0 | AA169: 0 | AB169: 0 | AC169: 0 | AD169: 0 | AE169: 0
C170: ФАП с. Апсагачево ОГБУЗ "Первомайская РБ" | D170: =[8]Расчетный!E185 -> 140 | E170: =[8]Расчетный!F185 -> 1 | F170: =[8]Расчетный!G185 -> Не соответствует | G170: =[8]Расчетный!AF185 -> 0 | H170: =[8]Расчетный!AA185 -> 0 | I170: 0 | J170: =[8]Расчетный!AM185 -> 0 | K170: =[8]Расчетный!AD185-[8]Расчетный!AK185 -> 0 | L170: =[8]Расчетный!BN185 -> 1605.9 | M170: =[8]Расчетный!BR185 -> 0.5914218314 | N170: =[8]Расчетный!I185 -> 1.00141 | O170: =[8]Расчетный!BX185 -> 939.8 | P170: =[8]Расчетный!BL185-[8]Расчетный!BV185 -> 385.7 | Q170: 0 | R170: 0 | S170: 0 | T170: 0 | U170: 0 | V170: 0 | W170: 0 | X170: 0 | Y170: 0 | Z170: 0 | AA170: 0 | AB170: 0 | AC170: 0 | AD170: 0 | AE170: 0
C171: ФАП д. Уйданово ОГБУЗ "Первомайская РБ" | D171: =[8]Расчетный!E186 -> 169 | E171: =[8]Расчетный!F186 -> 1 | F171: =[8]Расчетный!G186 -> Не соответствует | G171: =[8]Расчетный!AF186 -> 0 | H171: =[8]Расчетный!AA186 -> 0 | I171: 0 | J171: =[8]Расчетный!AM186 -> 0 | K171: =[8]Расчетный!AD186-[8]Расчетный!AK186 -> 0 | L171: =[8]Расчетный!BN186 -> 1605.9 | M171: =[8]Расчетный!BR186 -> 0.4542992702 | N171: =[8]Расчетный!I186 -> 1.00122 | O171: =[8]Расчетный!BX186 -> 721.8 | P171: =[8]Расчетный!BL186-[8]Расчетный!BV186 -> 296.2 | Q171: 0 | R171: 0 | S171: 0 | T171: 0 | U171: 0 | V171: 0 | W171: 0 | X171: 0 | Y171: 0 | Z171: 0 | AA171: 0 | AB171: 0 | AC171: 0 | AD171: 0 | AE171: 0
C172: ФАП д. Вознесенка ОГБУЗ "Первомайская РБ" | D172: =[8]Расчетный!E187 -> 203 | E172: =[8]Расчетный!F187 -> 1 | F172: =[8]Расчетный!G187 -> Не соответствует | G172: =[8]Расчетный!AF187 -> 0 | H172: =[8]Расчетный!AA187 -> 0 | I172: 0 | J172: =[8]Расчетный!AM187 -> 0 | K172: =[8]Расчетный!AD187-[8]Расчетный!AK187 -> 0 | L172: =[8]Расчетный!BN187 -> 1605.9 | M172: =[8]Расчетный!BR187 -> 0.4539792702 | N172: =[8]Расчетный!I187 -> 1.0009 | O172: =[8]Расчетный!BX187 -> 721.3 | P172: =[8]Расчетный!BL187-[8]Расчетный!BV187 -> 296 | Q172: 0 | R172: 0 | S172: 0 | T172: 0 | U172: 0 | V172: 0 | W172: 0 | X172: 0 | Y172: 0 | Z172: 0 | AA172: 0 | AB172: 0 | AC172: 0 | AD172: 0 | AE172: 0
C173: ФАП с. Новомариинский ОГБУЗ "Первомайская РБ" | D173: =[8]Расчетный!E188 -> 224 | E173: =[8]Расчетный!F188 -> 1 | F173: =[8]Расчетный!G188 -> Не соответствует | G173: =[8]Расчетный!AF188 -> 0 | H173: =[8]Расчетный!AA188 -> 0 | I173: 0 | J173: =[8]Расчетный!AM188 -> 0 | K173: =[8]Расчетный!AD188-[8]Расчетный!AK188 -> 0 | L173: =[8]Расчетный!BN188 -> 1605.9 | M173: =[8]Расчетный!BR188 -> 0.4530792702 | N173: =[8]Расчетный!I188 -> 1 | O173: =[8]Расчетный!BX188 -> 719.9 | P173: =[8]Расчетный!BL188-[8]Расчетный!BV188 -> 295.5 | Q173: 0 | R173: 0 | S173: 0 | T173: 0 | U173: 0 | V173: 0 | W173: 0 | X173: 0 | Y173: 0 | Z173: 0 | AA173: 0 | AB173: 0 | AC173: 0 | AD173: 0 | AE173: 0
C174: ФАП д. Ломовицк-2 ОГБУЗ "Первомайская РБ" | D174: =[8]Расчетный!E189 -> 250 | E174: =[8]Расчетный!F189 -> 1 | F174: =[8]Расчетный!G189 -> Не соответствует | G174: =[8]Расчетный!AF189 -> 0 | H174: =[8]Расчетный!AA189 -> 0 | I174: 0 | J174: =[8]Расчетный!AM189 -> 0 | K174: =[8]Расчетный!AD189-[8]Расчетный!AK189 -> 0 | L174: =[8]Расчетный!BN189 -> 1605.9 | M174: =[8]Расчетный!BR189 -> 0.7297643926 | N174: =[8]Расчетный!I189 -> 1.00282 | O174: =[8]Расчетный!BX189 -> 1159.5 | P174: =[8]Расчетный!BL189-[8]Расчетный!BV189 -> 475.9 | Q174: 0 | R174: 0 | S174: 0 | T174: 0 | U174: 0 | V174: 0 | W174: 0 | X174: 0 | Y174: 0 | Z174: 0 | AA174: 0 | AB174: 0 | AC174: 0 | AD174: 0 | AE174: 0
C175: ФАП д. Успенка ОГБУЗ "Первомайская РБ" | D175: =[8]Расчетный!E190 -> 251 | E175: =[8]Расчетный!F190 -> 1 | F175: =[8]Расчетный!G190 -> Не соответствует | G175: =[8]Расчетный!AF190 -> 0 | H175: =[8]Расчетный!AA190 -> 0 | I175: 0 | J175: =[8]Расчетный!AM190 -> 0 | K175: =[8]Расчетный!AD190-[8]Расчетный!AK190 -> 0 | L175: =[8]Расчетный!BN190 -> 1605.9 | M175: =[8]Расчетный!BR190 -> 0.7282943926 | N175: =[8]Расчетный!I190 -> 1.00135 | O175: =[8]Расчетный!BX190 -> 1157.3 | P175: =[8]Расчетный!BL190-[8]Расчетный!BV190 -> 475 | Q175: 0 | R175: 0 | S175: 0 | T175: 0 | U175: 0 | V175: 0 | W175: 0 | X175: 0 | Y175: 0 | Z175: 0 | AA175: 0 | AB175: 0 | AC175: 0 | AD175: 0 | AE175: 0
C176: ФАП д. Калмаки ОГБУЗ "Первомайская РБ" | D176: =[8]Расчетный!E191 -> 252 | E176: =[8]Расчетный!F191 -> 1 | F176: =[8]Расчетный!G191 -> Не соответствует | G176: =[8]Расчетный!AF191 -> 0 | H176: =[8]Расчетный!AA191 -> 0 | I176: 0 | J176: =[8]Расчетный!AM191 -> 0 | K176: =[8]Расчетный!AD191-[8]Расчетный!AK191 -> 0 | L176: =[8]Расчетный!BN191 -> 1605.9 | M176: =[8]Расчетный!BR191 -> 0.7300843926 | N176: =[8]Расчетный!I191 -> 1.00314 | O176: =[8]Расчетный!BX191 -> 1160 | P176: =[8]Расчетный!BL191-[8]Расчетный!BV191 -> 476.1 | Q176: 0 | R176: 0 | S176: 0 | T176: 0 | U176: 0 | V176: 0 | W176: 0 | X176: 0 | Y176: 0 | Z176: 0 | AA176: 0 | AB176: 0 | AC176: 0 | AD176: 0 | AE176: 0
C177: ФАП п. Узень ОГБУЗ "Первомайская РБ" | D177: =[8]Расчетный!E192 -> 257 | E177: =[8]Расчетный!F192 -> 1 | F177: =[8]Расчетный!G192 -> Не соответствует | G177: =[8]Расчетный!AF192 -> 0 | H177: =[8]Расчетный!AA192 -> 0 | I177: 0 | J177: =[8]Расчетный!AM192 -> 0 | K177: =[8]Расчетный!AD192-[8]Расчетный!AK192 -> 0 | L177: =[8]Расчетный!BN192 -> 1605.9 | M177: =[8]Расчетный!BR192 -> 0.4539792702 | N177: =[8]Расчетный!I192 -> 1.0009 | O177: =[8]Расчетный!BX192 -> 721.3 | P177: =[8]Расчетный!BL192-[8]Расчетный!BV192 -> 296 | Q177: 0 | R177: 0 | S177: 0 | T177: 0 | U177: 0 | V177: 0 | W177: 0 | X177: 0 | Y177: 0 | Z177: 0 | AA177: 0 | AB177: 0 | AC177: 0 | AD177: 0 | AE177: 0
C178: ФАП д. Торбеево ОГБУЗ "Первомайская РБ" | D178: =[8]Расчетный!E193 -> 293 | E178: =[8]Расчетный!F193 -> 1 | F178: =[8]Расчетный!G193 -> Не соответствует | G178: =[8]Расчетный!AF193 -> 0 | H178: =[8]Расчетный!AA193 -> 0 | I178: 0 | J178: =[8]Расчетный!AM193 -> 0 | K178: =[8]Расчетный!AD193-[8]Расчетный!AK193 -> 0 | L178: =[8]Расчетный!BN193 -> 1605.9 | M178: =[8]Расчетный!BR193 -> 0.7322043926 | N178: =[8]Расчетный!I193 -> 1.00526 | O178: =[8]Расчетный!BX193 -> 1163.4 | P178: =[8]Расчетный!BL193-[8]Расчетный!BV193 -> 477.5 | Q178: 0 | R178: 0 | S178: 0 | T178: 0 | U178: 0 | V178: 0 | W178: 0 | X178: 0 | Y178: 0 | Z178: 0 | AA178: 0 | AB178: 0 | AC178: 0 | AD178: 0 | AE178: 0
C179: ФАП с. Альмяково ОГБУЗ "Первомайская РБ" | D179: =[8]Расчетный!E194 -> 300 | E179: =[8]Расчетный!F194 -> 1 | F179: =[8]Расчетный!G194 -> Не соответствует | G179: =[8]Расчетный!AF194 -> 0 | H179: =[8]Расчетный!AA194 -> 0 | I179: 0 | J179: =[8]Расчетный!AM194 -> 0 | K179: =[8]Расчетный!AD194-[8]Расчетный!AK194 -> 0 | L179: =[8]Расчетный!BN194 -> 1605.9 | M179: =[8]Расчетный!BR194 -> 0.7289343926 | N179: =[8]Расчетный!I194 -> 1.00199 | O179: =[8]Расчетный!BX194 -> 1158.3 | P179: =[8]Расчетный!BL194-[8]Расчетный!BV194 -> 475.4 | Q179: 0 | R179: 0 | S179: 0 | T179: 0 | U179: 0 | V179: 0 | W179: 0 | X179: 0 | Y179: 0 | Z179: 0 | AA179: 0 | AB179: 0 | AC179: 0 | AD179: 0 | AE179: 0
C180: ФАП п. Аргат-Юл ОГБУЗ "Первомайская РБ" | D180: =[8]Расчетный!E195 -> 339 | E180: =[8]Расчетный!F195 -> 1 | F180: =[8]Расчетный!G195 -> Не соответствует | G180: =[8]Расчетный!AF195 -> 0 | H180: =[8]Расчетный!AA195 -> 0 | I180: 0 | J180: =[8]Расчетный!AM195 -> 0 | K180: =[8]Расчетный!AD195-[8]Расчетный!AK195 -> 0 | L180: =[8]Расчетный!BN195 -> 1605.9 | M180: =[8]Расчетный!BR195 -> 0.7288043926 | N180: =[8]Расчетный!I195 -> 1.00186 | O180: =[8]Расчетный!BX195 -> 1158 | P180: =[8]Расчетный!BL195-[8]Расчетный!BV195 -> 475.3 | Q180: 0 | R180: 0 | S180: 0 | T180: 0 | U180: 0 | V180: 0 | W180: 0 | X180: 0 | Y180: 0 | Z180: 0 | AA180: 0 | AB180: 0 | AC180: 0 | AD180: 0 | AE180: 0
C181: ФАП д. Крутоложное ОГБУЗ "Первомайская РБ" | D181: =[8]Расчетный!E196 -> 352 | E181: =[8]Расчетный!F196 -> 1 | F181: =[8]Расчетный!G196 -> Не соответствует | G181: =[8]Расчетный!AF196 -> 0 | H181: =[8]Расчетный!AA196 -> 0 | I181: 0 | J181: =[8]Расчетный!AM196 -> 0 | K181: =[8]Расчетный!AD196-[8]Расчетный!AK196 -> 0 | L181: =[8]Расчетный!BN196 -> 1605.9 | M181: =[8]Расчетный!BR196 -> 0.7304143926 | N181: =[8]Расчетный!I196 -> 1.00347 | O181: =[8]Расчетный!BX196 -> 1160.6 | P181: =[8]Расчетный!BL196-[8]Расчетный!BV196 -> 476.3 | Q181: 0 | R181: 0 | S181: 0 | T181: 0 | U181: 0 | V181: 0 | W181: 0 | X181: 0 | Y181: 0 | Z181: 0 | AA181: 0 | AB181: 0 | AC181: 0 | AD181: 0 | AE181: 0
C182: ФАП с. Ежи ОГБУЗ "Первомайская РБ" | D182: =[8]Расчетный!E197 -> 360 | E182: =[8]Расчетный!F197 -> 1 | F182: =[8]Расчетный!G197 -> Не соответствует | G182: =[8]Расчетный!AF197 -> 0 | H182: =[8]Расчетный!AA197 -> 0 | I182: 0 | J182: =[8]Расчетный!AM197 -> 0 | K182: =[8]Расчетный!AD197-[8]Расчетный!AK197 -> 0 | L182: =[8]Расчетный!BN197 -> 1605.9 | M182: =[8]Расчетный!BR197 -> 0.7307343926 | N182: =[8]Расчетный!I197 -> 1.00379 | O182: =[8]Расчетный!BX197 -> 1161 | P182: =[8]Расчетный!BL197-[8]Расчетный!BV197 -> 476.5 | Q182: 0 | R182: 0 | S182: 0 | T182: 0 | U182: 0 | V182: 0 | W182: 0 | X182: 0 | Y182: 0 | Z182: 0 | AA182: 0 | AB182: 0 | AC182: 0 | AD182: 0 | AE182: 0
C183: ФАП с. Куяново ОГБУЗ "Первомайская РБ" | D183: =[8]Расчетный!E198 -> 365 | E183: =[8]Расчетный!F198 -> 1 | F183: =[8]Расчетный!G198 -> Не соответствует | G183: =[8]Расчетный!AF198 -> 0 | H183: =[8]Расчетный!AA198 -> 0 | I183: 0 | J183: =[8]Расчетный!AM198 -> 0 | K183: =[8]Расчетный!AD198-[8]Расчетный!AK198 -> 0 | L183: =[8]Расчетный!BN198 -> 1605.9 | M183: =[8]Расчетный!BR198 -> 0.7313743926 | N183: =[8]Расчетный!I198 -> 1.00443 | O183: =[8]Расчетный!BX198 -> 1162.1 | P183: =[8]Расчетный!BL198-[8]Расчетный!BV198 -> 477 | Q183: 0 | R183: 0 | S183: 0 | T183: 0 | U183: 0 | V183: 0 | W183: 0 | X183: 0 | Y183: 0 | Z183: 0 | AA183: 0 | AB183: 0 | AC183: 0 | AD183: 0 | AE183: 0
C184: ФАП д. Березовка ОГБУЗ "Первомайская РБ" | D184: =[8]Расчетный!E199 -> 377 | E184: =[8]Расчетный!F199 -> 1 | F184: =[8]Расчетный!G199 -> Не соответствует | G184: =[8]Расчетный!AF199 -> 0 | H184: =[8]Расчетный!AA199 -> 0 | I184: 0 | J184: =[8]Расчетный!AM199 -> 0 | K184: =[8]Расчетный!AD199-[8]Расчетный!AK199 -> 0 | L184: =[8]Расчетный!BN199 -> 1605.9 | M184: =[8]Расчетный!BR199 -> 0.7297043926 | N184: =[8]Расчетный!I199 -> 1.00276 | O184: =[8]Расчетный!BX199 -> 1159.5 | P184: =[8]Расчетный!BL199-[8]Расчетный!BV199 -> 475.9 | Q184: 0 | R184: 0 | S184: 0 | T184: 0 | U184: 0 | V184: 0 | W184: 0 | X184: 0 | Y184: 0 | Z184: 0 | AA184: 0 | AB184: 0 | AC184: 0 | AD184: 0 | AE184: 0
C185: ФАП д. Туендат ОГБУЗ "Первомайская РБ" | D185: =[8]Расчетный!E200 -> 465 | E185: =[8]Расчетный!F200 -> 1 | F185: =[8]Расчетный!G200 -> Не соответствует | G185: =[8]Расчетный!AF200 -> 0 | H185: =[8]Расчетный!AA200 -> 0 | I185: 0 | J185: =[8]Расчетный!AM200 -> 0 | K185: =[8]Расчетный!AD200-[8]Расчетный!AK200 -> 0 | L185: =[8]Расчетный!BN200 -> 1605.9 | M185: =[8]Расчетный!BR200 -> 0.7269443926 | N185: =[8]Расчетный!I200 -> 1 | O185: =[8]Расчетный!BX200 -> 1155.1 | P185: =[8]Расчетный!BL200-[8]Расчетный!BV200 -> 474.1 | Q185: 0 | R185: 0 | S185: 0 | T185: 0 | U185: 0 | V185: 0 | W185: 0 | X185: 0 | Y185: 0 | Z185: 0 | AA185: 0 | AB185: 0 | AC185: 0 | AD185: 0 | AE185: 0
C186: ФАП п. Орехово ОГБУЗ "Первомайская РБ" | D186: =[8]Расчетный!E201 -> 472 | E186: =[8]Расчетный!F201 -> 1 | F186: =[8]Расчетный!G201 -> Соответствует | G186: =[8]Расчетный!AF201 -> 0 | H186: =[8]Расчетный!AA201 -> 0 | I186: 0 | J186: =[8]Расчетный!AM201 -> 0 | K186: =[8]Расчетный!AD201-[8]Расчетный!AK201 -> 0 | L186: =[8]Расчетный!BN201 -> 1605.9 | M186: =[8]Расчетный!BR201 -> 1.00468 | N186: =[8]Расчетный!I201 -> 1.00468 | O186: =[8]Расчетный!BX201 -> 1596.4 | P186: =[8]Расчетный!BL201-[8]Расчетный!BV201 -> 655.2 | Q186: 0 | R186: 0 | S186: 0 | T186: 0 | U186: 0 | V186: 0 | W186: 0 | X186: 0 | Y186: 0 | Z186: 0 | AA186: 0 | AB186: 0 | AC186: 0 | AD186: 0 | AE186: 0
A187: 81 | B187: 13 | C187: ОГБУЗ "Тегульдетская РБ" | D187: =SUM(D188:D194) -> 950 | E187: =SUM(E188:E194) -> 7 | J187: =SUM(J188:J194) -> 4109 | K187: =SUM(K188:K194) -> 1686.6 | O187: =SUM(O188:O194) -> 4489.5 | P187: =SUM(P188:P194) -> 1842.6 | AF187: =J187+O187+T187+Y187+AD187 -> 8598.5
C188: ФП д. Озерное ОГБУЗ "Тегульдетская РБ" | D188: =[8]Расчетный!E203 -> 16 | E188: =[8]Расчетный!F203 -> 1 | F188: =[8]Расчетный!G203 -> Не соответствует | G188: =[8]Расчетный!AF203 -> 1037.6928 | H188: =[8]Расчетный!AA203 -> 1 | I188: =[8]Расчетный!I203 -> 1 | J188: =[8]Расчетный!AM203 -> 1026.8 | K188: =[8]Расчетный!AD203-[8]Расчетный!AK203 -> 421.5 | L188: =[8]Расчетный!BN203 -> 0 | M188: =[8]Расчетный!BR203 -> 0 | N188: 0 | O188: =[8]Расчетный!BX203 -> 0 | P188: =[8]Расчетный!BL203-[8]Расчетный!BV203 -> 0 | Q188: 0 | R188: 0 | S188: 0 | T188: 0 | U188: 0 | V188: 0 | W188: 0 | X188: 0 | Y188: 0 | Z188: 0 | AA188: 0 | AB188: 0 | AC188: 0 | AD188: 0 | AE188: 0
C189: ФП п. Покровский Яр ОГБУЗ "Тегульдетская РБ" | D189: =[8]Расчетный!E204 -> 52 | E189: =[8]Расчетный!F204 -> 1 | F189: =[8]Расчетный!G204 -> Не соответствует | G189: =[8]Расчетный!AF204 -> 1037.6928 | H189: =[8]Расчетный!AA204 -> 1 | I189: =[8]Расчетный!I204 -> 1 | J189: =[8]Расчетный!AM204 -> 1026.8 | K189: =[8]Расчетный!AD204-[8]Расчетный!AK204 -> 421.5 | L189: =[8]Расчетный!BN204 -> 0 | M189: =[8]Расчетный!BR204 -> 0 | N189: 0 | O189: =[8]Расчетный!BX204 -> 0 | P189: =[8]Расчетный!BL204-[8]Расчетный!BV204 -> 0 | Q189: 0 | R189: 0 | S189: 0 | T189: 0 | U189: 0 | V189: 0 | W189: 0 | X189: 0 | Y189: 0 | Z189: 0 | AA189: 0 | AB189: 0 | AC189: 0 | AD189: 0 | AE189: 0
C190: ФП д. Байгалы ОГБУЗ "Тегульдетская РБ" | D190: =[8]Расчетный!E205 -> 50 | E190: =[8]Расчетный!F205 -> 1 | F190: =[8]Расчетный!G205 -> Не соответствует | G190: =[8]Расчетный!AF205 -> 1037.6928 | H190: =[8]Расчетный!AA205 -> 1.00026 | I190: =[8]Расчетный!I205 -> 1.00026 | J190: =[8]Расчетный!AM205 -> 1027 | K190: =[8]Расчетный!AD205-[8]Расчетный!AK205 -> 421.5 | L190: =[8]Расчетный!BN205 -> 0 | M190: =[8]Расчетный!BR205 -> 0 | N190: 0 | O190: =[8]Расчетный!BX205 -> 0 | P190: =[8]Расчетный!BL205-[8]Расчетный!BV205 -> 0 | Q190: 0 | R190: 0 | S190: 0 | T190: 0 | U190: 0 | V190: 0 | W190: 0 | X190: 0 | Y190: 0 | Z190: 0 | AA190: 0 | AB190: 0 | AC190: 0 | AD190: 0 | AE190: 0
C191: ФП д. Новошумилово ОГБУЗ "Тегульдетская РБ" | D191: =[8]Расчетный!E206 -> 96 | E191: =[8]Расчетный!F206 -> 1 | F191: =[8]Расчетный!G206 -> Не соответствует | G191: =[8]Расчетный!AF206 -> 1037.6928 | H191: =[8]Расчетный!AA206 -> 1.00154 | I191: =[8]Расчетный!I206 -> 1.00154 | J191: =[8]Расчетный!AM206 -> 1028.4 | K191: =[8]Расчетный!AD206-[8]Расчетный!AK206 -> 422.1 | L191: =[8]Расчетный!BN206 -> 0 | M191: =[8]Расчетный!BR206 -> 0 | N191: 0 | O191: =[8]Расчетный!BX206 -> 0 | P191: =[8]Расчетный!BL206-[8]Расчетный!BV206 -> 0 | Q191: 0 | R191: 0 | S191: 0 | T191: 0 | U191: 0 | V191: 0 | W191: 0 | X191: 0 | Y191: 0 | Z191: 0 | AA191: 0 | AB191: 0 | AC191: 0 | AD191: 0 | AE191: 0
C192: ФП п. Четь-Конторка ОГБУЗ "Тегульдетская РБ" | D192: =[8]Расчетный!E207 -> 162 | E192: =[8]Расчетный!F207 -> 1 | F192: =[8]Расчетный!G207 -> Не соответствует | G192: =[8]Расчетный!AF207 -> 0 | H192: =[8]Расчетный!AA207 -> 0 | I192: 0 | J192: =[8]Расчетный!AM207 -> 0 | K192: =[8]Расчетный!AD207-[8]Расчетный!AK207 -> 0 | L192: =[8]Расчетный!BN207 -> 2075.6 | M192: =[8]Расчетный!BR207 -> 0.7276923357 | N192: =[8]Расчетный!I207 -> 1.00077 | O192: =[8]Расчетный!BX207 -> 1494.5 | P192: =[8]Расчетный!BL207-[8]Расчетный!BV207 -> 613.4 | Q192: 0 | R192: 0 | S192: 0 | T192: 0 | U192: 0 | V192: 0 | W192: 0 | X192: 0 | Y192: 0 | Z192: 0 | AA192: 0 | AB192: 0 | AC192: 0 | AD192: 0 | AE192: 0
C193: ФП д. Красная Горка ОГБУЗ "Тегульдетская РБ" | D193: =[8]Расчетный!E208 -> 171 | E193: =[8]Расчетный!F208 -> 1 | F193: =[8]Расчетный!G208 -> Не соответствует | G193: =[8]Расчетный!AF208 -> 0 | H193: =[8]Расчетный!AA208 -> 0 | I193: 0 | J193: =[8]Расчетный!AM208 -> 0 | K193: =[8]Расчетный!AD208-[8]Расчетный!AK208 -> 0 | L193: =[8]Расчетный!BN208 -> 2075.6 | M193: =[8]Расчетный!BR208 -> 0.7284623357 | N193: =[8]Расчетный!I208 -> 1.00154 | O193: =[8]Расчетный!BX208 -> 1496 | P193: =[8]Расчетный!BL208-[8]Расчетный!BV208 -> 614 | Q193: 0 | R193: 0 | S193: 0 | T193: 0 | U193: 0 | V193: 0 | W193: 0 | X193: 0 | Y193: 0 | Z193: 0 | AA193: 0 | AB193: 0 | AC193: 0 | AD193: 0 | AE193: 0
C194: ФП п. Белый Яр ОГБУЗ "Тегульдетская РБ" | D194: =[8]Расчетный!E209 -> 403 | E194: =[8]Расчетный!F209 -> 1 | F194: =[8]Расчетный!G209 -> Не соответствует | G194: =[8]Расчетный!AF209 -> 0 | H194: =[8]Расчетный!AA209 -> 0 | I194: 0 | J194: =[8]Расчетный!AM209 -> 0 | K194: =[8]Расчетный!AD209-[8]Расчетный!AK209 -> 0 | L194: =[8]Расчетный!BN209 -> 2075.6 | M194: =[8]Расчетный!BR209 -> 0.7299423357 | N194: =[8]Расчетный!I209 -> 1.00302 | O194: =[8]Расчетный!BX209 -> 1499 | P194: =[8]Расчетный!BL209-[8]Расчетный!BV209 -> 615.2 | Q194: 0 | R194: 0 | S194: 0 | T194: 0 | U194: 0 | V194: 0 | W194: 0 | X194: 0 | Y194: 0 | Z194: 0 | AA194: 0 | AB194: 0 | AC194: 0 | AD194: 0 | AE194: 0
A195: 83 | B195: 14 | C195: ОГАУЗ "Томская РБ" | D195: =SUM(D196:D211) -> 15917 | E195: =SUM(E196:E211) -> 16 | O195: =SUM(O196:O211) -> 9708 | P195: =SUM(P196:P211) -> 3984.6 | T195: =SUM(T196:T211) -> 8987.2 | U195: =SUM(U196:U211) -> 3688.8 | Y195: =SUM(Y196:Y211) -> 1581.9 | Z195: =SUM(Z196:Z211) -> 649.3 | AD195: =SUM(AD196:AD211) -> 7465.3 | AE195: =SUM(AE196:AE211) -> 3064.1 | AF195: =J195+O195+T195+Y195+AD195 -> 27742.4
C196: ФАП д. Лаврово ОГАУЗ "Томская РБ" | D196: =[8]Расчетный!E212 -> 115 | E196: =[8]Расчетный!F212 -> 1 | F196: =[8]Расчетный!G212 -> Не соответствует | G196: 0 | H196: =[8]Расчетный!AA212 -> 0 | I196: 0 | J196: =[8]Расчетный!AM212 -> 0 | K196: =[8]Расчетный!AD212-[8]Расчетный!AK212 -> 0 | L196: =[8]Расчетный!BN212 -> 1604.6 | M196: =[8]Расчетный!BR212 -> 0.7279401334 | N196: =[8]Расчетный!I212 -> 1.00103 | O196: =[8]Расчетный!BX212 -> 1155.8 | P196: =[8]Расчетный!BL212-[8]Расчетный!BV212 -> 474.4 | Q196: =[8]Расчетный!CY212 -> 0 | R196: =[8]Расчетный!DC212 -> 0 | S196: 0 | T196: =[8]Расчетный!DI212 -> 0 | U196: =[8]Расчетный!CW212-[8]Расчетный!DG212 -> 0 | V196: =[8]Расчетный!EJ212 -> 0 | W196: =[8]Расчетный!EN212 -> 0 | X196: 0 | Y196: =[8]Расчетный!ET212 -> 0 | Z196: =[8]Расчетный!EH212-[8]Расчетный!ER212 -> 0 | AA196: =[8]Расчетный!FS212 -> 0 | AB196: =[8]Расчетный!FW212 -> 0 | AC196: 0 | AD196: =[8]Расчетный!GC212 -> 0 | AE196: =[8]Расчетный!FQ212-[8]Расчетный!GA212 -> 0
C197: ФАП д. Верхнее Сеченово ОГАУЗ "Томская РБ" | D197: =[8]Расчетный!E214 -> 130 | E197: =[8]Расчетный!F214 -> 1 | F197: =[8]Расчетный!G214 -> Не соответствует | G197: 0 | H197: =[8]Расчетный!AA214 -> 0 | I197: 0 | J197: =[8]Расчетный!AM214 -> 0 | K197: =[8]Расчетный!AD214-[8]Расчетный!AK214 -> 0 | L197: =[8]Расчетный!BN214 -> 1604.6 | M197: =[8]Расчетный!BR214 -> 0.7277401334 | N197: =[8]Расчетный!I214 -> 1.00083 | O197: =[8]Расчетный!BX214 -> 1155.4 | P197: =[8]Расчетный!BL214-[8]Расчетный!BV214 -> 474.2 | Q197: =[8]Расчетный!CY214 -> 0 | R197: =[8]Расчетный!DC214 -> 0 | S197: 0 | T197: =[8]Расчетный!DI214 -> 0 | U197: =[8]Расчетный!CW214-[8]Расчетный!DG214 -> 0 | V197: =[8]Расчетный!EJ214 -> 0 | W197: =[8]Расчетный!EN214 -> 0 | X197: 0 | Y197: =[8]Расчетный!ET214 -> 0 | Z197: =[8]Расчетный!EH214-[8]Расчетный!ER214 -> 0 | AA197: =[8]Расчетный!FS214 -> 0 | AB197: =[8]Расчетный!FW214 -> 0 | AC197: 0 | AD197: =[8]Расчетный!GC214 -> 0 | AE197: =[8]Расчетный!FQ214-[8]Расчетный!GA214 -> 0
C198: ФАП д. Карбышево ОГАУЗ "Томская РБ" | D198: =[8]Расчетный!E215 -> 177 | E198: =[8]Расчетный!F215 -> 1 | F198: =[8]Расчетный!G215 -> Не соответствует | G198: 0 | H198: =[8]Расчетный!AA215 -> 0 | I198: 0 | J198: =[8]Расчетный!AM215 -> 0 | K198: =[8]Расчетный!AD215-[8]Расчетный!AK215 -> 0 | L198: =[8]Расчетный!BN215 -> 1604.6 | M198: =[8]Расчетный!BR215 -> 0.7283901334 | N198: =[8]Расчетный!I215 -> 1.00148 | O198: =[8]Расчетный!BX215 -> 1156.5 | P198: =[8]Расчетный!BL215-[8]Расчетный!BV215 -> 474.7 | Q198: =[8]Расчетный!CY215 -> 0 | R198: =[8]Расчетный!DC215 -> 0 | S198: 0 | T198: =[8]Расчетный!DI215 -> 0 | U198: =[8]Расчетный!CW215-[8]Расчетный!DG215 -> 0 | V198: =[8]Расчетный!EJ215 -> 0 | W198: =[8]Расчетный!EN215 -> 0 | X198: 0 | Y198: =[8]Расчетный!ET215 -> 0 | Z198: =[8]Расчетный!EH215-[8]Расчетный!ER215 -> 0 | AA198: =[8]Расчетный!FS215 -> 0 | AB198: =[8]Расчетный!FW215 -> 0 | AC198: 0 | AD198: =[8]Расчетный!GC215 -> 0 | AE198: =[8]Расчетный!FQ215-[8]Расчетный!GA215 -> 0
C199: ФАП д. Кудринский Участок ОГАУЗ "Томская РБ" | D199: =[8]Расчетный!E216 -> 408 | E199: =[8]Расчетный!F216 -> 1 | F199: =[8]Расчетный!G216 -> Не соответствует | G199: 0 | H199: =[8]Расчетный!AA216 -> 0 | I199: 0 | J199: =[8]Расчетный!AM216 -> 0 | K199: =[8]Расчетный!AD216-[8]Расчетный!AK216 -> 0 | L199: =[8]Расчетный!BN216 -> 1604.6 | M199: =[8]Расчетный!BR216 -> 0.7322401334 | N199: =[8]Расчетный!I216 -> 1.00533 | O199: =[8]Расчетный!BX216 -> 1162.6 | P199: =[8]Расчетный!BL216-[8]Расчетный!BV216 -> 477.2 | Q199: =[8]Расчетный!CY216 -> 0 | R199: =[8]Расчетный!DC216 -> 0 | S199: 0 | T199: =[8]Расчетный!DI216 -> 0 | U199: =[8]Расчетный!CW216-[8]Расчетный!DG216 -> 0 | V199: =[8]Расчетный!EJ216 -> 0 | W199: =[8]Расчетный!EN216 -> 0 | X199: 0 | Y199: =[8]Расчетный!ET216 -> 0 | Z199: =[8]Расчетный!EH216-[8]Расчетный!ER216 -> 0 | AA199: =[8]Расчетный!FS216 -> 0 | AB199: =[8]Расчетный!FW216 -> 0 | AC199: 0 | AD199: =[8]Расчетный!GC216 -> 0 | AE199: =[8]Расчетный!FQ216-[8]Расчетный!GA216 -> 0
C200: ФАП д. Борики ОГАУЗ "Томская РБ" | D200: =[8]Расчетный!E217 -> 423 | E200: =[8]Расчетный!F217 -> 1 | F200: =[8]Расчетный!G217 -> Не соответствует | G200: 0 | H200: =[8]Расчетный!AA217 -> 0 | I200: 0 | J200: =[8]Расчетный!AM217 -> 0 | K200: =[8]Расчетный!AD217-[8]Расчетный!AK217 -> 0 | L200: =[8]Расчетный!BN217 -> 1604.6 | M200: =[8]Расчетный!BR217 -> 0.7323601334 | N200: =[8]Расчетный!I217 -> 1.00545 | O200: =[8]Расчетный!BX217 -> 1162.7 | P200: =[8]Расчетный!BL217-[8]Расчетный!BV217 -> 477.2 | Q200: =[8]Расчетный!CY217 -> 0 | R200: =[8]Расчетный!DC217 -> 0 | S200: 0 | T200: =[8]Расчетный!DI217 -> 0 | U200: =[8]Расчетный!CW217-[8]Расчетный!DG217 -> 0 | V200: =[8]Расчетный!EJ217 -> 0 | W200: =[8]Расчетный!EN217 -> 0 | X200: 0 | Y200: =[8]Расчетный!ET217 -> 0 | Z200: =[8]Расчетный!EH217-[8]Расчетный!ER217 -> 0 | AA200: =[8]Расчетный!FS217 -> 0 | AB200: =[8]Расчетный!FW217 -> 0 | AC200: 0 | AD200: =[8]Расчетный!GC217 -> 0 | AE200: =[8]Расчетный!FQ217-[8]Расчетный!GA217 -> 0
C201: ФАП д. Берёзкино ОГАУЗ "Томская РБ" | D201: =[8]Расчетный!E218 -> 452 | E201: =[8]Расчетный!F218 -> 1 | F201: =[8]Расчетный!G218 -> Не соответствует | G201: 0 | H201: =[8]Расчетный!AA218 -> 0 | I201: 0 | J201: =[8]Расчетный!AM218 -> 0 | K201: =[8]Расчетный!AD218-[8]Расчетный!AK218 -> 0 | L201: =[8]Расчетный!BN218 -> 1604.6 | M201: =[8]Расчетный!BR218 -> 0.7312101334 | N201: =[8]Расчетный!I218 -> 1.0043 | O201: =[8]Расчетный!BX218 -> 1160.9 | P201: =[8]Расчетный!BL218-[8]Расчетный!BV218 -> 476.5 | Q201: =[8]Расчетный!CY218 -> 0 | R201: =[8]Расчетный!DC218 -> 0 | S201: 0 | T201: =[8]Расчетный!DI218 -> 0 | U201: =[8]Расчетный!CW218-[8]Расчетный!DG218 -> 0 | V201: =[8]Расчетный!EJ218 -> 0 | W201: =[8]Расчетный!EN218 -> 0 | X201: 0 | Y201: =[8]Расчетный!ET218 -> 0 | Z201: =[8]Расчетный!EH218-[8]Расчетный!ER218 -> 0 | AA201: =[8]Расчетный!FS218 -> 0 | AB201: =[8]Расчетный!FW218 -> 0 | AC201: 0 | AD201: =[8]Расчетный!GC218 -> 0 | AE201: =[8]Расчетный!FQ218-[8]Расчетный!GA218 -> 0
C202: ФАП д. Петрово ОГАУЗ "Томская РБ" | D202: =[8]Расчетный!E219 -> 543 | E202: =[8]Расчетный!F219 -> 1 | F202: =[8]Расчетный!G219 -> Соответствует | G202: 0 | H202: =[8]Расчетный!AA219 -> 0 | I202: 0 | J202: =[8]Расчетный!AM219 -> 0 | K202: =[8]Расчетный!AD219-[8]Расчетный!AK219 -> 0 | L202: =[8]Расчетный!BN219 -> 1604.6 | M202: =[8]Расчетный!BR219 -> 1 | N202: =[8]Расчетный!I219 -> 1 | O202: =[8]Расчетный!BX219 -> 1587.7 | P202: =[8]Расчетный!BL219-[8]Расчетный!BV219 -> 651.7 | Q202: =[8]Расчетный!CY219 -> 0 | R202: =[8]Расчетный!DC219 -> 0 | S202: 0 | T202: =[8]Расчетный!DI219 -> 0 | U202: =[8]Расчетный!CW219-[8]Расчетный!DG219 -> 0 | V202: =[8]Расчетный!EJ219 -> 0 | W202: =[8]Расчетный!EN219 -> 0 | X202: 0 | Y202: =[8]Расчетный!ET219 -> 0 | Z202: =[8]Расчетный!EH219-[8]Расчетный!ER219 -> 0 | AA202: =[8]Расчетный!FS219 -> 0 | AB202: =[8]Расчетный!FW219 -> 0 | AC202: 0 | AD202: =[8]Расчетный!GC219 -> 0 | AE202: =[8]Расчетный!FQ219-[8]Расчетный!GA219 -> 0
C203: ФАП с. Тахтамышево ОГАУЗ "Томская РБ" | D203: =[8]Расчетный!E220 -> 781 | E203: =[8]Расчетный!F220 -> 1 | F203: =[8]Расчетный!G220 -> Не соответствует | G203: 0 | H203: =[8]Расчетный!AA220 -> 0 | I203: 0 | J203: =[8]Расчетный!AM220 -> 0 | K203: =[8]Расчетный!AD220-[8]Расчетный!AK220 -> 0 | L203: =[8]Расчетный!BN220 -> 1604.6 | M203: =[8]Расчетный!BR220 -> 0.7346701334 | N203: =[8]Расчетный!I220 -> 1.00776 | O203: =[8]Расчетный!BX220 -> 1166.4 | P203: =[8]Расчетный!BL220-[8]Расчетный!BV220 -> 478.7 | Q203: =[8]Расчетный!CY220 -> 0 | R203: =[8]Расчетный!DC220 -> 0 | S203: 0 | T203: =[8]Расчетный!DI220 -> 0 | U203: =[8]Расчетный!CW220-[8]Расчетный!DG220 -> 0 | V203: =[8]Расчетный!EJ220 -> 0 | W203: =[8]Расчетный!EN220 -> 0 | X203: 0 | Y203: =[8]Расчетный!ET220 -> 0 | Z203: =[8]Расчетный!EH220-[8]Расчетный!ER220 -> 0 | AA203: =[8]Расчетный!FS220 -> 0 | AB203: =[8]Расчетный!FW220 -> 0 | AC203: 0 | AD203: =[8]Расчетный!GC220 -> 0 | AE203: =[8]Расчетный!FQ220-[8]Расчетный!GA220 -> 0
C204: ФАП д. Поросино ОГАУЗ "Томская РБ" | D204: =[8]Расчетный!E221 -> 1081 | E204: =[8]Расчетный!F221 -> 1 | F204: =[8]Расчетный!G221 -> Не соответствует | G204: 0 | H204: =[8]Расчетный!AA221 -> 0 | I204: 0 | J204: =[8]Расчетный!AM221 -> 0 | K204: =[8]Расчетный!AD221-[8]Расчетный!AK221 -> 0 | L204: =[8]Расчетный!BN221 -> 0 | M204: =[8]Расчетный!BR221 -> 0 | N204: 0 | O204: =[8]Расчетный!BX221 -> 0 | P204: =[8]Расчетный!BL221-[8]Расчетный!BV221 -> 0 | Q204: =[8]Расчетный!CY221 -> 3209.1 | R204: =[8]Расчетный!DC221 -> 0.4585453738 | S204: =[8]Расчетный!I221 -> 1.00549 | T204: =[8]Расчетный!DI221 -> 1456 | U204: =[8]Расчетный!CW221-[8]Расчетный!DG221 -> 597.6 | V204: =[8]Расчетный!EJ221 -> 0 | W204: =[8]Расчетный!EN221 -> 0 | X204: 0 | Y204: =[8]Расчетный!ET221 -> 0 | Z204: =[8]Расчетный!EH221-[8]Расчетный!ER221 -> 0 | AA204: =[8]Расчетный!FS221 -> 0 | AB204: =[8]Расчетный!FW221 -> 0 | AC204: 0 | AD204: =[8]Расчетный!GC221 -> 0 | AE204: =[8]Расчетный!FQ221-[8]Расчетный!GA221 -> 0
C205: ФАП с. Калтай ОГАУЗ "Томская РБ" | D205: =[8]Расчетный!E222 -> 1104 | E205: =[8]Расчетный!F222 -> 1 | F205: =[8]Расчетный!G222 -> Не соответствует | G205: 0 | H205: =[8]Расчетный!AA222 -> 0 | I205: 0 | J205: =[8]Расчетный!AM222 -> 0 | K205: =[8]Расчетный!AD222-[8]Расчетный!AK222 -> 0 | L205: =[8]Расчетный!BN222 -> 0 | M205: =[8]Расчетный!BR222 -> 0 | N205: 0 | O205: =[8]Расчетный!BX222 -> 0 | P205: =[8]Расчетный!BL222-[8]Расчетный!BV222 -> 0 | Q205: =[8]Расчетный!CY222 -> 3209.1 | R205: =[8]Расчетный!DC222 -> 0.4578053738 | S205: =[8]Расчетный!I222 -> 1.00475 | T205: =[8]Расчетный!DI222 -> 1453.7 | U205: =[8]Расчетный!CW222-[8]Расчетный!DG222 -> 596.7 | V205: =[8]Расчетный!EJ222 -> 0 | W205: =[8]Расчетный!EN222 -> 0 | X205: 0 | Y205: =[8]Расчетный!ET222 -> 0 | Z205: =[8]Расчетный!EH222-[8]Расчетный!ER222 -> 0 | AA205: =[8]Расчетный!FS222 -> 0 | AB205: =[8]Расчетный!FW222 -> 0 | AC205: 0 | AD205: =[8]Расчетный!GC222 -> 0 | AE205: =[8]Расчетный!FQ222-[8]Расчетный!GA222 -> 0
... 72 more rows

Sheet Приложение № 5
A1: _Оглавление_
B2: =MID(CELL("filename",A2),SEARCH("]",CELL("filename",A2))+1,31) -> Приложение № 5
B3: ='Приложение № 3'!B3 -> к Дополнительному соглашению № 6
B4: =_Оглавление_!A3 -> от 05.06.2024
B5: к Тарифному соглашению
B6: на оплату медицинской помощи
B7: по ОМС на территории Томской области на 2024 год
B8: от 05.02.2024
B10: Приложение № 38
B11: к Тарифному соглашению
B12: на оплату медицинской помощи
B13: по ОМС на территории Томской области на 2024 год
B14: от 05.02.2024
B16: Тарифы на оплату скорой медицинской помощи , по подушевому нормативу финансирования, оказываемой медицинскими организациями, участвующими в реализации территориальной программы обязательного медицинского страхования Томской области, с 01.06.2024
B19: Код МО | C19: Наименование МО | D19: Среднемесячное количество лиц, обслуживаемых медицинскими организациями, оказывающими скорую медицинскую помощь, по состоянию на 01.05.2024 | E19: Базовый подушевой норматив на одно застрахованное лицо (руб. в месяц) | F19: Коэффициент половозрастного состава | G19: Коэффициент уровня расходов медицинских организаций (особенности плотности населения, транспортной доступности, климатических и географических особенностей, размер медицинской организации) | H19: Коэффициент достижения целевых показателей уровня заработной платы медицинских работников, установленных «дорожными картами» развития здравоохранения в субъекте Российской Федерации | I19: Коэффициент дифференциации по территориям оказания медицинской помощи | J19: Дифференцированный подушевой норматив финансирования скорой медицинской помощи, руб. в месяц, (гр. 8= гр.3*гр.4*гр.5*гр.6*гр.7)
C20: 1 | D20: 2 | E20: 3 | F20: 4 | G20: 5 | H20: 6 | I20: 7 | J20: 8
B21: 61 | C21: ОГАУЗ "Александровская РБ" | D21: =VLOOKUP(B21,[9]Расчет!$A$5:$E$25,5,0) -> 7330 | E21: 78 | F21: 0.99752 | G21: 1 | H21: 1 | I21: 1.815 | J21: =ROUND(E21*F21*G21*H21*I21,2) -> 141.22
B22: 59 | C22: ОГБУЗ "Асиновская РБ" | D22: =VLOOKUP(B22,[9]Расчет!$A$5:$E$25,5,0) -> 34878 | E22: 78 | F22: 0.99838 | G22: 1 | H22: 1 | I22: 1.27 | J22: =ROUND(E22*F22*G22*H22*I22,2) -> 98.9
B23: 63 | C23: ОГБУЗ "Бакчарская РБ" | D23: =VLOOKUP(B23,[9]Расчет!$A$5:$E$25,5,0) -> 14465 | E23: 78 | F23: 0.98214 | G23: 1 | H23: 1 | I23: 1.665 | J23: 127.55
B24: 65 | C24: ОГБУЗ "Верхнекетская РБ" | D24: =VLOOKUP(B24,[9]Расчет!$A$5:$E$25,5,0) -> 14456 | E24: 78 | F24: 1.01065 | G24: 1 | H24: 1 | I24: 1.795 | J24: 141.5
B25: 67 | C25: ОГБУЗ "Зырянская РБ" | D25: =VLOOKUP(B25,[9]Расчет!$A$5:$E$25,5,0) -> 12690 | E25: 78 | F25: 1.00537 | G25: 1 | H25: 1 | I25: 1.26 | J25: 98.81
B26: 69 | C26: ОГБУЗ "Каргасокская РБ" | D26: =VLOOKUP(B26,[9]Расчет!$A$5:$E$25,5,0) -> 19491 | E26: 78 | F26: 0.99741 | G26: 1 | H26: 1 | I26: 1.831 | J26: 142.45
B27: 71 | C27: ОГАУЗ "Кожевниковская РБ" | D27: =VLOOKUP(B27,[9]Расчет!$A$5:$E$25,5,0) -> 18789 | E27: 78 | F27: 1.01207 | G27: 1 | H27: 1 | I27: 1.272 | J27: 100.41
B28: 103 | C28: ОГАУЗ "Колпашевская РБ" | D28: =VLOOKUP(B28,[9]Расчет!$A$5:$E$25,5,0) -> 38168 | E28: 78 | F28: 1.02773 | G28: 1 | H28: 1 | I28: 1.793 | J28: 143.73
B29: 73 | C29: ОГАУЗ "Кривошеинская РБ" | D29: =VLOOKUP(B29,[9]Расчет!$A$5:$E$25,5,0) -> 12096 | E29: 78 | F29: 1.02393 | G29: 1 | H29: 1 | I29: 1.63 | J29: 130.18
B30: 75 | C30: ОГБУЗ "Молчановская РБ" | D30: =VLOOKUP(B30,[9]Расчет!$A$5:$E$25,5,0) -> 12361 | E30: 78 | F30: 1.01228 | G30: 1 | H30: 1 | I30: 1.637 | J30: 129.25
B31: 275 | C31: ОГАУЗ "Моряковская УБ им.В.С.Демьянова" | D31: =VLOOKUP(B31,[9]Расчет!$A$5:$E$25,5,0) -> 4955 | E31: 78 | F31: 1.04298 | G31: 1 | H31: 1 | I31: 1.271 | J31: 103.4
B32: 203 | C32: ОГБУЗ "Парабельская РБ" | D32: =VLOOKUP(B32,[9]Расчет!$A$5:$E$25,5,0) -> 11956 | E32: 78 | F32: 0.99576 | G32: 1 | H32: 1 | I32: 1.794 | J32: 139.34
B33: 79 | C33: ОГБУЗ "Первомайская РБ" | D33: =VLOOKUP(B33,[9]Расчет!$A$5:$E$25,5,0) -> 17225 | E33: 78 | F33: 0.99491 | G33: 1 | H33: 1 | I33: 1.272 | J33: 98.71
B34: 231 | C34: ОГАУЗ "Светленская РБ" | D34: =VLOOKUP(B34,[9]Расчет!$A$5:$E$25,5,0) -> 33199 | E34: 78 | F34: 1.00172 | G34: 1 | H34: 1 | I34: 1.271 | J34: 99.31
B35: 115 | C35: ОГАУЗ "Стрежевская ГБ" | D35: =VLOOKUP(B35,[9]Расчет!$A$5:$E$25,5,0) -> 35639 | E35: 78 | F35: 0.9476 | G35: 1 | H35: 1 | I35: 1.765 | J35: 130.46
B36: 81 | C36: ОГБУЗ "Тегульдетская РБ" | D36: =VLOOKUP(B36,[9]Расчет!$A$5:$E$25,5,0) -> 6359 | E36: 78 | F36: 0.99302 | G36: 1 | H36: 1 | I36: 1.644 | J36: 127.34
B37: 83 | C37: ОГАУЗ "Томская РБ" | D37: =VLOOKUP(B37,[9]Расчет!$A$5:$E$25,5,0) -> 50374 | E37: 78 | F37: 1.01121 | G37: 1 | H37: 1 | I37: 1.271 | J37: 100.25
B38: 85 | C38: ОГБУЗ "Чаинская РБ" | D38: =VLOOKUP(B38,[9]Расчет!$A$5:$E$25,5,0) -> 10314 | E38: 78 | F38: 1.02129 | G38: 1 | H38: 1 | I38: 1.777 | J38: 141.56
B39: 87 | C39: ОГАУЗ "Шегарская РБ" | D39: =VLOOKUP(B39,[9]Расчет!$A$5:$E$25,5,0) -> 17167 | E39: 78 | F39: 1.05029 | G39: 1 | H39: 1 | I39: 1.242 | J39: 101.75
B40: 321 | C40: ОГАУЗ "Станция скорой медицинской помощи" | D40: =VLOOKUP(B40,[9]Расчет!$A$5:$E$25,5,0) -> 534299 | E40: 78 | F40: 0.9869 | G40: 1 | H40: 1.3265 | I40: 1.274 | J40: 130.09
B41: 354 | C41: ФГБУ СибФНКЦ ФМБА России | D41: =VLOOKUP(B41,[9]Расчет!$A$5:$E$25,5,0) -> 101478 | E41: 78 | F41: 1.05745 | G41: 1 | H41: 1 | I41: 1.381 | J41: 113.91
